Workbook

Sheet Sheet1

Sheet instructions (hidden)
B2: Instructions
B4: This calculator allows users to conduct analysis similar to that presented in the Federal Reserve Bank of Minneapolis Economic Policy Paper (13-3), “Quantifying the Costs of Additional Regulation on Community Banks,” by Ron Feldman, Ken Heinecke and Jason Schmidt. Please review that paper for additional details on the analysis allowed by this calculator.
B6: The underlying data in the calculator come from the quarterly statements of condition and income that commercial banks are required to file with federal regulators (known as “Call Reports”). This calculator contains data on “community” banks, which are defined to have assets less than $1 billion. The data are for the years 2001 to 2012.
B8: In the calculator, the user can specify four input parameters:
B10: 1. Bank asset size cutoffs. To determine how potential regulatory costs might vary across sizes of banks, create groupings of banks based on the asset size of the bank. Create these groups by specifying “asset size cutoffs.” These cutoffs set the asset size of banks to be included in a given group. Specify up to five different asset size cutoffs. For example, to create groupings that include banks with less than $50 million in assets, banks with assets between $50 million and $100 million, banks with assets between $100 million and $250 million, banks with assets between $250 million and $500 million and banks with assets greater than $500 million, the asset cutoffs would be 50, 100, 250 and 500. That is, enter the maximum amount of assets for each cohort in millions of dollars (i.e., 50 = 50 million).
B12: 2. Number of full-time equivalent employees (FTEs). This calculator quantifies the potential costs of additional regulation on banks by assuming that the costs manifest themselves as additional hiring of staff. The additional staff are measured as FTEs. Enter the number of FTEs hired by each grouping of banks (note: decimals are allowed, i.e., enter 1.5 for one-and-a-half FTEs). Leave input boxes blank to perform the analysis on fewer than five cohorts.
B14: 3. Compensation of FTEs. Specify the compensation of the additional FTEs in order to allow for the quantification of the potential regulatory costs. Also specify compensation for hires at rural and urban banks. Enter the amounts in thousands of dollars (i.e., 70 = 70,000). Also note that the costs are measured in constant 2012 dollars and are adjusted dynamically to account for inflation in earlier years.
B16: 4. Year on which the analysis is performed. Select any year from 2001 to 2012 to perform the regulatory cost quantification. For example, to measure the impact of the regulatory change on bank data from 2005, enter “2005.”
B18: Once the parameters have been specified, press the “perform calculations” button to see the results of the change.

Sheet cpi inflation (hidden)
A1: Series ID: CPIAUCSL | J1: DATE | K1: VALUE | L1: year | M1: cpi adj (2012=100)
A2: Source: U.S. Department of Labor: Bureau of Labor Statistics | J2: 2000-12-01 | K2: 174.6 | L2: =YEAR(J2) -> 2000 | M2: =K2/K$14 -> 0.7553961503
A3: Release: Consumer Price Index | J3: 2001-12-01 | K3: 177.4 | L3: =YEAR(J3) -> 2001 | M3: 0.7675101779
A4: Seasonal Adjustment: Seasonally Adjusted | J4: 2002-12-01 | K4: 181.8 | L4: 2002 | M4: 0.786546507
A5: Frequency: Monthly | J5: 2003-12-01 | K5: 185.5 | L5: 2003 | M5: 0.8025543293
A6: Units: Index 1982-84=100 | J6: 2004-12-01 | K6: 191.7 | L6: 2004 | M6: 0.8293782475
A7: Date Range: 1947-01-01 to 2012-10-01 | J7: 2005-12-01 | K7: 198.1 | L7: 2005 | M7: 0.8570674535
A8: Last Updated: 2012-11-15 9:53 AM CST | J8: 2006-12-01 | K8: 203.1 | L8: 2006 | M8: 0.8786996457
A9: Notes: Handbook of Methods - (http://www.bls.gov/opub/hom/pdf/homch17.pdf) | J9: 2007-12-01 | K9: 211.445 | L9: 2007 | M9: 0.9148037744
A10: Understanding the CPI: Frequently Asked Questions - | J10: 2008-12-01 | K10: 211.398 | L10: 2008 | M10: 0.9146004318
A11: (http://stats.bls.gov:80/cpi/cpifaq.htm) | J11: 2009-12-01 | K11: 217.365 | L11: 2009 | M11: 0.9404162899
J12: 2010-12-01 | K12: 220.468 | L12: 2010 | M12: 0.9538412284
J13: 2011-12-01 | K13: 227.137 | L13: 2011 | M13: 0.9826942463
J14: 2012-12-01 | K14: 231.137 | L14: 2012 | M14: =K14/K$14 -> 1

Sheet summary (hidden)
E1: 1
I2: cohort | J2: addl hires
B3: rural | C3: =E1*E3 -> 70 | E3: 70 | H3: Size 1 | I3: 50 | J3: 1
B4: urban | C4: =E1*E4 -> 90 | E4: 90 | H4: Size 2 | I4: 100 | J4: 1
H5: Size 3 | I5: 250 | J5: 2
H6: Size 4 | I6: 500 | J6: 2
H7: Size 5 | I7: 1000 | J7: 3
H8: Size 6 | J8: 0

Sheet 2012 data (hidden)
A1: id.rssd | B1: msa.cd | C1: nt.inc | D1: assets | E1: int.exp | F1: nonint.exp | G1: prov.exp | H1: equity | I1: fte | J1: roa | K1: asset.cohort | L1: addl reg exp | M1: new.roa | N1: delta | O1: newly unprof | P1: roe | Q1: new.roe | R1: delta | T1: 2012
A2: 37 | B2: 0 | C2: 498 | D2: 85871 | E2: 1009 | F2: 2324 | G2: 120 | H2: 18478 | I2: 25 | J2: =C2/D2 -> 0.00579939677 | K2: =IF(D2/1000<INDEX(sizeV,1),1,IF(D2/1000<INDEX(sizeV,2),2,IF(D2/1000<INDEX(sizeV,3),3,IF(D2/1000<INDEX(sizeV,4),4,IF(D2/1000<INDEX(sizeV,5),5,6))))) -> 2 | L2: =IF(B2=0,salRural*T$2,salUrban*T$2)*INDEX(nHires,K2) -> 70 | M2: =(C2-L2)/D2 -> 0.004984220517 | N2: =M2-J2 -> -0.0008151762528 | O2: x | P2: x | Q2: x | R2: x | T2: =VLOOKUP(T1,cpiAdj,2,FALSE) -> 1 | W2: Asset | AC2: Change in ROA
A3: 242 | B3: 0 | C3: 474 | D3: 36979 | E3: 240 | F3: 937 | G3: 0 | H3: 4941 | I3: 12 | J3: 0.01281808594 | K3: 1 | L3: 70 | M3: 0.01092511966 | N3: -0.001892966278 | O3: x | P3: x | Q3: x | R3: x | V3: Size | W3: Size Max | X3: Addl | Y3: # of | AA3: Median | AB3: x | AC3: 25th pctile | AD3: 50th pctile | AE3: 75th pctile | AF3: Avg | AG3: Original | AH3: Newly | AJ3: Original | AK3: After Change
A4: 354 | B4: 0 | C4: 33 | D4: 11203 | E4: 25 | F4: 350 | G4: 0 | H4: 1063 | I4: 4 | J4: 0.002945639561 | K4: 1 | L4: 70 | M4: -0.00330268678 | N4: -0.006248326341 | O4: x | P4: x | Q4: x | R4: x | V4: Quintile | W4: ($MM) | X4: Hires | Y4: Banks | Z4: % | AA4: FTEs | AB4: x | AC4: (bps) | AD4: (bps) | AE4: (bps) | AF4: (bps) | AG4: Unprof | AH4: Unprof | AI4: Difference | AJ4: ROA < 40 | AK4: ROA < 40 | AL4: Difference
A5: 457 | B5: 0 | C5: 907 | D5: 40715 | E5: 314 | F5: 1001 | G5: 121 | H5: 3805 | I5: 9 | J5: 0.02227680216 | K5: 1 | L5: 70 | M5: 0.02055753408 | N5: -0.001719268083 | O5: x | P5: x | Q5: x | R5: x | V5: 1 | W5: x | X5: x | Y5: x | Z5: x | AA5: x | AB5: x | AC5: =PERCENTILE(IF($K$2:$K$7000=$V5,$N$2:$N$7000),0.25)*10000 -> -30.43500028 | AD5: =PERCENTILE(IF($K$2:$K$7000=$V5,$N$2:$N$7000),0.5)*10000 -> -22.52324721 | AE5: =PERCENTILE(IF($K$2:$K$7000=$V5,$N$2:$N$7000),0.75)*10000 -> -17.99509355 | AF5: =AVERAGE(IF($K$2:$K$7000=$V5,$N$2:$N$7000))*10000 -> -27.84111084 | AG5: =SUM(IF($K$2:$K$7000=$V5,IF($J$2:$J$7000<0,1,0))) -> 107 | AH5: =SUM(IF($K$2:$K$7000=$V5,IF($M$2:$M$7000<0,1,0))) -> 203 | AI5: =IF(INDEX(sizeV,V5)>0,AH5-AG5) -> 96 | AJ5: =SUM(IF($K$2:$K$7000=$V5,IF($J$2:$J$7000<0.004,1,0))) -> 252 | AK5: =SUM(IF($K$2:$K$7000=$V5,IF($M$2:$M$7000<0.004,1,0))) -> 384 | AL5: =IF(INDEX(sizeV,V5)>0,AK5-AJ5) -> 132
A6: 505 | B6: 10580 | C6: 2355 | D6: 421043 | E6: 2437 | F6: 11480 | G6: 400 | H6: 31512 | I6: 106 | J6: 0.005593252946 | K6: 4 | L6: 180 | M6: 0.005165743166 | N6: -0.0004275097793 | O6: x | P6: x | Q6: x | R6: x | V6: 2 | W6: x | X6: x | Y6: x | Z6: x | AA6: x | AB6: x | AC6: =PERCENTILE(IF($K$2:$K$7000=$V6,$N$2:$N$7000),0.25)*10000 -> -12.60319601 | AD6: =PERCENTILE(IF($K$2:$K$7000=$V6,$N$2:$N$7000),0.5)*10000 -> -10.62693044 | AE6: =PERCENTILE(IF($K$2:$K$7000=$V6,$N$2:$N$7000),0.75)*10000 -> -9.158185045 | AF6: =AVERAGE(IF($K$2:$K$7000=$V6,$N$2:$N$7000))*10000 -> -10.99169644 | AG6: =SUM(IF($K$2:$K$7000=$V6,IF($J$2:$J$7000<0,1,0))) -> 138 | AH6: =SUM(IF($K$2:$K$7000=$V6,IF($M$2:$M$7000<0,1,0))) -> 167 | AI6: =IF(INDEX(sizeV,V6)>0,AH6-AG6) -> 29 | AJ6: =SUM(IF($K$2:$K$7000=$V6,IF($J$2:$J$7000<0.004,1,0))) -> 299 | AK6: =SUM(IF($K$2:$K$7000=$V6,IF($M$2:$M$7000<0.004,1,0))) -> 370 | AL6: =IF(INDEX(sizeV,V6)>0,AK6-AJ6) -> 71
A7: 1155 | B7: 0 | C7: 2506 | D7: 215586 | E7: 1534 | F7: 6113 | G7: 1 | H7: 19654 | I7: 51 | J7: 0.01162413144 | K7: 3 | L7: 140 | M7: 0.01097473862 | N7: -0.0006493928177 | O7: x | P7: x | Q7: x | R7: x | V7: 3 | W7: x | X7: x | Y7: x | Z7: x | AA7: x | AB7: x | AC7: =PERCENTILE(IF($K$2:$K$7000=$V7,$N$2:$N$7000),0.25)*10000 -> -12.58727063 | AD7: =PERCENTILE(IF($K$2:$K$7000=$V7,$N$2:$N$7000),0.5)*10000 -> -10.1571841 | AE7: =PERCENTILE(IF($K$2:$K$7000=$V7,$N$2:$N$7000),0.75)*10000 -> -8.112540598 | AF7: =AVERAGE(IF($K$2:$K$7000=$V7,$N$2:$N$7000))*10000 -> -10.5236673 | AG7: =SUM(IF($K$2:$K$7000=$V7,IF($J$2:$J$7000<0,1,0))) -> 186 | AH7: =SUM(IF($K$2:$K$7000=$V7,IF($M$2:$M$7000<0,1,0))) -> 223 | AI7: =IF(INDEX(sizeV,V7)>0,AH7-AG7) -> 37 | AJ7: =SUM(IF($K$2:$K$7000=$V7,IF($J$2:$J$7000<0.004,1,0))) -> 402 | AK7: =SUM(IF($K$2:$K$7000=$V7,IF($M$2:$M$7000<0.004,1,0))) -> 513 | AL7: =IF(INDEX(sizeV,V7)>0,AK7-AJ7) -> 111
A8: 1351 | B8: 0 | C8: 3625 | D8: 163892 | E8: 1878 | F8: 2598 | G8: 119 | H8: 20283 | I8: 30 | J8: 0.0221182242 | K8: 3 | L8: 140 | M8: 0.02126400312 | N8: -0.0008542210724 | O8: x | P8: x | Q8: x | R8: x | V8: 4 | W8: x | X8: x | Y8: x | Z8: x | AA8: x | AB8: x | AC8: =PERCENTILE(IF($K$2:$K$7000=$V8,$N$2:$N$7000),0.25)*10000 -> -5.589134754 | AD8: =PERCENTILE(IF($K$2:$K$7000=$V8,$N$2:$N$7000),0.5)*10000 -> -4.824120814 | AE8: =PERCENTILE(IF($K$2:$K$7000=$V8,$N$2:$N$7000),0.75)*10000 -> -4.0530257 | AF8: =AVERAGE(IF($K$2:$K$7000=$V8,$N$2:$N$7000))*10000 -> -4.890655728 | AG8: =SUM(IF($K$2:$K$7000=$V8,IF($J$2:$J$7000<0,1,0))) -> 77 | AH8: =SUM(IF($K$2:$K$7000=$V8,IF($M$2:$M$7000<0,1,0))) -> 84 | AI8: =IF(INDEX(sizeV,V8)>0,AH8-AG8) -> 7 | AJ8: =SUM(IF($K$2:$K$7000=$V8,IF($J$2:$J$7000<0.004,1,0))) -> 188 | AK8: =SUM(IF($K$2:$K$7000=$V8,IF($M$2:$M$7000<0.004,1,0))) -> 209 | AL8: =IF(INDEX(sizeV,V8)>0,AK8-AJ8) -> 21
A9: 1454 | B9: 16220 | C9: 9334 | D9: 637046 | E9: 1171 | F9: 16621 | G9: 280 | H9: 65680 | I9: 146 | J9: 0.01465200315 | K9: 5 | L9: 270 | M9: 0.01422817191 | N9: -0.0004238312461 | O9: x | P9: x | Q9: x | R9: x | V9: 5 | W9: x | X9: x | Y9: x | Z9: x | AA9: x | AB9: x | AC9: =PERCENTILE(IF($K$2:$K$7000=$V9,$N$2:$N$7000),0.25)*10000 -> -4.360286988 | AD9: =PERCENTILE(IF($K$2:$K$7000=$V9,$N$2:$N$7000),0.5)*10000 -> -3.744613822 | AE9: =PERCENTILE(IF($K$2:$K$7000=$V9,$N$2:$N$7000),0.75)*10000 -> -3.119796215 | AF9: =AVERAGE(IF($K$2:$K$7000=$V9,$N$2:$N$7000))*10000 -> -3.780326881 | AG9: =SUM(IF($K$2:$K$7000=$V9,IF($J$2:$J$7000<0,1,0))) -> 36 | AH9: =SUM(IF($K$2:$K$7000=$V9,IF($M$2:$M$7000<0,1,0))) -> 39 | AI9: =IF(INDEX(sizeV,V9)>0,AH9-AG9) -> 3 | AJ9: =SUM(IF($K$2:$K$7000=$V9,IF($J$2:$J$7000<0.004,1,0))) -> 94 | AK9: =SUM(IF($K$2:$K$7000=$V9,IF($M$2:$M$7000<0.004,1,0))) -> 107 | AL9: =IF(INDEX(sizeV,V9)>0,AK9-AJ9) -> 13
A10: 1557 | B10: 0 | C10: 664 | D10: 71074 | E10: 289 | F10: 1303 | G10: 210 | H10: 6054 | I10: 13 | J10: 0.009342375552 | K10: 2 | L10: 70 | M10: 0.008357486563 | N10: -0.0009848889889 | O10: x | P10: x | Q10: x | R10: x
A11: 1669 | B11: 0 | C11: 2746 | D11: 250172 | E11: 942 | F11: 5513 | G11: 258 | H11: 44541 | I11: 51 | J11: 0.0109764482 | K11: 4 | L11: 140 | M11: 0.01041683322 | N11: -0.0005596149849 | O11: x | P11: x | Q11: x | R11: x
A12: 1829 | B12: 38300 | C12: 2525 | D12: 405289 | E12: 3324 | F12: 11794 | G12: 486 | H12: 44610 | I12: 98 | J12: 0.006230122209 | K12: 4 | L12: 180 | M12: 0.005785994685 | N12: -0.0004441275238 | O12: x | P12: x | Q12: x | R12: x | W12: Percentiles of ROA (before)
A13: 1856 | B13: 0 | C13: -2601 | D13: 116772 | E13: 3594 | F13: 3954 | G13: 171 | H13: 14926 | I13: 8 | J13: -0.02227417532 | K13: 3 | L13: 140 | M13: -0.02347309286 | N13: -0.001198917549 | O13: x | P13: x | Q13: x | R13: x | V13: Cohort | W13: 25 | X13: 50 | Y13: 75
A14: 2040 | B14: 0 | C14: 7 | D14: 200588 | E14: 2273 | F14: 6411 | G14: 1135 | H14: 21267 | I14: 46 | J14: 3.489740164e-05 | K14: 3 | L14: 140 | M14: -0.0006630506311 | N14: -0.0006979480328 | O14: x | P14: x | Q14: x | R14: x | V14: 1 | W14: =PERCENTILE(IF($K$2:$K$7000=$V14,$J$2:$J$7000),W$13/100) -> 0.002757528452 | X14: =PERCENTILE(IF($K$2:$K$7000=$V14,$J$2:$J$7000),X$13/100) -> 0.00605445383 | Y14: =PERCENTILE(IF($K$2:$K$7000=$V14,$J$2:$J$7000),Y$13/100) -> 0.01044564482
A15: 2161 | B15: 0 | C15: 2152 | D15: 136486 | E15: 495 | F15: 3751 | G15: 5 | H15: 14718 | I15: 34 | J15: 0.01576718491 | K15: 3 | L15: 140 | M15: 0.01474143868 | N15: -0.00102574623 | O15: x | P15: x | Q15: x | R15: x | V15: 2 | W15: =PERCENTILE(IF($K$2:$K$7000=$V15,$J$2:$J$7000),W$13/100) -> 0.003952757282 | X15: =PERCENTILE(IF($K$2:$K$7000=$V15,$J$2:$J$7000),X$13/100) -> 0.007838698603 | Y15: =PERCENTILE(IF($K$2:$K$7000=$V15,$J$2:$J$7000),Y$13/100) -> 0.01185424477
A16: 2554 | B16: 0 | C16: 157 | D16: 13235 | E16: 67 | F16: 298 | G16: 24 | H16: 1273 | I16: 4 | J16: 0.01186248583 | K16: 1 | L16: 70 | M16: 0.006573479411 | N16: -0.005289006422 | O16: x | P16: x | Q16: x | R16: x | V16: 3 | W16: =PERCENTILE(IF($K$2:$K$7000=$V16,$J$2:$J$7000),W$13/100) -> 0.004912670819 | X16: =PERCENTILE(IF($K$2:$K$7000=$V16,$J$2:$J$7000),X$13/100) -> 0.008627914972 | Y16: =PERCENTILE(IF($K$2:$K$7000=$V16,$J$2:$J$7000),Y$13/100) -> 0.0123087559
A17: 2732 | B17: 16974 | C17: 3442 | D17: 548627 | E17: 1501 | F17: 10471 | G17: 1615 | H17: 79417 | I17: 90 | J17: 0.006273843613 | K17: 5 | L17: 270 | M17: 0.005781705968 | N17: -0.0004921376454 | O17: x | P17: x | Q17: x | R17: x | V17: 4 | W17: =PERCENTILE(IF($K$2:$K$7000=$V17,$J$2:$J$7000),W$13/100) -> 0.005459574505 | X17: =PERCENTILE(IF($K$2:$K$7000=$V17,$J$2:$J$7000),X$13/100) -> 0.008873503628 | Y17: =PERCENTILE(IF($K$2:$K$7000=$V17,$J$2:$J$7000),Y$13/100) -> 0.0123744622
A18: 2750 | B18: 0 | C18: 92 | D18: 58495 | E18: 674 | F18: 1390 | G18: 697 | H18: 5611 | I18: 10 | J18: 0.001572783999 | K18: 2 | L18: 70 | M18: 0.0003761005214 | N18: -0.001196683477 | O18: x | P18: x | Q18: x | R18: x | V18: 5 | W18: =PERCENTILE(IF($K$2:$K$7000=$V18,$J$2:$J$7000),W$13/100) -> 0.005599490912 | X18: =PERCENTILE(IF($K$2:$K$7000=$V18,$J$2:$J$7000),X$13/100) -> 0.008693611675 | Y18: =PERCENTILE(IF($K$2:$K$7000=$V18,$J$2:$J$7000),Y$13/100) -> 0.01155275025
A19: 3252 | B19: 0 | C19: 2765 | D19: 167113 | E19: 903 | F19: 3383 | G19: 550 | H19: 20445 | I19: 36 | J19: 0.01654569064 | K19: 3 | L19: 140 | M19: 0.01570793415 | N19: -0.0008377564881 | O19: x | P19: x | Q19: x | R19: x
A20: 3458 | B20: 0 | C20: 223 | D20: 34114 | E20: 198 | F20: 779 | G20: 60 | H20: 3423 | I20: 10 | J20: 0.006536905669 | K20: 1 | L20: 70 | M20: 0.004484962186 | N20: -0.002051943484 | O20: x | P20: x | Q20: x | R20: x
A21: 3720 | B21: 0 | C21: 2002 | D21: 204303 | E21: 883 | F21: 6947 | G21: 190 | H21: 29560 | I21: 60 | J21: 0.009799170839 | K21: 3 | L21: 140 | M21: 0.009113914137 | N21: -0.0006852567021 | O21: x | P21: x | Q21: x | R21: x | W21: Percentiles of ROA (after)
A22: 4156 | B22: 0 | C22: 2061 | D22: 210558 | E22: 1188 | F22: 6908 | G22: 90 | H22: 21505 | I22: 65 | J22: 0.009788276864 | K22: 3 | L22: 140 | M22: 0.009123376932 | N22: -0.0006648999326 | O22: x | P22: x | Q22: x | R22: x | V22: Cohort | W22: 25 | X22: 50 | Y22: 75
A23: 4231 | B23: 0 | C23: 32 | D23: 121055 | E23: 1099 | F23: 3075 | G23: 1859 | H23: 14834 | I23: 32 | J23: 0.0002643426542 | K23: 3 | L23: 140 | M23: -0.0008921564578 | N23: -0.001156499112 | O23: x | P23: x | Q23: x | R23: x | V23: 1 | W23: =PERCENTILE(IF($K$2:$K$7000=$V23,$M$2:$M$7000),W$13/100) -> -0.0005495104131 | X23: =PERCENTILE(IF($K$2:$K$7000=$V23,$M$2:$M$7000),X$13/100) -> 0.003834029139 | Y23: =PERCENTILE(IF($K$2:$K$7000=$V23,$M$2:$M$7000),Y$13/100) -> 0.008318156448
A24: 4437 | B24: 0 | C24: 990 | D24: 259872 | E24: 2180 | F24: 7090 | G24: 451 | H24: 27606 | I24: 61 | J24: 0.003809567787 | K24: 4 | L24: 140 | M24: 0.003270841029 | N24: -0.0005387267578 | O24: x | P24: x | Q24: x | R24: x | V24: 2 | W24: =PERCENTILE(IF($K$2:$K$7000=$V24,$M$2:$M$7000),W$13/100) -> 0.002743066729 | X24: =PERCENTILE(IF($K$2:$K$7000=$V24,$M$2:$M$7000),X$13/100) -> 0.006700734122 | Y24: =PERCENTILE(IF($K$2:$K$7000=$V24,$M$2:$M$7000),Y$13/100) -> 0.01084040746
A25: 4839 | B25: 16974 | C25: 3730 | D25: 339146 | E25: 2713 | F25: 10678 | G25: 2050 | H25: 34403 | I25: 91 | J25: 0.01099821316 | K25: 4 | L25: 180 | M25: 0.01046746829 | N25: -0.0005307448709 | O25: x | P25: x | Q25: x | R25: x | V25: 3 | W25: =PERCENTILE(IF($K$2:$K$7000=$V25,$M$2:$M$7000),W$13/100) -> 0.00384323375 | X25: =PERCENTILE(IF($K$2:$K$7000=$V25,$M$2:$M$7000),X$13/100) -> 0.007584495635 | Y25: =PERCENTILE(IF($K$2:$K$7000=$V25,$M$2:$M$7000),Y$13/100) -> 0.01135968918
A26: 5069 | B26: 31084 | C26: 21592 | D26: 410923 | E26: 3485 | F26: 4155 | G26: 0 | H26: 135309 | I26: 30 | J26: 0.05254512403 | K26: 4 | L26: 180 | M26: 0.05210708576 | N26: -0.0004380382699 | O26: x | P26: x | Q26: x | R26: x | V26: 4 | W26: =PERCENTILE(IF($K$2:$K$7000=$V26,$M$2:$M$7000),W$13/100) -> 0.004949536581 | X26: =PERCENTILE(IF($K$2:$K$7000=$V26,$M$2:$M$7000),X$13/100) -> 0.008362259473 | Y26: =PERCENTILE(IF($K$2:$K$7000=$V26,$M$2:$M$7000),Y$13/100) -> 0.01189711336
A27: 5135 | B27: 0 | C27: 3682 | D27: 366303 | E27: 2797 | F27: 8518 | G27: 850 | H27: 42473 | I27: 65 | J27: 0.01005178773 | K27: 4 | L27: 140 | M27: 0.009669590476 | N27: -0.000382197252 | O27: x | P27: x | Q27: x | R27: x | V27: 5 | W27: =PERCENTILE(IF($K$2:$K$7000=$V27,$M$2:$M$7000),W$13/100) -> 0.005290614388 | X27: =PERCENTILE(IF($K$2:$K$7000=$V27,$M$2:$M$7000),X$13/100) -> 0.008333866065 | Y27: =PERCENTILE(IF($K$2:$K$7000=$V27,$M$2:$M$7000),Y$13/100) -> 0.01119744621
A28: 5461 | B28: 44700 | C28: 751 | D28: 501225 | E28: 1388 | F28: 16053 | G28: 5117 | H28: 45915 | I28: 121 | J28: 0.001498329094 | K28: 5 | L28: 270 | M28: 0.0009596488603 | N28: -0.0005386802334 | O28: x | P28: x | Q28: x | R28: x
A29: 5751 | B29: 0 | C29: 2928 | D29: 202659 | E29: 464 | F29: 2968 | G29: 440 | H29: 27596 | I29: 37 | J29: 0.01444791497 | K29: 3 | L29: 140 | M29: 0.01375709936 | N29: -0.0006908156065 | O29: x | P29: x | Q29: x | R29: x
A30: 6039 | B30: 0 | C30: 24 | D30: 82330 | E30: 413 | F30: 2784 | G30: 566 | H30: 8741 | I30: 24 | J30: 0.0002915097777 | K30: 2 | L30: 70 | M30: -0.000558727074 | N30: -0.0008502368517 | O30: x | P30: x | Q30: x | R30: x
A31: 6141 | B31: 0 | C31: 292 | D31: 56670 | E31: 218 | F31: 1368 | G31: 210 | H31: 5210 | I31: 11 | J31: 0.00515263808 | K31: 2 | L31: 70 | M31: 0.003917416623 | N31: -0.001235221458 | O31: x | P31: x | Q31: x | R31: x
A32: 6329 | B32: 0 | C32: 742 | D32: 432392 | E32: 2602 | F32: 23728 | G32: 10650 | H32: 33141 | I32: 188 | J32: 0.001716035449 | K32: 4 | L32: 140 | M32: 0.001392255176 | N32: -0.0003237802735 | O32: x | P32: x | Q32: x | R32: x
A33: 7009 | B33: 20764 | C33: 13267 | D33: 738276 | E33: 62 | F33: 50530 | G33: 0 | H33: 52422 | I33: 83 | J33: 0.01797024419 | K33: 5 | L33: 270 | M33: 0.0176045273 | N33: -0.0003657168864 | O33: x | P33: x | Q33: x | R33: x
A34: 7045 | B34: 0 | C34: 1535 | D34: 179787 | E34: 732 | F34: 3641 | G34: 230 | H34: 17488 | I34: 50 | J34: 0.008537880937 | K34: 3 | L34: 140 | M34: 0.007759181698 | N34: -0.0007786992385 | O34: x | P34: x | Q34: x | R34: x
A35: 7157 | B35: 0 | C35: 276 | D35: 46390 | E35: 357 | F35: 1119 | G35: 52 | H35: 4555 | I35: 8 | J35: 0.005949558094 | K35: 1 | L35: 70 | M35: 0.004440612201 | N35: -0.001508945894 | O35: x | P35: x | Q35: x | R35: x
A36: 7456 | B36: 0 | C36: 716 | D36: 69580 | E36: 306 | F36: 1908 | G36: 20 | H36: 5376 | I36: 16 | J36: 0.01029031331 | K36: 2 | L36: 70 | M36: 0.009284277091 | N36: -0.001006036217 | O36: x | P36: x | Q36: x | R36: x
A37: 7634 | B37: 0 | C37: 859 | D37: 58909 | E37: 569 | F37: 1661 | G37: 320 | H37: 6265 | I37: 12 | J37: 0.01458181263 | K37: 2 | L37: 70 | M37: 0.01339353919 | N37: -0.001188273439 | O37: x | P37: x | Q37: x | R37: x
A38: 8033 | B38: 12940 | C38: 1969 | D38: 181398 | E38: 1413 | F38: 3752 | G38: 950 | H38: 17745 | I38: 36 | J38: 0.01085458495 | K38: 3 | L38: 180 | M38: 0.009862291756 | N38: -0.0009922931896 | O38: x | P38: x | Q38: x | R38: x
A39: 8462 | B39: 0 | C39: 1696 | D39: 182260 | E39: 326 | F39: 2325 | G39: 51 | H39: 17143 | I39: 21 | J39: 0.009305387907 | K39: 3 | L39: 140 | M39: 0.008537254472 | N39: -0.0007681334358 | O39: x | P39: x | Q39: x | R39: x
A40: 8631 | B40: 37620 | C40: 476 | D40: 62788 | E40: 303 | F40: 1871 | G40: 20 | H40: 6648 | I40: 23 | J40: 0.007581066446 | K40: 2 | L40: 90 | M40: 0.00614767153 | N40: -0.001433394916 | O40: x | P40: x | Q40: x | R40: x
A41: 9357 | B41: 33460 | C41: 10021 | D41: 522893 | E41: 801 | F41: 7854 | G41: -900 | H41: 75553 | I41: 46 | J41: 0.01916453271 | K41: 5 | L41: 270 | M41: 0.01864817467 | N41: -0.0005163580312 | O41: x | P41: x | Q41: x | R41: x
A42: 9553 | B42: 0 | C42: 1498 | D42: 161982 | E42: 804 | F42: 2491 | G42: 100 | H42: 10846 | I42: 16 | J42: 0.009247941129 | K42: 3 | L42: 140 | M42: 0.008383647566 | N42: -0.0008642935635 | O42: x | P42: x | Q42: x | R42: x
A43: 9955 | B43: 0 | C43: 1778 | D43: 121189 | E43: 293 | F43: 3178 | G43: 85 | H43: 14175 | I43: 26 | J43: 0.01467129855 | K43: 3 | L43: 140 | M43: 0.01351607819 | N43: -0.001155220358 | O43: x | P43: x | Q43: x | R43: x
A44: 10250 | B44: 33460 | C44: 1035 | D44: 363533 | E44: 3163 | F44: 11945 | G44: 1375 | H44: 30116 | I44: 87 | J44: 0.002847059277 | K44: 4 | L44: 180 | M44: 0.002351918533 | N44: -0.0004951407438 | O44: x | P44: x | Q44: x | R44: x
A45: 10849 | B45: 30780 | C45: 1035 | D45: 256085 | E45: 1412 | F45: 8005 | G45: 150 | H45: 27410 | I45: 59 | J45: 0.004041626804 | K45: 4 | L45: 180 | M45: 0.003338735186 | N45: -0.000702891618 | O45: x | P45: x | Q45: x | R45: x
A46: 10858 | B46: 0 | C46: 3568 | D46: 418940 | E46: 1275 | F46: 13443 | G46: 200 | H46: 36641 | I46: 114 | J46: 0.008516732706 | K46: 4 | L46: 140 | M46: 0.008182555975 | N46: -0.0003341767318 | O46: x | P46: x | Q46: x | R46: x
A47: 11145 | B47: 0 | C47: 1247 | D47: 182073 | E47: 1134 | F47: 6111 | G47: 938 | H47: 17963 | I47: 55 | J47: 0.006848901265 | K47: 3 | L47: 140 | M47: 0.00607997891 | N47: -0.0007689223553 | O47: x | P47: x | Q47: x | R47: x
A48: 11640 | B48: 0 | C48: 4478 | D48: 327360 | E48: 2477 | F48: 8782 | G48: 140 | H48: 35746 | I48: 57 | J48: 0.01367913001 | K48: 4 | L48: 140 | M48: 0.01325146628 | N48: -0.0004276637341 | O48: x | P48: x | Q48: x | R48: x
A49: 11837 | B49: 0 | C49: 612 | D49: 104489 | E49: 859 | F49: 2249 | G49: 300 | H49: 12451 | I49: 15 | J49: 0.005857075864 | K49: 3 | L49: 140 | M49: 0.004517221909 | N49: -0.001339853956 | O49: x | P49: x | Q49: x | R49: x
A50: 12030 | B50: 0 | C50: 3118 | D50: 305070 | E50: 2289 | F50: 8923 | G50: 5100 | H50: 40600 | I50: 87 | J50: 0.01022060511 | K50: 4 | L50: 140 | M50: 0.009761694037 | N50: -0.0004589110696 | O50: x | P50: x | Q50: x | R50: x
A51: 12142 | B51: 0 | C51: 1368 | D51: 209957 | E51: 553 | F51: 6408 | G51: 40 | H51: 20622 | I51: 68 | J51: 0.006515619865 | K51: 3 | L51: 140 | M51: 0.005848816662 | N51: -0.0006668032026 | O51: x | P51: x | Q51: x | R51: x
A52: 12245 | B52: 0 | C52: 847 | D52: 122984 | E52: 756 | F52: 3705 | G52: 258 | H52: 13986 | I52: 43 | J52: 0.006887074741 | K52: 3 | L52: 140 | M52: 0.00574871528 | N52: -0.001138359461 | O52: x | P52: x | Q52: x | R52: x
A53: 12647 | B53: 0 | C53: 747 | D53: 108993 | E53: 904 | F53: 2686 | G53: 165 | H53: 9487 | I53: 25 | J53: 0.006853651152 | K53: 3 | L53: 140 | M53: 0.005569164992 | N53: -0.00128448616 | O53: x | P53: x | Q53: x | R53: x
A54: 12656 | B54: 0 | C54: 103 | D54: 18021 | E54: 121 | F54: 734 | G54: 30 | H54: 1511 | I54: 9 | J54: 0.005715554076 | K54: 1 | L54: 70 | M54: 0.001831196937 | N54: -0.003884357139 | O54: x | P54: x | Q54: x | R54: x
A55: 12937 | B55: 16974 | C55: 1367 | D55: 208388 | E55: 1179 | F55: 5215 | G55: 540 | H55: 29645 | I55: 35 | J55: 0.006559878688 | K55: 3 | L55: 180 | M55: 0.005696105342 | N55: -0.0008637733459 | O55: x | P55: x | Q55: x | R55: x
A56: 12946 | B56: 0 | C56: 13532 | D56: 770159 | E56: 5734 | F56: 16461 | G56: 4200 | H56: 85539 | I56: 170 | J56: 0.0175703978 | K56: 5 | L56: 210 | M56: 0.01729772683 | N56: -0.0002726709679 | O56: x | P56: x | Q56: x | R56: x
A57: 12955 | B57: 36540 | C57: 2414 | D57: 129662 | E57: 734 | F57: 5903 | G57: 100 | H57: 13893 | I57: 58 | J57: 0.01861763662 | K57: 3 | L57: 180 | M57: 0.01722941186 | N57: -0.001388224769 | O57: x | P57: x | Q57: x | R57: x
A58: 13251 | B58: 0 | C58: 439 | D58: 43504 | E58: 124 | F58: 1050 | G58: 180 | H58: 3828 | I58: 9 | J58: 0.01009102611 | K58: 1 | L58: 70 | M58: 0.008481978669 | N58: -0.001609047444 | O58: x | P58: x | Q58: x | R58: x
A59: 13457 | B59: 0 | C59: 284 | D59: 23283 | E59: 72 | F59: 687 | G59: 0 | H59: 6009 | I59: 5 | J59: 0.01219774084 | K59: 1 | L59: 70 | M59: 0.009191255422 | N59: -0.003006485419 | O59: x | P59: x | Q59: x | R59: x
A60: 14052 | B60: 0 | C60: 348 | D60: 60419 | E60: 243 | F60: 1826 | G60: 313 | H60: 6944 | I60: 19 | J60: 0.005759777553 | K60: 2 | L60: 70 | M60: 0.004601201609 | N60: -0.001158575945 | O60: x | P60: x | Q60: x | R60: x
A61: 14155 | B61: 0 | C61: 1859 | D61: 129802 | E61: 673 | F61: 4972 | G61: 387 | H61: 14714 | I61: 45 | J61: 0.01432181322 | K61: 3 | L61: 140 | M61: 0.01324324741 | N61: -0.001078565816 | O61: x | P61: x | Q61: x | R61: x
A62: 14650 | B62: 0 | C62: 409 | D62: 28300 | E62: 84 | F62: 1257 | G62: 30 | H62: 3055 | I62: 13 | J62: 0.01445229682 | K62: 1 | L62: 70 | M62: 0.01197879859 | N62: -0.002473498233 | O62: x | P62: x | Q62: x | R62: x
A63: 14753 | B63: 0 | C63: 297 | D63: 44267 | E63: 174 | F63: 1077 | G63: 0 | H63: 3989 | I63: 11 | J63: 0.006709286828 | K63: 1 | L63: 70 | M63: 0.005127973434 | N63: -0.001581313394 | O63: x | P63: x | Q63: x | R63: x
A64: 14865 | B64: 0 | C64: 2795 | D64: 284716 | E64: 943 | F64: 10070 | G64: 1090 | H64: 29524 | I64: 99 | J64: 0.009816799899 | K64: 4 | L64: 140 | M64: 0.009325081836 | N64: -0.0004917180629 | O64: x | P64: x | Q64: x | R64: x
A65: 16458 | B65: 29940 | C65: 1507 | D65: 294240 | E65: 732 | F65: 9841 | G65: 90 | H65: 34937 | I65: 80 | J65: 0.005121669386 | K65: 4 | L65: 180 | M65: 0.004509923872 | N65: -0.0006117455139 | O65: x | P65: x | Q65: x | R65: x
A66: 16551 | B66: 0 | C66: 2449 | D66: 229613 | E66: 2496 | F66: 7567 | G66: 350 | H66: 23301 | I66: 81 | J66: =C66/D66 -> 0.01066577241 | K66: =IF(D66/1000<INDEX(sizeV,1),1,IF(D66/1000<INDEX(sizeV,2),2,IF(D66/1000<INDEX(sizeV,3),3,IF(D66/1000<INDEX(sizeV,4),4,IF(D66/1000<INDEX(sizeV,5),5,6))))) -> 3 | L66: =IF(B66=0,salRural*T$2,salUrban*T$2)*INDEX(nHires,K66) -> 140 | M66: =(C66-L66)/D66 -> 0.01005605083 | N66: =M66-J66 -> -0.000609721575 | O66: x | P66: x | Q66: x | R66: x
A67: 16748 | B67: 21780 | C67: 621 | D67: 59831 | E67: 299 | F67: 1766 | G67: 65 | H67: 7081 | I67: 15 | J67: 0.01037923484 | K67: 2 | L67: 90 | M67: 0.008874997911 | N67: -0.001504236934 | O67: x | P67: x | Q67: x | R67: x
A68: 16944 | B68: 28020 | C68: 12 | D68: 39882 | E68: 165 | F68: 1268 | G68: 15 | H68: 4368 | I68: 12 | J68: 0.0003008876185 | K68: 1 | L68: 90 | M68: -0.00195576952 | N68: -0.002256657139 | O68: x | P68: x | Q68: x | R68: x
A69: 16953 | B69: 24220 | C69: 222 | D69: 38970 | E69: 143 | F69: 1115 | G69: 0 | H69: 5437 | I69: 8 | J69: 0.005696689761 | K69: 1 | L69: 90 | M69: 0.003387220939 | N69: -0.002309468822 | O69: x | P69: x | Q69: x | R69: x
A70: 17110 | B70: 37964 | C70: 2454 | D70: 91890 | E70: 295 | F70: 19777 | G70: 0 | H70: 18273 | I70: 66 | J70: 0.02670584394 | K70: 2 | L70: 90 | M70: 0.02572641201 | N70: -0.0009794319295 | O70: x | P70: x | Q70: x | R70: x
A71: 17259 | B71: 0 | C71: 772 | D71: 67493 | E71: 502 | F71: 2474 | G71: 70 | H71: 5469 | I71: 28 | J71: 0.01143822322 | K71: 2 | L71: 70 | M71: 0.01040107863 | N71: -0.001037144593 | O71: x | P71: x | Q71: x | R71: x
A72: 17950 | B72: 13740 | C72: 2791 | D72: 335995 | E72: 1868 | F72: 7099 | G72: 780 | H72: 31935 | I72: 80 | J72: 0.00830667123 | K72: 4 | L72: 180 | M72: 0.007770948972 | N72: -0.0005357222578 | O72: x | P72: x | Q72: x | R72: x
A73: 18050 | B73: 12420 | C73: 6128 | D73: 404325 | E73: 1398 | F73: 11041 | G73: 985 | H73: 43583 | I73: 109 | J73: 0.0151561244 | K73: 4 | L73: 180 | M73: 0.01471093798 | N73: -0.0004451864218 | O73: x | P73: x | Q73: x | R73: x
A74: 18135 | B74: 16974 | C74: 1160 | D74: 235725 | E74: 1493 | F74: 8787 | G74: 460 | H74: 21628 | I74: 49 | J74: 0.00492098844 | K74: 3 | L74: 180 | M74: 0.004157386785 | N74: -0.0007636016545 | O74: x | P74: x | Q74: x | R74: x
A75: 18827 | B75: 38300 | C75: 4939 | D75: 395819 | E75: 2280 | F75: 9411 | G75: 211 | H75: 41627 | I75: 83 | J75: 0.01247792552 | K75: 4 | L75: 180 | M75: 0.01202317221 | N75: -0.000454753309 | O75: x | P75: x | Q75: x | R75: x
A76: 18836 | B76: 0 | C76: 724 | D76: 148528 | E76: 1402 | F76: 5305 | G76: 814 | H76: 14031 | I76: 49 | J76: 0.004874501777 | K76: 3 | L76: 140 | M76: 0.003931918561 | N76: -0.0009425832166 | O76: x | P76: x | Q76: x | R76: x
A77: 18854 | B77: 36420 | C77: 6768 | D77: 280935 | E77: 1674 | F77: 7364 | G77: 880 | H77: 24505 | I77: 55 | J77: 0.0240909819 | K77: 4 | L77: 180 | M77: 0.0234502643 | N77: -0.0006407176037 | O77: x | P77: x | Q77: x | R77: x
A78: 19356 | B78: 0 | C78: 855 | D78: 76362 | E78: 391 | F78: 2503 | G78: 57 | H78: 8224 | I78: 25 | J78: 0.0111966685 | K78: 2 | L78: 70 | M78: 0.01027998219 | N78: -0.0009166863099 | O78: x | P78: x | Q78: x | R78: x
A79: 19936 | B79: 0 | C79: 2322 | D79: 241773 | E79: 1012 | F79: 5654 | G79: 700 | H79: 23422 | I79: 47 | J79: 0.00960405008 | K79: 3 | L79: 140 | M79: 0.00902499452 | N79: -0.0005790555604 | O79: x | P79: x | Q79: x | R79: x
A80: 20053 | B80: 20740 | C80: 831 | D80: 73433 | E80: 535 | F80: 1962 | G80: 469 | H80: 9331 | I80: 17 | J80: 0.01131643811 | K80: 2 | L80: 90 | M80: 0.0100908311 | N80: -0.001225607016 | O80: x | P80: x | Q80: x | R80: x
A81: 20512 | B81: 0 | C81: 741 | D81: 100876 | E81: 700 | F81: 2841 | G81: 13 | H81: 9768 | I81: 26 | J81: 0.007345652088 | K81: 3 | L81: 140 | M81: 0.005957809588 | N81: -0.0013878425 | O81: x | P81: x | Q81: x | R81: x
A82: 20633 | B82: 0 | C82: 1728 | D82: 310469 | E82: 3514 | F82: 9470 | G82: 522 | H82: 29300 | I82: 81 | J82: 0.005565773072 | K82: 4 | L82: 140 | M82: 0.005114842384 | N82: -0.0004509306887 | O82: x | P82: x | Q82: x | R82: x
A83: 20857 | B83: 0 | C83: 3209 | D83: 183694 | E83: 610 | F83: 2550 | G83: 20 | H83: 20512 | I83: 18 | J83: 0.01746926955 | K83: 3 | L83: 140 | M83: 0.01670713251 | N83: -0.0007621370322 | O83: x | P83: x | Q83: x | R83: x
A84: 21256 | B84: 48620 | C84: 34 | D84: 9217 | E84: 55 | F84: 322 | G84: 0 | H84: 1114 | I84: 4 | J84: 0.003688835847 | K84: 1 | L84: 90 | M84: -0.00607572963 | N84: -0.009764565477 | O84: x | P84: x | Q84: x | R84: x
A85: 21359 | B85: 0 | C85: 406 | D85: 26652 | E85: 175 | F85: 881 | G85: 0 | H85: 2769 | I85: 7 | J85: 0.01523337836 | K85: 1 | L85: 70 | M85: 0.01260693381 | N85: -0.002626444544 | O85: x | P85: x | Q85: x | R85: x
A86: 21630 | B86: 29180 | C86: 1131 | D86: 94221 | E86: 500 | F86: 2440 | G86: 143 | H86: 9754 | I86: 30 | J86: 0.01200369344 | K86: 2 | L86: 90 | M86: 0.01104849237 | N86: -0.0009552010698 | O86: x | P86: x | Q86: x | R86: x
A87: 21658 | B87: 0 | C87: 1549 | D87: 153461 | E87: 1109 | F87: 4143 | G87: 420 | H87: 15248 | I87: 43 | J87: 0.01009376975 | K87: 3 | L87: 140 | M87: 0.00918148585 | N87: -0.0009122839028 | O87: x | P87: x | Q87: x | R87: x
A88: 22048 | B88: 0 | C88: 1402 | D88: 193636 | E88: 1445 | F88: 6472 | G88: 21 | H88: 20029 | I88: 63 | J88: 0.007240389184 | K88: 3 | L88: 140 | M88: 0.006517383131 | N88: -0.0007230060526 | O88: x | P88: x | Q88: x | R88: x
A89: 22543 | B89: 0 | C89: 592 | D89: 88233 | E89: 194 | F89: 2567 | G89: 403 | H89: 14509 | I89: 24 | J89: 0.006709507781 | K89: 2 | L89: 70 | M89: 0.00591615382 | N89: -0.0007933539605 | O89: x | P89: x | Q89: x | R89: x
A90: 22552 | B90: 0 | C90: 1357 | D90: 91731 | E90: 640 | F90: 2431 | G90: 75 | H90: 7863 | I90: 21 | J90: 0.01479325419 | K90: 2 | L90: 70 | M90: 0.01403015338 | N90: -0.0007631008056 | O90: x | P90: x | Q90: x | R90: x
A91: 22730 | B91: 0 | C91: 684 | D91: 135173 | E91: 690 | F91: 4152 | G91: 15 | H91: 12937 | I91: 46 | J91: 0.005060182137 | K91: 3 | L91: 140 | M91: 0.004024472343 | N91: -0.001035709794 | O91: x | P91: x | Q91: x | R91: x
A92: 22936 | B92: 0 | C92: -1602 | D92: 176865 | E92: 1593 | F92: 6801 | G92: 970 | H92: 8176 | I92: 55 | J92: -0.009057755916 | K92: 3 | L92: 140 | M92: -0.009849320103 | N92: -0.0007915641874 | O92: x | P92: x | Q92: x | R92: x
A93: 23045 | B93: 0 | C93: 116 | D93: 41024 | E93: 103 | F93: 1073 | G93: 0 | H93: 7854 | I93: 13 | J93: 0.002827613105 | K93: 1 | L93: 70 | M93: 0.001121294852 | N93: -0.001706318253 | O93: x | P93: x | Q93: x | R93: x
A94: 23456 | B94: 0 | C94: 1619 | D94: 100955 | E94: 917 | F94: 2991 | G94: 130 | H94: 12036 | I94: 24 | J94: 0.0160368481 | K94: 3 | L94: 140 | M94: 0.01465009162 | N94: -0.001386756476 | O94: x | P94: x | Q94: x | R94: x
A95: 23540 | B95: 16974 | C95: -161 | D95: 195794 | E95: 781 | F95: 6041 | G95: 1835 | H95: 12793 | I95: 41 | J95: -0.000822292818 | K95: 3 | L95: 180 | M95: -0.001741626403 | N95: -0.0009193335853 | O95: x | P95: x | Q95: x | R95: x
A96: 23643 | B96: 0 | C96: 2614 | D96: 175880 | E96: 1277 | F96: 4682 | G96: 700 | H96: 16573 | I96: 40 | J96: 0.01486240619 | K96: 3 | L96: 140 | M96: 0.01406640892 | N96: -0.0007959972709 | O96: x | P96: x | Q96: x | R96: x
A97: 23755 | B97: 33460 | C97: 1888 | D97: 168567 | E97: 971 | F97: 6543 | G97: 546 | H97: 15777 | I97: 54 | J97: 0.01120029425 | K97: 3 | L97: 180 | M97: 0.01013246958 | N97: -0.001067824663 | O97: x | P97: x | Q97: x | R97: x
A98: 24453 | B98: 0 | C98: -3195 | D98: 204309 | E98: 1401 | F98: 5505 | G98: 2472 | H98: 19792 | I98: 36 | J98: -0.01563807762 | K98: 3 | L98: 140 | M98: -0.0163233142 | N98: -0.0006852365779 | O98: x | P98: x | Q98: x | R98: x
A99: 24659 | B99: 0 | C99: 524 | D99: 42998 | E99: 266 | F99: 994 | G99: 0 | H99: 4685 | I99: 10 | J99: 0.01218661333 | K99: 1 | L99: 70 | M99: 0.01055863063 | N99: -0.001627982697 | O99: x | P99: x | Q99: x | R99: x
A100: 24668 | B100: 0 | C100: 2257 | D100: 223769 | E100: 1107 | F100: 7893 | G100: 278 | H100: 22661 | I100: 72 | J100: 0.01008629435 | K100: 3 | L100: 140 | M100: 0.009460649152 | N100: -0.0006256451966 | O100: x | P100: x | Q100: x | R100: x
A101: 24855 | B101: 0 | C101: 69 | D101: 16306 | E101: 30 | F101: 415 | G101: -50 | H101: 1025 | I101: 4 | J101: 0.004231571201 | K101: 1 | L101: 70 | M101: -6.132711885e-05 | N101: -0.00429289832 | O101: x | P101: x | Q101: x | R101: x
A102: 24949 | B102: 0 | C102: -7981 | D102: 747151 | E102: 4682 | F102: 23424 | G102: 12620 | H102: 66794 | I102: 190 | J102: -0.01068191035 | K102: 5 | L102: 210 | M102: -0.01096297803 | N102: -0.0002810676824 | O102: x | P102: x | Q102: x | R102: x
A103: 25357 | B103: 36420 | C103: 1909 | D103: 125651 | E103: 969 | F103: 3824 | G103: 7 | H103: 11005 | I103: 47 | J103: 0.0151928755 | K103: 3 | L103: 180 | M103: 0.01376033617 | N103: -0.001432539335 | O103: x | P103: x | Q103: x | R103: x
A104: 25647 | B104: 16974 | C104: -454 | D104: 61337 | E104: 623 | F104: 2459 | G104: 337 | H104: 2337 | I104: 20 | J104: -0.007401731418 | K104: 2 | L104: 90 | M104: -0.008869035003 | N104: -0.001467303585 | O104: x | P104: x | Q104: x | R104: x
A105: 26242 | B105: 0 | C105: 5249 | D105: 408204 | E105: 1208 | F105: 11833 | G105: 0 | H105: 55876 | I105: 119 | J105: 0.0128587667 | K105: 4 | L105: 140 | M105: 0.01251580092 | N105: -0.000342965772 | O105: x | P105: x | Q105: x | R105: x
A106: 26457 | B106: 0 | C106: 204 | D106: 28261 | E106: 111 | F106: 766 | G106: 5 | H106: 2964 | I106: 7 | J106: 0.007218428223 | K106: 1 | L106: 70 | M106: 0.004741516578 | N106: -0.002476911645 | O106: x | P106: x | Q106: x | R106: x
A107: 26765 | B107: 0 | C107: 710 | D107: 312777 | E107: 1062 | F107: 11678 | G107: 0 | H107: 31322 | I107: 74 | J107: 0.002269987883 | K107: 4 | L107: 140 | M107: 0.001822384638 | N107: -0.0004476032445 | O107: x | P107: x | Q107: x | R107: x
A108: 26859 | B108: 26420 | C108: -1979 | D108: 311804 | E108: 1561 | F108: 13533 | G108: 655 | H108: 31720 | I108: 88 | J108: -0.006346935896 | K108: 4 | L108: 180 | M108: -0.006924221626 | N108: -0.0005772857308 | O108: x | P108: x | Q108: x | R108: x
A109: 27548 | B109: 27500 | C109: 3394 | D109: 557916 | E109: 3826 | F109: 21159 | G109: 5620 | H109: 56782 | I109: 162 | J109: 0.00608335305 | K109: 5 | L109: 270 | M109: 0.00559940923 | N109: -0.0004839438195 | O109: x | P109: x | Q109: x | R109: x
A110: 27614 | B110: 0 | C110: 4238 | D110: 324846 | E110: 1891 | F110: 9227 | G110: 500 | H110: 35102 | I110: 94 | J110: 0.01304618188 | K110: 4 | L110: 140 | M110: 0.01261520844 | N110: -0.0004309734459 | O110: x | P110: x | Q110: x | R110: x
A111: 27847 | B111: 0 | C111: 7395 | D111: 418531 | E111: 3462 | F111: 12389 | G111: 573 | H111: 48026 | I111: 122 | J111: 0.01766894209 | K111: 4 | L111: 140 | M111: 0.01733443879 | N111: -0.0003345032984 | O111: x | P111: x | Q111: x | R111: x
A112: 28152 | B112: 41060 | C112: 1296 | D112: 84869 | E112: 434 | F112: 1811 | G112: 0 | H112: 7499 | I112: 19 | J112: 0.0152705935 | K112: 2 | L112: 90 | M112: 0.01421013562 | N112: -0.001060457882 | O112: x | P112: x | Q112: x | R112: x
A113: 28255 | B113: 0 | C113: 1960 | D113: 303249 | E113: 934 | F113: 5597 | G113: 369 | H113: 22099 | I113: 53 | J113: 0.006463335411 | K113: 4 | L113: 140 | M113: 0.006001668596 | N113: -0.0004616668151 | O113: x | P113: x | Q113: x | R113: x
A114: 28349 | B114: 22900 | C114: -537 | D114: 160641 | E114: 1496 | F114: 5698 | G114: 1700 | H114: 16904 | I114: 37 | J114: -0.003342857676 | K114: 3 | L114: 180 | M114: -0.004463368629 | N114: -0.001120510953 | O114: x | P114: x | Q114: x | R114: x
A115: 28732 | B115: 0 | C115: 348 | D115: 82993 | E115: 386 | F115: 2617 | G115: 60 | H115: 8742 | I115: 24 | J115: 0.004193124721 | K115: 2 | L115: 70 | M115: 0.003349680094 | N115: -0.0008434446279 | O115: x | P115: x | Q115: x | R115: x
A116: 29636 | B116: 0 | C116: 6936 | D116: 880514 | E116: 5712 | F116: 25717 | G116: 1546 | H116: 86886 | I116: 249 | J116: 0.007877217171 | K116: 5 | L116: 210 | M116: 0.007638720111 | N116: -0.0002384970597 | O116: x | P116: x | Q116: x | R116: x
A117: 29953 | B117: 36540 | C117: 1528 | D117: 80680 | E117: 809 | F117: 1964 | G117: 0 | H117: 9776 | I117: 19 | J117: 0.01893901834 | K117: 2 | L117: 90 | M117: 0.01782350025 | N117: -0.001115518096 | O117: x | P117: x | Q117: x | R117: x
A118: 30052 | B118: 0 | C118: 178 | D118: 33522 | E118: 149 | F118: 1423 | G118: 6 | H118: 3219 | I118: 12 | J118: 0.005309945707 | K118: 1 | L118: 70 | M118: 0.003221764811 | N118: -0.002088180896 | O118: x | P118: x | Q118: x | R118: x
A119: 30502 | B119: 0 | C119: 6612 | D119: 869816 | E119: 6136 | F119: 26849 | G119: 2112 | H119: 87962 | I119: 214 | J119: 0.007601607696 | K119: 5 | L119: 210 | M119: 0.007360177325 | N119: -0.0002414303715 | O119: x | P119: x | Q119: x | R119: x
A120: 30650 | B120: 33460 | C120: 361 | D120: 131105 | E120: 991 | F120: 4761 | G120: 0 | H120: 13100 | I120: 23 | J120: 0.002753518172 | K120: 3 | L120: 180 | M120: 0.001380572823 | N120: -0.001372945349 | O120: x | P120: x | Q120: x | R120: x
A121: 31134 | B121: 12260 | C121: 1380 | D121: 116730 | E121: 732 | F121: 3480 | G121: 285 | H121: 16999 | I121: 38 | J121: 0.01182215369 | K121: 3 | L121: 180 | M121: 0.01028013364 | N121: -0.001542020046 | O121: x | P121: x | Q121: x | R121: x
A122: 31255 | B122: 26420 | C122: 5089 | D122: 446554 | E122: 2157 | F122: 14998 | G122: 420 | H122: 41520 | I122: 101 | J122: 0.01139615814 | K122: 4 | L122: 180 | M122: 0.01099307139 | N122: -0.0004030867487 | O122: x | P122: x | Q122: x | R122: x
A123: 31657 | B123: 0 | C123: 1981 | D123: 121881 | E123: 730 | F123: 2816 | G123: 135 | H123: 12961 | I123: 30 | J123: 0.0162535588 | K123: 3 | L123: 140 | M123: 0.0151048974 | N123: -0.001148661399 | O123: x | P123: x | Q123: x | R123: x
A124: 31826 | B124: 0 | C124: 2274 | D124: 251059 | E124: 1325 | F124: 7369 | G124: 175 | H124: 39920 | I124: 70 | J124: 0.009057631871 | K124: 4 | L124: 140 | M124: 0.008499994025 | N124: -0.0005576378461 | O124: x | P124: x | Q124: x | R124: x
A125: 31835 | B125: 0 | C125: 985 | D125: 115642 | E125: 518 | F125: 3898 | G125: 300 | H125: 13047 | I125: 27 | J125: 0.008517666592 | K125: 3 | L125: 140 | M125: 0.007307033777 | N125: -0.001210632815 | O125: x | P125: x | Q125: x | R125: x
A126: 32234 | B126: 0 | C126: 876 | D126: 105459 | E126: 278 | F126: 2294 | G126: -95 | H126: 13028 | I126: 20 | J126: 0.008306545672 | K126: 3 | L126: 140 | M126: 0.006979015542 | N126: -0.00132753013 | O126: x | P126: x | Q126: x | R126: x
A127: 32766 | B127: 19124 | C127: 316 | D127: 56298 | E127: 58 | F127: 1477 | G127: 6 | H127: 5168 | I127: 13 | J127: 0.005612988028 | K127: 2 | L127: 90 | M127: 0.004014352197 | N127: -0.001598635831 | O127: x | P127: x | Q127: x | R127: x
A128: 33147 | B128: 0 | C128: 3303 | D128: 414243 | E128: 3055 | F128: 12518 | G128: 2125 | H128: 36829 | I128: 88 | J128: 0.007973580724 | K128: 4 | L128: 140 | M128: 0.007635614844 | N128: -0.0003379658799 | O128: x | P128: x | Q128: x | R128: x
A129: 33259 | B129: 33460 | C129: 3420 | D129: 558366 | E129: 3648 | F129: 14023 | G129: 2195 | H129: 48241 | I129: 82 | J129: 0.006125014775 | K129: 5 | L129: 270 | M129: 0.005641460977 | N129: -0.000483553798 | O129: x | P129: x | Q129: x | R129: x
A130: 33268 | B130: 0 | C130: 1445 | D130: 167211 | E130: 671 | F130: 4230 | G130: 0 | H130: 15476 | I130: 37 | J130: =C130/D130 -> 0.00864177596 | K130: =IF(D130/1000<INDEX(sizeV,1),1,IF(D130/1000<INDEX(sizeV,2),2,IF(D130/1000<INDEX(sizeV,3),3,IF(D130/1000<INDEX(sizeV,4),4,IF(D130/1000<INDEX(sizeV,5),5,6))))) -> 3 | L130: =IF(B130=0,salRural*T$2,salUrban*T$2)*INDEX(nHires,K130) -> 140 | M130: =(C130-L130)/D130 -> 0.007804510469 | N130: =M130-J130 -> -0.0008372654909 | O130: x | P130: x | Q130: x | R130: x
A131: 33754 | B131: 0 | C131: 301 | D131: 29887 | E131: 83 | F131: 1036 | G131: 95 | H131: 4529 | I131: 11 | J131: 0.01007126844 | K131: 1 | L131: 70 | M131: 0.007729112992 | N131: -0.002342155452 | O131: x | P131: x | Q131: x | R131: x
A132: 33839 | B132: 14060 | C132: 329 | D132: 37743 | E132: 136 | F132: 790 | G132: 5 | H132: 3702 | I132: 7 | J132: 0.008716848157 | K132: 1 | L132: 90 | M132: 0.006332300029 | N132: -0.002384548128 | O132: x | P132: x | Q132: x | R132: x
A133: 33857 | B133: 0 | C133: 1999 | D133: 193903 | E133: 2272 | F133: 4209 | G133: 740 | H133: 20312 | I133: 37 | J133: 0.01030927835 | K133: 3 | L133: 140 | M133: 0.009587267861 | N133: -0.0007220104898 | O133: x | P133: x | Q133: x | R133: x
A134: 34153 | B134: 33460 | C134: -4887 | D134: 361194 | E134: 1844 | F134: 24111 | G134: 2640 | H134: 17454 | I134: 158 | J134: -0.01353012509 | K134: 4 | L134: 180 | M134: -0.01402847223 | N134: -0.0004983471486 | O134: x | P134: x | Q134: x | R134: x
A135: 34359 | B135: 0 | C135: 438 | D135: 34556 | E135: 209 | F135: 686 | G135: 0 | H135: 6762 | I135: 7 | J135: 0.01267507813 | K135: 1 | L135: 70 | M135: 0.01064938072 | N135: -0.002025697419 | O135: x | P135: x | Q135: x | R135: x
A136: 34425 | B136: 0 | C136: 614 | D136: 337304 | E136: 3436 | F136: 11819 | G136: 1895 | H136: 30283 | I136: 101 | J136: 0.001820316391 | K136: 4 | L136: 140 | M136: 0.001405260536 | N136: -0.0004150558547 | O136: x | P136: x | Q136: x | R136: x
A137: 34434 | B137: 0 | C137: 4293 | D137: 285129 | E137: 1610 | F137: 11122 | G137: 555 | H137: 27156 | I137: 100 | J137: 0.01505634292 | K137: 4 | L137: 140 | M137: 0.01456533709 | N137: -0.0004910058254 | O137: x | P137: x | Q137: x | R137: x
A138: 34452 | B138: 0 | C138: 1546 | D138: 117224 | E138: 975 | F138: 3185 | G138: 110 | H138: 13224 | I138: 29 | J138: 0.01318842558 | K138: 3 | L138: 140 | M138: 0.01199413089 | N138: -0.001194294684 | O138: x | P138: x | Q138: x | R138: x
A139: 34555 | B139: 0 | C139: 2276 | D139: 226331 | E139: 2180 | F139: 4553 | G139: 300 | H139: 22961 | I139: 41 | J139: 0.01005606832 | K139: 3 | L139: 140 | M139: 0.009437505247 | N139: -0.000618563078 | O139: x | P139: x | Q139: x | R139: x
A140: 34742 | B140: 0 | C140: 2052 | D140: 286472 | E140: 2526 | F140: 10663 | G140: 40 | H140: 24740 | I140: 91 | J140: 0.007163003714 | K140: 4 | L140: 140 | M140: 0.006674299757 | N140: -0.0004887039571 | O140: x | P140: x | Q140: x | R140: x
A141: 34836 | B141: 12060 | C141: -246 | D141: 25988 | E141: 175 | F141: 1019 | G141: 283 | H141: 1518 | I141: 11 | J141: -0.009465907342 | K141: 1 | L141: 90 | M141: -0.01292904417 | N141: -0.003463136832 | O141: x | P141: x | Q141: x | R141: x
A142: 35057 | B142: 0 | C142: 2290 | D142: 120484 | E142: 741 | F142: 4994 | G142: 0 | H142: 12871 | I142: 48 | J142: 0.01900667309 | K142: 3 | L142: 140 | M142: 0.01784469307 | N142: -0.001161980014 | O142: x | P142: x | Q142: x | R142: x
A143: 35646 | B143: 0 | C143: 620 | D143: 50730 | E143: 242 | F143: 925 | G143: 40 | H143: 11204 | I143: 7 | J143: 0.01222156515 | K143: 2 | L143: 70 | M143: 0.01084171102 | N143: -0.00137985413 | O143: x | P143: x | Q143: x | R143: x
A144: 35842 | B144: 0 | C144: 1237 | D144: 218514 | E144: 2596 | F144: 4725 | G144: 2854 | H144: 19576 | I144: 38 | J144: 0.005660964515 | K144: 3 | L144: 140 | M144: 0.005020273301 | N144: -0.0006406912143 | O144: x | P144: x | Q144: x | R144: x
A145: 36456 | B145: 0 | C145: 1176 | D145: 99477 | E145: 613 | F145: 2741 | G145: 10 | H145: 10400 | I145: 20 | J145: 0.01182182816 | K145: 2 | L145: 70 | M145: 0.01111814791 | N145: -0.0007036802477 | O145: x | P145: x | Q145: x | R145: x
A146: 36933 | B146: 0 | C146: -516 | D146: 94691 | E146: 541 | F146: 3817 | G146: 714 | H146: 4954 | I146: 34 | J146: -0.005449303524 | K146: 2 | L146: 70 | M146: -0.006188550126 | N146: -0.0007392466021 | O146: x | P146: x | Q146: x | R146: x
A147: 37051 | B147: 0 | C147: 613 | D147: 71720 | E147: 681 | F147: 1972 | G147: 163 | H147: 7684 | I147: 21 | J147: 0.008547127719 | K147: 2 | L147: 70 | M147: 0.007571109872 | N147: -0.0009760178472 | O147: x | P147: x | Q147: x | R147: x
A148: 37341 | B148: 0 | C148: 699 | D148: 35740 | E148: 348 | F148: 1175 | G148: 45 | H148: 3939 | I148: 11 | J148: 0.0195579183 | K148: 1 | L148: 70 | M148: 0.01759932848 | N148: -0.001958589815 | O148: x | P148: x | Q148: x | R148: x
A149: 37378 | B149: 49420 | C149: 2799 | D149: 170066 | E149: 583 | F149: 5031 | G149: 385 | H149: 16988 | I149: 45 | J149: 0.01645831618 | K149: 3 | L149: 180 | M149: 0.01539990357 | N149: -0.001058412616 | O149: x | P149: x | Q149: x | R149: x
A150: 37659 | B150: 0 | C150: 852 | D150: 41623 | E150: 172 | F150: 1341 | G150: 60 | H150: 4530 | I150: 13 | J150: 0.02046945199 | K150: 1 | L150: 70 | M150: 0.0187876895 | N150: -0.001681762487 | O150: x | P150: x | Q150: x | R150: x
A151: 37743 | B151: 11540 | C151: 702 | D151: 96593 | E151: 438 | F151: 2648 | G151: 169 | H151: 9707 | I151: 22 | J151: 0.007267607384 | K151: 2 | L151: 90 | M151: 0.006335862847 | N151: -0.0009317445364 | O151: x | P151: x | Q151: x | R151: x
A152: 37949 | B152: 16580 | C152: 5246 | D152: 215915 | E152: 1014 | F152: 3829 | G152: 300 | H152: 23483 | I152: 39 | J152: 0.0242965982 | K152: 3 | L152: 180 | M152: 0.0234629368 | N152: -0.0008336613945 | O152: x | P152: x | Q152: x | R152: x
A153: 38740 | B153: 14020 | C153: 1117 | D153: 182170 | E153: 1647 | F153: 5736 | G153: 120 | H153: 17818 | I153: 61 | J153: 0.006131635286 | K153: 3 | L153: 180 | M153: 0.005143547236 | N153: -0.0009880880496 | O153: x | P153: x | Q153: x | R153: x
A154: 39327 | B154: 0 | C154: 4389 | D154: 439092 | E154: 870 | F154: 8567 | G154: 606 | H154: 72955 | I154: 92 | J154: 0.00999562734 | K154: 4 | L154: 140 | M154: 0.009676787552 | N154: -0.0003188397876 | O154: x | P154: x | Q154: x | R154: x
A155: 39756 | B155: 36420 | C155: 6914 | D155: 529779 | E155: 1663 | F155: 14766 | G155: 450 | H155: 42172 | I155: 122 | J155: 0.01305072492 | K155: 5 | L155: 270 | M155: 0.01254107845 | N155: -0.0005096464752 | O155: x | P155: x | Q155: x | R155: x
A156: 40033 | B156: 25620 | C156: 407 | D156: 63390 | E156: 249 | F156: 2509 | G156: 0 | H156: 8723 | I156: 21 | J156: 0.006420571068 | K156: 2 | L156: 90 | M156: 0.005000788768 | N156: -0.0014197823 | O156: x | P156: x | Q156: x | R156: x
A157: 40350 | B157: 36540 | C157: 314 | D157: 49826 | E157: 326 | F157: 1322 | G157: 8 | H157: 4671 | I157: 8 | J157: 0.006301930719 | K157: 1 | L157: 90 | M157: 0.004495644844 | N157: -0.001806285875 | O157: x | P157: x | Q157: x | R157: x
A158: 40707 | B158: 0 | C158: 1023 | D158: 283905 | E158: 1523 | F158: 9040 | G158: 749 | H158: 21912 | I158: 90 | J158: 0.003603318011 | K158: 4 | L158: 140 | M158: 0.003110195312 | N158: -0.0004931226995 | O158: x | P158: x | Q158: x | R158: x
A159: 40855 | B159: 29100 | C159: 1486 | D159: 85542 | E159: 1144 | F159: 1574 | G159: 90 | H159: 7732 | I159: 14 | J159: 0.01737158355 | K159: 2 | L159: 90 | M159: 0.0163194688 | N159: -0.001052114751 | O159: x | P159: x | Q159: x | R159: x
A160: 41245 | B160: 27500 | C160: 389 | D160: 44533 | E160: 228 | F160: 1031 | G160: 30 | H160: 4839 | I160: 10 | J160: 0.008735095323 | K160: 1 | L160: 90 | M160: 0.006714122112 | N160: -0.002020973211 | O160: x | P160: x | Q160: x | R160: x
A161: 41553 | B161: 0 | C161: 1106 | D161: 94736 | E161: 716 | F161: 2387 | G161: 0 | H161: 14098 | I161: 25 | J161: 0.01167454822 | K161: 2 | L161: 70 | M161: 0.01093565276 | N161: -0.0007388954568 | O161: x | P161: x | Q161: x | R161: x
A162: 41629 | B162: 0 | C162: 2322 | D162: 169389 | E162: 1114 | F162: 5673 | G162: 470 | H162: 18150 | I162: 59 | J162: 0.01370809202 | K162: 3 | L162: 140 | M162: 0.01288159208 | N162: -0.0008264999498 | O162: x | P162: x | Q162: x | R162: x
A163: 41759 | B163: 0 | C163: 473 | D163: 50841 | E163: 274 | F163: 877 | G163: 190 | H163: 5401 | I163: 9 | J163: 0.00930351488 | K163: 2 | L163: 70 | M163: 0.007926673354 | N163: -0.001376841526 | O163: x | P163: x | Q163: x | R163: x
A164: 41825 | B164: 13644 | C164: 359 | D164: 152402 | E164: 180 | F164: 5006 | G164: 112 | H164: 18311 | I164: 42 | J164: 0.002355612131 | K164: 3 | L164: 180 | M164: 0.001174525269 | N164: -0.001181086862 | O164: x | P164: x | Q164: x | R164: x
A165: 41937 | B165: 0 | C165: 601 | D165: 66802 | E165: 347 | F165: 1567 | G165: 74 | H165: 6113 | I165: 18 | J165: 0.008996736625 | K165: 2 | L165: 70 | M165: 0.007948863806 | N165: -0.001047872818 | O165: x | P165: x | Q165: x | R165: x
A166: 41955 | B166: 0 | C166: 169 | D166: 36875 | E166: 190 | F166: 994 | G166: 0 | H166: 3530 | I166: 9 | J166: 0.004583050847 | K166: 1 | L166: 70 | M166: 0.002684745763 | N166: -0.001898305085 | O166: x | P166: x | Q166: x | R166: x
A167: 42037 | B167: 0 | C167: 524 | D167: 64032 | E167: 377 | F167: 2515 | G167: 0 | H167: 8925 | I167: 29 | J167: 0.008183408296 | K167: 2 | L167: 70 | M167: 0.007090204898 | N167: -0.001093203398 | O167: x | P167: x | Q167: x | R167: x
A168: 42055 | B168: 0 | C168: 483 | D168: 68627 | E168: 414 | F168: 2670 | G168: 96 | H168: 7956 | I168: 29 | J168: 0.00703804625 | K168: 2 | L168: 70 | M168: 0.006018039547 | N168: -0.001020006703 | O168: x | P168: x | Q168: x | R168: x
A169: 42354 | B169: 0 | C169: 2348 | D169: 132255 | E169: 332 | F169: 3415 | G169: 46 | H169: 17470 | I169: 34 | J169: 0.0177535821 | K169: 3 | L169: 140 | M169: 0.01669502098 | N169: -0.001058561113 | O169: x | P169: x | Q169: x | R169: x
A170: 42448 | B170: 0 | C170: 10061 | D170: 707270 | E170: 8098 | F170: 16496 | G170: 1696 | H170: 84337 | I170: 148 | J170: 0.01422511912 | K170: 5 | L170: 210 | M170: 0.01392820281 | N170: -0.000296916312 | O170: x | P170: x | Q170: x | R170: x
A171: 42457 | B171: 0 | C171: 282 | D171: 34621 | E171: 89 | F171: 905 | G171: 0 | H171: 5168 | I171: 8 | J171: 0.008145345311 | K171: 1 | L171: 70 | M171: 0.006123451085 | N171: -0.002021894226 | O171: x | P171: x | Q171: x | R171: x
A172: 43052 | B172: 0 | C172: 744 | D172: 84457 | E172: 588 | F172: 2703 | G172: 46 | H172: 12930 | I172: 17 | J172: 0.008809216524 | K172: 2 | L172: 70 | M172: 0.007980392389 | N172: -0.0008288241354 | O172: x | P172: x | Q172: x | R172: x
A173: 43351 | B173: 31740 | C173: -169 | D173: 23232 | E173: 128 | F173: 933 | G173: 101 | H173: 1668 | I173: 8 | J173: -0.007274449036 | K173: 1 | L173: 90 | M173: -0.01114841598 | N173: -0.003873966942 | O173: x | P173: x | Q173: x | R173: x
A174: 43454 | B174: 24220 | C174: 211 | D174: 24369 | E174: 57 | F174: 706 | G174: 5 | H174: 3543 | I174: 7 | J174: 0.00865854159 | K174: 1 | L174: 90 | M174: 0.004965324798 | N174: -0.003693216792 | O174: x | P174: x | Q174: x | R174: x
A175: 43744 | B175: 31540 | C175: 233 | D175: 76413 | E175: 881 | F175: 2391 | G175: 0 | H175: 11439 | I175: 15 | J175: 0.003049219374 | K175: 2 | L175: 90 | M175: 0.001871409315 | N175: -0.001177810058 | O175: x | P175: x | Q175: x | R175: x
A176: 43856 | B176: 20260 | C176: 123 | D176: 60180 | E176: 233 | F176: 1602 | G176: 0 | H176: 5082 | I176: 15 | J176: 0.002043868395 | K176: 2 | L176: 90 | M176: 0.0005483549352 | N176: -0.00149551346 | O176: x | P176: x | Q176: x | R176: x
A177: 43959 | B177: 13140 | C177: 837 | D177: 135790 | E177: 557 | F177: 3785 | G177: 267 | H177: 14590 | I177: 34 | J177: 0.006163929597 | K177: 3 | L177: 180 | M177: 0.00483835334 | N177: -0.001325576257 | O177: x | P177: x | Q177: x | R177: x
A178: 44040 | B178: 0 | C178: 2258 | D178: 314632 | E178: 2198 | F178: 6027 | G178: 600 | H178: 30824 | I178: 54 | J178: 0.007176638104 | K178: 4 | L178: 140 | M178: 0.006731673828 | N178: -0.0004449642757 | O178: x | P178: x | Q178: x | R178: x
A179: 44433 | B179: 33124 | C179: -2124 | D179: 300484 | E179: 2418 | F179: 12258 | G179: 655 | H179: 28203 | I179: 81 | J179: -0.007068595998 | K179: 4 | L179: 180 | M179: -0.007667629558 | N179: -0.0005990335592 | O179: x | P179: x | Q179: x | R179: x
A180: 44741 | B180: 26900 | C180: 2106 | D180: 364616 | E180: 1825 | F180: 13701 | G180: 740 | H180: 35069 | I180: 126 | J180: 0.005775939619 | K180: 4 | L180: 180 | M180: 0.005282269566 | N180: -0.0004936700529 | O180: x | P180: x | Q180: x | R180: x
A181: 44750 | B181: 0 | C181: 1151 | D181: 170820 | E181: 2767 | F181: 4702 | G181: 159 | H181: 16317 | I181: 53 | J181: 0.006738086875 | K181: 3 | L181: 140 | M181: 0.005918510713 | N181: -0.000819576162 | O181: x | P181: x | Q181: x | R181: x
A182: 44929 | B182: 0 | C182: 721 | D182: 138649 | E182: 898 | F182: 4342 | G182: 500 | H182: 17176 | I182: 58 | J182: 0.005200181754 | K182: 3 | L182: 140 | M182: 0.004190437724 | N182: -0.00100974403 | O182: x | P182: x | Q182: x | R182: x
A183: 45038 | B183: 0 | C183: 1649 | D183: 135835 | E183: 1326 | F183: 1925 | G183: 884 | H183: 13485 | I183: 18 | J183: 0.01213972835 | K183: 3 | L183: 140 | M183: 0.01110906615 | N183: -0.0010306622 | O183: x | P183: x | Q183: x | R183: x
A184: 45047 | B184: 0 | C184: 2310 | D184: 123612 | E184: 511 | F184: 4487 | G184: 247 | H184: 17860 | I184: 39 | J184: 0.01868750607 | K184: 3 | L184: 140 | M184: 0.01755492994 | N184: -0.001132576125 | O184: x | P184: x | Q184: x | R184: x
A185: 45056 | B185: 0 | C185: 530 | D185: 65494 | E185: 216 | F185: 1663 | G185: 50 | H185: 8866 | I185: 12 | J185: 0.008092344337 | K185: 2 | L185: 70 | M185: 0.007023544141 | N185: -0.001068800195 | O185: x | P185: x | Q185: x | R185: x
A186: 45430 | B186: 0 | C186: 724 | D186: 117984 | E186: 1049 | F186: 3109 | G186: 111 | H186: 15528 | I186: 23 | J186: 0.006136425278 | K186: 3 | L186: 140 | M186: 0.004949823705 | N186: -0.001186601573 | O186: x | P186: x | Q186: x | R186: x
A187: 45458 | B187: 48620 | C187: -29 | D187: 15259 | E187: 44 | F187: 520 | G187: 49 | H187: 2535 | I187: 3 | J187: -0.001900517727 | K187: 1 | L187: 90 | M187: -0.007798676191 | N187: -0.005898158464 | O187: x | P187: x | Q187: x | R187: x
A188: 45551 | B188: 0 | C188: 9072 | D188: 766452 | E188: 3791 | F188: 23233 | G188: 770 | H188: 71859 | I188: 185 | J188: 0.01183635766 | K188: 5 | L188: 210 | M188: 0.0115623679 | N188: -0.0002739897606 | O188: x | P188: x | Q188: x | R188: x
A189: 46053 | B189: 0 | C189: 1228 | D189: 188378 | E189: 1044 | F189: 6106 | G189: 937 | H189: 21726 | I189: 47 | J189: 0.006518807929 | K189: 3 | L189: 140 | M189: 0.005775621357 | N189: -0.0007431865717 | O189: x | P189: x | Q189: x | R189: x
A190: 46941 | B190: 0 | C190: 1876 | D190: 117982 | E190: 692 | F190: 3119 | G190: 156 | H190: 19856 | I190: 35 | J190: 0.01590073062 | K190: 3 | L190: 140 | M190: 0.01471410893 | N190: -0.001186621688 | O190: x | P190: x | Q190: x | R190: x
A191: 47153 | B191: 0 | C191: 65 | D191: 22144 | E191: 184 | F191: 530 | G191: 35 | H191: 1857 | I191: 5 | J191: 0.00293533237 | K191: 1 | L191: 70 | M191: -0.0002257947977 | N191: -0.003161127168 | O191: x | P191: x | Q191: x | R191: x
A192: 47247 | B192: 29620 | C192: 1702 | D192: 278269 | E192: 2369 | F192: 8016 | G192: 1116 | H192: 29085 | I192: 75 | J192: 0.006116383787 | K192: 4 | L192: 180 | M192: 0.005469527687 | N192: -0.0006468560997 | O192: x | P192: x | Q192: x | R192: x
A193: 47256 | B193: 0 | C193: 121 | D193: 31331 | E193: 156 | F193: 1110 | G193: 43 | H193: 4609 | I193: 12 | J193: 0.003861989723 | K193: 1 | L193: 70 | M193: 0.001627780792 | N193: -0.00223420893 | O193: x | P193: x | Q193: x | R193: x
A194: 47452 | B194: 43340 | C194: 265 | D194: 55663 | E194: 250 | F194: 1315 | G194: 0 | H194: 8850 | I194: 13 | J194: =C194/D194 -> 0.004760792627 | K194: =IF(D194/1000<INDEX(sizeV,1),1,IF(D194/1000<INDEX(sizeV,2),2,IF(D194/1000<INDEX(sizeV,3),3,IF(D194/1000<INDEX(sizeV,4),4,IF(D194/1000<INDEX(sizeV,5),5,6))))) -> 2 | L194: =IF(B194=0,salRural*T$2,salUrban*T$2)*INDEX(nHires,K194) -> 90 | M194: =(C194-L194)/D194 -> 0.003143919659 | N194: =M194-J194 -> -0.001616872968 | O194: x | P194: x | Q194: x | R194: x
A195: 48057 | B195: 0 | C195: 278 | D195: 116334 | E195: 796 | F195: 2856 | G195: 971 | H195: 10299 | I195: 23 | J195: 0.002389671119 | K195: 3 | L195: 140 | M195: 0.00118623962 | N195: -0.001203431499 | O195: x | P195: x | Q195: x | R195: x
A196: 48150 | B196: 0 | C196: 210 | D196: 28804 | E196: 171 | F196: 591 | G196: 17 | H196: 3376 | I196: 5 | J196: 0.007290654076 | K196: 1 | L196: 70 | M196: 0.004860436051 | N196: -0.002430218025 | O196: x | P196: x | Q196: x | R196: x
A197: 48374 | B197: 0 | C197: 27245 | D197: 821577 | E197: 8889 | F197: 29027 | G197: 1600 | H197: 82127 | I197: 262 | J197: 0.03316183389 | K197: 5 | L197: 210 | M197: 0.0329062279 | N197: -0.000255605987 | O197: x | P197: x | Q197: x | R197: x
A198: 48440 | B198: 0 | C198: 1194 | D198: 98944 | E198: 620 | F198: 2818 | G198: 200 | H198: 9300 | I198: 25 | J198: 0.01206743208 | K198: 2 | L198: 70 | M198: 0.01135996119 | N198: -0.0007074708926 | O198: x | P198: x | Q198: x | R198: x
A199: 49054 | B199: 0 | C199: 789 | D199: 168629 | E199: 2796 | F199: 5074 | G199: 616 | H199: 23533 | I199: 19 | J199: 0.004678910508 | K199: 3 | L199: 140 | M199: 0.003848685576 | N199: -0.0008302249317 | O199: x | P199: x | Q199: x | R199: x
A200: 49148 | B200: 0 | C200: 1217 | D200: 92977 | E200: 465 | F200: 1640 | G200: 180 | H200: 14171 | I200: 17 | J200: 0.01308925863 | K200: 2 | L200: 70 | M200: 0.01233638427 | N200: -0.0007528743668 | O200: x | P200: x | Q200: x | R200: x
... 5258 more rows

Sheet 2011 data (hidden)
A1: id.rssd | B1: msa.cd | C1: nt.inc | D1: assets | E1: int.exp | F1: nonint.exp | G1: prov.exp | H1: equity | I1: fte | J1: roa | K1: asset.cohort | L1: addl reg exp | M1: new.roa | N1: delta | O1: newly unprof | P1: roe | Q1: new.roe | R1: delta | T1: 2011
A2: 37 | B2: 0 | C2: 515 | D2: 86776 | E2: 1307 | F2: 2232 | G2: 380 | H2: 17875 | I2: 23 | J2: =C2/D2 -> 0.005934820688 | K2: =IF(D2/1000<INDEX(sizeV,1),1,IF(D2/1000<INDEX(sizeV,2),2,IF(D2/1000<INDEX(sizeV,3),3,IF(D2/1000<INDEX(sizeV,4),4,IF(D2/1000<INDEX(sizeV,5),5,6))))) -> 2 | L2: =IF(B2=0,salRural*T$2,salUrban*T$2)*INDEX(nHires,K2) -> 68.78859724 | M2: =(C2-L2)/D2 -> 0.005142106144 | N2: =M2-J2 -> -0.0007927145436 | O2: x | P2: x | Q2: x | R2: x | T2: =VLOOKUP(T1,cpiAdj,2,FALSE) -> 0.9826942463 | W2: Asset | AC2: Change in ROA
A3: 242 | B3: 0 | C3: 478 | D3: 35222 | E3: 286 | F3: 952 | G3: 0 | H3: 4721 | I3: 12 | J3: 0.01357106354 | K3: 1 | L3: 68.78859724 | M3: 0.01161806265 | N3: -0.001953000887 | O3: x | P3: x | Q3: x | R3: x | V3: Size | W3: Size Max | X3: Addl | Y3: # of | AA3: Median | AB3: x | AC3: 25th pctile | AD3: 50th pctile | AE3: 75th pctile | AF3: Avg | AG3: Original | AH3: Newly | AJ3: Original | AK3: After Change
A4: 354 | B4: 0 | C4: 17 | D4: 10080 | E4: 49 | F4: 357 | G4: 0 | H4: 1050 | I4: 4 | J4: 0.001686507937 | K4: 1 | L4: 68.78859724 | M4: -0.005137757663 | N4: -0.006824265599 | O4: x | P4: x | Q4: x | R4: x | V4: Quintile | W4: ($MM) | X4: Hires | Y4: Banks | Z4: % | AA4: FTEs | AB4: x | AC4: (bps) | AD4: (bps) | AE4: (bps) | AF4: (bps) | AG4: Unprof | AH4: Unprof | AI4: Difference | AJ4: ROA < 40 | AK4: ROA < 40 | AL4: Difference
A5: 457 | B5: 0 | C5: 956 | D5: 37616 | E5: 407 | F5: 989 | G5: 30 | H5: 3450 | I5: 9 | J5: 0.02541471714 | K5: 1 | L5: 68.78859724 | M5: 0.02358601135 | N5: -0.001828705796 | O5: x | P5: x | Q5: x | R5: x | U5: < $50M | V5: 1 | W5: x | X5: x | Y5: x | Z5: x | AA5: x | AB5: x | AC5: =PERCENTILE(IF($K$2:$K$7000=$V5,$N$2:$N$7000),0.25)*10000 -> -30.96927565 | AD5: =PERCENTILE(IF($K$2:$K$7000=$V5,$N$2:$N$7000),0.5)*10000 -> -22.3718115 | AE5: =PERCENTILE(IF($K$2:$K$7000=$V5,$N$2:$N$7000),0.75)*10000 -> -17.80696551 | AF5: =AVERAGE(IF($K$2:$K$7000=$V5,$N$2:$N$7000))*10000 -> -28.41467948 | AG5: =SUM(IF($K$2:$K$7000=$V5,IF($J$2:$J$7000<0,1,0))) -> 126 | AH5: =SUM(IF($K$2:$K$7000=$V5,IF($M$2:$M$7000<0,1,0))) -> 232 | AI5: =IF(INDEX(sizeV,V5)>0,AH5-AG5) -> 106 | AJ5: =SUM(IF($K$2:$K$7000=$V5,IF($J$2:$J$7000<0.004,1,0))) -> 279 | AK5: =SUM(IF($K$2:$K$7000=$V5,IF($M$2:$M$7000<0.004,1,0))) -> 425 | AL5: =IF(INDEX(sizeV,V5)>0,AK5-AJ5) -> 146
A6: 505 | B6: 10580 | C6: 2316 | D6: 387870 | E6: 3092 | F6: 11070 | G6: 682 | H6: 30277 | I6: 112 | J6: 0.005971072782 | K6: 4 | L6: 176.8849643 | M6: 0.005515030901 | N6: -0.0004560418809 | O6: x | P6: x | Q6: x | R6: x | U6: $50M - $100M | V6: 2 | W6: x | X6: x | Y6: x | Z6: x | AA6: x | AB6: x | AC6: =PERCENTILE(IF($K$2:$K$7000=$V6,$N$2:$N$7000),0.25)*10000 -> -12.45515893 | AD6: =PERCENTILE(IF($K$2:$K$7000=$V6,$N$2:$N$7000),0.5)*10000 -> -10.43914003 | AE6: =PERCENTILE(IF($K$2:$K$7000=$V6,$N$2:$N$7000),0.75)*10000 -> -8.848938154 | AF6: =AVERAGE(IF($K$2:$K$7000=$V6,$N$2:$N$7000))*10000 -> -10.76453908 | AG6: =SUM(IF($K$2:$K$7000=$V6,IF($J$2:$J$7000<0,1,0))) -> 171 | AH6: =SUM(IF($K$2:$K$7000=$V6,IF($M$2:$M$7000<0,1,0))) -> 212 | AI6: =IF(INDEX(sizeV,V6)>0,AH6-AG6) -> 41 | AJ6: =SUM(IF($K$2:$K$7000=$V6,IF($J$2:$J$7000<0.004,1,0))) -> 350 | AK6: =SUM(IF($K$2:$K$7000=$V6,IF($M$2:$M$7000<0.004,1,0))) -> 415 | AL6: =IF(INDEX(sizeV,V6)>0,AK6-AJ6) -> 65
A7: 1155 | B7: 0 | C7: 2334 | D7: 219058 | E7: 2225 | F7: 5639 | G7: 1058 | H7: 19568 | I7: 53 | J7: 0.01065471245 | K7: 3 | L7: 137.5771945 | M7: 0.01002667241 | N7: -0.0006280400372 | O7: x | P7: x | Q7: x | R7: x | U7: $100M - $250M | V7: 3 | W7: x | X7: x | Y7: x | Z7: x | AA7: x | AB7: x | AC7: =PERCENTILE(IF($K$2:$K$7000=$V7,$N$2:$N$7000),0.25)*10000 -> -12.31673351 | AD7: =PERCENTILE(IF($K$2:$K$7000=$V7,$N$2:$N$7000),0.5)*10000 -> -10.02262743 | AE7: =PERCENTILE(IF($K$2:$K$7000=$V7,$N$2:$N$7000),0.75)*10000 -> -7.957122808 | AF7: =AVERAGE(IF($K$2:$K$7000=$V7,$N$2:$N$7000))*10000 -> -10.34790645 | AG7: =SUM(IF($K$2:$K$7000=$V7,IF($J$2:$J$7000<0,1,0))) -> 307 | AH7: =SUM(IF($K$2:$K$7000=$V7,IF($M$2:$M$7000<0,1,0))) -> 350 | AI7: =IF(INDEX(sizeV,V7)>0,AH7-AG7) -> 43 | AJ7: =SUM(IF($K$2:$K$7000=$V7,IF($J$2:$J$7000<0.004,1,0))) -> 552 | AK7: =SUM(IF($K$2:$K$7000=$V7,IF($M$2:$M$7000<0.004,1,0))) -> 654 | AL7: =IF(INDEX(sizeV,V7)>0,AK7-AJ7) -> 102
A8: 1351 | B8: 0 | C8: 2927 | D8: 159681 | E8: 2267 | F8: 2566 | G8: 666 | H8: 22118 | I8: 30 | J8: 0.01833029603 | K8: 3 | L8: 137.5771945 | M8: 0.0174687208 | N8: -0.0008615752311 | O8: x | P8: x | Q8: x | R8: x | U8: $250M - $500M | V8: 4 | W8: x | X8: x | Y8: x | Z8: x | AA8: x | AB8: x | AC8: =PERCENTILE(IF($K$2:$K$7000=$V8,$N$2:$N$7000),0.25)*10000 -> -5.534448869 | AD8: =PERCENTILE(IF($K$2:$K$7000=$V8,$N$2:$N$7000),0.5)*10000 -> -4.698189737 | AE8: =PERCENTILE(IF($K$2:$K$7000=$V8,$N$2:$N$7000),0.75)*10000 -> -4.014488056 | AF8: =AVERAGE(IF($K$2:$K$7000=$V8,$N$2:$N$7000))*10000 -> -4.814135002 | AG8: =SUM(IF($K$2:$K$7000=$V8,IF($J$2:$J$7000<0,1,0))) -> 150 | AH8: =SUM(IF($K$2:$K$7000=$V8,IF($M$2:$M$7000<0,1,0))) -> 158 | AI8: =IF(INDEX(sizeV,V8)>0,AH8-AG8) -> 8 | AJ8: =SUM(IF($K$2:$K$7000=$V8,IF($J$2:$J$7000<0.004,1,0))) -> 274 | AK8: =SUM(IF($K$2:$K$7000=$V8,IF($M$2:$M$7000<0.004,1,0))) -> 288 | AL8: =IF(INDEX(sizeV,V8)>0,AK8-AJ8) -> 14
A9: 1454 | B9: 16220 | C9: 8579 | D9: 572190 | E9: 1538 | F9: 15737 | G9: 100 | H9: 57373 | I9: 146 | J9: 0.01499327147 | K9: 5 | L9: 265.3274465 | M9: 0.01452956632 | N9: -0.0004637051443 | O9: x | P9: x | Q9: x | R9: x | U9: $500M - $1B | V9: 5 | W9: x | X9: x | Y9: x | Z9: x | AA9: x | AB9: x | AC9: =PERCENTILE(IF($K$2:$K$7000=$V9,$N$2:$N$7000),0.25)*10000 -> -4.353643637 | AD9: =PERCENTILE(IF($K$2:$K$7000=$V9,$N$2:$N$7000),0.5)*10000 -> -3.671854714 | AE9: =PERCENTILE(IF($K$2:$K$7000=$V9,$N$2:$N$7000),0.75)*10000 -> -3.091297357 | AF9: =AVERAGE(IF($K$2:$K$7000=$V9,$N$2:$N$7000))*10000 -> -3.723645976 | AG9: =SUM(IF($K$2:$K$7000=$V9,IF($J$2:$J$7000<0,1,0))) -> 84 | AH9: =SUM(IF($K$2:$K$7000=$V9,IF($M$2:$M$7000<0,1,0))) -> 88 | AI9: =IF(INDEX(sizeV,V9)>0,AH9-AG9) -> 4 | AJ9: =SUM(IF($K$2:$K$7000=$V9,IF($J$2:$J$7000<0.004,1,0))) -> 166 | AK9: =SUM(IF($K$2:$K$7000=$V9,IF($M$2:$M$7000<0.004,1,0))) -> 172 | AL9: =IF(INDEX(sizeV,V9)>0,AK9-AJ9) -> 6
A10: 1557 | B10: 0 | C10: 723 | D10: 61178 | E10: 373 | F10: 1275 | G10: 100 | H10: 5757 | I10: 12 | J10: 0.01181797378 | K10: 2 | L10: 68.78859724 | M10: 0.0106935729 | N10: -0.001124400883 | O10: x | P10: x | Q10: x | R10: x
A11: 1669 | B11: 0 | C11: 2531 | D11: 239398 | E11: 1363 | F11: 5320 | G11: 892 | H11: 44071 | I11: 52 | J11: 0.01057235232 | K11: 3 | L11: 137.5771945 | M11: 0.009997672518 | N11: -0.0005746797988 | O11: x | P11: x | Q11: x | R11: x
A12: 1829 | B12: 38300 | C12: 2866 | D12: 407355 | E12: 4310 | F12: 11237 | G12: 425 | H12: 43439 | I12: 96 | J12: 0.007035632311 | K12: 4 | L12: 176.8849643 | M12: 0.006601404268 | N12: -0.0004342280427 | O12: x | P12: x | Q12: x | R12: x | W12: Percentiles of ROA (before)
A13: 1856 | B13: 0 | C13: 4578 | D13: 144714 | E13: 4834 | F13: 1503 | G13: 297 | H13: 21726 | I13: 7 | J13: 0.03163481073 | K13: 3 | L13: 137.5771945 | M13: 0.03068412735 | N13: -0.0009506833788 | O13: x | P13: x | Q13: x | R13: x | V13: Cohort | W13: 25 | X13: 50 | Y13: 75
A14: 2040 | B14: 0 | C14: 694 | D14: 192905 | E14: 3051 | F14: 5619 | G14: 1052 | H14: 20762 | I14: 49 | J14: 0.003597625774 | K14: 3 | L14: 137.5771945 | M14: 0.00288443952 | N14: -0.0007131862548 | O14: x | P14: x | Q14: x | R14: x | V14: 1 | W14: =PERCENTILE(IF($K$2:$K$7000=$V14,$J$2:$J$7000),W$13/100) -> 0.002638794519 | X14: =PERCENTILE(IF($K$2:$K$7000=$V14,$J$2:$J$7000),X$13/100) -> 0.006396293397 | Y14: =PERCENTILE(IF($K$2:$K$7000=$V14,$J$2:$J$7000),Y$13/100) -> 0.01050230431
A15: 2161 | B15: 0 | C15: 1827 | D15: 131855 | E15: 753 | F15: 3574 | G15: 23 | H15: 14026 | I15: 32 | J15: 0.01385612984 | K15: 3 | L15: 137.5771945 | M15: 0.01281273221 | N15: -0.00104339763 | O15: x | P15: x | Q15: x | R15: x | V15: 2 | W15: =PERCENTILE(IF($K$2:$K$7000=$V15,$J$2:$J$7000),W$13/100) -> 0.003325191652 | X15: =PERCENTILE(IF($K$2:$K$7000=$V15,$J$2:$J$7000),X$13/100) -> 0.00749188072 | Y15: =PERCENTILE(IF($K$2:$K$7000=$V15,$J$2:$J$7000),Y$13/100) -> 0.01190836848
A16: 2554 | B16: 0 | C16: 130 | D16: 12109 | E16: 76 | F16: 271 | G16: 26 | H16: 1162 | I16: 4 | J16: 0.01073581633 | K16: 1 | L16: 68.78859724 | M16: 0.005055033674 | N16: -0.005680782661 | O16: x | P16: x | Q16: x | R16: x | V16: 3 | W16: =PERCENTILE(IF($K$2:$K$7000=$V16,$J$2:$J$7000),W$13/100) -> 0.003400479302 | X16: =PERCENTILE(IF($K$2:$K$7000=$V16,$J$2:$J$7000),X$13/100) -> 0.007817103871 | Y16: =PERCENTILE(IF($K$2:$K$7000=$V16,$J$2:$J$7000),Y$13/100) -> 0.01179974234
A17: 2732 | B17: 16974 | C17: 3736 | D17: 523409 | E17: 2411 | F17: 10389 | G17: 2850 | H17: 77188 | I17: 92 | J17: 0.007137821474 | K17: 5 | L17: 265.3274465 | M17: 0.006630899647 | N17: -0.0005069218269 | O17: x | P17: x | Q17: x | R17: x | V17: 4 | W17: =PERCENTILE(IF($K$2:$K$7000=$V17,$J$2:$J$7000),W$13/100) -> 0.003254842317 | X17: =PERCENTILE(IF($K$2:$K$7000=$V17,$J$2:$J$7000),X$13/100) -> 0.00776278147 | Y17: =PERCENTILE(IF($K$2:$K$7000=$V17,$J$2:$J$7000),Y$13/100) -> 0.01150604073
A18: 2750 | B18: 0 | C18: 492 | D18: 59593 | E18: 796 | F18: 1403 | G18: 135 | H18: 5512 | I18: 11 | J18: 0.008256003222 | K18: 2 | L18: 68.78859724 | M18: 0.007101696554 | N18: -0.001154306668 | O18: x | P18: x | Q18: x | R18: x | V18: 5 | W18: =PERCENTILE(IF($K$2:$K$7000=$V18,$J$2:$J$7000),W$13/100) -> 0.00287474205 | X18: =PERCENTILE(IF($K$2:$K$7000=$V18,$J$2:$J$7000),X$13/100) -> 0.007337022373 | Y18: =PERCENTILE(IF($K$2:$K$7000=$V18,$J$2:$J$7000),Y$13/100) -> 0.01121000219
A19: 3252 | B19: 0 | C19: 3336 | D19: 152928 | E19: 1032 | F19: 3338 | G19: 600 | H19: 20113 | I19: 35 | J19: 0.02181418707 | K19: 3 | L19: 137.5771945 | M19: 0.02091456637 | N19: -0.0008996207004 | O19: x | P19: x | Q19: x | R19: x
A20: 3458 | B20: 0 | C20: 225 | D20: 33286 | E20: 281 | F20: 747 | G20: 85 | H20: 3330 | I20: 11 | J20: 0.00675959863 | K20: 1 | L20: 68.78859724 | M20: 0.004693006152 | N20: -0.002066592478 | O20: x | P20: x | Q20: x | R20: x
A21: 3720 | B21: 0 | C21: 1955 | D21: 205356 | E21: 984 | F21: 6343 | G21: 227 | H21: 28842 | I21: 61 | J21: 0.009520052981 | K21: 3 | L21: 137.5771945 | M21: 0.008850108132 | N21: -0.0006699448493 | O21: x | P21: x | Q21: x | R21: x | W21: Percentiles of ROA (after)
A22: 3953 | B22: 0 | C22: -6996 | D22: 53095 | E22: 572 | F22: 4815 | G22: 6727 | H22: 1603 | I22: 17 | J22: -0.1317638196 | K22: 2 | L22: 68.78859724 | M22: -0.1330593954 | N22: -0.001295575803 | O22: x | P22: x | Q22: x | R22: x | V22: Cohort | W22: 25 | X22: 50 | Y22: 75
A23: 4156 | B23: 0 | C23: 1217 | D23: 203086 | E23: 1803 | F23: 6775 | G23: 563 | H23: 20504 | I23: 61 | J23: 0.005992535182 | K23: 3 | L23: 137.5771945 | M23: 0.005315102004 | N23: -0.0006774331784 | O23: x | P23: x | Q23: x | R23: x | V23: 1 | W23: =PERCENTILE(IF($K$2:$K$7000=$V23,$M$2:$M$7000),W$13/100) -> -0.0006705586848 | X23: =PERCENTILE(IF($K$2:$K$7000=$V23,$M$2:$M$7000),X$13/100) -> 0.003866251808 | Y23: =PERCENTILE(IF($K$2:$K$7000=$V23,$M$2:$M$7000),Y$13/100) -> 0.008274702204
A24: 4231 | B24: 0 | C24: 276 | D24: 128697 | E24: 1732 | F24: 3045 | G24: 597 | H24: 14767 | I24: 33 | J24: 0.002144572135 | K24: 3 | L24: 137.5771945 | M24: 0.001075571346 | N24: -0.001069000789 | O24: x | P24: x | Q24: x | R24: x | V24: 2 | W24: =PERCENTILE(IF($K$2:$K$7000=$V24,$M$2:$M$7000),W$13/100) -> 0.002173554064 | X24: =PERCENTILE(IF($K$2:$K$7000=$V24,$M$2:$M$7000),X$13/100) -> 0.006424285389 | Y24: =PERCENTILE(IF($K$2:$K$7000=$V24,$M$2:$M$7000),Y$13/100) -> 0.01077527179
A25: 4437 | B25: 0 | C25: 1161 | D25: 264812 | E25: 2605 | F25: 6692 | G25: 1900 | H25: 26922 | I25: 57 | J25: 0.004384242406 | K25: 4 | L25: 137.5771945 | M25: 0.003864714611 | N25: -0.0005195277951 | O25: x | P25: x | Q25: x | R25: x | V25: 3 | W25: =PERCENTILE(IF($K$2:$K$7000=$V25,$M$2:$M$7000),W$13/100) -> 0.00231671238 | X25: =PERCENTILE(IF($K$2:$K$7000=$V25,$M$2:$M$7000),X$13/100) -> 0.006757166102 | Y25: =PERCENTILE(IF($K$2:$K$7000=$V25,$M$2:$M$7000),Y$13/100) -> 0.01077188085
A26: 4839 | B26: 16974 | C26: 2994 | D26: 322757 | E26: 3272 | F26: 10838 | G26: 2260 | H26: 31923 | I26: 90 | J26: 0.009276328631 | K26: 4 | L26: 176.8849643 | M26: 0.008728284857 | N26: -0.0005480437739 | O26: x | P26: x | Q26: x | R26: x | V26: 4 | W26: =PERCENTILE(IF($K$2:$K$7000=$V26,$M$2:$M$7000),W$13/100) -> 0.00280229214 | X26: =PERCENTILE(IF($K$2:$K$7000=$V26,$M$2:$M$7000),X$13/100) -> 0.007290165419 | Y26: =PERCENTILE(IF($K$2:$K$7000=$V26,$M$2:$M$7000),Y$13/100) -> 0.01097088009
A27: 5069 | B27: 31084 | C27: 25849 | D27: 441819 | E27: 4491 | F27: 5163 | G27: -3718 | H27: 124178 | I27: 30 | J27: 0.05850585873 | K27: 4 | L27: 176.8849643 | M27: 0.05810550256 | N27: -0.0004003561737 | O27: x | P27: x | Q27: x | R27: x | V27: 5 | W27: =PERCENTILE(IF($K$2:$K$7000=$V27,$M$2:$M$7000),W$13/100) -> 0.002535289905 | X27: =PERCENTILE(IF($K$2:$K$7000=$V27,$M$2:$M$7000),X$13/100) -> 0.006981818135 | Y27: =PERCENTILE(IF($K$2:$K$7000=$V27,$M$2:$M$7000),Y$13/100) -> 0.01084662734
A28: 5135 | B28: 0 | C28: 3059 | D28: 362765 | E28: 3372 | F28: 8498 | G28: 900 | H28: 39625 | I28: 62 | J28: 0.008432456273 | K28: 4 | L28: 137.5771945 | M28: 0.00805321022 | N28: -0.0003792460532 | O28: x | P28: x | Q28: x | R28: x
A29: 5210 | B29: 0 | C29: 7814 | D29: 988859 | E29: 7327 | F29: 25551 | G29: 5435 | H29: 83274 | I29: 259 | J29: 0.00790203659 | K29: 5 | L29: 206.3657917 | M29: 0.007693345774 | N29: -0.0002086908161 | O29: x | P29: x | Q29: x | R29: x
A30: 5331 | B30: 16974 | C30: 1401 | D30: 395776 | E30: 4900 | F30: 9301 | G30: 2500 | H30: 32753 | I30: 73 | J30: 0.003539881145 | K30: 4 | L30: 176.8849643 | M30: 0.003092949132 | N30: -0.0004469320129 | O30: x | P30: x | Q30: x | R30: x
A31: 5461 | B31: 44700 | C31: 1724 | D31: 469390 | E31: 1870 | F31: 15327 | G31: 6239 | H31: 47197 | I31: 120 | J31: 0.003672851999 | K31: 4 | L31: 176.8849643 | M31: 0.003296011921 | N31: -0.0003768400782 | O31: x | P31: x | Q31: x | R31: x
A32: 5751 | B32: 0 | C32: 2339 | D32: 124573 | E32: 473 | F32: 2276 | G32: 0 | H32: 26712 | I32: 18 | J32: 0.01877613929 | K32: 3 | L32: 137.5771945 | M32: 0.01767174914 | N32: -0.001104390153 | O32: x | P32: x | Q32: x | R32: x
A33: 6039 | B33: 0 | C33: 17 | D33: 89425 | E33: 658 | F33: 2958 | G33: 175 | H33: 8708 | I33: 24 | J33: 0.0001901034386 | K33: 2 | L33: 68.78859724 | M33: -0.0005791288481 | N33: -0.0007692322867 | O33: x | P33: x | Q33: x | R33: x
A34: 6141 | B34: 0 | C34: 353 | D34: 62682 | E34: 349 | F34: 1248 | G34: 160 | H34: 5038 | I34: 11 | J34: 0.005631600779 | K34: 2 | L34: 68.78859724 | M34: 0.004534178915 | N34: -0.001097421863 | O34: x | P34: x | Q34: x | R34: x
A35: 6329 | B35: 0 | C35: -2452 | D35: 428492 | E35: 4422 | F35: 20715 | G35: 16838 | H35: 32501 | I35: 185 | J35: -0.005722393884 | K35: 4 | L35: 137.5771945 | M35: -0.006043466843 | N35: -0.0003210729593 | O35: x | P35: x | Q35: x | R35: x
A36: 6972 | B36: 38900 | C36: 10336 | D36: 780348 | E36: 2500 | F36: 32515 | G36: -1528 | H36: 88909 | I36: 233 | J36: 0.01324537258 | K36: 5 | L36: 265.3274465 | M36: 0.01290536088 | N36: -0.0003400116954 | O36: x | P36: x | Q36: x | R36: x
A37: 7009 | B37: 20764 | C37: 11005 | D37: 721934 | E37: 366 | F37: 51850 | G37: 0 | H37: 50608 | I37: 82 | J37: 0.01524377575 | K37: 5 | L37: 265.3274465 | M37: 0.01487625261 | N37: -0.0003675231344 | O37: x | P37: x | Q37: x | R37: x
A38: 7045 | B38: 0 | C38: 1224 | D38: 155806 | E38: 876 | F38: 3601 | G38: 235 | H38: 16035 | I38: 51 | J38: 0.007855923392 | K38: 3 | L38: 137.5771945 | M38: 0.006972920205 | N38: -0.0008830031865 | O38: x | P38: x | Q38: x | R38: x
A39: 7157 | B39: 0 | C39: 335 | D39: 48779 | E39: 522 | F39: 1052 | G39: 20 | H39: 4390 | I39: 8 | J39: 0.006867709465 | K39: 1 | L39: 68.78859724 | M39: 0.00545750021 | N39: -0.001410209255 | O39: x | P39: x | Q39: x | R39: x
A40: 7456 | B40: 0 | C40: 595 | D40: 59978 | E40: 456 | F40: 1807 | G40: 0 | H40: 5036 | I40: 16 | J40: 0.009920304112 | K40: 2 | L40: 68.78859724 | M40: 0.008773406962 | N40: -0.00114689715 | O40: x | P40: x | Q40: x | R40: x
A41: 7634 | B41: 0 | C41: -277 | D41: 62101 | E41: 805 | F41: 1793 | G41: 860 | H41: 5369 | I41: 13 | J41: -0.004460475677 | K41: 2 | L41: 68.78859724 | M41: -0.005568164719 | N41: -0.001107689043 | O41: x | P41: x | Q41: x | R41: x
A42: 8033 | B42: 12940 | C42: 1654 | D42: 165804 | E42: 1953 | F42: 3671 | G42: 457 | H42: 16185 | I42: 35 | J42: 0.009975633881 | K42: 3 | L42: 176.8849643 | M42: 0.008908802174 | N42: -0.001066831707 | O42: x | P42: x | Q42: x | R42: x
A43: 8462 | B43: 0 | C43: 1842 | D43: 153292 | E43: 455 | F43: 2256 | G43: 40 | H43: 16202 | I43: 21 | J43: 0.01201628265 | K43: 3 | L43: 137.5771945 | M43: 0.01111879815 | N43: -0.0008974845033 | O43: x | P43: x | Q43: x | R43: x
A44: 8631 | B44: 37620 | C44: 437 | D44: 58419 | E44: 411 | F44: 1802 | G44: 60 | H44: 6504 | I44: 20 | J44: 0.007480443007 | K44: 2 | L44: 88.44248216 | M44: 0.005966509489 | N44: -0.001513933518 | O44: x | P44: x | Q44: x | R44: x
A45: 9357 | B45: 33460 | C45: 6458 | D45: 430149 | E45: 1115 | F45: 7209 | G45: 0 | H45: 70853 | I45: 46 | J45: 0.01501340233 | K45: 4 | L45: 176.8849643 | M45: 0.01460218444 | N45: -0.0004112178904 | O45: x | P45: x | Q45: x | R45: x
A46: 9553 | B46: 0 | C46: 1073 | D46: 122484 | E46: 900 | F46: 2209 | G46: 0 | H46: 9515 | I46: 15 | J46: 0.00876032788 | K46: 3 | L46: 137.5771945 | M46: 0.007637102034 | N46: -0.001123225846 | O46: x | P46: x | Q46: x | R46: x
A47: 9955 | B47: 0 | C47: 1402 | D47: 108894 | E47: 391 | F47: 3151 | G47: 277 | H47: 13138 | I47: 28 | J47: 0.01287490587 | K47: 3 | L47: 137.5771945 | M47: 0.01161150114 | N47: -0.001263404728 | O47: x | P47: x | Q47: x | R47: x
A48: 10250 | B48: 33460 | C48: -3804 | D48: 376526 | E48: 4644 | F48: 13773 | G48: 7335 | H48: 26217 | I48: 89 | J48: -0.01010288798 | K48: 4 | L48: 176.8849643 | M48: -0.01057266952 | N48: -0.0004697815405 | O48: x | P48: x | Q48: x | R48: x
A49: 10849 | B49: 30780 | C49: 494 | D49: 267652 | E49: 2525 | F49: 8283 | G49: 925 | H49: 26327 | I49: 60 | J49: 0.001845680212 | K49: 4 | L49: 176.8849643 | M49: 0.001184803535 | N49: -0.0006608766769 | O49: x | P49: x | Q49: x | R49: x
A50: 10858 | B50: 0 | C50: 3584 | D50: 403650 | E50: 2097 | F50: 13688 | G50: 647 | H50: 34651 | I50: 121 | J50: 0.008878979314 | K50: 4 | L50: 137.5771945 | M50: 0.008538146428 | N50: -0.0003408328861 | O50: x | P50: x | Q50: x | R50: x
A51: 11145 | B51: 0 | C51: 1033 | D51: 169378 | E51: 1529 | F51: 5964 | G51: 840 | H51: 17357 | I51: 57 | J51: 0.006098784966 | K51: 3 | L51: 137.5771945 | M51: 0.005286535474 | N51: -0.0008122494921 | O51: x | P51: x | Q51: x | R51: x
A52: 11640 | B52: 0 | C52: 4035 | D52: 320654 | E52: 2918 | F52: 8864 | G52: 75 | H52: 33153 | I52: 55 | J52: 0.01258365715 | K52: 4 | L52: 137.5771945 | M52: 0.01215460529 | N52: -0.000429051858 | O52: x | P52: x | Q52: x | R52: x
A53: 11837 | B53: 0 | C53: 288 | D53: 104092 | E53: 1198 | F53: 2484 | G53: 725 | H53: 11683 | I53: 17 | J53: 0.00276678323 | K53: 3 | L53: 137.5771945 | M53: 0.001445094777 | N53: -0.001321688453 | O53: x | P53: x | Q53: x | R53: x
A54: 12030 | B54: 0 | C54: 2818 | D54: 313355 | E54: 3553 | F54: 7824 | G54: 7313 | H54: 37391 | I54: 85 | J54: 0.008992995165 | K54: 4 | L54: 137.5771945 | M54: 0.008553949372 | N54: -0.000439045793 | O54: x | P54: x | Q54: x | R54: x
A55: 12142 | B55: 0 | C55: 1309 | D55: 185048 | E55: 710 | F55: 6245 | G55: 110 | H55: 20412 | I55: 69 | J55: 0.007073840301 | K55: 3 | L55: 137.5771945 | M55: 0.00633037269 | N55: -0.000743467611 | O55: x | P55: x | Q55: x | R55: x
A56: 12245 | B56: 0 | C56: 759 | D56: 116659 | E56: 831 | F56: 3842 | G56: 200 | H56: 13723 | I56: 41 | J56: 0.006506141832 | K56: 3 | L56: 137.5771945 | M56: 0.005326831239 | N56: -0.001179310593 | O56: x | P56: x | Q56: x | R56: x
A57: 12647 | B57: 0 | C57: 802 | D57: 105210 | E57: 1143 | F57: 2516 | G57: 574 | H57: 9757 | I57: 24 | J57: 0.007622849539 | K57: 3 | L57: 137.5771945 | M57: 0.006315205831 | N57: -0.001307643708 | O57: x | P57: x | Q57: x | R57: x
A58: 12656 | B58: 0 | C58: 75 | D58: 16697 | E58: 150 | F58: 788 | G58: 30 | H58: 1408 | I58: 9 | J58: 0.004491824879 | K58: 1 | L58: 68.78859724 | M58: 0.0003720071127 | N58: -0.004119817766 | O58: x | P58: x | Q58: x | R58: x
A59: 12937 | B59: 16974 | C59: 1426 | D59: 220598 | E59: 1354 | F59: 5528 | G59: 620 | H59: 32579 | I59: 41 | J59: 0.006464247183 | K59: 3 | L59: 176.8849643 | M59: 0.005662404173 | N59: -0.00080184301 | O59: x | P59: x | Q59: x | R59: x
A60: 12946 | B60: 0 | C60: 10174 | D60: 734076 | E60: 7198 | F60: 16419 | G60: 5662 | H60: 75864 | I60: 157 | J60: 0.01385960037 | K60: 5 | L60: 206.3657917 | M60: 0.01357847717 | N60: -0.0002811231967 | O60: x | P60: x | Q60: x | R60: x
A61: 12955 | B61: 36540 | C61: 684 | D61: 120941 | E61: 754 | F61: 5298 | G61: 1320 | H61: 12417 | I61: 54 | J61: 0.005655650276 | K61: 3 | L61: 176.8849643 | M61: 0.004193077911 | N61: -0.001462572364 | O61: x | P61: x | Q61: x | R61: x
A62: 13251 | B62: 0 | C62: -162 | D62: 40743 | E62: 274 | F62: 1088 | G62: 602 | H62: 3418 | I62: 8 | J62: -0.003976143141 | K62: 1 | L62: 68.78859724 | M62: -0.005664496901 | N62: -0.00168835376 | O62: x | P62: x | Q62: x | R62: x
A63: 13457 | B63: 0 | C63: 203 | D63: 21158 | E63: 90 | F63: 700 | G63: 0 | H63: 5963 | I63: 4 | J63: 0.009594479629 | K63: 1 | L63: 68.78859724 | M63: 0.006343293447 | N63: -0.003251186182 | O63: x | P63: x | Q63: x | R63: x
A64: 14052 | B64: 0 | C64: 211 | D64: 62050 | E64: 375 | F64: 2056 | G64: 168 | H64: 6638 | I64: 19 | J64: 0.003400483481 | K64: 2 | L64: 68.78859724 | M64: 0.002291884009 | N64: -0.001108599472 | O64: x | P64: x | Q64: x | R64: x
A65: 14155 | B65: 0 | C65: 1488 | D65: 117530 | E65: 846 | F65: 4910 | G65: 722 | H65: 14119 | I65: 43 | J65: 0.01266059729 | K65: 3 | L65: 137.5771945 | M65: 0.01149002642 | N65: -0.001170570871 | O65: x | P65: x | Q65: x | R65: x
A66: 14650 | B66: 0 | C66: 416 | D66: 26099 | E66: 112 | F66: 1265 | G66: 198 | H66: 2816 | I66: 13 | J66: =C66/D66 -> 0.01593930802 | K66: =IF(D66/1000<INDEX(sizeV,1),1,IF(D66/1000<INDEX(sizeV,2),2,IF(D66/1000<INDEX(sizeV,3),3,IF(D66/1000<INDEX(sizeV,4),4,IF(D66/1000<INDEX(sizeV,5),5,6))))) -> 1 | L66: =IF(B66=0,salRural*T$2,salUrban*T$2)*INDEX(nHires,K66) -> 68.78859724 | M66: =(C66-L66)/D66 -> 0.0133036286 | N66: =M66-J66 -> -0.002635679422 | O66: x | P66: x | Q66: x | R66: x
A67: 14753 | B67: 0 | C67: 278 | D67: 42656 | E67: 296 | F67: 1076 | G67: 0 | H67: 3720 | I67: 11 | J67: 0.006517254314 | K67: 1 | L67: 68.78859724 | M67: 0.004904618407 | N67: -0.001612635907 | O67: x | P67: x | Q67: x | R67: x
A68: 14865 | B68: 0 | C68: 2303 | D68: 260348 | E68: 1061 | F68: 9884 | G68: 1325 | H68: 28474 | I68: 100 | J68: 0.008845852474 | K68: 4 | L68: 137.5771945 | M68: 0.00831741671 | N68: -0.0005284357647 | O68: x | P68: x | Q68: x | R68: x
A69: 16458 | B69: 29940 | C69: 1807 | D69: 294206 | E69: 1147 | F69: 10072 | G69: 300 | H69: 34559 | I69: 82 | J69: 0.006141954957 | K69: 4 | L69: 176.8849643 | M69: 0.005540726687 | N69: -0.0006012282697 | O69: x | P69: x | Q69: x | R69: x
A70: 16551 | B70: 0 | C70: 1648 | D70: 230524 | E70: 2878 | F70: 6382 | G70: 600 | H70: 22244 | I70: 79 | J70: 0.007148930263 | K70: 3 | L70: 137.5771945 | M70: 0.006552128219 | N70: -0.0005968020444 | O70: x | P70: x | Q70: x | R70: x
A71: 16748 | B71: 21780 | C71: 578 | D71: 57155 | E71: 457 | F71: 1768 | G71: 30 | H71: 6618 | I71: 16 | J71: 0.01011285102 | K71: 2 | L71: 88.44248216 | M71: 0.008565436407 | N71: -0.001547414612 | O71: x | P71: x | Q71: x | R71: x
A72: 16944 | B72: 28020 | C72: 107 | D72: 40548 | E72: 208 | F72: 1269 | G72: 0 | H72: 4134 | I72: 12 | J72: 0.002638847785 | K72: 1 | L72: 88.44248216 | M72: 0.0004576678957 | N72: -0.00218117989 | O72: x | P72: x | Q72: x | R72: x
A73: 16953 | B73: 24220 | C73: 207 | D73: 35002 | E73: 182 | F73: 1093 | G73: 53 | H73: 5343 | I73: 8 | J73: 0.005913947774 | K73: 1 | L73: 88.44248216 | M73: 0.0033871641 | N73: -0.002526783674 | O73: x | P73: x | Q73: x | R73: x
A74: 17110 | B74: 37964 | C74: 2940 | D74: 107720 | E74: 498 | F74: 18094 | G74: -440 | H74: 18669 | I74: 66 | J74: 0.0272929818 | K74: 3 | L74: 176.8849643 | M74: 0.02565090081 | N74: -0.001642080991 | O74: x | P74: x | Q74: x | R74: x
A75: 17259 | B75: 0 | C75: 917 | D75: 66967 | E75: 611 | F75: 2329 | G75: 70 | H75: 7477 | I75: 29 | J75: 0.01369331163 | K75: 2 | L75: 68.78859724 | M75: 0.01266611021 | N75: -0.001027201416 | O75: x | P75: x | Q75: x | R75: x
A76: 17950 | B76: 13740 | C76: 2352 | D76: 303802 | E76: 2348 | F76: 6844 | G76: 1382 | H76: 29137 | I76: 78 | J76: 0.007741884517 | K76: 4 | L76: 176.8849643 | M76: 0.007159646861 | N76: -0.0005822376559 | O76: x | P76: x | Q76: x | R76: x
A77: 18050 | B77: 12420 | C77: 5816 | D77: 411931 | E77: 1620 | F77: 10536 | G77: 840 | H77: 42072 | I77: 111 | J77: 0.01411886942 | K77: 4 | L77: 176.8849643 | M77: 0.01368946507 | N77: -0.0004294043525 | O77: x | P77: x | Q77: x | R77: x
A78: 18135 | B78: 16974 | C78: 1454 | D78: 235866 | E78: 1957 | F78: 8654 | G78: 460 | H78: 21166 | I78: 53 | J78: 0.006164517141 | K78: 3 | L78: 176.8849643 | M78: 0.005414578768 | N78: -0.0007499383732 | O78: x | P78: x | Q78: x | R78: x
A79: 18827 | B79: 38300 | C79: 3642 | D79: 388197 | E79: 2969 | F79: 8858 | G79: 1461 | H79: 39215 | I79: 85 | J79: 0.009381834481 | K79: 4 | L79: 176.8849643 | M79: 0.00892617675 | N79: -0.0004556577313 | O79: x | P79: x | Q79: x | R79: x
A80: 18836 | B80: 0 | C80: 190 | D80: 154459 | E80: 1983 | F80: 5285 | G80: 958 | H80: 13334 | I80: 48 | J80: 0.001230099897 | K80: 3 | L80: 137.5771945 | M80: 0.0003393962509 | N80: -0.0008907036461 | O80: x | P80: x | Q80: x | R80: x
A81: 18854 | B81: 36420 | C81: 15943 | D81: 211563 | E81: 1826 | F81: 6169 | G81: 675 | H81: 20687 | I81: 52 | J81: 0.07535816754 | K81: 3 | L81: 176.8849643 | M81: 0.07452208106 | N81: -0.0008360864817 | O81: x | P81: x | Q81: x | R81: x
A82: 18957 | B82: 45820 | C82: -318 | D82: 24450 | E82: 384 | F82: 1125 | G82: 347 | H82: 661 | I82: 9 | J82: -0.01300613497 | K82: 1 | L82: 88.44248216 | M82: -0.0166234144 | N82: -0.003617279434 | O82: x | P82: x | Q82: x | R82: x
A83: 19356 | B83: 0 | C83: 429 | D83: 75077 | E83: 467 | F83: 2431 | G83: 424 | H83: 8262 | I83: 28 | J83: 0.00571413349 | K83: 2 | L83: 68.78859724 | M83: 0.004797892867 | N83: -0.0009162406228 | O83: x | P83: x | Q83: x | R83: x
A84: 19936 | B84: 0 | C84: 417 | D84: 240976 | E84: 1813 | F84: 5477 | G84: 3330 | H84: 21211 | I84: 48 | J84: 0.001730462785 | K84: 3 | L84: 137.5771945 | M84: 0.001159546202 | N84: -0.0005709165829 | O84: x | P84: x | Q84: x | R84: x
A85: 20053 | B85: 20740 | C85: 500 | D85: 69980 | E85: 689 | F85: 2239 | G85: 165 | H85: 8491 | I85: 17 | J85: 0.007144898542 | K85: 2 | L85: 88.44248216 | M85: 0.005881073419 | N85: -0.001263825124 | O85: x | P85: x | Q85: x | R85: x
A86: 20512 | B86: 0 | C86: 918 | D86: 97869 | E86: 881 | F86: 2762 | G86: 31 | H86: 9479 | I86: 26 | J86: 0.009379885357 | K86: 2 | L86: 68.78859724 | M86: 0.008677021353 | N86: -0.0007028640043 | O86: x | P86: x | Q86: x | R86: x
A87: 20633 | B87: 0 | C87: 1529 | D87: 320020 | E87: 4970 | F87: 9314 | G87: 521 | H87: 27662 | I87: 85 | J87: 0.004777826386 | K87: 4 | L87: 137.5771945 | M87: 0.004347924522 | N87: -0.0004299018639 | O87: x | P87: x | Q87: x | R87: x
A88: 20857 | B88: 0 | C88: 3183 | D88: 193599 | E88: 618 | F88: 2551 | G88: 0 | H88: 22051 | I88: 16 | J88: 0.01644120063 | K88: 3 | L88: 137.5771945 | M88: 0.01573057095 | N88: -0.0007106296751 | O88: x | P88: x | Q88: x | R88: x
A89: 21256 | B89: 48620 | C89: 49 | D89: 9375 | E89: 60 | F89: 344 | G89: 5 | H89: 1080 | I89: 4 | J89: 0.005226666667 | K89: 1 | L89: 88.44248216 | M89: -0.004207198098 | N89: -0.009433864764 | O89: x | P89: x | Q89: x | R89: x
A90: 21359 | B90: 0 | C90: 395 | D90: 23787 | E90: 240 | F90: 823 | G90: 18 | H90: 2680 | I90: 7 | J90: 0.016605709 | K90: 1 | L90: 68.78859724 | M90: 0.01371385222 | N90: -0.002891856781 | O90: x | P90: x | Q90: x | R90: x
A91: 21630 | B91: 29180 | C91: 1029 | D91: 87026 | E91: 611 | F91: 2264 | G91: 28 | H91: 8825 | I91: 28 | J91: 0.01182405258 | K91: 2 | L91: 88.44248216 | M91: 0.01080777604 | N91: -0.00101627654 | O91: x | P91: x | Q91: x | R91: x
A92: 21658 | B92: 0 | C92: 1182 | D92: 147981 | E92: 1482 | F92: 4055 | G92: 477 | H92: 15039 | I92: 41 | J92: 0.00798751191 | K92: 3 | L92: 137.5771945 | M92: 0.007057816919 | N92: -0.0009296949911 | O92: x | P92: x | Q92: x | R92: x
A93: 22048 | B93: 0 | C93: 1048 | D93: 191141 | E93: 1884 | F93: 6764 | G93: 508 | H93: 19071 | I93: 64 | J93: 0.005482863436 | K93: 3 | L93: 137.5771945 | M93: 0.004763095335 | N93: -0.0007197681004 | O93: x | P93: x | Q93: x | R93: x
A94: 22356 | B94: 0 | C94: 3351 | D94: 391151 | E94: 2036 | F94: 8485 | G94: 700 | H94: 43774 | I94: 78 | J94: 0.008567023988 | K94: 4 | L94: 137.5771945 | M94: 0.008215299988 | N94: -0.0003517240004 | O94: x | P94: x | Q94: x | R94: x
A95: 22543 | B95: 0 | C95: 433 | D95: 83322 | E95: 317 | F95: 2262 | G95: 675 | H95: 14171 | I95: 24 | J95: 0.005196706752 | K95: 2 | L95: 68.78859724 | M95: 0.004371131307 | N95: -0.0008255754451 | O95: x | P95: x | Q95: x | R95: x
A96: 22552 | B96: 0 | C96: 1308 | D96: 85738 | E96: 843 | F96: 2599 | G96: 60 | H96: 7854 | I96: 20 | J96: 0.01525577923 | K96: 2 | L96: 68.78859724 | M96: 0.01445346757 | N96: -0.0008023116616 | O96: x | P96: x | Q96: x | R96: x
A97: 22730 | B97: 0 | C97: 710 | D97: 116869 | E97: 776 | F97: 4019 | G97: 80 | H97: 12616 | I97: 46 | J97: 0.006075178191 | K97: 3 | L97: 137.5771945 | M97: 0.004897986682 | N97: -0.001177191509 | O97: x | P97: x | Q97: x | R97: x
A98: 22936 | B98: 0 | C98: -9240 | D98: 217062 | E98: 3470 | F98: 7457 | G98: 10150 | H98: 9779 | I98: 59 | J98: -0.04256848274 | K98: 3 | L98: 137.5771945 | M98: -0.04320229794 | N98: -0.0006338151979 | O98: x | P98: x | Q98: x | R98: x
A99: 22954 | B99: 22020 | C99: 806 | D99: 93527 | E99: 968 | F99: 2403 | G99: 140 | H99: 8974 | I99: 20 | J99: 0.008617832284 | K99: 2 | L99: 88.44248216 | M99: 0.007672196455 | N99: -0.0009456358288 | O99: x | P99: x | Q99: x | R99: x
A100: 23045 | B100: 0 | C100: 179 | D100: 41632 | E100: 121 | F100: 1113 | G100: 0 | H100: 8013 | I100: 15 | J100: 0.004299577248 | K100: 1 | L100: 68.78859724 | M100: 0.0026472762 | N100: -0.001652301048 | O100: x | P100: x | Q100: x | R100: x
A101: 23456 | B101: 0 | C101: 1373 | D101: 94327 | E101: 1078 | F101: 2852 | G101: 162 | H101: 10858 | I101: 23 | J101: 0.01455574756 | K101: 2 | L101: 68.78859724 | M101: 0.01382649085 | N101: -0.0007292567053 | O101: x | P101: x | Q101: x | R101: x
A102: 23540 | B102: 16974 | C102: 303 | D102: 188451 | E102: 977 | F102: 5475 | G102: 2237 | H102: 12512 | I102: 36 | J102: 0.00160784501 | K102: 3 | L102: 176.8849643 | M102: 0.0006692192436 | N102: -0.0009386257665 | O102: x | P102: x | Q102: x | R102: x
A103: 23643 | B103: 0 | C103: 2809 | D103: 157315 | E103: 1468 | F103: 4615 | G103: 720 | H103: 16291 | I103: 40 | J103: 0.01785589422 | K103: 3 | L103: 137.5771945 | M103: 0.016981361 | N103: -0.0008745332262 | O103: x | P103: x | Q103: x | R103: x
A104: 23755 | B104: 33460 | C104: 1075 | D104: 161180 | E104: 1354 | F104: 6269 | G104: 318 | H104: 15295 | I104: 52 | J104: 0.00666956198 | K104: 3 | L104: 176.8849643 | M104: 0.005572124554 | N104: -0.001097437426 | O104: x | P104: x | Q104: x | R104: x
A105: 24453 | B105: 0 | C105: -9345 | D105: 222215 | E105: 3546 | F105: 10423 | G105: 3512 | H105: 6277 | I105: 43 | J105: -0.04205386675 | K105: 3 | L105: 137.5771945 | M105: -0.04267298425 | N105: -0.0006191174965 | O105: x | P105: x | Q105: x | R105: x
A106: 24659 | B106: 0 | C106: 557 | D106: 38702 | E106: 300 | F106: 995 | G106: 58 | H106: 4561 | I106: 9 | J106: 0.01439202108 | K106: 1 | L106: 68.78859724 | M106: 0.01261462981 | N106: -0.001777391278 | O106: x | P106: x | Q106: x | R106: x
A107: 24668 | B107: 0 | C107: 1522 | D107: 211477 | E107: 1299 | F107: 7545 | G107: 51 | H107: 21397 | I107: 73 | J107: 0.007197000147 | K107: 3 | L107: 137.5771945 | M107: 0.006546446212 | N107: -0.0006505539348 | O107: x | P107: x | Q107: x | R107: x
A108: 24855 | B108: 0 | C108: 32 | D108: 15662 | E108: 50 | F108: 411 | G108: 0 | H108: 956 | I108: 4 | J108: 0.002043161793 | K108: 1 | L108: 68.78859724 | M108: -0.002348908009 | N108: -0.004392069802 | O108: x | P108: x | Q108: x | R108: x
A109: 24949 | B109: 0 | C109: 2912 | D109: 766052 | E109: 7319 | F109: 19589 | G109: 3423 | H109: 74671 | I109: 200 | J109: 0.003801308527 | K109: 5 | L109: 206.3657917 | M109: 0.003531919776 | N109: -0.0002693887513 | O109: x | P109: x | Q109: x | R109: x
A110: 25357 | B110: 36420 | C110: 1088 | D110: 125815 | E110: 1623 | F110: 3787 | G110: 306 | H110: 10842 | I110: 48 | J110: 0.008647617534 | K110: 3 | L110: 176.8849643 | M110: 0.007241704373 | N110: -0.001405913161 | O110: x | P110: x | Q110: x | R110: x
A111: 25647 | B111: 16974 | C111: -1082 | D111: 66049 | E111: 874 | F111: 2533 | G111: 915 | H111: 2379 | I111: 22 | J111: -0.01638177717 | K111: 2 | L111: 88.44248216 | M111: -0.01772082064 | N111: -0.00133904347 | O111: x | P111: x | Q111: x | R111: x
A112: 26242 | B112: 0 | C112: 5116 | D112: 388434 | E112: 1694 | F112: 11550 | G112: 775 | H112: 55489 | I112: 121 | J112: 0.01317083468 | K112: 4 | L112: 137.5771945 | M112: 0.01281665046 | N112: -0.000354184223 | O112: x | P112: x | Q112: x | R112: x
A113: 26457 | B113: 0 | C113: 178 | D113: 24789 | E113: 161 | F113: 750 | G113: 0 | H113: 3066 | I113: 8 | J113: 0.0071806043 | K113: 1 | L113: 68.78859724 | M113: 0.00440563971 | N113: -0.002774964591 | O113: x | P113: x | Q113: x | R113: x
A114: 26765 | B114: 0 | C114: -2379 | D114: 250739 | E114: 1758 | F114: 11584 | G114: 395 | H114: 25983 | I114: 73 | J114: -0.009487953609 | K114: 4 | L114: 137.5771945 | M114: -0.01003664047 | N114: -0.0005486868596 | O114: x | P114: x | Q114: x | R114: x
A115: 26859 | B115: 26420 | C115: -4464 | D115: 335949 | E115: 2001 | F115: 13597 | G115: 4266 | H115: 31758 | I115: 92 | J115: -0.01328773117 | K115: 4 | L115: 176.8849643 | M115: -0.01381425444 | N115: -0.0005265232649 | O115: x | P115: x | Q115: x | R115: x
A116: 27548 | B116: 27500 | C116: 2866 | D116: 558221 | E116: 5043 | F116: 19241 | G116: 4804 | H116: 54835 | I116: 158 | J116: 0.005134167292 | K116: 5 | L116: 265.3274465 | M116: 0.004658858326 | N116: -0.0004753089663 | O116: x | P116: x | Q116: x | R116: x
A117: 27614 | B117: 0 | C117: 4059 | D117: 326995 | E117: 2287 | F117: 9497 | G117: 470 | H117: 31861 | I117: 91 | J117: 0.01241303384 | K117: 4 | L117: 137.5771945 | M117: 0.01199230204 | N117: -0.0004207317986 | O117: x | P117: x | Q117: x | R117: x
A118: 27847 | B118: 0 | C118: 4348 | D118: 437737 | E118: 5234 | F118: 12676 | G118: 5489 | H118: 49111 | I118: 121 | J118: 0.009932904918 | K118: 4 | L118: 137.5771945 | M118: 0.009618613015 | N118: -0.0003142919024 | O118: x | P118: x | Q118: x | R118: x
A119: 28152 | B119: 41060 | C119: 1187 | D119: 74872 | E119: 581 | F119: 1847 | G119: 0 | H119: 7056 | I119: 19 | J119: 0.01585372369 | K119: 2 | L119: 88.44248216 | M119: 0.01467247459 | N119: -0.001181249094 | O119: x | P119: x | Q119: x | R119: x
A120: 28255 | B120: 0 | C120: 2422 | D120: 278259 | E120: 1206 | F120: 5608 | G120: 314 | H120: 21095 | I120: 52 | J120: 0.008704120981 | K120: 4 | L120: 137.5771945 | M120: 0.008209699616 | N120: -0.0004944213645 | O120: x | P120: x | Q120: x | R120: x
A121: 28349 | B121: 22900 | C121: -1619 | D121: 174541 | E121: 2052 | F121: 6808 | G121: 1400 | H121: 16456 | I121: 60 | J121: -0.009275757558 | K121: 3 | L121: 176.8849643 | M121: -0.01028918686 | N121: -0.001013429305 | O121: x | P121: x | Q121: x | R121: x
A122: 28732 | B122: 0 | C122: 357 | D122: 80103 | E122: 538 | F122: 2560 | G122: 135 | H122: 8513 | I122: 21 | J122: 0.004456761919 | K122: 2 | L122: 68.78859724 | M122: 0.003598010097 | N122: -0.0008587518225 | O122: x | P122: x | Q122: x | R122: x
A123: 29636 | B123: 0 | C123: 7349 | D123: 853660 | E123: 6645 | F123: 25963 | G123: 2995 | H123: 84377 | I123: 259 | J123: 0.008608813813 | K123: 5 | L123: 206.3657917 | M123: 0.008367071443 | N123: -0.0002417423702 | O123: x | P123: x | Q123: x | R123: x
A124: 29953 | B124: 36540 | C124: 1625 | D124: 79779 | E124: 979 | F124: 1954 | G124: 0 | H124: 10123 | I124: 19 | J124: 0.02036876872 | K124: 2 | L124: 88.44248216 | M124: 0.01926017521 | N124: -0.001108593517 | O124: x | P124: x | Q124: x | R124: x
A125: 30052 | B125: 0 | C125: 188 | D125: 22714 | E125: 154 | F125: 1346 | G125: 6 | H125: 3000 | I125: 13 | J125: 0.008276833671 | K125: 1 | L125: 68.78859724 | M125: 0.005248366768 | N125: -0.003028466903 | O125: x | P125: x | Q125: x | R125: x
A126: 30502 | B126: 0 | C126: 5807 | D126: 814236 | E126: 7501 | F126: 26657 | G126: 4660 | H126: 83795 | I126: 210 | J126: 0.007131838926 | K126: 5 | L126: 206.3657917 | M126: 0.006878391779 | N126: -0.0002534471477 | O126: x | P126: x | Q126: x | R126: x
A127: 30650 | B127: 33460 | C127: -730 | D127: 143369 | E127: 1347 | F127: 5001 | G127: 1819 | H127: 12742 | I127: 27 | J127: -0.005091756237 | K127: 3 | L127: 176.8849643 | M127: -0.006325530375 | N127: -0.001233774138 | O127: x | P127: x | Q127: x | R127: x
A128: 31134 | B128: 12260 | C128: 1212 | D128: 112256 | E128: 965 | F128: 3682 | G128: 294 | H128: 15901 | I128: 39 | J128: 0.01079675029 | K128: 3 | L128: 176.8849643 | M128: 0.009221021911 | N128: -0.001575728374 | O128: x | P128: x | Q128: x | R128: x
A129: 31255 | B129: 26420 | C129: 3906 | D129: 445051 | E129: 2806 | F129: 13478 | G129: 600 | H129: 38161 | I129: 90 | J129: 0.008776522241 | K129: 4 | L129: 176.8849643 | M129: 0.00837907349 | N129: -0.0003974487516 | O129: x | P129: x | Q129: x | R129: x
A130: 31657 | B130: 0 | C130: 1950 | D130: 113698 | E130: 829 | F130: 2770 | G130: 150 | H130: 11851 | I130: 31 | J130: =C130/D130 -> 0.01715069746 | K130: =IF(D130/1000<INDEX(sizeV,1),1,IF(D130/1000<INDEX(sizeV,2),2,IF(D130/1000<INDEX(sizeV,3),3,IF(D130/1000<INDEX(sizeV,4),4,IF(D130/1000<INDEX(sizeV,5),5,6))))) -> 3 | L130: =IF(B130=0,salRural*T$2,salUrban*T$2)*INDEX(nHires,K130) -> 137.5771945 | M130: =(C130-L130)/D130 -> 0.01594067447 | N130: =M130-J130 -> -0.001210022995 | O130: x | P130: x | Q130: x | R130: x
A131: 31826 | B131: 0 | C131: 2290 | D131: 240696 | E131: 2039 | F131: 6489 | G131: 1480 | H131: 38219 | I131: 69 | J131: 0.009514075847 | K131: 3 | L131: 137.5771945 | M131: 0.00894249512 | N131: -0.0005715807262 | O131: x | P131: x | Q131: x | R131: x
A132: 31835 | B132: 0 | C132: 1207 | D132: 119313 | E132: 636 | F132: 4037 | G132: 300 | H132: 12904 | I132: 27 | J132: 0.01011624886 | K132: 3 | L132: 137.5771945 | M132: 0.008963170866 | N132: -0.001153077992 | O132: x | P132: x | Q132: x | R132: x
A133: 32234 | B133: 0 | C133: 722 | D133: 98643 | E133: 391 | F133: 2414 | G133: 19 | H133: 12761 | I133: 23 | J133: 0.007319323216 | K133: 2 | L133: 68.78859724 | M133: 0.006621974218 | N133: -0.0006973489983 | O133: x | P133: x | Q133: x | R133: x
A134: 32766 | B134: 19124 | C134: 210 | D134: 53631 | E134: 125 | F134: 1566 | G134: 24 | H134: 4853 | I134: 13 | J134: 0.003915645802 | K134: 2 | L134: 88.44248216 | M134: 0.002266553259 | N134: -0.001649092543 | O134: x | P134: x | Q134: x | R134: x
A135: 33147 | B135: 0 | C135: 1782 | D135: 401832 | E135: 3951 | F135: 12025 | G135: 4810 | H135: 34858 | I135: 89 | J135: 0.004434689124 | K135: 4 | L135: 137.5771945 | M135: 0.004092314215 | N135: -0.0003423749091 | O135: x | P135: x | Q135: x | R135: x
A136: 33259 | B136: 33460 | C136: -2997 | D136: 551035 | E136: 5594 | F136: 14144 | G136: 11211 | H136: 45034 | I136: 82 | J136: -0.005438855971 | K136: 5 | L136: 265.3274465 | M136: -0.005920363401 | N136: -0.0004815074296 | O136: x | P136: x | Q136: x | R136: x
A137: 33268 | B137: 0 | C137: 1487 | D137: 149256 | E137: 800 | F137: 3914 | G137: 0 | H137: 14854 | I137: 35 | J137: 0.009962748566 | K137: 3 | L137: 137.5771945 | M137: 0.009040995374 | N137: -0.0009217531924 | O137: x | P137: x | Q137: x | R137: x
A138: 33754 | B138: 0 | C138: 32 | D138: 32852 | E138: 191 | F138: 993 | G138: 271 | H138: 4510 | I138: 11 | J138: 0.0009740655059 | K138: 1 | L138: 68.78859724 | M138: -0.001119828237 | N138: -0.002093893743 | O138: x | P138: x | Q138: x | R138: x
A139: 33839 | B139: 14060 | C139: 359 | D139: 31608 | E139: 186 | F139: 769 | G139: 19 | H139: 3508 | I139: 8 | J139: 0.01135788408 | K139: 1 | L139: 88.44248216 | M139: 0.008559779734 | N139: -0.002798104346 | O139: x | P139: x | Q139: x | R139: x
A140: 33857 | B140: 0 | C140: 871 | D140: 155546 | E140: 2033 | F140: 3829 | G140: 265 | H140: 18108 | I140: 33 | J140: 0.005599629692 | K140: 3 | L140: 137.5771945 | M140: 0.004715150538 | N140: -0.0008844791539 | O140: x | P140: x | Q140: x | R140: x
A141: 34153 | B141: 33460 | C141: -5802 | D141: 413334 | E141: 3594 | F141: 24912 | G141: 2920 | H141: 22492 | I141: 190 | J141: -0.01403707413 | K141: 4 | L141: 176.8849643 | M141: -0.01446502094 | N141: -0.0004279468041 | O141: x | P141: x | Q141: x | R141: x
A142: 34359 | B142: 0 | C142: 386 | D142: 30578 | E142: 252 | F142: 650 | G142: 25 | H142: 6528 | I142: 6 | J142: 0.01262345477 | K142: 1 | L142: 68.78859724 | M142: 0.01037384403 | N142: -0.002249610741 | O142: x | P142: x | Q142: x | R142: x
A143: 34425 | B143: 0 | C143: 320 | D143: 314347 | E143: 4206 | F143: 12173 | G143: 495 | H143: 26978 | I143: 116 | J143: 0.001017983311 | K143: 4 | L143: 137.5771945 | M143: 0.0005803230364 | N143: -0.000437660275 | O143: x | P143: x | Q143: x | R143: x
A144: 34434 | B144: 0 | C144: 3807 | D144: 264492 | E144: 2013 | F144: 9407 | G144: 840 | H144: 26245 | I144: 92 | J144: 0.01439363005 | K144: 4 | L144: 137.5771945 | M144: 0.0138734737 | N144: -0.0005201563544 | O144: x | P144: x | Q144: x | R144: x
A145: 34452 | B145: 0 | C145: 1556 | D145: 107500 | E145: 1214 | F145: 3141 | G145: 110 | H145: 12207 | I145: 27 | J145: 0.0144744186 | K145: 3 | L145: 137.5771945 | M145: 0.01319463075 | N145: -0.001279787856 | O145: x | P145: x | Q145: x | R145: x
A146: 34555 | B146: 0 | C146: 2105 | D146: 212167 | E146: 2560 | F146: 4443 | G146: 145 | H146: 21847 | I146: 43 | J146: 0.009921429817 | K146: 3 | L146: 137.5771945 | M146: 0.009272991585 | N146: -0.0006484382325 | O146: x | P146: x | Q146: x | R146: x
A147: 34742 | B147: 0 | C147: 1502 | D147: 282050 | E147: 3317 | F147: 10247 | G147: 524 | H147: 24323 | I147: 92 | J147: 0.005325296933 | K147: 4 | L147: 137.5771945 | M147: 0.004837521026 | N147: -0.0004877759067 | O147: x | P147: x | Q147: x | R147: x
A148: 34836 | B148: 12060 | C148: 80 | D148: 26768 | E148: 283 | F148: 1096 | G148: 137 | H148: 1756 | I148: 11 | J148: 0.002988643156 | K148: 1 | L148: 88.44248216 | M148: -0.0003153945817 | N148: -0.003304037738 | O148: x | P148: x | Q148: x | R148: x
A149: 35057 | B149: 0 | C149: 1670 | D149: 106284 | E149: 1117 | F149: 4958 | G149: 0 | H149: 11314 | I149: 47 | J149: 0.01571261902 | K149: 3 | L149: 137.5771945 | M149: 0.01441818906 | N149: -0.001294429966 | O149: x | P149: x | Q149: x | R149: x
A150: 35646 | B150: 0 | C150: 613 | D150: 48369 | E150: 300 | F150: 1055 | G150: 25 | H150: 10884 | I150: 8 | J150: 0.01267340652 | K150: 1 | L150: 68.78859724 | M150: 0.01125124362 | N150: -0.001422162899 | O150: x | P150: x | Q150: x | R150: x
A151: 35842 | B151: 0 | C151: 2369 | D151: 225660 | E151: 2153 | F151: 3930 | G151: 1480 | H151: 16734 | I151: 38 | J151: 0.01049809448 | K151: 3 | L151: 137.5771945 | M151: 0.009888428634 | N151: -0.0006096658445 | O151: x | P151: x | Q151: x | R151: x
A152: 36456 | B152: 0 | C152: 59 | D152: 96712 | E152: 864 | F152: 2563 | G152: 1940 | H152: 9883 | I152: 19 | J152: 0.0006100587311 | K152: 2 | L152: 68.78859724 | M152: -0.0001012138849 | N152: -0.000711272616 | O152: x | P152: x | Q152: x | R152: x
A153: 36858 | B153: 28140 | C153: -2605 | D153: 158613 | E153: 548 | F153: 8178 | G153: 136 | H153: 17313 | I153: 38 | J153: -0.01642362228 | K153: 3 | L153: 176.8849643 | M153: -0.01753882068 | N153: -0.001115198403 | O153: x | P153: x | Q153: x | R153: x
A154: 36933 | B154: 0 | C154: -1088 | D154: 85496 | E154: 626 | F154: 3823 | G154: 549 | H154: 5560 | I154: 35 | J154: -0.01272574156 | K154: 2 | L154: 68.78859724 | M154: -0.01353032419 | N154: -0.0008045826382 | O154: x | P154: x | Q154: x | R154: x
A155: 37051 | B155: 0 | C155: 495 | D155: 67018 | E155: 972 | F155: 2090 | G155: 200 | H155: 7033 | I155: 21 | J155: 0.007386075383 | K155: 2 | L155: 68.78859724 | M155: 0.006359655656 | N155: -0.001026419727 | O155: x | P155: x | Q155: x | R155: x
A156: 37341 | B156: 0 | C156: 507 | D156: 33428 | E156: 400 | F156: 1276 | G156: 99 | H156: 3780 | I156: 12 | J156: 0.01516692593 | K156: 1 | L156: 68.78859724 | M156: 0.0131091122 | N156: -0.002057813726 | O156: x | P156: x | Q156: x | R156: x
A157: 37378 | B157: 49420 | C157: 2329 | D157: 165615 | E157: 1003 | F157: 4680 | G157: 780 | H157: 16756 | I157: 41 | J157: 0.01406273586 | K157: 3 | L157: 176.8849643 | M157: 0.01299468669 | N157: -0.001068049176 | O157: x | P157: x | Q157: x | R157: x
A158: 37659 | B158: 0 | C158: 619 | D158: 40834 | E158: 269 | F158: 1363 | G158: 145 | H158: 4258 | I158: 12 | J158: 0.01515893618 | K158: 1 | L158: 68.78859724 | M158: 0.01347434498 | N158: -0.001684591204 | O158: x | P158: x | Q158: x | R158: x
A159: 37743 | B159: 11540 | C159: 687 | D159: 95396 | E159: 642 | F159: 2620 | G159: 60 | H159: 9310 | I159: 22 | J159: 0.007201559814 | K159: 2 | L159: 88.44248216 | M159: 0.006274450898 | N159: -0.0009271089161 | O159: x | P159: x | Q159: x | R159: x
A160: 37949 | B160: 16580 | C160: 4931 | D160: 213981 | E160: 1302 | F160: 3652 | G160: 400 | H160: 21148 | I160: 41 | J160: 0.02304410205 | K160: 3 | L160: 176.8849643 | M160: 0.0222174634 | N160: -0.000826638647 | O160: x | P160: x | Q160: x | R160: x
A161: 38535 | B161: 16974 | C161: -7117 | D161: 354677 | E161: 2793 | F161: 11413 | G161: 9012 | H161: 10938 | I161: 95 | J161: -0.02006614469 | K161: 4 | L161: 176.8849643 | M161: -0.02056486596 | N161: -0.0004987212713 | O161: x | P161: x | Q161: x | R161: x
A162: 38740 | B162: 14020 | C162: 1035 | D162: 184281 | E162: 2258 | F162: 5562 | G162: 560 | H162: 17240 | I162: 63 | J162: 0.005616422746 | K162: 3 | L162: 176.8849643 | M162: 0.004656557299 | N162: -0.0009598654464 | O162: x | P162: x | Q162: x | R162: x
A163: 39327 | B163: 0 | C163: 4725 | D163: 412584 | E163: 1403 | F163: 8271 | G163: 1127 | H163: 71825 | I163: 88 | J163: 0.01145221337 | K163: 4 | L163: 137.5771945 | M163: 0.0111187608 | N163: -0.0003334525684 | O163: x | P163: x | Q163: x | R163: x
A164: 39756 | B164: 36420 | C164: 6322 | D164: 483069 | E164: 2467 | F164: 14131 | G164: 1230 | H164: 39194 | I164: 121 | J164: 0.01308715732 | K164: 4 | L164: 176.8849643 | M164: 0.01272098817 | N164: -0.0003661691484 | O164: x | P164: x | Q164: x | R164: x
A165: 40033 | B165: 25620 | C165: 282 | D165: 75473 | E165: 557 | F165: 2905 | G165: -296 | H165: 8158 | I165: 22 | J165: 0.003736435546 | K165: 2 | L165: 88.44248216 | M165: 0.002564592872 | N165: -0.001171842674 | O165: x | P165: x | Q165: x | R165: x
A166: 40350 | B166: 36540 | C166: 295 | D166: 47444 | E166: 407 | F166: 1316 | G166: 10 | H166: 7353 | I166: 8 | J166: 0.006217856842 | K166: 1 | L166: 88.44248216 | M166: 0.00435371212 | N166: -0.001864144721 | O166: x | P166: x | Q166: x | R166: x
A167: 40707 | B167: 0 | C167: 949 | D167: 267468 | E167: 1818 | F167: 9334 | G167: 604 | H167: 21423 | I167: 92 | J167: 0.003548087996 | K167: 4 | L167: 137.5771945 | M167: 0.003033719195 | N167: -0.000514368801 | O167: x | P167: x | Q167: x | R167: x
A168: 40855 | B168: 29100 | C168: 1099 | D168: 77540 | E168: 1217 | F168: 1653 | G168: 90 | H168: 6893 | I168: 14 | J168: 0.01417332989 | K168: 2 | L168: 88.44248216 | M168: 0.01303272528 | N168: -0.001140604619 | O168: x | P168: x | Q168: x | R168: x
A169: 41245 | B169: 27500 | C169: 407 | D169: 42332 | E169: 372 | F169: 983 | G169: 50 | H169: 4451 | I169: 10 | J169: 0.009614476046 | K169: 1 | L169: 88.44248216 | M169: 0.007525217751 | N169: -0.002089258295 | O169: x | P169: x | Q169: x | R169: x
A170: 41553 | B170: 0 | C170: 1174 | D170: 89263 | E170: 861 | F170: 2352 | G170: 0 | H170: 14203 | I170: 25 | J170: 0.01315214591 | K170: 2 | L170: 68.78859724 | M170: 0.01238151757 | N170: -0.0007706283369 | O170: x | P170: x | Q170: x | R170: x
A171: 41629 | B171: 0 | C171: 1602 | D171: 164519 | E171: 1443 | F171: 5344 | G171: 1063 | H171: 17677 | I171: 52 | J171: 0.00973747713 | K171: 3 | L171: 137.5771945 | M171: 0.008901238188 | N171: -0.0008362389419 | O171: x | P171: x | Q171: x | R171: x
A172: 41759 | B172: 0 | C172: 526 | D172: 48874 | E172: 369 | F172: 903 | G172: 175 | H172: 5151 | I172: 9 | J172: 0.01076236854 | K172: 1 | L172: 68.78859724 | M172: 0.009354900413 | N172: -0.001407468127 | O172: x | P172: x | Q172: x | R172: x
A173: 41825 | B173: 13644 | C173: 1246 | D173: 145903 | E173: 281 | F173: 3769 | G173: 176 | H173: 18425 | I173: 34 | J173: 0.008539920358 | K173: 3 | L173: 176.8849643 | M173: 0.007327574044 | N173: -0.001212346315 | O173: x | P173: x | Q173: x | R173: x
A174: 41937 | B174: 0 | C174: 502 | D174: 63873 | E174: 503 | F174: 1540 | G174: 83 | H174: 5835 | I174: 16 | J174: 0.007859345889 | K174: 2 | L174: 68.78859724 | M174: 0.006782386967 | N174: -0.001076958922 | O174: x | P174: x | Q174: x | R174: x
A175: 41955 | B175: 0 | C175: 146 | D175: 36759 | E175: 264 | F175: 1016 | G175: 0 | H175: 3290 | I175: 9 | J175: 0.003971816426 | K175: 1 | L175: 68.78859724 | M175: 0.002100476149 | N175: -0.001871340277 | O175: x | P175: x | Q175: x | R175: x
A176: 42037 | B176: 0 | C176: 363 | D176: 62582 | E176: 521 | F176: 2701 | G176: 12 | H176: 8797 | I176: 31 | J176: 0.005800389888 | K176: 2 | L176: 68.78859724 | M176: 0.004701214451 | N176: -0.001099175438 | O176: x | P176: x | Q176: x | R176: x
A177: 42055 | B177: 0 | C177: 370 | D177: 61264 | E177: 500 | F177: 2492 | G177: 70 | H177: 7636 | I177: 28 | J177: 0.006039435884 | K177: 2 | L177: 68.78859724 | M177: 0.004916613391 | N177: -0.001122822493 | O177: x | P177: x | Q177: x | R177: x
A178: 42354 | B178: 0 | C178: 2241 | D178: 126415 | E178: 500 | F178: 3370 | G178: 69 | H178: 17028 | I178: 34 | J178: 0.01772732666 | K178: 3 | L178: 137.5771945 | M178: 0.01663902864 | N178: -0.001088298022 | O178: x | P178: x | Q178: x | R178: x
A179: 42448 | B179: 0 | C179: 10250 | D179: 676265 | E179: 9674 | F179: 15593 | G179: 1696 | H179: 79566 | I179: 146 | J179: 0.01515678026 | K179: 5 | L179: 206.3657917 | M179: 0.01485162504 | N179: -0.0003051552154 | O179: x | P179: x | Q179: x | R179: x
A180: 42457 | B180: 0 | C180: 249 | D180: 29189 | E180: 106 | F180: 755 | G180: 15 | H180: 5149 | I180: 8 | J180: 0.008530610847 | K180: 1 | L180: 68.78859724 | M180: 0.006173949185 | N180: -0.002356661662 | O180: x | P180: x | Q180: x | R180: x
A181: 43052 | B181: 0 | C181: 861 | D181: 83568 | E181: 886 | F181: 2968 | G181: 0 | H181: 12272 | I181: 18 | J181: 0.01030298679 | K181: 2 | L181: 68.78859724 | M181: 0.009479841599 | N181: -0.00082314519 | O181: x | P181: x | Q181: x | R181: x
A182: 43351 | B182: 31740 | C182: 85 | D182: 12512 | E182: 70 | F182: 540 | G182: 33 | H182: 1818 | I182: 6 | J182: 0.006793478261 | K182: 1 | L182: 88.44248216 | M182: -0.0002751344441 | N182: -0.007068612705 | O182: x | P182: x | Q182: x | R182: x
A183: 43454 | B183: 24220 | C183: 243 | D183: 25092 | E183: 81 | F183: 707 | G183: 1 | H183: 3388 | I183: 7 | J183: 0.009684361549 | K183: 1 | L183: 88.44248216 | M183: 0.006159633263 | N183: -0.003524728286 | O183: x | P183: x | Q183: x | R183: x
A184: 43744 | B184: 31540 | C184: -231 | D184: 81621 | E184: 1174 | F184: 2725 | G184: 0 | H184: 11202 | I184: 15 | J184: -0.002830154004 | K184: 2 | L184: 88.44248216 | M184: -0.003913729091 | N184: -0.001083575087 | O184: x | P184: x | Q184: x | R184: x
A185: 43856 | B185: 20260 | C185: 124 | D185: 49874 | E185: 286 | F185: 1560 | G185: 0 | H185: 4954 | I185: 16 | J185: 0.002486265389 | K185: 1 | L185: 88.44248216 | M185: 0.0007129469831 | N185: -0.001773318406 | O185: x | P185: x | Q185: x | R185: x
A186: 43959 | B186: 13140 | C186: 1148 | D186: 124071 | E186: 646 | F186: 3875 | G186: 150 | H186: 14122 | I186: 34 | J186: 0.009252766561 | K186: 3 | L186: 176.8849643 | M186: 0.007827091227 | N186: -0.001425675334 | O186: x | P186: x | Q186: x | R186: x
A187: 44040 | B187: 0 | C187: 1917 | D187: 294801 | E187: 3058 | F187: 5947 | G187: 776 | H187: 29469 | I187: 54 | J187: 0.006502691646 | K187: 4 | L187: 137.5771945 | M187: 0.006036013465 | N187: -0.0004666781811 | O187: x | P187: x | Q187: x | R187: x
A188: 44433 | B188: 33124 | C188: -5078 | D188: 269458 | E188: 3101 | F188: 12666 | G188: 1050 | H188: 24079 | I188: 72 | J188: -0.01884523748 | K188: 4 | L188: 176.8849643 | M188: -0.01950168473 | N188: -0.0006564472546 | O188: x | P188: x | Q188: x | R188: x
A189: 44741 | B189: 26900 | C189: 1441 | D189: 355964 | E189: 2170 | F189: 13590 | G189: 2155 | H189: 32314 | I189: 131 | J189: 0.004048162174 | K189: 4 | L189: 176.8849643 | M189: 0.003551244046 | N189: -0.0004969181275 | O189: x | P189: x | Q189: x | R189: x
A190: 44750 | B190: 0 | C190: 1006 | D190: 171196 | E190: 3219 | F190: 4810 | G190: 296 | H190: 15840 | I190: 53 | J190: 0.005876305521 | K190: 3 | L190: 137.5771945 | M190: 0.005072681637 | N190: -0.0008036238842 | O190: x | P190: x | Q190: x | R190: x
A191: 44929 | B191: 0 | C191: 757 | D191: 137568 | E191: 1095 | F191: 4500 | G191: 445 | H191: 17244 | I191: 64 | J191: 0.005502733194 | K191: 3 | L191: 137.5771945 | M191: 0.004502666358 | N191: -0.001000066836 | O191: x | P191: x | Q191: x | R191: x
A192: 45038 | B192: 0 | C192: 1529 | D192: 136984 | E192: 1799 | F192: 1969 | G192: 879 | H192: 13020 | I192: 17 | J192: 0.01116188752 | K192: 3 | L192: 137.5771945 | M192: 0.01015755713 | N192: -0.001004330392 | O192: x | P192: x | Q192: x | R192: x
A193: 45047 | B193: 0 | C193: 2086 | D193: 119071 | E193: 728 | F193: 4298 | G193: 464 | H193: 17844 | I193: 40 | J193: 0.01751895928 | K193: 3 | L193: 137.5771945 | M193: 0.01636353777 | N193: -0.001155421509 | O193: x | P193: x | Q193: x | R193: x
A194: 45056 | B194: 0 | C194: 546 | D194: 63369 | E194: 309 | F194: 1642 | G194: 0 | H194: 8779 | I194: 12 | J194: =C194/D194 -> 0.00861620035 | K194: =IF(D194/1000<INDEX(sizeV,1),1,IF(D194/1000<INDEX(sizeV,2),2,IF(D194/1000<INDEX(sizeV,3),3,IF(D194/1000<INDEX(sizeV,4),4,IF(D194/1000<INDEX(sizeV,5),5,6))))) -> 2 | L194: =IF(B194=0,salRural*T$2,salUrban*T$2)*INDEX(nHires,K194) -> 68.78859724 | M194: =(C194-L194)/D194 -> 0.007530675926 | N194: =M194-J194 -> -0.001085524424 | O194: x | P194: x | Q194: x | R194: x
A195: 45430 | B195: 0 | C195: 699 | D195: 119081 | E195: 1369 | F195: 2988 | G195: 339 | H195: 15036 | I195: 23 | J195: 0.005869954065 | K195: 3 | L195: 137.5771945 | M195: 0.004714629584 | N195: -0.001155324481 | O195: x | P195: x | Q195: x | R195: x
A196: 45458 | B196: 48620 | C196: -38 | D196: 12624 | E196: 61 | F196: 482 | G196: 60 | H196: 2010 | I196: 4 | J196: -0.003010139417 | K196: 1 | L196: 88.44248216 | M196: -0.01001603946 | N196: -0.007005900045 | O196: x | P196: x | Q196: x | R196: x
A197: 45551 | B197: 0 | C197: 7736 | D197: 678667 | E197: 5884 | F197: 22486 | G197: 948 | H197: 66363 | I197: 180 | J197: 0.01139881562 | K197: 5 | L197: 206.3657917 | M197: 0.01109474044 | N197: -0.0003040751823 | O197: x | P197: x | Q197: x | R197: x
A198: 45560 | B198: 41700 | C198: 11895 | D198: 949387 | E198: 3116 | F198: 29380 | G198: 714 | H198: 78823 | I198: 222 | J198: 0.01252913722 | K198: 5 | L198: 265.3274465 | M198: 0.01224966484 | N198: -0.0002794723822 | O198: x | P198: x | Q198: x | R198: x
A199: 46053 | B199: 0 | C199: 1030 | D199: 182478 | E199: 1595 | F199: 5851 | G199: 798 | H199: 21759 | I199: 46 | J199: 0.005644516051 | K199: 3 | L199: 137.5771945 | M199: 0.004890577525 | N199: -0.0007539385267 | O199: x | P199: x | Q199: x | R199: x
A200: 46941 | B200: 0 | C200: 1752 | D200: 116272 | E200: 892 | F200: 3007 | G200: 160 | H200: 18910 | I200: 30 | J200: 0.01506811614 | K200: 3 | L200: 137.5771945 | M200: 0.01388488033 | N200: -0.001183235813 | O200: x | P200: x | Q200: x | R200: x
... 5329 more rows

Sheet 2010 data (hidden)
A1: id.rssd | B1: msa.cd | C1: nt.inc | D1: assets | E1: int.exp | F1: nonint.exp | G1: prov.exp | H1: equity | I1: fte | J1: roa | K1: asset.cohort | L1: addl reg exp | M1: new.roa | N1: delta | O1: newly unprof | P1: roe | Q1: new.roe | R1: delta | T1: 2010
A2: 37 | B2: 0 | C2: 613 | D2: 83515 | E2: 1559 | F2: 2326 | G2: 300 | H2: 16828 | I2: 21 | J2: =C2/D2 -> 0.007339998803 | K2: =IF(D2/1000<INDEX(sizeV,1),1,IF(D2/1000<INDEX(sizeV,2),2,IF(D2/1000<INDEX(sizeV,3),3,IF(D2/1000<INDEX(sizeV,4),4,IF(D2/1000<INDEX(sizeV,5),5,6))))) -> 2 | L2: =IF(B2=0,salRural*T$2,salUrban*T$2)*INDEX(nHires,K2) -> 66.76888599 | M2: =(C2-L2)/D2 -> 0.006540515045 | N2: =M2-J2 -> -0.0007994837572 | O2: x | P2: x | Q2: x | R2: x | T2: =VLOOKUP(T1,cpiAdj,2,FALSE) -> 0.9538412284 | W2: Asset | AC2: Change in ROA
A3: 242 | B3: 0 | C3: 525 | D3: 32756 | E3: 328 | F3: 921 | G3: 13 | H3: 4311 | I3: 13 | J3: 0.016027598 | K3: 1 | L3: 66.76888599 | M3: 0.01398922683 | N3: -0.002038371168 | O3: x | P3: x | Q3: x | R3: x | V3: Size | W3: Size Max | X3: Addl | Y3: # of | AA3: Median | AB3: x | AC3: 25th pctile | AD3: 50th pctile | AE3: 75th pctile | AF3: Avg | AG3: Original | AH3: Newly | AJ3: Original | AK3: After Change
A4: 354 | B4: 0 | C4: 18 | D4: 9876 | E4: 62 | F4: 338 | G4: 0 | H4: 995 | I4: 4 | J4: 0.001822600243 | K4: 1 | L4: 66.76888599 | M4: -0.004938121303 | N4: -0.006760721546 | O4: x | P4: x | Q4: x | R4: x | V4: Quintile | W4: ($MM) | X4: Hires | Y4: Banks | Z4: % | AA4: FTEs | AB4: x | AC4: (bps) | AD4: (bps) | AE4: (bps) | AF4: (bps) | AG4: Unprof | AH4: Unprof | AI4: Difference | AJ4: ROA < 40 | AK4: ROA < 40 | AL4: Difference
A5: 457 | B5: 0 | C5: 534 | D5: 36710 | E5: 645 | F5: 923 | G5: 393 | H5: 3411 | I5: 9 | J5: 0.01454644511 | K5: 1 | L5: 66.76888599 | M5: 0.01272762501 | N5: -0.001818820103 | O5: x | P5: x | Q5: x | R5: x | U5: < $50M | V5: 1 | W5: x | X5: x | Y5: x | Z5: x | AA5: x | AB5: x | AC5: =PERCENTILE(IF($K$2:$K$7000=$V5,$N$2:$N$7000),0.25)*10000 -> -30.94090457 | AD5: =PERCENTILE(IF($K$2:$K$7000=$V5,$N$2:$N$7000),0.5)*10000 -> -22.04685025 | AE5: =PERCENTILE(IF($K$2:$K$7000=$V5,$N$2:$N$7000),0.75)*10000 -> -17.59275298 | AF5: =AVERAGE(IF($K$2:$K$7000=$V5,$N$2:$N$7000))*10000 -> -29.17428373 | AG5: =SUM(IF($K$2:$K$7000=$V5,IF($J$2:$J$7000<0,1,0))) -> 154 | AH5: =SUM(IF($K$2:$K$7000=$V5,IF($M$2:$M$7000<0,1,0))) -> 284 | AI5: =IF(INDEX(sizeV,V5)>0,AH5-AG5) -> 130 | AJ5: =SUM(IF($K$2:$K$7000=$V5,IF($J$2:$J$7000<0.004,1,0))) -> 344 | AK5: =SUM(IF($K$2:$K$7000=$V5,IF($M$2:$M$7000<0.004,1,0))) -> 492 | AL5: =IF(INDEX(sizeV,V5)>0,AK5-AJ5) -> 148
A6: 505 | B6: 10580 | C6: 2514 | D6: 385348 | E6: 3913 | F6: 11003 | G6: 655 | H6: 29036 | I6: 109 | J6: 0.006523973136 | K6: 4 | L6: 171.6914211 | M6: 0.006078424123 | N6: -0.0004455490131 | O6: x | P6: x | Q6: x | R6: x | U6: $50M - $100M | V6: 2 | W6: x | X6: x | Y6: x | Z6: x | AA6: x | AB6: x | AC6: =PERCENTILE(IF($K$2:$K$7000=$V6,$N$2:$N$7000),0.25)*10000 -> -12.13315486 | AD6: =PERCENTILE(IF($K$2:$K$7000=$V6,$N$2:$N$7000),0.5)*10000 -> -10.15681736 | AE6: =PERCENTILE(IF($K$2:$K$7000=$V6,$N$2:$N$7000),0.75)*10000 -> -8.627883028 | AF6: =AVERAGE(IF($K$2:$K$7000=$V6,$N$2:$N$7000))*10000 -> -10.47758456 | AG6: =SUM(IF($K$2:$K$7000=$V6,IF($J$2:$J$7000<0,1,0))) -> 235 | AH6: =SUM(IF($K$2:$K$7000=$V6,IF($M$2:$M$7000<0,1,0))) -> 273 | AI6: =IF(INDEX(sizeV,V6)>0,AH6-AG6) -> 38 | AJ6: =SUM(IF($K$2:$K$7000=$V6,IF($J$2:$J$7000<0.004,1,0))) -> 405 | AK6: =SUM(IF($K$2:$K$7000=$V6,IF($M$2:$M$7000<0.004,1,0))) -> 481 | AL6: =IF(INDEX(sizeV,V6)>0,AK6-AJ6) -> 76
A7: 1155 | B7: 0 | C7: 283 | D7: 202751 | E7: 2866 | F7: 5717 | G7: 3703 | H7: 17630 | I7: 53 | J7: 0.001395800761 | K7: 3 | L7: 133.537772 | M7: 0.0007371713483 | N7: -0.0006586294123 | O7: x | P7: x | Q7: x | R7: x | U7: $100M - $250M | V7: 3 | W7: x | X7: x | Y7: x | Z7: x | AA7: x | AB7: x | AC7: =PERCENTILE(IF($K$2:$K$7000=$V7,$N$2:$N$7000),0.25)*10000 -> -11.88824697 | AD7: =PERCENTILE(IF($K$2:$K$7000=$V7,$N$2:$N$7000),0.5)*10000 -> -9.748120762 | AE7: =PERCENTILE(IF($K$2:$K$7000=$V7,$N$2:$N$7000),0.75)*10000 -> -7.742498641 | AF7: =AVERAGE(IF($K$2:$K$7000=$V7,$N$2:$N$7000))*10000 -> -10.01863937 | AG7: =SUM(IF($K$2:$K$7000=$V7,IF($J$2:$J$7000<0,1,0))) -> 386 | AH7: =SUM(IF($K$2:$K$7000=$V7,IF($M$2:$M$7000<0,1,0))) -> 441 | AI7: =IF(INDEX(sizeV,V7)>0,AH7-AG7) -> 55 | AJ7: =SUM(IF($K$2:$K$7000=$V7,IF($J$2:$J$7000<0.004,1,0))) -> 678 | AK7: =SUM(IF($K$2:$K$7000=$V7,IF($M$2:$M$7000<0.004,1,0))) -> 762 | AL7: =IF(INDEX(sizeV,V7)>0,AK7-AJ7) -> 84
A8: 1351 | B8: 0 | C8: 2301 | D8: 153006 | E8: 2710 | F8: 2493 | G8: 696 | H8: 20544 | I8: 30 | J8: 0.01503862594 | K8: 3 | L8: 133.537772 | M8: 0.01416586427 | N8: -0.0008727616693 | O8: x | P8: x | Q8: x | R8: x | U8: $250M - $500M | V8: 4 | W8: x | X8: x | Y8: x | Z8: x | AA8: x | AB8: x | AC8: =PERCENTILE(IF($K$2:$K$7000=$V8,$N$2:$N$7000),0.25)*10000 -> -5.399483471 | AD8: =PERCENTILE(IF($K$2:$K$7000=$V8,$N$2:$N$7000),0.5)*10000 -> -4.631746468 | AE8: =PERCENTILE(IF($K$2:$K$7000=$V8,$N$2:$N$7000),0.75)*10000 -> -3.871781411 | AF8: =AVERAGE(IF($K$2:$K$7000=$V8,$N$2:$N$7000))*10000 -> -4.691664491 | AG8: =SUM(IF($K$2:$K$7000=$V8,IF($J$2:$J$7000<0,1,0))) -> 207 | AH8: =SUM(IF($K$2:$K$7000=$V8,IF($M$2:$M$7000<0,1,0))) -> 221 | AI8: =IF(INDEX(sizeV,V8)>0,AH8-AG8) -> 14 | AJ8: =SUM(IF($K$2:$K$7000=$V8,IF($J$2:$J$7000<0.004,1,0))) -> 345 | AK8: =SUM(IF($K$2:$K$7000=$V8,IF($M$2:$M$7000<0.004,1,0))) -> 362 | AL8: =IF(INDEX(sizeV,V8)>0,AK8-AJ8) -> 17
A9: 1454 | B9: 16220 | C9: 8490 | D9: 482306 | E9: 1794 | F9: 15810 | G9: 600 | H9: 46628 | I9: 148 | J9: 0.01760293258 | K9: 4 | L9: 171.6914211 | M9: 0.01724695231 | N9: -0.0003559802721 | O9: x | P9: x | Q9: x | R9: x | U9: $500M - $1B | V9: 5 | W9: x | X9: x | Y9: x | Z9: x | AA9: x | AB9: x | AC9: =PERCENTILE(IF($K$2:$K$7000=$V9,$N$2:$N$7000),0.25)*10000 -> -4.306201588 | AD9: =PERCENTILE(IF($K$2:$K$7000=$V9,$N$2:$N$7000),0.5)*10000 -> -3.529153495 | AE9: =PERCENTILE(IF($K$2:$K$7000=$V9,$N$2:$N$7000),0.75)*10000 -> -2.99090183 | AF9: =AVERAGE(IF($K$2:$K$7000=$V9,$N$2:$N$7000))*10000 -> -3.620672823 | AG9: =SUM(IF($K$2:$K$7000=$V9,IF($J$2:$J$7000<0,1,0))) -> 123 | AH9: =SUM(IF($K$2:$K$7000=$V9,IF($M$2:$M$7000<0,1,0))) -> 129 | AI9: =IF(INDEX(sizeV,V9)>0,AH9-AG9) -> 6 | AJ9: =SUM(IF($K$2:$K$7000=$V9,IF($J$2:$J$7000<0.004,1,0))) -> 209 | AK9: =SUM(IF($K$2:$K$7000=$V9,IF($M$2:$M$7000<0.004,1,0))) -> 215 | AL9: =IF(INDEX(sizeV,V9)>0,AK9-AJ9) -> 6
A10: 1557 | B10: 0 | C10: 426 | D10: 55127 | E10: 567 | F10: 1184 | G10: 100 | H10: 5296 | I10: 12 | J10: 0.00772761079 | K10: 2 | L10: 66.76888599 | M10: 0.006516427776 | N10: -0.001211183014 | O10: x | P10: x | Q10: x | R10: x
A11: 1669 | B11: 0 | C11: 3020 | D11: 245535 | E11: 1976 | F11: 5250 | G11: 761 | H11: 42531 | I11: 57 | J11: 0.01229967214 | K11: 3 | L11: 133.537772 | M11: 0.01175580764 | N11: -0.000543864508 | O11: x | P11: x | Q11: x | R11: x
A12: 1829 | B12: 38300 | C12: 3095 | D12: 408741 | E12: 5495 | F12: 11026 | G12: 690 | H12: 41280 | I12: 90 | J12: 0.007572032167 | K12: 4 | L12: 171.6914211 | M12: 0.007151982744 | N12: -0.0004200494228 | O12: x | P12: x | Q12: x | R12: x | W12: Percentiles of ROA (before)
A13: 1856 | B13: 0 | C13: -894 | D13: 166728 | E13: 5777 | F13: 1976 | G13: 555 | H13: 18809 | I13: 8 | J13: -0.005362026774 | K13: 3 | L13: 133.537772 | M13: -0.006162958663 | N13: -0.0008009318889 | O13: x | P13: x | Q13: x | R13: x | V13: Cohort | W13: 25 | X13: 50 | Y13: 75
A14: 2040 | B14: 0 | C14: 775 | D14: 205240 | E14: 3904 | F14: 5127 | G14: 2013 | H14: 19657 | I14: 47 | J14: 0.003776067043 | K14: 3 | L14: 133.537772 | M14: 0.003125425005 | N14: -0.0006506420384 | O14: x | P14: x | Q14: x | R14: x | V14: 1 | W14: =PERCENTILE(IF($K$2:$K$7000=$V14,$J$2:$J$7000),W$13/100) -> 0.001797342814 | X14: =PERCENTILE(IF($K$2:$K$7000=$V14,$J$2:$J$7000),X$13/100) -> 0.00594048712 | Y14: =PERCENTILE(IF($K$2:$K$7000=$V14,$J$2:$J$7000),Y$13/100) -> 0.01016300663
A15: 2161 | B15: 0 | C15: 2190 | D15: 128312 | E15: 1010 | F15: 3583 | G15: 40 | H15: 13026 | I15: 33 | J15: 0.01706777231 | K15: 3 | L15: 133.537772 | M15: 0.01602704523 | N15: -0.001040727071 | O15: x | P15: x | Q15: x | R15: x | V15: 2 | W15: =PERCENTILE(IF($K$2:$K$7000=$V15,$J$2:$J$7000),W$13/100) -> 0.002116591928 | X15: =PERCENTILE(IF($K$2:$K$7000=$V15,$J$2:$J$7000),X$13/100) -> 0.007357152297 | Y15: =PERCENTILE(IF($K$2:$K$7000=$V15,$J$2:$J$7000),Y$13/100) -> 0.01145899949
A16: 2554 | B16: 0 | C16: 110 | D16: 11009 | E16: 92 | F16: 267 | G16: 28 | H16: 1119 | I16: 4 | J16: 0.009991824871 | K16: 1 | L16: 66.76888599 | M16: 0.003926888365 | N16: -0.006064936505 | O16: x | P16: x | Q16: x | R16: x | V16: 3 | W16: =PERCENTILE(IF($K$2:$K$7000=$V16,$J$2:$J$7000),W$13/100) -> 0.0019891298 | X16: =PERCENTILE(IF($K$2:$K$7000=$V16,$J$2:$J$7000),X$13/100) -> 0.007088230986 | Y16: =PERCENTILE(IF($K$2:$K$7000=$V16,$J$2:$J$7000),Y$13/100) -> 0.01159659823
A17: 2732 | B17: 16974 | C17: 3352 | D17: 519751 | E17: 3581 | F17: 10784 | G17: 4000 | H17: 73967 | I17: 100 | J17: 0.006449242041 | K17: 5 | L17: 257.5371317 | M17: 0.005953741057 | N17: -0.0004955009835 | O17: x | P17: x | Q17: x | R17: x | V17: 4 | W17: =PERCENTILE(IF($K$2:$K$7000=$V17,$J$2:$J$7000),W$13/100) -> 0.001068833436 | X17: =PERCENTILE(IF($K$2:$K$7000=$V17,$J$2:$J$7000),X$13/100) -> 0.006513305353 | Y17: =PERCENTILE(IF($K$2:$K$7000=$V17,$J$2:$J$7000),Y$13/100) -> 0.01117028735
A18: 2750 | B18: 0 | C18: 469 | D18: 55375 | E18: 957 | F18: 1313 | G18: 243 | H18: 5154 | I18: 11 | J18: 0.008469525959 | K18: 2 | L18: 66.76888599 | M18: 0.007263767296 | N18: -0.001205758663 | O18: x | P18: x | Q18: x | R18: x | V18: 5 | W18: =PERCENTILE(IF($K$2:$K$7000=$V18,$J$2:$J$7000),W$13/100) -> 0.0006101402731 | X18: =PERCENTILE(IF($K$2:$K$7000=$V18,$J$2:$J$7000),X$13/100) -> 0.005987968831 | Y18: =PERCENTILE(IF($K$2:$K$7000=$V18,$J$2:$J$7000),Y$13/100) -> 0.01018750854
A19: 3252 | B19: 0 | C19: 3221 | D19: 150409 | E19: 1191 | F19: 3189 | G19: 750 | H19: 18395 | I19: 34 | J19: 0.02141494193 | K19: 3 | L19: 133.537772 | M19: 0.02052711093 | N19: -0.000887830994 | O19: x | P19: x | Q19: x | R19: x
A20: 3458 | B20: 0 | C20: 134 | D20: 30937 | E20: 380 | F20: 697 | G20: 60 | H20: 3039 | I20: 11 | J20: 0.004331383133 | K20: 1 | L20: 66.76888599 | M20: 0.002173162039 | N20: -0.002158221094 | O20: x | P20: x | Q20: x | R20: x
A21: 3720 | B21: 0 | C21: 2019 | D21: 189426 | E21: 1549 | F21: 6357 | G21: 212 | H21: 27082 | I21: 56 | J21: 0.01065851573 | K21: 3 | L21: 133.537772 | M21: 0.009953555626 | N21: -0.0007049601004 | O21: x | P21: x | Q21: x | R21: x | W21: Percentiles of ROA (after)
A22: 3953 | B22: 36420 | C22: -905 | D22: 121505 | E22: 1059 | F22: 4993 | G22: 2940 | H22: 8599 | I22: 39 | J22: -0.007448253158 | K22: 3 | L22: 171.6914211 | M22: -0.008861293125 | N22: -0.001413039966 | O22: x | P22: x | Q22: x | R22: x | V22: Cohort | W22: 25 | X22: 50 | Y22: 75
A23: 4138 | B23: 0 | C23: -313 | D23: 193679 | E23: 2310 | F23: 7593 | G23: 1557 | H23: 17291 | I23: 57 | J23: -0.001616076085 | K23: 3 | L23: 133.537772 | M23: -0.002305555956 | N23: -0.0006894798712 | O23: x | P23: x | Q23: x | R23: x | V23: 1 | W23: =PERCENTILE(IF($K$2:$K$7000=$V23,$M$2:$M$7000),W$13/100) -> -0.001158676829 | X23: =PERCENTILE(IF($K$2:$K$7000=$V23,$M$2:$M$7000),X$13/100) -> 0.003313113807 | Y23: =PERCENTILE(IF($K$2:$K$7000=$V23,$M$2:$M$7000),Y$13/100) -> 0.007915637371
A24: 4156 | B24: 0 | C24: 1371 | D24: 184816 | E24: 2262 | F24: 6805 | G24: 1137 | H24: 18876 | I24: 62 | J24: 0.007418188901 | K24: 3 | L24: 133.537772 | M24: 0.006695644468 | N24: -0.0007225444332 | O24: x | P24: x | Q24: x | R24: x | V24: 2 | W24: =PERCENTILE(IF($K$2:$K$7000=$V24,$M$2:$M$7000),W$13/100) -> 0.0009324130834 | X24: =PERCENTILE(IF($K$2:$K$7000=$V24,$M$2:$M$7000),X$13/100) -> 0.006306006782 | Y24: =PERCENTILE(IF($K$2:$K$7000=$V24,$M$2:$M$7000),Y$13/100) -> 0.01043327483
A25: 4231 | B25: 0 | C25: 262 | D25: 128713 | E25: 2445 | F25: 2935 | G25: 1001 | H25: 13825 | I25: 33 | J25: 0.002035536426 | K25: 3 | L25: 133.537772 | M25: 0.0009980516966 | N25: -0.001037484729 | O25: x | P25: x | Q25: x | R25: x | V25: 3 | W25: =PERCENTILE(IF($K$2:$K$7000=$V25,$M$2:$M$7000),W$13/100) -> 0.000999105466 | X25: =PERCENTILE(IF($K$2:$K$7000=$V25,$M$2:$M$7000),X$13/100) -> 0.006136017366 | Y25: =PERCENTILE(IF($K$2:$K$7000=$V25,$M$2:$M$7000),Y$13/100) -> 0.01055106948
A26: 4437 | B26: 0 | C26: 1598 | D26: 260907 | E26: 3900 | F26: 7067 | G26: 1340 | H26: 25456 | I26: 58 | J26: 0.00612478776 | K26: 4 | L26: 133.537772 | M26: 0.005612966413 | N26: -0.0005118213462 | O26: x | P26: x | Q26: x | R26: x | V26: 4 | W26: =PERCENTILE(IF($K$2:$K$7000=$V26,$M$2:$M$7000),W$13/100) -> 0.0005274695835 | X26: =PERCENTILE(IF($K$2:$K$7000=$V26,$M$2:$M$7000),X$13/100) -> 0.006056062133 | Y26: =PERCENTILE(IF($K$2:$K$7000=$V26,$M$2:$M$7000),Y$13/100) -> 0.01076272279
A27: 4839 | B27: 16974 | C27: 2840 | D27: 308090 | E27: 4334 | F27: 11582 | G27: 1550 | H27: 29887 | I27: 89 | J27: 0.009218085624 | K27: 4 | L27: 171.6914211 | M27: 0.008660808786 | N27: -0.0005572768383 | O27: x | P27: x | Q27: x | R27: x | V27: 5 | W27: =PERCENTILE(IF($K$2:$K$7000=$V27,$M$2:$M$7000),W$13/100) -> 0.0002163290888 | X27: =PERCENTILE(IF($K$2:$K$7000=$V27,$M$2:$M$7000),X$13/100) -> 0.005549864875 | Y27: =PERCENTILE(IF($K$2:$K$7000=$V27,$M$2:$M$7000),Y$13/100) -> 0.00987367534
A28: 5069 | B28: 31084 | C28: 34340 | D28: 491278 | E28: 6009 | F28: 5348 | G28: -3660 | H28: 124832 | I28: 27 | J28: 0.0698993238 | K28: 4 | L28: 171.6914211 | M28: 0.06954984465 | N28: -0.0003494791566 | O28: x | P28: x | Q28: x | R28: x
A29: 5135 | B29: 0 | C29: 2604 | D29: 321343 | E29: 3596 | F29: 7813 | G29: 860 | H29: 36997 | I29: 62 | J29: 0.008103490663 | K29: 4 | L29: 133.537772 | M29: 0.007687929185 | N29: -0.0004155614778 | O29: x | P29: x | Q29: x | R29: x
A30: 5210 | B30: 0 | C30: 7658 | D30: 953152 | E30: 9440 | F30: 25875 | G30: 6410 | H30: 80682 | I30: 249 | J30: 0.008034395354 | K30: 5 | L30: 200.306658 | M30: 0.007824243502 | N30: -0.0002101518519 | O30: x | P30: x | Q30: x | R30: x
A31: 5331 | B31: 16974 | C31: 2001 | D31: 369049 | E31: 5421 | F31: 9150 | G31: 2150 | H31: 29515 | I31: 75 | J31: 0.005422044227 | K31: 4 | L31: 171.6914211 | M31: 0.004956817601 | N31: -0.000465226626 | O31: x | P31: x | Q31: x | R31: x
A32: 5461 | B32: 44700 | C32: 5226 | D32: 472160 | E32: 2571 | F32: 16144 | G32: 1896 | H32: 45833 | I32: 132 | J32: 0.01106828194 | K32: 4 | L32: 171.6914211 | M32: 0.01070465219 | N32: -0.0003636297465 | O32: x | P32: x | Q32: x | R32: x
A33: 5751 | B33: 0 | C33: 2355 | D33: 119254 | E33: 833 | F33: 2211 | G33: 0 | H33: 25007 | I33: 20 | J33: 0.01974776527 | K33: 3 | L33: 133.537772 | M33: 0.01862798923 | N33: -0.001119776041 | O33: x | P33: x | Q33: x | R33: x
A34: 6039 | B34: 0 | C34: 206 | D34: 80103 | E34: 975 | F34: 2703 | G34: 750 | H34: 8700 | I34: 24 | J34: 0.00257168895 | K34: 2 | L34: 66.76888599 | M34: 0.001738151056 | N34: -0.0008335378948 | O34: x | P34: x | Q34: x | R34: x
A35: 6141 | B35: 0 | C35: 373 | D35: 50897 | E35: 411 | F35: 1170 | G35: 60 | H35: 4805 | I35: 11 | J35: 0.007328526239 | K35: 2 | L35: 66.76888599 | M35: 0.006016682987 | N35: -0.001311843252 | O35: x | P35: x | Q35: x | R35: x
A36: 6329 | B36: 0 | C36: -5126 | D36: 472905 | E36: 7346 | F36: 20756 | G36: 18050 | H36: 34181 | I36: 181 | J36: -0.01083938635 | K36: 4 | L36: 133.537772 | M36: -0.01112176393 | N36: -0.0002823775853 | O36: x | P36: x | Q36: x | R36: x
A37: 6972 | B37: 38900 | C37: -34581 | D37: 840651 | E37: 6610 | F37: 38828 | G37: 39205 | H37: 80829 | I37: 253 | J37: -0.04113597676 | K37: 5 | L37: 257.5371317 | M37: -0.04144233116 | N37: -0.0003063543987 | O37: x | P37: x | Q37: x | R37: x
A38: 7009 | B38: 20764 | C38: 5653 | D38: 634845 | E38: 774 | F38: 53913 | G38: 0 | H38: 50137 | I38: 75 | J38: 0.008904535753 | K38: 5 | L38: 257.5371317 | M38: 0.008498866445 | N38: -0.0004056693077 | O38: x | P38: x | Q38: x | R38: x
A39: 7045 | B39: 0 | C39: 1110 | D39: 133295 | E39: 1153 | F39: 3620 | G39: 245 | H39: 14453 | I39: 45 | J39: 0.008327394126 | K39: 3 | L39: 133.537772 | M39: 0.007325572812 | N39: -0.001001821313 | O39: x | P39: x | Q39: x | R39: x
A40: 7157 | B40: 0 | C40: -188 | D40: 50406 | E40: 837 | F40: 981 | G40: 450 | H40: 4012 | I40: 8 | J40: -0.003729714717 | K40: 2 | L40: 66.76888599 | M40: -0.005054336507 | N40: -0.001324621791 | O40: x | P40: x | Q40: x | R40: x
A41: 7456 | B41: 0 | C41: 562 | D41: 54204 | E41: 573 | F41: 1700 | G41: 10 | H41: 4802 | I41: 14 | J41: 0.01036823851 | K41: 2 | L41: 66.76888599 | M41: 0.009136431149 | N41: -0.001231807357 | O41: x | P41: x | Q41: x | R41: x
A42: 7634 | B42: 0 | C42: -241 | D42: 66727 | E42: 1336 | F42: 1843 | G42: 874 | H42: 3466 | I42: 11 | J42: -0.003611731383 | K42: 2 | L42: 66.76888599 | M42: -0.004612359105 | N42: -0.001000627722 | O42: x | P42: x | Q42: x | R42: x
A43: 8033 | B43: 12940 | C43: 1643 | D43: 160779 | E43: 2066 | F43: 3589 | G43: 0 | H43: 14734 | I43: 35 | J43: 0.01021899626 | K43: 3 | L43: 171.6914211 | M43: 0.009151124083 | N43: -0.001067872179 | O43: x | P43: x | Q43: x | R43: x
A44: 8462 | B44: 0 | C44: 1903 | D44: 122404 | E44: 519 | F44: 2203 | G44: 25 | H44: 14230 | I44: 21 | J44: 0.01554687755 | K44: 3 | L44: 133.537772 | M44: 0.01445591834 | N44: -0.001090959217 | O44: x | P44: x | Q44: x | R44: x
A45: 8631 | B45: 37620 | C45: 368 | D45: 58506 | E45: 510 | F45: 1798 | G45: 124 | H45: 6361 | I45: 20 | J45: 0.006289953167 | K45: 2 | L45: 85.84571055 | M45: 0.004822655616 | N45: -0.001467297552 | O45: x | P45: x | Q45: x | R45: x
A46: 9357 | B46: 33460 | C46: 9155 | D46: 373899 | E46: 1544 | F46: 7591 | G46: 150 | H46: 66733 | I46: 47 | J46: 0.02448522194 | K46: 4 | L46: 171.6914211 | M46: 0.02402602997 | N46: -0.0004591919773 | O46: x | P46: x | Q46: x | R46: x
A47: 9553 | B47: 0 | C47: 883 | D47: 90945 | E47: 1091 | F47: 2230 | G47: 50 | H47: 8249 | I47: 14 | J47: 0.00970916488 | K47: 2 | L47: 66.76888599 | M47: 0.00897499713 | N47: -0.0007341677496 | O47: x | P47: x | Q47: x | R47: x
A48: 9955 | B48: 0 | C48: 1022 | D48: 104815 | E48: 528 | F48: 3177 | G48: 545 | H48: 12184 | I48: 27 | J48: 0.009750512808 | K48: 3 | L48: 133.537772 | M48: 0.008476479779 | N48: -0.001274033029 | O48: x | P48: x | Q48: x | R48: x
A49: 10250 | B49: 33460 | C49: -11580 | D49: 416219 | E49: 7828 | F49: 15494 | G49: 17995 | H49: 29697 | I49: 119 | J49: -0.02782189184 | K49: 4 | L49: 171.6914211 | M49: -0.02823439444 | N49: -0.0004125026034 | O49: x | P49: x | Q49: x | R49: x
A50: 10849 | B50: 30780 | C50: -4872 | D50: 282734 | E50: 3843 | F50: 8009 | G50: 7725 | H50: 22428 | I50: 63 | J50: -0.01723174433 | K50: 4 | L50: 171.6914211 | M50: -0.01783899857 | N50: -0.0006072542429 | O50: x | P50: x | Q50: x | R50: x
A51: 10858 | B51: 0 | C51: 4914 | D51: 388138 | E51: 3459 | F51: 13217 | G51: 860 | H51: 37142 | I51: 126 | J51: 0.01266044551 | K51: 4 | L51: 133.537772 | M51: 0.01231639836 | N51: -0.0003440471481 | O51: x | P51: x | Q51: x | R51: x
A52: 11145 | B52: 0 | C52: 1001 | D52: 166933 | E52: 2122 | F52: 5555 | G52: 1211 | H52: 16725 | I52: 58 | J52: 0.005996417724 | K52: 3 | L52: 133.537772 | M52: 0.00519646941 | N52: -0.0007999483144 | O52: x | P52: x | Q52: x | R52: x
A53: 11640 | B53: 0 | C53: 3463 | D53: 310544 | E53: 3119 | F53: 8450 | G53: 678 | H53: 29272 | I53: 58 | J53: 0.01115139884 | K53: 4 | L53: 133.537772 | M53: 0.01072138643 | N53: -0.0004300124039 | O53: x | P53: x | Q53: x | R53: x
A54: 11837 | B54: 0 | C54: 32 | D54: 112243 | E54: 1581 | F54: 2546 | G54: 1425 | H54: 10231 | I54: 18 | J54: 0.0002850957298 | K54: 3 | L54: 133.537772 | M54: -0.0009046245376 | N54: -0.001189720267 | O54: x | P54: x | Q54: x | R54: x
A55: 12030 | B55: 0 | C55: 1742 | D55: 323731 | E55: 5381 | F55: 8470 | G55: 7185 | H55: 34566 | I55: 89 | J55: 0.005381010777 | K55: 4 | L55: 133.537772 | M55: 0.004968514687 | N55: -0.0004124960908 | O55: x | P55: x | Q55: x | R55: x
A56: 12142 | B56: 0 | C56: 1374 | D56: 175649 | E56: 946 | F56: 5888 | G56: 200 | H56: 18983 | I56: 70 | J56: 0.007822418573 | K56: 3 | L56: 133.537772 | M56: 0.007062165045 | N56: -0.0007602535282 | O56: x | P56: x | Q56: x | R56: x
A57: 12245 | B57: 0 | C57: 625 | D57: 118288 | E57: 1207 | F57: 3769 | G57: 751 | H57: 13041 | I57: 41 | J57: 0.005283714324 | K57: 3 | L57: 133.537772 | M57: 0.004154793623 | N57: -0.001128920702 | O57: x | P57: x | Q57: x | R57: x
A58: 12647 | B58: 0 | C58: 806 | D58: 97520 | E58: 1366 | F58: 2423 | G58: 320 | H58: 9440 | I58: 25 | J58: 0.008264971288 | K58: 2 | L58: 66.76888599 | M58: 0.007580302646 | N58: -0.0006846686422 | O58: x | P58: x | Q58: x | R58: x
A59: 12656 | B59: 0 | C59: 93 | D59: 17234 | E59: 197 | F59: 726 | G59: 37 | H59: 1333 | I59: 9 | J59: 0.005396309621 | K59: 1 | L59: 66.76888599 | M59: 0.001522056053 | N59: -0.003874253568 | O59: x | P59: x | Q59: x | R59: x
A60: 12937 | B60: 16974 | C60: 1183 | D60: 205986 | E60: 1499 | F60: 5488 | G60: 760 | H60: 31851 | I60: 40 | J60: 0.005743108755 | K60: 3 | L60: 171.6914211 | M60: 0.004909598608 | N60: -0.0008335101468 | O60: x | P60: x | Q60: x | R60: x
A61: 12946 | B61: 0 | C61: 6533 | D61: 677132 | E61: 8621 | F61: 15434 | G61: 6880 | H61: 65766 | I61: 160 | J61: 0.00964804499 | K61: 5 | L61: 200.306658 | M61: 0.009352228727 | N61: -0.0002958162632 | O61: x | P61: x | Q61: x | R61: x
A62: 12955 | B62: 36540 | C62: 1572 | D62: 118938 | E62: 1223 | F62: 4928 | G62: 666 | H62: 12788 | I62: 53 | J62: 0.01321697019 | K62: 3 | L62: 171.6914211 | M62: 0.01177343304 | N62: -0.001443537146 | O62: x | P62: x | Q62: x | R62: x
A63: 13037 | B63: 0 | C63: 1610 | D63: 158049 | E63: 1419 | F63: 4561 | G63: 507 | H63: 24618 | I63: 49 | J63: 0.01018671425 | K63: 3 | L63: 133.537772 | M63: 0.009341800505 | N63: -0.0008449137418 | O63: x | P63: x | Q63: x | R63: x
A64: 13251 | B64: 0 | C64: 280 | D64: 40255 | E64: 422 | F64: 1069 | G64: 257 | H64: 3765 | I64: 8 | J64: 0.006955657682 | K64: 1 | L64: 66.76888599 | M64: 0.005297009415 | N64: -0.001658648267 | O64: x | P64: x | Q64: x | R64: x
A65: 13457 | B65: 0 | C65: 213 | D65: 20751 | E65: 141 | F65: 661 | G65: 6 | H65: 5696 | I65: 4 | J65: 0.01026456556 | K65: 1 | L65: 66.76888599 | M65: 0.007046942991 | N65: -0.003217622572 | O65: x | P65: x | Q65: x | R65: x
A66: 14052 | B66: 0 | C66: 90 | D66: 66964 | E66: 606 | F66: 2064 | G66: 745 | H66: 6485 | I66: 20 | J66: =C66/D66 -> 0.001344005734 | K66: =IF(D66/1000<INDEX(sizeV,1),1,IF(D66/1000<INDEX(sizeV,2),2,IF(D66/1000<INDEX(sizeV,3),3,IF(D66/1000<INDEX(sizeV,4),4,IF(D66/1000<INDEX(sizeV,5),5,6))))) -> 2 | L66: =IF(B66=0,salRural*T$2,salUrban*T$2)*INDEX(nHires,K66) -> 66.76888599 | M66: =(C66-L66)/D66 -> 0.0003469194495 | N66: =M66-J66 -> -0.0009970862849 | O66: x | P66: x | Q66: x | R66: x
A67: 14155 | B67: 0 | C67: 1785 | D67: 115085 | E67: 1101 | F67: 4697 | G67: 450 | H67: 14056 | I67: 43 | J67: 0.01551027501 | K67: 3 | L67: 133.537772 | M67: 0.01434993464 | N67: -0.001160340374 | O67: x | P67: x | Q67: x | R67: x
A68: 14454 | B68: 0 | C68: 29 | D68: 20355 | E68: 215 | F68: 840 | G68: 60 | H68: 3419 | I68: 6 | J68: 0.001424711373 | K68: 1 | L68: 66.76888599 | M68: -0.001855509014 | N68: -0.003280220387 | O68: x | P68: x | Q68: x | R68: x
A69: 14650 | B69: 0 | C69: 385 | D69: 25995 | E69: 139 | F69: 1245 | G69: 90 | H69: 2649 | I69: 13 | J69: 0.01481054049 | K69: 1 | L69: 66.76888599 | M69: 0.01224201246 | N69: -0.002568528024 | O69: x | P69: x | Q69: x | R69: x
A70: 14753 | B70: 0 | C70: 294 | D70: 40380 | E70: 463 | F70: 939 | G70: 0 | H70: 3388 | I70: 11 | J70: 0.007280832095 | K70: 1 | L70: 66.76888599 | M70: 0.005627318326 | N70: -0.001653513769 | O70: x | P70: x | Q70: x | R70: x
A71: 14865 | B71: 0 | C71: 2084 | D71: 251548 | E71: 1743 | F71: 9779 | G71: 1265 | H71: 26265 | I71: 98 | J71: 0.008284701131 | K71: 4 | L71: 133.537772 | M71: 0.007753837152 | N71: -0.0005308639781 | O71: x | P71: x | Q71: x | R71: x
A72: 16458 | B72: 29940 | C72: 1788 | D72: 284373 | E72: 1698 | F72: 9652 | G72: 823 | H72: 32632 | I72: 80 | J72: 0.006287516747 | K72: 4 | L72: 171.6914211 | M72: 0.005683762449 | N72: -0.0006037542984 | O72: x | P72: x | Q72: x | R72: x
A73: 16551 | B73: 0 | C73: 1401 | D73: 160733 | E73: 3111 | F73: 5820 | G73: 900 | H73: 16935 | I73: 56 | J73: 0.008716318366 | K73: 3 | L73: 133.537772 | M73: 0.007885513417 | N73: -0.0008308049496 | O73: x | P73: x | Q73: x | R73: x
A74: 16748 | B74: 21780 | C74: 549 | D74: 56947 | E74: 662 | F74: 1733 | G74: 30 | H74: 6173 | I74: 15 | J74: 0.009640542961 | K74: 2 | L74: 85.84571055 | M74: 0.008133076184 | N74: -0.001507466777 | O74: x | P74: x | Q74: x | R74: x
A75: 16944 | B75: 28020 | C75: -30 | D75: 38114 | E75: 290 | F75: 1284 | G75: 67 | H75: 3983 | I75: 13 | J75: -0.0007871123472 | K75: 1 | L75: 85.84571055 | M75: -0.003039452971 | N75: -0.002252340624 | O75: x | P75: x | Q75: x | R75: x
A76: 16953 | B76: 24220 | C76: 182 | D76: 33301 | E76: 243 | F76: 1108 | G76: 8 | H76: 4757 | I76: 8 | J76: 0.005465301342 | K76: 1 | L76: 85.84571055 | M76: 0.00288742949 | N76: -0.002577871852 | O76: x | P76: x | Q76: x | R76: x
A77: 17110 | B77: 37964 | C77: 2468 | D77: 105493 | E77: 665 | F77: 16848 | G77: 0 | H77: 17229 | I77: 64 | J77: 0.0233949172 | K77: 3 | L77: 171.6914211 | M77: 0.02176740238 | N77: -0.001627514822 | O77: x | P77: x | Q77: x | R77: x
A78: 17259 | B78: 0 | C78: 979 | D78: 64033 | E78: 766 | F78: 2174 | G78: 186 | H78: 7024 | I78: 28 | J78: 0.01528899161 | K78: 2 | L78: 66.76888599 | M78: 0.01424626543 | N78: -0.001042726188 | O78: x | P78: x | Q78: x | R78: x
A79: 17950 | B79: 13740 | C79: 2417 | D79: 273496 | E79: 3230 | F79: 7033 | G79: 783 | H79: 24843 | I79: 81 | J79: 0.008837423582 | K79: 4 | L79: 171.6914211 | M79: 0.008209657834 | N79: -0.0006277657483 | O79: x | P79: x | Q79: x | R79: x
A80: 18050 | B80: 12420 | C80: 4792 | D80: 339379 | E80: 1889 | F80: 10564 | G80: 600 | H80: 38278 | I80: 113 | J80: 0.01411990724 | K80: 4 | L80: 171.6914211 | M80: 0.01361400847 | N80: -0.0005058987772 | O80: x | P80: x | Q80: x | R80: x
A81: 18135 | B81: 16974 | C81: 1292 | D81: 241311 | E81: 2725 | F81: 9052 | G81: 638 | H81: 18696 | I81: 56 | J81: 0.005354086635 | K81: 3 | L81: 171.6914211 | M81: 0.004642592252 | N81: -0.0007114943832 | O81: x | P81: x | Q81: x | R81: x
A82: 18827 | B82: 38300 | C82: 2715 | D82: 390559 | E82: 3705 | F82: 8709 | G82: 1685 | H82: 38723 | I82: 85 | J82: 0.006951574538 | K82: 4 | L82: 171.6914211 | M82: 0.006511970224 | N82: -0.0004396043136 | O82: x | P82: x | Q82: x | R82: x
A83: 18836 | B83: 0 | C83: 253 | D83: 154664 | E83: 2645 | F83: 5146 | G83: 1659 | H83: 13128 | I83: 52 | J83: 0.001635804066 | K83: 3 | L83: 133.537772 | M83: 0.0007723984122 | N83: -0.0008634056534 | O83: x | P83: x | Q83: x | R83: x
A84: 18854 | B84: 36420 | C84: 2023 | D84: 139295 | E84: 1734 | F84: 3544 | G84: 842 | H84: 10733 | I84: 32 | J84: 0.01452313436 | K84: 3 | L84: 171.6914211 | M84: 0.01329056017 | N84: -0.001232574185 | O84: x | P84: x | Q84: x | R84: x
A85: 18957 | B85: 45820 | C85: -257 | D85: 29020 | E85: 613 | F85: 1242 | G85: 553 | H85: 923 | I85: 9 | J85: -0.008855961406 | K85: 1 | L85: 85.84571055 | M85: -0.01181411821 | N85: -0.002958156807 | O85: x | P85: x | Q85: x | R85: x
A86: 19356 | B86: 0 | C86: 591 | D86: 75555 | E86: 709 | F86: 2798 | G86: 31 | H86: 7810 | I86: 28 | J86: 0.007822116339 | K86: 2 | L86: 66.76888599 | M86: 0.006938403997 | N86: -0.0008837123418 | O86: x | P86: x | Q86: x | R86: x
A87: 19936 | B87: 0 | C87: 53 | D87: 245316 | E87: 3110 | F87: 6354 | G87: 3400 | H87: 20706 | I87: 50 | J87: 0.0002160478729 | K87: 3 | L87: 133.537772 | M87: -0.0003283021571 | N87: -0.00054435003 | O87: x | P87: x | Q87: x | R87: x
A88: 20053 | B88: 20740 | C88: 19 | D88: 68535 | E88: 1018 | F88: 2318 | G88: 1003 | H88: 7833 | I88: 19 | J88: 0.0002772306121 | K88: 2 | L88: 85.84571055 | M88: -0.0009753514343 | N88: -0.001252582046 | O88: x | P88: x | Q88: x | R88: x
A89: 20370 | B89: 42644 | C89: -11320 | D89: 179423 | E89: 2838 | F89: 9923 | G89: 7066 | H89: 4277 | I89: 59 | J89: -0.06309113101 | K89: 3 | L89: 171.6914211 | M89: -0.06404803967 | N89: -0.0009569086522 | O89: x | P89: x | Q89: x | R89: x
A90: 20512 | B90: 0 | C90: 883 | D90: 101595 | E90: 1580 | F90: 2655 | G90: 15 | H90: 9184 | I90: 26 | J90: 0.008691372607 | K90: 3 | L90: 133.537772 | M90: 0.007376959772 | N90: -0.001314412835 | O90: x | P90: x | Q90: x | R90: x
A91: 20633 | B91: 0 | C91: 1591 | D91: 324603 | E91: 5988 | F91: 8852 | G91: 465 | H91: 24889 | I91: 90 | J91: 0.00490137183 | K91: 4 | L91: 133.537772 | M91: 0.004489983851 | N91: -0.0004113879785 | O91: x | P91: x | Q91: x | R91: x
A92: 20857 | B92: 0 | C92: 2478 | D92: 187121 | E92: 699 | F92: 2556 | G92: 486 | H92: 15875 | I92: 16 | J92: 0.01324276805 | K92: 3 | L92: 133.537772 | M92: 0.01252912409 | N92: -0.0007136439628 | O92: x | P92: x | Q92: x | R92: x
A93: 21256 | B93: 48620 | C93: -25 | D93: 8836 | E93: 84 | F93: 382 | G93: 2 | H93: 1015 | I93: 5 | J93: -0.002829334541 | K93: 1 | L93: 85.84571055 | M93: -0.0125447839 | N93: -0.009715449361 | O93: x | P93: x | Q93: x | R93: x
A94: 21359 | B94: 0 | C94: 274 | D94: 23887 | E94: 299 | F94: 845 | G94: 117 | H94: 2403 | I94: 7 | J94: 0.01147067443 | K94: 1 | L94: 66.76888599 | M94: 0.008675476787 | N94: -0.002795197638 | O94: x | P94: x | Q94: x | R94: x
A95: 21630 | B95: 29180 | C95: 1146 | D95: 78610 | E95: 730 | F95: 2171 | G95: 0 | H95: 8176 | I95: 28 | J95: 0.01457829793 | K95: 2 | L95: 85.84571055 | M95: 0.01348625225 | N95: -0.001092045676 | O95: x | P95: x | Q95: x | R95: x
A96: 21658 | B96: 0 | C96: 1369 | D96: 142440 | E96: 1994 | F96: 3829 | G96: 544 | H96: 14061 | I96: 44 | J96: 0.009611064308 | K96: 3 | L96: 133.537772 | M96: 0.008673562398 | N96: -0.0009375019094 | O96: x | P96: x | Q96: x | R96: x
A97: 22048 | B97: 0 | C97: 1092 | D97: 184382 | E97: 2479 | F97: 6887 | G97: 909 | H97: 18334 | I97: 65 | J97: 0.005922487011 | K97: 3 | L97: 133.537772 | M97: 0.005198241846 | N97: -0.0007242451648 | O97: x | P97: x | Q97: x | R97: x
A98: 22356 | B98: 0 | C98: 2107 | D98: 352098 | E98: 1931 | F98: 9297 | G98: 1453 | H98: 40322 | I98: 80 | J98: 0.005984129419 | K98: 4 | L98: 133.537772 | M98: 0.005604866338 | N98: -0.0003792630801 | O98: x | P98: x | Q98: x | R98: x
A99: 22459 | B99: 28140 | C99: 970 | D99: 101149 | E99: 1061 | F99: 3640 | G99: 69 | H99: 10166 | I99: 42 | J99: 0.009589813048 | K99: 3 | L99: 171.6914211 | M99: 0.007892402089 | N99: -0.001697410959 | O99: x | P99: x | Q99: x | R99: x
A100: 22543 | B100: 0 | C100: 929 | D100: 80650 | E100: 507 | F100: 2310 | G100: 210 | H100: 12954 | I100: 23 | J100: 0.01151890887 | K100: 2 | L100: 66.76888599 | M100: 0.01069102435 | N100: -0.0008278845131 | O100: x | P100: x | Q100: x | R100: x
A101: 22552 | B101: 0 | C101: 753 | D101: 59333 | E101: 720 | F101: 1695 | G101: 275 | H101: 4978 | I101: 13 | J101: 0.01269108253 | K101: 2 | L101: 66.76888599 | M101: 0.01156575791 | N101: -0.001125324625 | O101: x | P101: x | Q101: x | R101: x
A102: 22730 | B102: 0 | C102: 652 | D102: 108817 | E102: 1014 | F102: 4095 | G102: 80 | H102: 11984 | I102: 47 | J102: 0.005991710854 | K102: 3 | L102: 133.537772 | M102: 0.004764533373 | N102: -0.001227177481 | O102: x | P102: x | Q102: x | R102: x
A103: 22936 | B103: 0 | C103: -6130 | D103: 272631 | E103: 5631 | F103: 9136 | G103: 5883 | H103: 19024 | I103: 70 | J103: -0.02248460373 | K103: 4 | L103: 133.537772 | M103: -0.02297441513 | N103: -0.0004898114007 | O103: x | P103: x | Q103: x | R103: x
A104: 22954 | B104: 22020 | C104: 610 | D104: 89067 | E104: 1246 | F104: 2400 | G104: 515 | H104: 7951 | I104: 20 | J104: 0.006848776764 | K104: 2 | L104: 85.84571055 | M104: 0.0058849438 | N104: -0.0009638329634 | O104: x | P104: x | Q104: x | R104: x
A105: 23045 | B105: 0 | C105: 186 | D105: 38577 | E105: 142 | F105: 1179 | G105: 0 | H105: 6701 | I105: 15 | J105: 0.00482152578 | K105: 1 | L105: 66.76888599 | M105: 0.003090730591 | N105: -0.001730795188 | O105: x | P105: x | Q105: x | R105: x
A106: 23456 | B106: 0 | C106: 1273 | D106: 89222 | E106: 1271 | F106: 2695 | G106: 274 | H106: 9790 | I106: 23 | J106: 0.01426778149 | K106: 2 | L106: 66.76888599 | M106: 0.01351943595 | N106: -0.0007483455424 | O106: x | P106: x | Q106: x | R106: x
A107: 23540 | B107: 16974 | C107: -12270 | D107: 187374 | E107: 1305 | F107: 18523 | G107: 1501 | H107: 11778 | I107: 39 | J107: -0.06548400525 | K107: 3 | L107: 171.6914211 | M107: -0.06640030859 | N107: -0.0009163033351 | O107: x | P107: x | Q107: x | R107: x
A108: 23643 | B108: 0 | C108: 2888 | D108: 159988 | E108: 1783 | F108: 4658 | G108: 600 | H108: 14214 | I108: 41 | J108: 0.01805135385 | K108: 3 | L108: 133.537772 | M108: 0.01721668018 | N108: -0.0008346736753 | O108: x | P108: x | Q108: x | R108: x
A109: 23755 | B109: 33460 | C109: 1048 | D109: 153386 | E109: 1932 | F109: 6148 | G109: 440 | H109: 14117 | I109: 56 | J109: 0.006832435816 | K109: 3 | L109: 171.6914211 | M109: 0.005713093626 | N109: -0.00111934219 | O109: x | P109: x | Q109: x | R109: x
A110: 24453 | B110: 0 | C110: -22685 | D110: 286994 | E110: 5070 | F110: 13420 | G110: 18399 | H110: 15923 | I110: 52 | J110: -0.07904346432 | K110: 4 | L110: 133.537772 | M110: -0.07950876245 | N110: -0.0004652981316 | O110: x | P110: x | Q110: x | R110: x
A111: 24659 | B111: 0 | C111: 314 | D111: 39257 | E111: 415 | F111: 881 | G111: 354 | H111: 4403 | I111: 9 | J111: 0.007998573503 | K111: 1 | L111: 66.76888599 | M111: 0.006297758719 | N111: -0.001700814784 | O111: x | P111: x | Q111: x | R111: x
A112: 24668 | B112: 0 | C112: 1715 | D112: 194360 | E112: 1715 | F112: 6838 | G112: 0 | H112: 19571 | I112: 67 | J112: 0.008823832064 | K112: 3 | L112: 133.537772 | M112: 0.008136767998 | N112: -0.0006870640665 | O112: x | P112: x | Q112: x | R112: x
A113: 24855 | B113: 0 | C113: 18 | D113: 11610 | E113: 96 | F113: 424 | G113: 0 | H113: 923 | I113: 4 | J113: 0.001550387597 | K113: 1 | L113: 66.76888599 | M113: -0.004200593108 | N113: -0.005750980705 | O113: x | P113: x | Q113: x | R113: x
A114: 24949 | B114: 0 | C114: -2473 | D114: 789409 | E114: 9180 | F114: 21631 | G114: 12969 | H114: 71652 | I114: 210 | J114: -0.003132723341 | K114: 5 | L114: 200.306658 | M114: -0.003386465898 | N114: -0.0002537425567 | O114: x | P114: x | Q114: x | R114: x
A115: 25357 | B115: 36420 | C115: 96 | D115: 128676 | E115: 2077 | F115: 4031 | G115: 710 | H115: 10959 | I115: 49 | J115: 0.0007460598713 | K115: 3 | L115: 171.6914211 | M115: -0.0005882326238 | N115: -0.001334292495 | O115: x | P115: x | Q115: x | R115: x
A116: 25647 | B116: 16974 | C116: -1418 | D116: 67738 | E116: 1299 | F116: 2585 | G116: 1492 | H116: 3426 | I116: 21 | J116: -0.02093359709 | K116: 2 | L116: 85.84571055 | M116: -0.02220091692 | N116: -0.001267319829 | O116: x | P116: x | Q116: x | R116: x
A117: 26149 | B117: 0 | C117: 415 | D117: 93102 | E117: 1208 | F117: 1819 | G117: 814 | H117: 7085 | I117: 17 | J117: 0.004457476746 | K117: 2 | L117: 66.76888599 | M117: 0.003740318296 | N117: -0.0007171584497 | O117: x | P117: x | Q117: x | R117: x
A118: 26242 | B118: 0 | C118: 5712 | D118: 388901 | E118: 3080 | F118: 12183 | G118: 683 | H118: 54434 | I118: 124 | J118: 0.01468754259 | K118: 4 | L118: 133.537772 | M118: 0.01434417044 | N118: -0.0003433721486 | O118: x | P118: x | Q118: x | R118: x
A119: 26457 | B119: 0 | C119: 205 | D119: 23925 | E119: 230 | F119: 739 | G119: 0 | H119: 3068 | I119: 7 | J119: 0.008568443051 | K119: 1 | L119: 66.76888599 | M119: 0.005777685016 | N119: -0.002790758035 | O119: x | P119: x | Q119: x | R119: x
A120: 26765 | B120: 0 | C120: -9589 | D120: 217592 | E120: 4756 | F120: 15891 | G120: 544 | H120: 21385 | I120: 70 | J120: -0.04406871576 | K120: 3 | L120: 133.537772 | M120: -0.04468242294 | N120: -0.0006137071766 | O120: x | P120: x | Q120: x | R120: x
A121: 26859 | B121: 26420 | C121: -3908 | D121: 381152 | E121: 3342 | F121: 14977 | G121: 4575 | H121: 36222 | I121: 97 | J121: -0.01025312736 | K121: 4 | L121: 171.6914211 | M121: -0.0107035813 | N121: -0.0004504539425 | O121: x | P121: x | Q121: x | R121: x
A122: 27548 | B122: 27500 | C122: 3342 | D122: 538734 | E122: 6325 | F122: 19020 | G122: 4544 | H122: 52133 | I122: 160 | J122: 0.006203432492 | K122: 5 | L122: 257.5371317 | M122: 0.005725391136 | N122: -0.0004780413556 | O122: x | P122: x | Q122: x | R122: x
A123: 27614 | B123: 0 | C123: 3810 | D123: 295109 | E123: 2831 | F123: 8691 | G123: 330 | H123: 26301 | I123: 94 | J123: 0.01291048392 | K123: 4 | L123: 133.537772 | M123: 0.01245798071 | N123: -0.0004525032174 | O123: x | P123: x | Q123: x | R123: x
A124: 27847 | B124: 0 | C124: 6194 | D124: 461210 | E124: 8125 | F124: 12210 | G124: 2175 | H124: 44237 | I124: 136 | J124: 0.01342989094 | K124: 4 | L124: 133.537772 | M124: 0.01314035305 | N124: -0.0002895378937 | O124: x | P124: x | Q124: x | R124: x
A125: 28152 | B125: 41060 | C125: 1276 | D125: 75527 | E125: 845 | F125: 1833 | G125: 0 | H125: 6569 | I125: 19 | J125: 0.01689462047 | K125: 2 | L125: 85.84571055 | M125: 0.01575799766 | N125: -0.001136622804 | O125: x | P125: x | Q125: x | R125: x
A126: 28255 | B126: 0 | C126: 1635 | D126: 240762 | E126: 1886 | F126: 5631 | G126: 507 | H126: 19151 | I126: 53 | J126: 0.006790938769 | K126: 3 | L126: 133.537772 | M126: 0.006236292388 | N126: -0.000554646381 | O126: x | P126: x | Q126: x | R126: x
A127: 28349 | B127: 22900 | C127: 764 | D127: 185726 | E127: 2536 | F127: 5118 | G127: 3007 | H127: 18075 | I127: 55 | J127: 0.004113586681 | K127: 3 | L127: 171.6914211 | M127: 0.003189152724 | N127: -0.000924433957 | O127: x | P127: x | Q127: x | R127: x
A128: 28732 | B128: 0 | C128: 197 | D128: 78536 | E128: 791 | F128: 2519 | G128: 553 | H128: 8099 | I128: 24 | J128: 0.002508403789 | K128: 2 | L128: 66.76888599 | M128: 0.001658234619 | N128: -0.0008501691706 | O128: x | P128: x | Q128: x | R128: x
A129: 29636 | B129: 0 | C129: 7332 | D129: 817798 | E129: 8730 | F129: 24426 | G129: 2456 | H129: 74720 | I129: 265 | J129: 0.008965539167 | K129: 5 | L129: 200.306658 | M129: 0.008720605017 | N129: -0.0002449341499 | O129: x | P129: x | Q129: x | R129: x
A130: 29953 | B130: 36540 | C130: 2346 | D130: 80453 | E130: 1321 | F130: 2460 | G130: 270 | H130: 10034 | I130: 20 | J130: =C130/D130 -> 0.02915988217 | K130: =IF(D130/1000<INDEX(sizeV,1),1,IF(D130/1000<INDEX(sizeV,2),2,IF(D130/1000<INDEX(sizeV,3),3,IF(D130/1000<INDEX(sizeV,4),4,IF(D130/1000<INDEX(sizeV,5),5,6))))) -> 2 | L130: =IF(B130=0,salRural*T$2,salUrban*T$2)*INDEX(nHires,K130) -> 85.84571055 | M130: =(C130-L130)/D130 -> 0.02809285284 | N130: =M130-J130 -> -0.001067029328 | O130: x | P130: x | Q130: x | R130: x
A131: 30052 | B131: 0 | C131: 185 | D131: 20011 | E131: 163 | F131: 1403 | G131: 6 | H131: 2812 | I131: 12 | J131: 0.009244915297 | K131: 1 | L131: 66.76888599 | M131: 0.005908306132 | N131: -0.003336609164 | O131: x | P131: x | Q131: x | R131: x
A132: 30258 | B132: 33460 | C132: -14778 | D132: 425154 | E132: 6465 | F132: 22856 | G132: 11359 | H132: 14972 | I132: 117 | J132: -0.03475916962 | K132: 4 | L132: 171.6914211 | M132: -0.0351630031 | N132: -0.0004038334841 | O132: x | P132: x | Q132: x | R132: x
A133: 30502 | B133: 0 | C133: 5165 | D133: 826636 | E133: 9009 | F133: 24046 | G133: 3335 | H133: 69309 | I133: 212 | J133: 0.00624821566 | K133: 5 | L133: 200.306658 | M133: 0.006005900229 | N133: -0.0002423154302 | O133: x | P133: x | Q133: x | R133: x
A134: 30650 | B134: 33460 | C134: -427 | D134: 145068 | E134: 1756 | F134: 5100 | G134: 1326 | H134: 13203 | I134: 31 | J134: -0.002943447211 | K134: 3 | L134: 171.6914211 | M134: -0.004126970945 | N134: -0.001183523734 | O134: x | P134: x | Q134: x | R134: x
A135: 31134 | B135: 12260 | C135: 1161 | D135: 106534 | E135: 1261 | F135: 3507 | G135: 242 | H135: 14399 | I135: 37 | J135: 0.0108979293 | K135: 3 | L135: 171.6914211 | M135: 0.009286317785 | N135: -0.001611611515 | O135: x | P135: x | Q135: x | R135: x
A136: 31255 | B136: 26420 | C136: 3925 | D136: 395408 | E136: 3752 | F136: 12939 | G136: 625 | H136: 34936 | I136: 87 | J136: 0.009926455712 | K136: 4 | L136: 171.6914211 | M136: 0.00949224239 | N136: -0.0004342133217 | O136: x | P136: x | Q136: x | R136: x
A137: 31657 | B137: 0 | C137: 2100 | D137: 103422 | E137: 1114 | F137: 2699 | G137: 120 | H137: 10916 | I137: 31 | J137: 0.02030515751 | K137: 3 | L137: 133.537772 | M137: 0.01901396442 | N137: -0.001291193092 | O137: x | P137: x | Q137: x | R137: x
A138: 31826 | B138: 0 | C138: 1936 | D138: 234509 | E138: 3015 | F138: 6228 | G138: 2000 | H138: 35876 | I138: 70 | J138: 0.008255546695 | K138: 3 | L138: 133.537772 | M138: 0.0076861111 | N138: -0.0005694355951 | O138: x | P138: x | Q138: x | R138: x
A139: 31835 | B139: 0 | C139: 951 | D139: 112443 | E139: 826 | F139: 3697 | G139: 300 | H139: 11494 | I139: 27 | J139: 0.008457618527 | K139: 3 | L139: 133.537772 | M139: 0.00727001439 | N139: -0.001187604137 | O139: x | P139: x | Q139: x | R139: x
A140: 32234 | B140: 0 | C140: 414 | D140: 97366 | E140: 698 | F140: 2505 | G140: 104 | H140: 11555 | I140: 24 | J140: 0.004251997617 | K140: 2 | L140: 66.76888599 | M140: 0.003566246061 | N140: -0.0006857515558 | O140: x | P140: x | Q140: x | R140: x
A141: 32766 | B141: 19124 | C141: 200 | D141: 54476 | E141: 229 | F141: 1524 | G141: 58 | H141: 4642 | I141: 15 | J141: 0.003671341508 | K141: 2 | L141: 85.84571055 | M141: 0.002095496906 | N141: -0.001575844602 | O141: x | P141: x | Q141: x | R141: x
A142: 33147 | B142: 0 | C142: 2763 | D142: 369862 | E142: 5802 | F142: 11870 | G142: 1000 | H142: 33647 | I142: 96 | J142: 0.007470353808 | K142: 4 | L142: 133.537772 | M142: 0.007109306249 | N142: -0.0003610475582 | O142: x | P142: x | Q142: x | R142: x
A143: 33259 | B143: 33460 | C143: -5532 | D143: 596087 | E143: 8536 | F143: 15320 | G143: 17725 | H143: 47944 | I143: 86 | J143: -0.009280524487 | K143: 5 | L143: 257.5371317 | M143: -0.009712570701 | N143: -0.0004320462142 | O143: x | P143: x | Q143: x | R143: x
A144: 33268 | B144: 0 | C144: 1309 | D144: 112906 | E144: 791 | F144: 4084 | G144: 0 | H144: 11212 | I144: 39 | J144: 0.01159371513 | K144: 3 | L144: 133.537772 | M144: 0.01041098106 | N144: -0.001182734062 | O144: x | P144: x | Q144: x | R144: x
A145: 33727 | B145: 0 | C145: -5572 | D145: 342863 | E145: 3303 | F145: 14183 | G145: 3940 | H145: 24525 | I145: 103 | J145: -0.01625138904 | K145: 4 | L145: 133.537772 | M145: -0.01664086755 | N145: -0.0003894785147 | O145: x | P145: x | Q145: x | R145: x
A146: 33754 | B146: 0 | C146: 272 | D146: 33502 | E146: 232 | F146: 921 | G146: 32 | H146: 4315 | I146: 10 | J146: 0.008118918274 | K146: 1 | L146: 66.76888599 | M146: 0.006125936183 | N146: -0.00199298209 | O146: x | P146: x | Q146: x | R146: x
A147: 33839 | B147: 14060 | C147: 331 | D147: 29113 | E147: 256 | F147: 802 | G147: 4 | H147: 3060 | I147: 7 | J147: 0.01136949129 | K147: 1 | L147: 85.84571055 | M147: 0.008420784167 | N147: -0.002948707126 | O147: x | P147: x | Q147: x | R147: x
A148: 33857 | B148: 0 | C148: 128 | D148: 114377 | E148: 2147 | F148: 3359 | G148: 185 | H148: 13739 | I148: 31 | J148: 0.001119106114 | K148: 3 | L148: 133.537772 | M148: -4.84168318e-05 | N148: -0.001167522946 | O148: x | P148: x | Q148: x | R148: x
A149: 34153 | B149: 33460 | C149: -8533 | D149: 484150 | E149: 7011 | F149: 26532 | G149: 6240 | H149: 27581 | I149: 188 | J149: -0.01762470309 | K149: 4 | L149: 171.6914211 | M149: -0.01797932752 | N149: -0.0003546244369 | O149: x | P149: x | Q149: x | R149: x
A150: 34359 | B150: 0 | C150: 420 | D150: 31199 | E150: 323 | F150: 656 | G150: 0 | H150: 6061 | I150: 6 | J150: 0.01346196993 | K150: 1 | L150: 66.76888599 | M150: 0.01132187295 | N150: -0.00214009699 | O150: x | P150: x | Q150: x | R150: x
A151: 34425 | B151: 0 | C151: 466 | D151: 325989 | E151: 5505 | F151: 11546 | G151: 720 | H151: 26367 | I151: 118 | J151: 0.001429496087 | K151: 4 | L151: 133.537772 | M151: 0.001019857198 | N151: -0.0004096388896 | O151: x | P151: x | Q151: x | R151: x
A152: 34434 | B152: 0 | C152: 2502 | D152: 233636 | E152: 2683 | F152: 8447 | G152: 203 | H152: 19612 | I152: 80 | J152: 0.01070896608 | K152: 3 | L152: 133.537772 | M152: 0.01013740275 | N152: -0.0005715633377 | O152: x | P152: x | Q152: x | R152: x
A153: 34452 | B153: 0 | C153: 1245 | D153: 100238 | E153: 1399 | F153: 2851 | G153: 110 | H153: 10208 | I153: 26 | J153: 0.01242043935 | K153: 3 | L153: 133.537772 | M153: 0.01108823229 | N153: -0.001332207067 | O153: x | P153: x | Q153: x | R153: x
A154: 34555 | B154: 0 | C154: 2340 | D154: 201108 | E154: 2993 | F154: 4295 | G154: 169 | H154: 20254 | I154: 40 | J154: 0.01163553911 | K154: 3 | L154: 133.537772 | M154: 0.01097152887 | N154: -0.0006640102431 | O154: x | P154: x | Q154: x | R154: x
A155: 34742 | B155: 0 | C155: 1026 | D155: 272543 | E155: 4179 | F155: 10506 | G155: 777 | H155: 23177 | I155: 88 | J155: 0.003764543577 | K155: 4 | L155: 133.537772 | M155: 0.003274574023 | N155: -0.0004899695533 | O155: x | P155: x | Q155: x | R155: x
A156: 34836 | B156: 12060 | C156: -678 | D156: 28103 | E156: 405 | F156: 970 | G156: 870 | H156: 1793 | I156: 10 | J156: -0.0241255382 | K156: 1 | L156: 85.84571055 | M156: -0.02718021957 | N156: -0.00305468137 | O156: x | P156: x | Q156: x | R156: x
A157: 35057 | B157: 0 | C157: 1083 | D157: 119280 | E157: 1800 | F157: 4401 | G157: 676 | H157: 9607 | I157: 43 | J157: 0.009079476861 | K157: 3 | L157: 133.537772 | M157: 0.007959944903 | N157: -0.001119531958 | O157: x | P157: x | Q157: x | R157: x
A158: 35646 | B158: 0 | C158: 618 | D158: 49900 | E158: 405 | F158: 1043 | G158: 0 | H158: 11174 | I158: 8 | J158: 0.01238476954 | K158: 1 | L158: 66.76888599 | M158: 0.01104671571 | N158: -0.001338053827 | O158: x | P158: x | Q158: x | R158: x
A159: 35842 | B159: 0 | C159: 1556 | D159: 157662 | E159: 2236 | F159: 3624 | G159: 1138 | H159: 11299 | I159: 38 | J159: 0.009869213888 | K159: 3 | L159: 133.537772 | M159: 0.009022226206 | N159: -0.0008469876823 | O159: x | P159: x | Q159: x | R159: x
A160: 36344 | B160: 0 | C160: 4864 | D160: 402793 | E160: 4417 | F160: 14461 | G160: 1295 | H160: 41684 | I160: 138 | J160: 0.01207568155 | K160: 4 | L160: 133.537772 | M160: 0.01174415203 | N160: -0.000331529525 | O160: x | P160: x | Q160: x | R160: x
A161: 36456 | B161: 0 | C161: 938 | D161: 97547 | E161: 1355 | F161: 2847 | G161: 350 | H161: 9022 | I161: 19 | J161: 0.009615877474 | K161: 2 | L161: 66.76888599 | M161: 0.008931398341 | N161: -0.000684479133 | O161: x | P161: x | Q161: x | R161: x
A162: 36858 | B162: 28140 | C162: 3856 | D162: 179752 | E162: 1432 | F162: 5702 | G162: -1164 | H162: 21392 | I162: 40 | J162: 0.02145177801 | K162: 3 | L162: 171.6914211 | M162: 0.02049662078 | N162: -0.0009551572228 | O162: x | P162: x | Q162: x | R162: x
A163: 36933 | B163: 0 | C163: -1972 | D163: 93058 | E163: 1228 | F163: 4161 | G163: 1250 | H163: 6678 | I163: 34 | J163: -0.02119108513 | K163: 2 | L163: 66.76888599 | M163: -0.02190858267 | N163: -0.000717497539 | O163: x | P163: x | Q163: x | R163: x
A164: 37051 | B164: 0 | C164: 388 | D164: 65946 | E164: 1007 | F164: 2102 | G164: 222 | H164: 6816 | I164: 22 | J164: 0.005883601735 | K164: 2 | L164: 66.76888599 | M164: 0.004871123556 | N164: -0.001012478179 | O164: x | P164: x | Q164: x | R164: x
A165: 37341 | B165: 0 | C165: 559 | D165: 32694 | E165: 488 | F165: 1233 | G165: 112 | H165: 3422 | I165: 11 | J165: 0.01709793846 | K165: 1 | L165: 66.76888599 | M165: 0.01505570178 | N165: -0.002042236679 | O165: x | P165: x | Q165: x | R165: x
A166: 37378 | B166: 49420 | C166: 2163 | D166: 163194 | E166: 1413 | F166: 4602 | G166: 690 | H166: 15764 | I166: 40 | J166: 0.01325416376 | K166: 3 | L166: 171.6914211 | M166: 0.01220209431 | N166: -0.001052069446 | O166: x | P166: x | Q166: x | R166: x
A167: 37659 | B167: 0 | C167: 707 | D167: 38748 | E167: 324 | F167: 1394 | G167: 85 | H167: 4065 | I167: 12 | J167: 0.01824610302 | K167: 1 | L167: 66.76888599 | M167: 0.01652294606 | N167: -0.001723156963 | O167: x | P167: x | Q167: x | R167: x
A168: 37743 | B168: 11540 | C168: 104 | D168: 89627 | E168: 939 | F168: 2599 | G168: 830 | H168: 8228 | I168: 23 | J168: 0.001160364622 | K168: 2 | L168: 85.84571055 | M168: 0.0002025538002 | N168: -0.0009578108221 | O168: x | P168: x | Q168: x | R168: x
A169: 37949 | B169: 16580 | C169: 3751 | D169: 195594 | E169: 1871 | F169: 3676 | G169: 400 | H169: 16144 | I169: 39 | J169: 0.01917747988 | K169: 3 | L169: 171.6914211 | M169: 0.01829968495 | N169: -0.0008777949278 | O169: x | P169: x | Q169: x | R169: x
A170: 38535 | B170: 16974 | C170: -12605 | D170: 400007 | E170: 4915 | F170: 12498 | G170: 12872 | H170: 18597 | I170: 92 | J170: -0.03151194854 | K170: 4 | L170: 171.6914211 | M170: -0.03194116958 | N170: -0.0004292210414 | O170: x | P170: x | Q170: x | R170: x
A171: 38740 | B171: 14020 | C171: 706 | D171: 184544 | E171: 2842 | F171: 5761 | G171: 515 | H171: 16422 | I171: 63 | J171: 0.003825645916 | K171: 3 | L171: 171.6914211 | M171: 0.002895290982 | N171: -0.0009303549349 | O171: x | P171: x | Q171: x | R171: x
A172: 39327 | B172: 0 | C172: 5105 | D172: 401793 | E172: 1943 | F172: 8250 | G172: 1012 | H172: 69825 | I172: 89 | J172: 0.01270554738 | K172: 4 | L172: 133.537772 | M172: 0.01237319273 | N172: -0.0003323546502 | O172: x | P172: x | Q172: x | R172: x
A173: 39756 | B173: 36420 | C173: 5040 | D173: 438904 | E173: 3985 | F173: 13664 | G173: 1587 | H173: 36956 | I173: 120 | J173: 0.01148314893 | K173: 4 | L173: 171.6914211 | M173: 0.01109196676 | N173: -0.0003911821745 | O173: x | P173: x | Q173: x | R173: x
A174: 40033 | B174: 25620 | C174: 593 | D174: 80424 | E174: 768 | F174: 3151 | G174: -336 | H174: 7530 | I174: 21 | J174: 0.007373420869 | K174: 2 | L174: 85.84571055 | M174: 0.006306006782 | N174: -0.001067414087 | O174: x | P174: x | Q174: x | R174: x
A175: 40350 | B175: 36540 | C175: 354 | D175: 43953 | E175: 488 | F175: 1258 | G175: 0 | H175: 7019 | I175: 10 | J175: 0.008054057743 | K175: 1 | L175: 85.84571055 | M175: 0.006100932575 | N175: -0.001953125169 | O175: x | P175: x | Q175: x | R175: x
A176: 40707 | B176: 0 | C176: 1021 | D176: 262621 | E176: 2131 | F176: 9524 | G176: 706 | H176: 20793 | I176: 96 | J176: 0.00388773175 | K176: 4 | L176: 133.537772 | M176: 0.003379250814 | N176: -0.0005084809363 | O176: x | P176: x | Q176: x | R176: x
A177: 40855 | B177: 29100 | C177: 740 | D177: 70596 | E177: 1241 | F177: 1517 | G177: 205 | H177: 5904 | I177: 14 | J177: 0.01048218029 | K177: 2 | L177: 85.84571055 | M177: 0.009266166489 | N177: -0.001216013805 | O177: x | P177: x | Q177: x | R177: x
A178: 41245 | B178: 27500 | C178: 240 | D178: 39555 | E178: 501 | F178: 924 | G178: 261 | H178: 3941 | I178: 10 | J178: 0.006067500948 | K178: 1 | L178: 85.84571055 | M178: 0.003897213739 | N178: -0.002170287209 | O178: x | P178: x | Q178: x | R178: x
A179: 41553 | B179: 0 | C179: 1202 | D179: 84529 | E179: 897 | F179: 2227 | G179: 90 | H179: 13100 | I179: 25 | J179: 0.01421997184 | K179: 2 | L179: 66.76888599 | M179: 0.0134300786 | N179: -0.0007898932436 | O179: x | P179: x | Q179: x | R179: x
A180: 41629 | B180: 0 | C180: 1994 | D180: 164844 | E180: 1764 | F180: 5114 | G180: 806 | H180: 16043 | I180: 50 | J180: 0.01209628497 | K180: 3 | L180: 133.537772 | M180: 0.01128619924 | N180: -0.0008100857294 | O180: x | P180: x | Q180: x | R180: x
A181: 41759 | B181: 0 | C181: 522 | D181: 42615 | E181: 441 | F181: 886 | G181: 195 | H181: 4569 | I181: 9 | J181: 0.01224920803 | K181: 1 | L181: 66.76888599 | M181: 0.01068241497 | N181: -0.001566793054 | O181: x | P181: x | Q181: x | R181: x
A182: 41825 | B182: 13644 | C182: 1718 | D182: 143843 | E182: 458 | F182: 3738 | G182: 33 | H182: 17142 | I182: 34 | J182: 0.01194357737 | K182: 3 | L182: 171.6914211 | M182: 0.01074997448 | N182: -0.001193602894 | O182: x | P182: x | Q182: x | R182: x
A183: 41937 | B183: 0 | C183: 392 | D183: 58433 | E183: 589 | F183: 1497 | G183: 260 | H183: 5120 | I183: 17 | J183: 0.006708537984 | K183: 2 | L183: 66.76888599 | M183: 0.005565880821 | N183: -0.001142657163 | O183: x | P183: x | Q183: x | R183: x
A184: 41955 | B184: 0 | C184: 193 | D184: 34034 | E184: 322 | F184: 995 | G184: 0 | H184: 3175 | I184: 9 | J184: 0.005670799788 | K184: 1 | L184: 66.76888599 | M184: 0.003708970853 | N184: -0.001961828935 | O184: x | P184: x | Q184: x | R184: x
A185: 42037 | B185: 0 | C185: 452 | D185: 62969 | E185: 624 | F185: 2577 | G185: 304 | H185: 8251 | I185: 33 | J185: 0.007178135273 | K185: 2 | L185: 66.76888599 | M185: 0.006117789929 | N185: -0.001060345344 | O185: x | P185: x | Q185: x | R185: x
A186: 42055 | B186: 0 | C186: 192 | D186: 62679 | E186: 628 | F186: 2611 | G186: 100 | H186: 6811 | I186: 30 | J186: 0.003063226918 | K186: 2 | L186: 66.76888599 | M186: 0.001997975622 | N186: -0.001065251296 | O186: x | P186: x | Q186: x | R186: x
A187: 42354 | B187: 0 | C187: 1953 | D187: 112588 | E187: 790 | F187: 3317 | G187: 76 | H187: 15748 | I187: 33 | J187: 0.01734643124 | K187: 3 | L187: 133.537772 | M187: 0.01616035659 | N187: -0.001186074644 | O187: x | P187: x | Q187: x | R187: x
A188: 42448 | B188: 0 | C188: 8316 | D188: 645374 | E188: 10955 | F188: 15125 | G188: 3523 | H188: 72098 | I188: 147 | J188: 0.01288555163 | K188: 5 | L188: 200.306658 | M188: 0.01257517864 | N188: -0.0003103729899 | O188: x | P188: x | Q188: x | R188: x
A189: 42457 | B189: 0 | C189: 189 | D189: 25976 | E189: 157 | F189: 803 | G189: 50 | H189: 5199 | I189: 8 | J189: 0.007275947028 | K189: 1 | L189: 66.76888599 | M189: 0.004705540269 | N189: -0.00257040676 | O189: x | P189: x | Q189: x | R189: x
A190: 43052 | B190: 0 | C190: 909 | D190: 92152 | E190: 1244 | F190: 2526 | G190: 639 | H190: 11223 | I190: 19 | J190: 0.009864137512 | K190: 2 | L190: 66.76888599 | M190: 0.009139585837 | N190: -0.0007245516753 | O190: x | P190: x | Q190: x | R190: x
A191: 43351 | B191: 31740 | C191: -262 | D191: 12643 | E191: 146 | F191: 452 | G191: 40 | H191: 1206 | I191: 6 | J191: -0.02072292968 | K191: 1 | L191: 85.84571055 | M191: -0.02751290916 | N191: -0.006789979479 | O191: x | P191: x | Q191: x | R191: x
A192: 43454 | B192: 24220 | C192: 212 | D192: 21001 | E192: 125 | F192: 713 | G192: 27 | H192: 2982 | I192: 8 | J192: 0.01009475739 | K192: 1 | L192: 85.84571055 | M192: 0.006007061066 | N192: -0.004087696326 | O192: x | P192: x | Q192: x | R192: x
A193: 43511 | B193: 29540 | C193: -1354 | D193: 446019 | E193: 7415 | F193: 17232 | G193: 3335 | H193: 38446 | I193: 128 | J193: -0.003035745114 | K193: 4 | L193: 171.6914211 | M193: -0.003420687058 | N193: -0.0003849419444 | O193: x | P193: x | Q193: x | R193: x
A194: 43744 | B194: 31540 | C194: -3622 | D194: 91164 | E194: 1765 | F194: 3576 | G194: 5191 | H194: 11460 | I194: 18 | J194: =C194/D194 -> -0.03973059541 | K194: =IF(D194/1000<INDEX(sizeV,1),1,IF(D194/1000<INDEX(sizeV,2),2,IF(D194/1000<INDEX(sizeV,3),3,IF(D194/1000<INDEX(sizeV,4),4,IF(D194/1000<INDEX(sizeV,5),5,6))))) -> 2 | L194: =IF(B194=0,salRural*T$2,salUrban*T$2)*INDEX(nHires,K194) -> 85.84571055 | M194: =(C194-L194)/D194 -> -0.04067225781 | N194: =M194-J194 -> -0.0009416623947 | O194: x | P194: x | Q194: x | R194: x
A195: 43856 | B195: 20260 | C195: 44 | D195: 46119 | E195: 292 | F195: 1812 | G195: 15 | H195: 4772 | I195: 16 | J195: 0.0009540536438 | K195: 1 | L195: 85.84571055 | M195: -0.0009073421053 | N195: -0.001861395749 | O195: x | P195: x | Q195: x | R195: x
A196: 43959 | B196: 13140 | C196: 1481 | D196: 119240 | E196: 917 | F196: 3973 | G196: 100 | H196: 13223 | I196: 34 | J196: 0.01242032875 | K196: 3 | L196: 171.6914211 | M196: 0.01098044766 | N196: -0.001439881089 | O196: x | P196: x | Q196: x | R196: x
A197: 44040 | B197: 0 | C197: 1717 | D197: 286044 | E197: 3678 | F197: 5849 | G197: 420 | H197: 27223 | I197: 54 | J197: 0.006002573031 | K197: 4 | L197: 133.537772 | M197: 0.005535729566 | N197: -0.0004668434645 | O197: x | P197: x | Q197: x | R197: x
A198: 44433 | B198: 33124 | C198: -8334 | D198: 252810 | E198: 4047 | F198: 14058 | G198: 3495 | H198: 22478 | I198: 78 | J198: -0.03296546814 | K198: 4 | L198: 171.6914211 | M198: -0.03364460038 | N198: -0.0006791322381 | O198: x | P198: x | Q198: x | R198: x
A199: 44741 | B199: 26900 | C199: -1545 | D199: 337544 | E199: 2641 | F199: 13647 | G199: 7569 | H199: 30476 | I199: 134 | J199: -0.004577181049 | K199: 4 | L199: 171.6914211 | M199: -0.005085830058 | N199: -0.000508649009 | O199: x | P199: x | Q199: x | R199: x
A200: 44750 | B200: 0 | C200: 488 | D200: 168897 | E200: 3853 | F200: 5035 | G200: 861 | H200: 14529 | I200: 56 | J200: 0.00288933492 | K200: 3 | L200: 133.537772 | M200: 0.002098688716 | N200: -0.0007906462043 | O200: x | P200: x | Q200: x | R200: x
... 4300 more rows

Sheet 2009 data (hidden)
A1: id.rssd | B1: msa.cd | C1: nt.inc | D1: assets | E1: int.exp | F1: nonint.exp | G1: prov.exp | H1: equity | I1: fte | J1: roa | K1: asset.cohort | L1: addl reg exp | M1: new.roa | N1: delta | O1: newly unprof | P1: roe | Q1: new.roe | R1: delta | T1: 2009
A2: 37 | B2: 0 | C2: 603 | D2: 82141 | E2: 1906 | F2: 2357 | G2: 180 | H2: 16737 | I2: 25 | J2: =C2/D2 -> 0.007341035536 | K2: =IF(D2/1000<INDEX(sizeV,1),1,IF(D2/1000<INDEX(sizeV,2),2,IF(D2/1000<INDEX(sizeV,3),3,IF(D2/1000<INDEX(sizeV,4),4,IF(D2/1000<INDEX(sizeV,5),5,6))))) -> 2 | L2: =IF(B2=0,salRural*T$2,salUrban*T$2)*INDEX(nHires,K2) -> 65.82914029 | M2: =(C2-L2)/D2 -> 0.006539619188 | N2: =M2-J2 -> -0.0008014163486 | O2: x | P2: x | Q2: x | R2: x | T2: =VLOOKUP(T1,cpiAdj,2,FALSE) -> 0.9404162899 | W2: Asset | AC2: Change in ROA
A3: 242 | B3: 0 | C3: 514 | D3: 33370 | E3: 397 | F3: 901 | G3: 0 | H3: 4277 | I3: 13 | J3: 0.01540305664 | K3: 1 | L3: 65.82914029 | M3: 0.0134303524 | N3: -0.001972704234 | O3: x | P3: x | Q3: x | R3: x | V3: Size | W3: Size Max | X3: Addl | Y3: # of | AA3: Median | AB3: x | AC3: 25th pctile | AD3: 50th pctile | AE3: 75th pctile | AF3: Avg | AG3: Original | AH3: Newly | AJ3: Original | AK3: After Change
A4: 354 | B4: 0 | C4: 26 | D4: 8530 | E4: 91 | F4: 350 | G4: 0 | H4: 1008 | I4: 4 | J4: 0.003048065651 | K4: 1 | L4: 65.82914029 | M4: -0.004669301324 | N4: -0.007717366975 | O4: x | P4: x | Q4: x | R4: x | V4: Quintile | W4: ($MM) | X4: Hires | Y4: Banks | Z4: % | AA4: FTEs | AB4: x | AC4: (bps) | AD4: (bps) | AE4: (bps) | AF4: (bps) | AG4: Unprof | AH4: Unprof | AI4: Difference | AJ4: ROA < 40 | AK4: ROA < 40 | AL4: Difference
A5: 457 | B5: 0 | C5: 318 | D5: 35609 | E5: 666 | F5: 920 | G5: 406 | H5: 3245 | I5: 9 | J5: 0.008930326603 | K5: 1 | L5: 65.82914029 | M5: 0.007081660808 | N5: -0.001848665795 | O5: x | P5: x | Q5: x | R5: x | U5: < $50M | V5: 1 | W5: x | X5: x | Y5: x | Z5: x | AA5: x | AB5: x | AC5: =PERCENTILE(IF($K$2:$K$7000=$V5,$N$2:$N$7000),0.25)*10000 -> -31.33714216 | AD5: =PERCENTILE(IF($K$2:$K$7000=$V5,$N$2:$N$7000),0.5)*10000 -> -21.84003778 | AE5: =PERCENTILE(IF($K$2:$K$7000=$V5,$N$2:$N$7000),0.75)*10000 -> -17.48311004 | AF5: =AVERAGE(IF($K$2:$K$7000=$V5,$N$2:$N$7000))*10000 -> -28.01550565 | AG5: =SUM(IF($K$2:$K$7000=$V5,IF($J$2:$J$7000<0,1,0))) -> 218 | AH5: =SUM(IF($K$2:$K$7000=$V5,IF($M$2:$M$7000<0,1,0))) -> 330 | AI5: =IF(INDEX(sizeV,V5)>0,AH5-AG5) -> 112 | AJ5: =SUM(IF($K$2:$K$7000=$V5,IF($J$2:$J$7000<0.004,1,0))) -> 390 | AK5: =SUM(IF($K$2:$K$7000=$V5,IF($M$2:$M$7000<0.004,1,0))) -> 541 | AL5: =IF(INDEX(sizeV,V5)>0,AK5-AJ5) -> 151
A6: 505 | B6: 10580 | C6: 2513 | D6: 365584 | E6: 4750 | F6: 11339 | G6: 900 | H6: 27985 | I6: 110 | J6: 0.006873933214 | K6: 4 | L6: 169.2749322 | M6: 0.006410907118 | N6: -0.0004630260957 | O6: x | P6: x | Q6: x | R6: x | U6: $50M - $100M | V6: 2 | W6: x | X6: x | Y6: x | Z6: x | AA6: x | AB6: x | AC6: =PERCENTILE(IF($K$2:$K$7000=$V6,$N$2:$N$7000),0.25)*10000 -> -11.7853695 | AD6: =PERCENTILE(IF($K$2:$K$7000=$V6,$N$2:$N$7000),0.5)*10000 -> -9.986294154 | AE6: =PERCENTILE(IF($K$2:$K$7000=$V6,$N$2:$N$7000),0.75)*10000 -> -8.485533369 | AF6: =AVERAGE(IF($K$2:$K$7000=$V6,$N$2:$N$7000))*10000 -> -10.25535499 | AG6: =SUM(IF($K$2:$K$7000=$V6,IF($J$2:$J$7000<0,1,0))) -> 266 | AH6: =SUM(IF($K$2:$K$7000=$V6,IF($M$2:$M$7000<0,1,0))) -> 309 | AI6: =IF(INDEX(sizeV,V6)>0,AH6-AG6) -> 43 | AJ6: =SUM(IF($K$2:$K$7000=$V6,IF($J$2:$J$7000<0.004,1,0))) -> 439 | AK6: =SUM(IF($K$2:$K$7000=$V6,IF($M$2:$M$7000<0.004,1,0))) -> 501 | AL6: =IF(INDEX(sizeV,V6)>0,AK6-AJ6) -> 62
A7: 1155 | B7: 0 | C7: 2651 | D7: 225212 | E7: 3595 | F7: 5471 | G7: 1420 | H7: 17043 | I7: 52 | J7: 0.0117711312 | K7: 3 | L7: 131.6582806 | M7: 0.01118653411 | N7: -0.0005845970933 | O7: x | P7: x | Q7: x | R7: x | U7: $100M - $250M | V7: 3 | W7: x | X7: x | Y7: x | Z7: x | AA7: x | AB7: x | AC7: =PERCENTILE(IF($K$2:$K$7000=$V7,$N$2:$N$7000),0.25)*10000 -> -11.80648806 | AD7: =PERCENTILE(IF($K$2:$K$7000=$V7,$N$2:$N$7000),0.5)*10000 -> -9.539329913 | AE7: =PERCENTILE(IF($K$2:$K$7000=$V7,$N$2:$N$7000),0.75)*10000 -> -7.604799484 | AF7: =AVERAGE(IF($K$2:$K$7000=$V7,$N$2:$N$7000))*10000 -> -9.836702598 | AG7: =SUM(IF($K$2:$K$7000=$V7,IF($J$2:$J$7000<0,1,0))) -> 467 | AH7: =SUM(IF($K$2:$K$7000=$V7,IF($M$2:$M$7000<0,1,0))) -> 522 | AI7: =IF(INDEX(sizeV,V7)>0,AH7-AG7) -> 55 | AJ7: =SUM(IF($K$2:$K$7000=$V7,IF($J$2:$J$7000<0.004,1,0))) -> 730 | AK7: =SUM(IF($K$2:$K$7000=$V7,IF($M$2:$M$7000<0.004,1,0))) -> 831 | AL7: =IF(INDEX(sizeV,V7)>0,AK7-AJ7) -> 101
A8: 1351 | B8: 0 | C8: 2651 | D8: 138885 | E8: 3155 | F8: 2371 | G8: 292 | H8: 19343 | I8: 28 | J8: 0.01908773446 | K8: 3 | L8: 131.6582806 | M8: 0.01813976829 | N8: -0.0009479661633 | O8: x | P8: x | Q8: x | R8: x | U8: $250M - $500M | V8: 4 | W8: x | X8: x | Y8: x | Z8: x | AA8: x | AB8: x | AC8: =PERCENTILE(IF($K$2:$K$7000=$V8,$N$2:$N$7000),0.25)*10000 -> -5.247585142 | AD8: =PERCENTILE(IF($K$2:$K$7000=$V8,$N$2:$N$7000),0.5)*10000 -> -4.503359465 | AE8: =PERCENTILE(IF($K$2:$K$7000=$V8,$N$2:$N$7000),0.75)*10000 -> -3.745549082 | AF8: =AVERAGE(IF($K$2:$K$7000=$V8,$N$2:$N$7000))*10000 -> -4.580488211 | AG8: =SUM(IF($K$2:$K$7000=$V8,IF($J$2:$J$7000<0,1,0))) -> 325 | AH8: =SUM(IF($K$2:$K$7000=$V8,IF($M$2:$M$7000<0,1,0))) -> 339 | AI8: =IF(INDEX(sizeV,V8)>0,AH8-AG8) -> 14 | AJ8: =SUM(IF($K$2:$K$7000=$V8,IF($J$2:$J$7000<0.004,1,0))) -> 481 | AK8: =SUM(IF($K$2:$K$7000=$V8,IF($M$2:$M$7000<0.004,1,0))) -> 503 | AL8: =IF(INDEX(sizeV,V8)>0,AK8-AJ8) -> 22
A9: 1454 | B9: 16220 | C9: 7231 | D9: 460472 | E9: 2475 | F9: 15908 | G9: 600 | H9: 45434 | I9: 149 | J9: 0.01570345211 | K9: 4 | L9: 169.2749322 | M9: 0.01533584033 | N9: -0.0003676117814 | O9: x | P9: x | Q9: x | R9: x | U9: $500M - $1B | V9: 5 | W9: x | X9: x | Y9: x | Z9: x | AA9: x | AB9: x | AC9: =PERCENTILE(IF($K$2:$K$7000=$V9,$N$2:$N$7000),0.25)*10000 -> -4.101671685 | AD9: =PERCENTILE(IF($K$2:$K$7000=$V9,$N$2:$N$7000),0.5)*10000 -> -3.481931045 | AE9: =PERCENTILE(IF($K$2:$K$7000=$V9,$N$2:$N$7000),0.75)*10000 -> -2.923989824 | AF9: =AVERAGE(IF($K$2:$K$7000=$V9,$N$2:$N$7000))*10000 -> -3.513714605 | AG9: =SUM(IF($K$2:$K$7000=$V9,IF($J$2:$J$7000<0,1,0))) -> 185 | AH9: =SUM(IF($K$2:$K$7000=$V9,IF($M$2:$M$7000<0,1,0))) -> 190 | AI9: =IF(INDEX(sizeV,V9)>0,AH9-AG9) -> 5 | AJ9: =SUM(IF($K$2:$K$7000=$V9,IF($J$2:$J$7000<0.004,1,0))) -> 275 | AK9: =SUM(IF($K$2:$K$7000=$V9,IF($M$2:$M$7000<0.004,1,0))) -> 282 | AL9: =IF(INDEX(sizeV,V9)>0,AK9-AJ9) -> 7
A10: 1557 | B10: 0 | C10: 525 | D10: 45834 | E10: 521 | F10: 1029 | G10: 0 | H10: 5063 | I10: 11 | J10: 0.01145437885 | K10: 1 | L10: 65.82914029 | M10: 0.01001812758 | N10: -0.001436251261 | O10: x | P10: x | Q10: x | R10: x
A11: 1632 | B11: 0 | C11: -21360 | D11: 777609 | E11: 13332 | F11: 17824 | G11: 31839 | H11: 65236 | I11: 118 | J11: -0.02746881788 | K11: 5 | L11: 197.4874209 | M11: -0.02772278539 | N11: -0.0002539675092 | O11: x | P11: x | Q11: x | R11: x
A12: 1669 | B12: 0 | C12: 3077 | D12: 245262 | E12: 2700 | F12: 5143 | G12: 242 | H12: 42004 | I12: 59 | J12: 0.01254576738 | K12: 3 | L12: 131.6582806 | M12: 0.0120089607 | N12: -0.0005368066826 | O12: x | P12: x | Q12: x | R12: x | W12: Percentiles of ROA (before)
A13: 1829 | B13: 38300 | C13: 2729 | D13: 410683 | E13: 6996 | F13: 11157 | G13: 360 | H13: 40570 | I13: 94 | J13: 0.006645027917 | K13: 4 | L13: 169.2749322 | M13: 0.006232848859 | N13: -0.0004121790583 | O13: x | P13: x | Q13: x | R13: x | V13: Cohort | W13: 25 | X13: 50 | Y13: 75
A14: 1856 | B14: 0 | C14: 3339 | D14: 194976 | E14: 6841 | F14: 1909 | G14: 48 | H14: 15042 | I14: 9 | J14: 0.01712518464 | K14: 3 | L14: 131.6582806 | M14: 0.01644993086 | N14: -0.0006752537778 | O14: x | P14: x | Q14: x | R14: x | V14: 1 | W14: =PERCENTILE(IF($K$2:$K$7000=$V14,$J$2:$J$7000),W$13/100) -> 0.0008872725612 | X14: =PERCENTILE(IF($K$2:$K$7000=$V14,$J$2:$J$7000),X$13/100) -> 0.005839602087 | Y14: =PERCENTILE(IF($K$2:$K$7000=$V14,$J$2:$J$7000),Y$13/100) -> 0.01041647389
A15: 2040 | B15: 0 | C15: 1726 | D15: 221223 | E15: 4629 | F15: 5037 | G15: 599 | H15: 18670 | I15: 46 | J15: 0.007802082062 | K15: 3 | L15: 131.6582806 | M15: 0.00720694376 | N15: -0.000595138302 | O15: x | P15: x | Q15: x | R15: x | V15: 2 | W15: =PERCENTILE(IF($K$2:$K$7000=$V15,$J$2:$J$7000),W$13/100) -> 0.001151802802 | X15: =PERCENTILE(IF($K$2:$K$7000=$V15,$J$2:$J$7000),X$13/100) -> 0.006838311806 | Y15: =PERCENTILE(IF($K$2:$K$7000=$V15,$J$2:$J$7000),Y$13/100) -> 0.01107485698
A16: 2161 | B16: 0 | C16: 2030 | D16: 124191 | E16: 1515 | F16: 3501 | G16: 47 | H16: 12665 | I16: 32 | J16: 0.01634578995 | K16: 3 | L16: 131.6582806 | M16: 0.01528566256 | N16: -0.001060127389 | O16: x | P16: x | Q16: x | R16: x | V16: 3 | W16: =PERCENTILE(IF($K$2:$K$7000=$V16,$J$2:$J$7000),W$13/100) -> 0.0003149115298 | X16: =PERCENTILE(IF($K$2:$K$7000=$V16,$J$2:$J$7000),X$13/100) -> 0.006325632367 | Y16: =PERCENTILE(IF($K$2:$K$7000=$V16,$J$2:$J$7000),Y$13/100) -> 0.01087508868
A17: 2451 | B17: 0 | C17: -691 | D17: 37789 | E17: 969 | F17: 2149 | G17: 892 | H17: 2805 | I17: 18 | J17: -0.01828574453 | K17: 1 | L17: 65.82914029 | M17: -0.02002776311 | N17: -0.001742018585 | O17: x | P17: x | Q17: x | R17: x | V17: 4 | W17: =PERCENTILE(IF($K$2:$K$7000=$V17,$J$2:$J$7000),W$13/100) -> -0.00399147201 | X17: =PERCENTILE(IF($K$2:$K$7000=$V17,$J$2:$J$7000),X$13/100) -> 0.004619618665 | Y17: =PERCENTILE(IF($K$2:$K$7000=$V17,$J$2:$J$7000),Y$13/100) -> 0.00965409535
A18: 2554 | B18: 0 | C18: 127 | D18: 10370 | E18: 113 | F18: 263 | G18: 38 | H18: 1129 | I18: 4 | J18: 0.01224686596 | K18: 1 | L18: 65.82914029 | M18: 0.005898829287 | N18: -0.006348036672 | O18: x | P18: x | Q18: x | R18: x | V18: 5 | W18: =PERCENTILE(IF($K$2:$K$7000=$V18,$J$2:$J$7000),W$13/100) -> -0.006264947243 | X18: =PERCENTILE(IF($K$2:$K$7000=$V18,$J$2:$J$7000),X$13/100) -> 0.003669912747 | Y18: =PERCENTILE(IF($K$2:$K$7000=$V18,$J$2:$J$7000),Y$13/100) -> 0.008740927676
A19: 2732 | B19: 16974 | C19: 2425 | D19: 525623 | E19: 5379 | F19: 11951 | G19: 5800 | H19: 72224 | I19: 100 | J19: 0.004613572846 | K19: 5 | L19: 253.9123983 | M19: 0.004130503425 | N19: -0.000483069421 | O19: x | P19: x | Q19: x | R19: x
A20: 2750 | B20: 0 | C20: 395 | D20: 54962 | E20: 1079 | F20: 1378 | G20: 170 | H20: 5206 | I20: 11 | J20: 0.007186783596 | K20: 2 | L20: 65.82914029 | M20: 0.00598906262 | N20: -0.001197720976 | O20: x | P20: x | Q20: x | R20: x
A21: 2938 | B21: 10500 | C21: -6509 | D21: 611107 | E21: 9398 | F21: 15264 | G21: 20047 | H21: 51088 | I21: 107 | J21: -0.01065116256 | K21: 5 | L21: 253.9123983 | M21: -0.01106665837 | N21: -0.0004154958105 | O21: x | P21: x | Q21: x | R21: x | W21: Percentiles of ROA (after)
A22: 3252 | B22: 0 | C22: 3011 | D22: 151709 | E22: 1626 | F22: 3446 | G22: 550 | H22: 17434 | I22: 34 | J22: 0.01984720748 | K22: 3 | L22: 131.6582806 | M22: 0.01897937314 | N22: -0.0008678343446 | O22: x | P22: x | Q22: x | R22: x | V22: Cohort | W22: 25 | X22: 50 | Y22: 75
A23: 3458 | B23: 0 | C23: -683 | D23: 28566 | E23: 488 | F23: 844 | G23: 650 | H23: 2984 | I23: 11 | J23: -0.02390954281 | K23: 1 | L23: 65.82914029 | M23: -0.02621400057 | N23: -0.002304457757 | O23: x | P23: x | Q23: x | R23: x | V23: 1 | W23: =PERCENTILE(IF($K$2:$K$7000=$V23,$M$2:$M$7000),W$13/100) -> -0.002450148079 | X23: =PERCENTILE(IF($K$2:$K$7000=$V23,$M$2:$M$7000),X$13/100) -> 0.003339142733 | Y23: =PERCENTILE(IF($K$2:$K$7000=$V23,$M$2:$M$7000),Y$13/100) -> 0.008100184128
A24: 3720 | B24: 0 | C24: 1815 | D24: 189435 | E24: 2187 | F24: 5985 | G24: 217 | H24: 25940 | I24: 57 | J24: 0.009581122813 | K24: 3 | L24: 131.6582806 | M24: 0.008886117768 | N24: -0.0006950050444 | O24: x | P24: x | Q24: x | R24: x | V24: 2 | W24: =PERCENTILE(IF($K$2:$K$7000=$V24,$M$2:$M$7000),W$13/100) -> 0.0001201645816 | X24: =PERCENTILE(IF($K$2:$K$7000=$V24,$M$2:$M$7000),X$13/100) -> 0.005897119487 | Y24: =PERCENTILE(IF($K$2:$K$7000=$V24,$M$2:$M$7000),Y$13/100) -> 0.01010476027
A25: 3953 | B25: 36420 | C25: 1116 | D25: 126047 | E25: 1561 | F25: 4614 | G25: 2300 | H25: 9874 | I25: 38 | J25: 0.008853840234 | K25: 3 | L25: 169.2749322 | M25: 0.007510889333 | N25: -0.001342950901 | O25: x | P25: x | Q25: x | R25: x | V25: 3 | W25: =PERCENTILE(IF($K$2:$K$7000=$V25,$M$2:$M$7000),W$13/100) -> -0.0007326490908 | X25: =PERCENTILE(IF($K$2:$K$7000=$V25,$M$2:$M$7000),X$13/100) -> 0.005359738764 | Y25: =PERCENTILE(IF($K$2:$K$7000=$V25,$M$2:$M$7000),Y$13/100) -> 0.009857151309
A26: 4138 | B26: 0 | C26: -153 | D26: 187408 | E26: 3181 | F26: 7185 | G26: 2200 | H26: 16196 | I26: 67 | J26: -0.0008164005806 | K26: 3 | L26: 131.6582806 | M26: -0.001518922781 | N26: -0.0007025222007 | O26: x | P26: x | Q26: x | R26: x | V26: 4 | W26: =PERCENTILE(IF($K$2:$K$7000=$V26,$M$2:$M$7000),W$13/100) -> -0.004442755851 | X26: =PERCENTILE(IF($K$2:$K$7000=$V26,$M$2:$M$7000),X$13/100) -> 0.004204523474 | Y26: =PERCENTILE(IF($K$2:$K$7000=$V26,$M$2:$M$7000),Y$13/100) -> 0.00923883775
A27: 4156 | B27: 0 | C27: 352 | D27: 204811 | E27: 2988 | F27: 7070 | G27: 2152 | H27: 18009 | I27: 68 | J27: 0.001718657689 | K27: 3 | L27: 131.6582806 | M27: 0.001075829518 | N27: -0.0006428281713 | O27: x | P27: x | Q27: x | R27: x | V27: 5 | W27: =PERCENTILE(IF($K$2:$K$7000=$V27,$M$2:$M$7000),W$13/100) -> -0.006611348401 | X27: =PERCENTILE(IF($K$2:$K$7000=$V27,$M$2:$M$7000),X$13/100) -> 0.00330097165 | Y27: =PERCENTILE(IF($K$2:$K$7000=$V27,$M$2:$M$7000),Y$13/100) -> 0.008433693954
A28: 4231 | B28: 0 | C28: 253 | D28: 127603 | E28: 2872 | F28: 3027 | G28: 833 | H28: 14252 | I28: 34 | J28: 0.001982712005 | K28: 3 | L28: 131.6582806 | M28: 0.0009509315566 | N28: -0.001031780449 | O28: x | P28: x | Q28: x | R28: x
A29: 4437 | B29: 0 | C29: 1079 | D29: 257470 | E29: 4530 | F29: 6555 | G29: 2400 | H29: 24093 | I29: 63 | J29: 0.004190779508 | K29: 4 | L29: 131.6582806 | M29: 0.00367942564 | N29: -0.0005113538687 | O29: x | P29: x | Q29: x | R29: x
A30: 4839 | B30: 16974 | C30: 1216 | D30: 311242 | E30: 6763 | F30: 10943 | G30: 1964 | H30: 26072 | I30: 85 | J30: 0.003906927728 | K30: 4 | L30: 169.2749322 | M30: 0.003363058545 | N30: -0.0005438691828 | O30: x | P30: x | Q30: x | R30: x
A31: 5069 | B31: 31084 | C31: 22161 | D31: 493871 | E31: 10848 | F31: 3652 | G31: 15000 | H31: 102203 | I31: 28 | J31: 0.04487204148 | K31: 4 | L31: 169.2749322 | M31: 0.04452929017 | N31: -0.0003427513099 | O31: x | P31: x | Q31: x | R31: x
A32: 5135 | B32: 0 | C32: 1588 | D32: 292585 | E32: 4843 | F32: 7516 | G32: 1840 | H32: 34844 | I32: 57 | J32: 0.005427482612 | K32: 4 | L32: 131.6582806 | M32: 0.004977499596 | N32: -0.0004499830155 | O32: x | P32: x | Q32: x | R32: x
A33: 5210 | B33: 0 | C33: 6623 | D33: 946510 | E33: 13298 | F33: 25883 | G33: 4750 | H33: 76086 | I33: 244 | J33: 0.006997284762 | K33: 5 | L33: 197.4874209 | M33: 0.006788636759 | N33: -0.0002086480025 | O33: x | P33: x | Q33: x | R33: x
A34: 5331 | B34: 16974 | C34: 1020 | D34: 358400 | E34: 6633 | F34: 9948 | G34: 1675 | H34: 30130 | I34: 71 | J34: 0.002845982143 | K34: 4 | L34: 169.2749322 | M34: 0.002373674854 | N34: -0.0004723072885 | O34: x | P34: x | Q34: x | R34: x
A35: 5461 | B35: 44700 | C35: 5508 | D35: 447668 | E35: 3456 | F35: 15732 | G35: 1515 | H35: 43633 | I35: 134 | J35: 0.01230376082 | K35: 4 | L35: 169.2749322 | M35: 0.01192563477 | N35: -0.0003781260492 | O35: x | P35: x | Q35: x | R35: x
A36: 5751 | B36: 0 | C36: 1596 | D36: 120623 | E36: 1205 | F36: 2116 | G36: 764 | H36: 23845 | I36: 19 | J36: 0.01323130746 | K36: 3 | L36: 131.6582806 | M36: 0.01213982175 | N36: -0.001091485708 | O36: x | P36: x | Q36: x | R36: x
A37: 6039 | B37: 0 | C37: -1102 | D37: 84518 | E37: 1406 | F37: 3351 | G37: 1696 | H37: 8483 | I37: 28 | J37: -0.01303864266 | K37: 2 | L37: 65.82914029 | M37: -0.01381751982 | N37: -0.0007788771657 | O37: x | P37: x | Q37: x | R37: x
A38: 6141 | B38: 0 | C38: 297 | D38: 47943 | E38: 524 | F38: 1170 | G38: 60 | H38: 4552 | I38: 11 | J38: 0.006194856392 | K38: 1 | L38: 65.82914029 | M38: 0.004821785447 | N38: -0.001373070945 | O38: x | P38: x | Q38: x | R38: x
A39: 6329 | B39: 0 | C39: -830 | D39: 466651 | E39: 9413 | F39: 17893 | G39: 8964 | H39: 35344 | I39: 180 | J39: -0.00177863114 | K39: 4 | L39: 131.6582806 | M39: -0.002060765498 | N39: -0.0002821343586 | O39: x | P39: x | Q39: x | R39: x
A40: 6972 | B40: 38900 | C40: -16655 | D40: 913715 | E40: 10868 | F40: 35275 | G40: 24260 | H40: 86602 | I40: 274 | J40: -0.01822778437 | K40: 5 | L40: 253.9123983 | M40: -0.01850567452 | N40: -0.0002778901499 | O40: x | P40: x | Q40: x | R40: x
A41: 7009 | B41: 20764 | C41: 3680 | D41: 588194 | E41: 1738 | F41: 51126 | G41: 0 | H41: 49327 | I41: 68 | J41: 0.006256439202 | K41: 5 | L41: 253.9123983 | M41: 0.005824757821 | N41: -0.0004316813811 | O41: x | P41: x | Q41: x | R41: x
A42: 7045 | B42: 0 | C42: 1103 | D42: 120221 | E42: 1371 | F42: 3410 | G42: 298 | H42: 14082 | I42: 48 | J42: 0.009174769799 | K42: 3 | L42: 131.6582806 | M42: 0.008079634335 | N42: -0.001095135464 | O42: x | P42: x | Q42: x | R42: x
A43: 7157 | B43: 0 | C43: 327 | D43: 42787 | E43: 838 | F43: 992 | G43: 0 | H43: 4363 | I43: 8 | J43: 0.007642508238 | K43: 1 | L43: 65.82914029 | M43: 0.006103976902 | N43: -0.001538531336 | O43: x | P43: x | Q43: x | R43: x
A44: 7456 | B44: 0 | C44: 501 | D44: 51471 | E44: 720 | F44: 1569 | G44: 99 | H44: 4691 | I44: 13 | J44: 0.009733636417 | K44: 2 | L44: 65.82914029 | M44: 0.008454680494 | N44: -0.001278955923 | O44: x | P44: x | Q44: x | R44: x
A45: 7634 | B45: 0 | C45: -4037 | D45: 74760 | E45: 2112 | F45: 2015 | G45: 3901 | H45: 3763 | I45: 12 | J45: -0.05399946495 | K45: 2 | L45: 65.82914029 | M45: -0.05488000455 | N45: -0.0008805395973 | O45: x | P45: x | Q45: x | R45: x
A46: 8033 | B46: 12940 | C46: 1587 | D46: 128403 | E46: 1861 | F46: 3249 | G46: 12 | H46: 13647 | I46: 34 | J46: 0.01235952431 | K46: 3 | L46: 169.2749322 | M46: 0.01104121452 | N46: -0.001318309792 | O46: x | P46: x | Q46: x | R46: x
A47: 8462 | B47: 0 | C47: 1803 | D47: 119276 | E47: 784 | F47: 2192 | G47: 115 | H47: 14551 | I47: 22 | J47: 0.01511620108 | K47: 3 | L47: 131.6582806 | M47: 0.01401238908 | N47: -0.001103812004 | O47: x | P47: x | Q47: x | R47: x
A48: 8631 | B48: 37620 | C48: 256 | D48: 54950 | E48: 683 | F48: 1824 | G48: 163 | H48: 6399 | I48: 22 | J48: 0.00465878071 | K48: 2 | L48: 84.63746609 | M48: 0.003118517451 | N48: -0.001540263259 | O48: x | P48: x | Q48: x | R48: x
A49: 9357 | B49: 33460 | C49: 7525 | D49: 372708 | E49: 2028 | F49: 8164 | G49: 1925 | H49: 59749 | I49: 49 | J49: 0.02019006836 | K49: 4 | L49: 169.2749322 | M49: 0.01973589262 | N49: -0.0004541757413 | O49: x | P49: x | Q49: x | R49: x
A50: 9553 | B50: 0 | C50: 839 | D50: 88757 | E50: 1363 | F50: 1723 | G50: 100 | H50: 8404 | I50: 14 | J50: 0.009452775556 | K50: 2 | L50: 65.82914029 | M50: 0.008711097262 | N50: -0.0007416782935 | O50: x | P50: x | Q50: x | R50: x
A51: 9955 | B51: 0 | C51: 950 | D51: 104266 | E51: 718 | F51: 3178 | G51: 590 | H51: 11495 | I51: 29 | J51: 0.009111311453 | K51: 3 | L51: 131.6582806 | M51: 0.007848596085 | N51: -0.001262715368 | O51: x | P51: x | Q51: x | R51: x
A52: 10157 | B52: 0 | C52: -1572 | D52: 34416 | E52: 435 | F52: 2030 | G52: 2892 | H52: 3616 | I52: 12 | J52: -0.04567642957 | K52: 1 | L52: 65.82914029 | M52: -0.04758917772 | N52: -0.001912748149 | O52: x | P52: x | Q52: x | R52: x
A53: 10250 | B53: 33460 | C53: 267 | D53: 493997 | E53: 11220 | F53: 13114 | G53: 7770 | H53: 41704 | I53: 123 | J53: 0.0005404891123 | K53: 4 | L53: 169.2749322 | M53: 0.0001978252253 | N53: -0.000342663887 | O53: x | P53: x | Q53: x | R53: x
A54: 10849 | B54: 30780 | C54: -1081 | D54: 322159 | E54: 5401 | F54: 8131 | G54: 6668 | H54: 26799 | I54: 65 | J54: -0.003355485956 | K54: 4 | L54: 169.2749322 | M54: -0.003880925047 | N54: -0.0005254390912 | O54: x | P54: x | Q54: x | R54: x
A55: 10858 | B55: 0 | C55: 1646 | D55: 423239 | E55: 6108 | F55: 14431 | G55: 12467 | H55: 35913 | I55: 124 | J55: 0.003889055593 | K55: 4 | L55: 131.6582806 | M55: 0.003577982462 | N55: -0.0003110731303 | O55: x | P55: x | Q55: x | R55: x
A56: 11145 | B56: 0 | C56: 1101 | D56: 161738 | E56: 2764 | F56: 5480 | G56: 840 | H56: 16573 | I56: 55 | J56: 0.006807305642 | K56: 3 | L56: 131.6582806 | M56: 0.005993283702 | N56: -0.0008140219403 | O56: x | P56: x | Q56: x | R56: x
A57: 11640 | B57: 0 | C57: 3476 | D57: 312203 | E57: 3751 | F57: 8031 | G57: 932 | H57: 27761 | I57: 55 | J57: 0.01113378155 | K57: 4 | L57: 131.6582806 | M57: 0.01071207426 | N57: -0.0004217072885 | O57: x | P57: x | Q57: x | R57: x
A58: 11837 | B58: 0 | C58: 224 | D58: 112226 | E58: 1871 | F58: 2975 | G58: 1300 | H58: 10506 | I58: 18 | J58: 0.001995972413 | K58: 3 | L58: 131.6582806 | M58: 0.0008228193058 | N58: -0.001173153107 | O58: x | P58: x | Q58: x | R58: x
A59: 12030 | B59: 0 | C59: 1118 | D59: 322120 | E59: 7882 | F59: 8528 | G59: 5200 | H59: 33309 | I59: 89 | J59: 0.00347075624 | K59: 4 | L59: 131.6582806 | M59: 0.003062031912 | N59: -0.0004087243282 | O59: x | P59: x | Q59: x | R59: x
A60: 12142 | B60: 0 | C60: 1286 | D60: 159142 | E60: 1285 | F60: 5659 | G60: 350 | H60: 18848 | I60: 68 | J60: 0.008080833469 | K60: 3 | L60: 131.6582806 | M60: 0.007253532816 | N60: -0.0008273006534 | O60: x | P60: x | Q60: x | R60: x
A61: 12245 | B61: 0 | C61: 712 | D61: 121279 | E61: 1717 | F61: 3707 | G61: 519 | H61: 12708 | I61: 43 | J61: 0.005870760808 | K61: 3 | L61: 131.6582806 | M61: 0.004785178963 | N61: -0.001085581845 | O61: x | P61: x | Q61: x | R61: x
A62: 12647 | B62: 0 | C62: -710 | D62: 100217 | E62: 1640 | F62: 2497 | G62: 1120 | H62: 8819 | I62: 26 | J62: -0.007084626361 | K62: 3 | L62: 131.6582806 | M62: -0.008398358368 | N62: -0.001313732007 | O62: x | P62: x | Q62: x | R62: x
A63: 12656 | B63: 0 | C63: 79 | D63: 14388 | E63: 249 | F63: 687 | G63: 41 | H63: 1240 | I63: 9 | J63: 0.005490686683 | K63: 1 | L63: 65.82914029 | M63: 0.0009154058734 | N63: -0.00457528081 | O63: x | P63: x | Q63: x | R63: x
A64: 12937 | B64: 16974 | C64: 1618 | D64: 199107 | E64: 2117 | F64: 5229 | G64: 72 | H64: 33035 | I64: 40 | J64: 0.008126283857 | K64: 3 | L64: 169.2749322 | M64: 0.007276113184 | N64: -0.000850170673 | O64: x | P64: x | Q64: x | R64: x
A65: 12946 | B65: 0 | C65: 8150 | D65: 647856 | E65: 10182 | F65: 14909 | G65: 3666 | H65: 65707 | I65: 157 | J65: 0.01257995604 | K65: 5 | L65: 197.4874209 | M65: 0.01227512376 | N65: -0.0003048322789 | O65: x | P65: x | Q65: x | R65: x
A66: 12955 | B66: 36540 | C66: 1839 | D66: 136121 | E66: 1857 | F66: 4787 | G66: 175 | H66: 12219 | I66: 53 | J66: =C66/D66 -> 0.01351003886 | K66: =IF(D66/1000<INDEX(sizeV,1),1,IF(D66/1000<INDEX(sizeV,2),2,IF(D66/1000<INDEX(sizeV,3),3,IF(D66/1000<INDEX(sizeV,4),4,IF(D66/1000<INDEX(sizeV,5),5,6))))) -> 3 | L66: =IF(B66=0,salRural*T$2,salUrban*T$2)*INDEX(nHires,K66) -> 169.2749322 | M66: =(C66-L66)/D66 -> 0.01226647665 | N66: =M66-J66 -> -0.001243562214 | O66: x | P66: x | Q66: x | R66: x
A67: 13037 | B67: 0 | C67: -5530 | D67: 158222 | E67: 2214 | F67: 10958 | G67: 565 | H67: 24433 | I67: 53 | J67: -0.03495089178 | K67: 3 | L67: 131.6582806 | M67: -0.03578300287 | N67: -0.0008321110881 | O67: x | P67: x | Q67: x | R67: x
A68: 13251 | B68: 0 | C68: 300 | D68: 36573 | E68: 529 | F68: 949 | G68: 325 | H68: 3637 | I68: 8 | J68: 0.008202772537 | K68: 1 | L68: 65.82914029 | M68: 0.006402834323 | N68: -0.001799938214 | O68: x | P68: x | Q68: x | R68: x
A69: 13457 | B69: 0 | C69: 126 | D69: 20155 | E69: 197 | F69: 664 | G69: 21 | H69: 5401 | I69: 4 | J69: 0.006251550484 | K69: 1 | L69: 65.82914029 | M69: 0.002985406088 | N69: -0.003266144396 | O69: x | P69: x | Q69: x | R69: x
A70: 14052 | B70: 0 | C70: 266 | D70: 70493 | E70: 901 | F70: 2145 | G70: 537 | H70: 6621 | I70: 22 | J70: 0.003773424312 | K70: 2 | L70: 65.82914029 | M70: 0.002839584919 | N70: -0.0009338393925 | O70: x | P70: x | Q70: x | R70: x
A71: 14155 | B71: 0 | C71: 1401 | D71: 114365 | E71: 1653 | F71: 4529 | G71: 893 | H71: 13239 | I71: 44 | J71: 0.01225025139 | K71: 3 | L71: 131.6582806 | M71: 0.01109904009 | N71: -0.001151211302 | O71: x | P71: x | Q71: x | R71: x
A72: 14454 | B72: 0 | C72: -1916 | D72: 23064 | E72: 421 | F72: 2155 | G72: 889 | H72: 2641 | I72: 7 | J72: -0.08307318765 | K72: 1 | L72: 65.82914029 | M72: -0.08592738208 | N72: -0.002854194428 | O72: x | P72: x | Q72: x | R72: x
A73: 14650 | B73: 0 | C73: 402 | D73: 25935 | E73: 210 | F73: 1211 | G73: 95 | H73: 2763 | I73: 14 | J73: 0.01550028918 | K73: 1 | L73: 65.82914029 | M73: 0.01296205358 | N73: -0.0025382356 | O73: x | P73: x | Q73: x | R73: x
A74: 14753 | B74: 0 | C74: 133 | D74: 36803 | E74: 535 | F74: 974 | G74: 0 | H74: 3280 | I74: 10 | J74: 0.003613835829 | K74: 1 | L74: 65.82914029 | M74: 0.001825146312 | N74: -0.001788689517 | O74: x | P74: x | Q74: x | R74: x
A75: 14865 | B75: 0 | C75: 608 | D75: 240001 | E75: 2411 | F75: 8337 | G75: 4158 | H75: 24033 | I75: 94 | J75: 0.002533322778 | K75: 3 | L75: 131.6582806 | M75: 0.001984748894 | N75: -0.0005485738834 | O75: x | P75: x | Q75: x | R75: x
A76: 16337 | B76: 45220 | C76: -17837 | D76: 467880 | E76: 11223 | F76: 16698 | G76: 29288 | H76: 26063 | I76: 142 | J76: -0.038123023 | K76: 4 | L76: 169.2749322 | M76: -0.03848481434 | N76: -0.0003617913401 | O76: x | P76: x | Q76: x | R76: x
A77: 16458 | B77: 29940 | C77: 2151 | D77: 275717 | E77: 2115 | F77: 9302 | G77: 382 | H77: 31593 | I77: 79 | J77: 0.007801477602 | K77: 4 | L77: 169.2749322 | M77: 0.007187533115 | N77: -0.0006139444872 | O77: x | P77: x | Q77: x | R77: x
A78: 16551 | B78: 0 | C78: 901 | D78: 164190 | E78: 3890 | F78: 5578 | G78: 900 | H78: 16256 | I78: 56 | J78: 0.005487544917 | K78: 3 | L78: 131.6582806 | M78: 0.004685679514 | N78: -0.0008018654034 | O78: x | P78: x | Q78: x | R78: x
A79: 16748 | B79: 21780 | C79: 548 | D79: 54742 | E79: 834 | F79: 1909 | G79: 120 | H79: 5760 | I79: 17 | J79: 0.01001059516 | K79: 2 | L79: 84.63746609 | M79: 0.008464479447 | N79: -0.001546115708 | O79: x | P79: x | Q79: x | R79: x
A80: 16944 | B80: 28020 | C80: 95 | D80: 34076 | E80: 411 | F80: 1260 | G80: 25 | H80: 4134 | I80: 13 | J80: 0.002787885902 | K80: 1 | L80: 84.63746609 | M80: 0.0003041006547 | N80: -0.002483785247 | O80: x | P80: x | Q80: x | R80: x
A81: 16953 | B81: 24220 | C81: 123 | D81: 32901 | E81: 332 | F81: 1009 | G81: 30 | H81: 5209 | I81: 8 | J81: 0.003738488192 | K81: 1 | L81: 84.63746609 | M81: 0.001165999025 | N81: -0.002572489167 | O81: x | P81: x | Q81: x | R81: x
A82: 17110 | B82: 37964 | C82: 1205 | D82: 109412 | E82: 1166 | F82: 14986 | G82: 161 | H82: 15762 | I82: 56 | J82: 0.01101341718 | K82: 3 | L82: 169.2749322 | M82: 0.009466284026 | N82: -0.00154713315 | O82: x | P82: x | Q82: x | R82: x
A83: 17259 | B83: 0 | C83: 1045 | D83: 64427 | E83: 995 | F83: 2291 | G83: 96 | H83: 7151 | I83: 25 | J83: 0.0162199078 | K83: 2 | L83: 65.82914029 | M83: 0.01519814456 | N83: -0.00102176324 | O83: x | P83: x | Q83: x | R83: x
A84: 17950 | B84: 13740 | C84: 2090 | D84: 259931 | E84: 4246 | F84: 6641 | G84: 529 | H84: 23411 | I84: 76 | J84: 0.008040595389 | K84: 4 | L84: 169.2749322 | M84: 0.007389365131 | N84: -0.000651230258 | O84: x | P84: x | Q84: x | R84: x
A85: 18050 | B85: 12420 | C85: 5122 | D85: 310060 | E85: 2315 | F85: 10363 | G85: 240 | H85: 37632 | I85: 114 | J85: 0.01651938335 | K85: 4 | L85: 169.2749322 | M85: 0.01597344084 | N85: -0.000545942502 | O85: x | P85: x | Q85: x | R85: x
A86: 18135 | B86: 16974 | C86: 1444 | D86: 237957 | E86: 3221 | F86: 8117 | G86: 290 | H86: 17683 | I86: 52 | J86: 0.006068323268 | K86: 3 | L86: 169.2749322 | M86: 0.005356955533 | N86: -0.0007113677353 | O86: x | P86: x | Q86: x | R86: x
A87: 18827 | B87: 38300 | C87: 3264 | D87: 365301 | E87: 3547 | F87: 8509 | G87: 1021 | H87: 38895 | I87: 83 | J87: 0.008935097358 | K87: 4 | L87: 169.2749322 | M87: 0.008471712554 | N87: -0.0004633848037 | O87: x | P87: x | Q87: x | R87: x
A88: 18836 | B88: 0 | C88: 1225 | D88: 159676 | E88: 3319 | F88: 4868 | G88: 691 | H88: 13642 | I88: 47 | J88: 0.007671785365 | K88: 3 | L88: 131.6582806 | M88: 0.00684725143 | N88: -0.0008245339349 | O88: x | P88: x | Q88: x | R88: x
A89: 18854 | B89: 36420 | C89: 1281 | D89: 111276 | E89: 2392 | F89: 2912 | G89: 348 | H89: 8808 | I89: 30 | J89: 0.01151191632 | K89: 3 | L89: 169.2749322 | M89: 0.009990699412 | N89: -0.001521216904 | O89: x | P89: x | Q89: x | R89: x
A90: 18957 | B90: 45820 | C90: -1608 | D90: 35272 | E90: 1023 | F90: 1648 | G90: 2631 | H90: 1155 | I90: 10 | J90: -0.04558856884 | K90: 1 | L90: 84.63746609 | M90: -0.0479881341 | N90: -0.002399565267 | O90: x | P90: x | Q90: x | R90: x
A91: 19356 | B91: 0 | C91: 238 | D91: 80088 | E91: 1086 | F91: 2551 | G91: 729 | H91: 7994 | I91: 27 | J91: 0.002971731096 | K91: 2 | L91: 65.82914029 | M91: 0.002149770998 | N91: -0.0008219600976 | O91: x | P91: x | Q91: x | R91: x
A92: 19936 | B92: 0 | C92: 1335 | D92: 228866 | E92: 3644 | F92: 6325 | G92: 2450 | H92: 18460 | I92: 55 | J92: 0.005833107583 | K92: 3 | L92: 131.6582806 | M92: 0.005257843976 | N92: -0.0005752636066 | O92: x | P92: x | Q92: x | R92: x
A93: 20053 | B93: 20740 | C93: -657 | D93: 76715 | E93: 1530 | F93: 2493 | G93: 1567 | H93: 7961 | I93: 20 | J93: -0.008564166069 | K93: 2 | L93: 84.63746609 | M93: -0.009667437478 | N93: -0.001103271408 | O93: x | P93: x | Q93: x | R93: x
A94: 20370 | B94: 42644 | C94: -6215 | D94: 215975 | E94: 4780 | F94: 8260 | G94: 8687 | H94: 15054 | I94: 61 | J94: -0.02877647876 | K94: 3 | L94: 169.2749322 | M94: -0.02956024971 | N94: -0.0007837709558 | O94: x | P94: x | Q94: x | R94: x
A95: 20512 | B95: 0 | C95: 635 | D95: 108098 | E95: 2395 | F95: 2715 | G95: 108 | H95: 9072 | I95: 26 | J95: 0.005874299247 | K95: 3 | L95: 131.6582806 | M95: 0.004656346273 | N95: -0.001217952974 | O95: x | P95: x | Q95: x | R95: x
A96: 20633 | B96: 0 | C96: 1313 | D96: 299873 | E96: 6727 | F96: 8309 | G96: 360 | H96: 24614 | I96: 86 | J96: 0.00437852024 | K96: 4 | L96: 131.6582806 | M96: 0.003939473442 | N96: -0.0004390467984 | O96: x | P96: x | Q96: x | R96: x
A97: 20857 | B97: 0 | C97: 4390 | D97: 183293 | E97: 703 | F97: 2637 | G97: 65 | H97: 15249 | I97: 17 | J97: 0.0239507237 | K97: 3 | L97: 131.6582806 | M97: 0.0232324296 | N97: -0.0007182941006 | O97: x | P97: x | Q97: x | R97: x
A98: 20866 | B98: 0 | C98: -4722 | D98: 257515 | E98: 5307 | F98: 6802 | G98: 6161 | H98: 12981 | I98: 58 | J98: -0.01833679591 | K98: 4 | L98: 131.6582806 | M98: -0.01884806043 | N98: -0.0005112645111 | O98: x | P98: x | Q98: x | R98: x
A99: 21256 | B99: 48620 | C99: -135 | D99: 8482 | E99: 135 | F99: 426 | G99: 129 | H99: 1041 | I99: 5 | J99: -0.01591605753 | K99: 1 | L99: 84.63746609 | M99: -0.02589453738 | N99: -0.00997847985 | O99: x | P99: x | Q99: x | R99: x
A100: 21359 | B100: 0 | C100: 385 | D100: 24123 | E100: 351 | F100: 848 | G100: 0 | H100: 2319 | I100: 7 | J100: 0.01595987232 | K100: 1 | L100: 65.82914029 | M100: 0.01323097706 | N100: -0.002728895257 | O100: x | P100: x | Q100: x | R100: x
A101: 21630 | B101: 29180 | C101: 1444 | D101: 74968 | E101: 932 | F101: 1831 | G101: 0 | H101: 8326 | I101: 25 | J101: 0.0192615516 | K101: 2 | L101: 84.63746609 | M101: 0.01813257035 | N101: -0.001128981247 | O101: x | P101: x | Q101: x | R101: x
A102: 21658 | B102: 0 | C102: 1428 | D102: 137731 | E102: 2555 | F102: 3715 | G102: 160 | H102: 13888 | I102: 42 | J102: 0.01036803624 | K102: 3 | L102: 131.6582806 | M102: 0.009412127404 | N102: -0.0009559088411 | O102: x | P102: x | Q102: x | R102: x
A103: 22048 | B103: 0 | C103: 1042 | D103: 188178 | E103: 3152 | F103: 7096 | G103: 664 | H103: 18003 | I103: 66 | J103: 0.005537310419 | K103: 3 | L103: 131.6582806 | M103: 0.004837662848 | N103: -0.0006996475708 | O103: x | P103: x | Q103: x | R103: x
A104: 22356 | B104: 0 | C104: 4083 | D104: 295953 | E104: 660 | F104: 2158 | G104: 1683 | H104: 31364 | I104: 75 | J104: 0.01379610952 | K104: 4 | L104: 131.6582806 | M104: 0.01335124739 | N104: -0.0004448621254 | O104: x | P104: x | Q104: x | R104: x
A105: 22459 | B105: 28140 | C105: 862 | D105: 106249 | E105: 1684 | F105: 3827 | G105: 133 | H105: 10187 | I105: 42 | J105: 0.008113017534 | K105: 3 | L105: 169.2749322 | M105: 0.006519826707 | N105: -0.001593190827 | O105: x | P105: x | Q105: x | R105: x
A106: 22543 | B106: 0 | C106: 957 | D106: 86516 | E106: 773 | F106: 2274 | G106: 210 | H106: 12279 | I106: 23 | J106: 0.01106153775 | K106: 2 | L106: 65.82914029 | M106: 0.01030064797 | N106: -0.000760889781 | O106: x | P106: x | Q106: x | R106: x
A107: 22552 | B107: 0 | C107: 720 | D107: 54187 | E107: 954 | F107: 1666 | G107: 20 | H107: 4689 | I107: 13 | J107: 0.01328731984 | K107: 2 | L107: 65.82914029 | M107: 0.01207246867 | N107: -0.001214851169 | O107: x | P107: x | Q107: x | R107: x
A108: 22730 | B108: 0 | C108: 680 | D108: 102514 | E108: 1219 | F108: 3927 | G108: 77 | H108: 11746 | I108: 48 | J108: 0.006633240338 | K108: 3 | L108: 131.6582806 | M108: 0.005348944724 | N108: -0.001284295614 | O108: x | P108: x | Q108: x | R108: x
A109: 22936 | B109: 0 | C109: -1007 | D109: 318185 | E109: 8696 | F109: 8278 | G109: 3155 | H109: 23719 | I109: 75 | J109: -0.003164825495 | K109: 4 | L109: 131.6582806 | M109: -0.003578604524 | N109: -0.0004137790298 | O109: x | P109: x | Q109: x | R109: x
A110: 22954 | B110: 22020 | C110: 503 | D110: 94047 | E110: 1526 | F110: 2522 | G110: 432 | H110: 7736 | I110: 21 | J110: 0.005348389635 | K110: 2 | L110: 84.63746609 | M110: 0.004448441034 | N110: -0.0008999486011 | O110: x | P110: x | Q110: x | R110: x
A111: 23036 | B111: 47580 | C111: -21211 | D111: 531106 | E111: 9513 | F111: 14003 | G111: 22205 | H111: 59588 | I111: 85 | J111: -0.03993741362 | K111: 5 | L111: 253.9123983 | M111: -0.04041549596 | N111: -0.0004780823381 | O111: x | P111: x | Q111: x | R111: x
A112: 23045 | B112: 0 | C112: 264 | D112: 36663 | E112: 191 | F112: 1154 | G112: 0 | H112: 7777 | I112: 14 | J112: 0.007200720072 | K112: 1 | L112: 65.82914029 | M112: 0.00540520033 | N112: -0.001795519742 | O112: x | P112: x | Q112: x | R112: x
A113: 23456 | B113: 0 | C113: 1006 | D113: 88657 | E113: 1544 | F113: 2781 | G113: 501 | H113: 9393 | I113: 23 | J113: 0.01134710175 | K113: 2 | L113: 65.82914029 | M113: 0.01060458689 | N113: -0.000742514864 | O113: x | P113: x | Q113: x | R113: x
A114: 23504 | B114: 35004 | C114: 8918 | D114: 894634 | E114: 7625 | F114: 24730 | G114: 4150 | H114: 71549 | I114: 179 | J114: 0.009968322241 | K114: 5 | L114: 253.9123983 | M114: 0.009684505174 | N114: -0.0002838170674 | O114: x | P114: x | Q114: x | R114: x
A115: 23540 | B115: 16974 | C115: 1236 | D115: 198434 | E115: 2099 | F115: 4892 | G115: 434 | H115: 28139 | I115: 42 | J115: 0.006228771279 | K115: 3 | L115: 169.2749322 | M115: 0.005375717205 | N115: -0.0008530540743 | O115: x | P115: x | Q115: x | R115: x
A116: 23643 | B116: 0 | C116: 1850 | D116: 147992 | E116: 2571 | F116: 4628 | G116: 825 | H116: 14006 | I116: 42 | J116: 0.01250067571 | K116: 3 | L116: 131.6582806 | M116: 0.01161104465 | N116: -0.0008896310651 | O116: x | P116: x | Q116: x | R116: x
A117: 23755 | B117: 33460 | C117: 540 | D117: 153205 | E117: 2641 | F117: 5776 | G117: 1104 | H117: 13881 | I117: 55 | J117: 0.003524689142 | K117: 3 | L117: 169.2749322 | M117: 0.002419797447 | N117: -0.001104891695 | O117: x | P117: x | Q117: x | R117: x
A118: 24453 | B118: 0 | C118: 1129 | D118: 338897 | E118: 6477 | F118: 9880 | G118: 1860 | H118: 34079 | I118: 52 | J118: 0.003331395675 | K118: 4 | L118: 131.6582806 | M118: 0.002942905129 | N118: -0.0003884905461 | O118: x | P118: x | Q118: x | R118: x
A119: 24659 | B119: 0 | C119: 387 | D119: 36377 | E119: 480 | F119: 934 | G119: 204 | H119: 4396 | I119: 9 | J119: 0.01063859032 | K119: 1 | L119: 65.82914029 | M119: 0.008828954001 | N119: -0.001809636317 | O119: x | P119: x | Q119: x | R119: x
A120: 24668 | B120: 0 | C120: 1278 | D120: 198211 | E120: 2607 | F120: 6392 | G120: 1216 | H120: 18980 | I120: 69 | J120: 0.006447674448 | K120: 3 | L120: 131.6582806 | M120: 0.005783441481 | N120: -0.0006642329668 | O120: x | P120: x | Q120: x | R120: x
A121: 24855 | B121: 0 | C121: 36 | D121: 12027 | E121: 124 | F121: 414 | G121: 0 | H121: 904 | I121: 4 | J121: 0.002993265153 | K121: 1 | L121: 65.82914029 | M121: -0.002480181283 | N121: -0.005473446437 | O121: x | P121: x | Q121: x | R121: x
A122: 24949 | B122: 0 | C122: -7615 | D122: 774425 | E122: 12545 | F122: 21042 | G122: 23151 | H122: 74158 | I122: 212 | J122: -0.009833101979 | K122: 5 | L122: 197.4874209 | M122: -0.01008811366 | N122: -0.0002550116808 | O122: x | P122: x | Q122: x | R122: x
A123: 25357 | B123: 36420 | C123: 1520 | D123: 132816 | E123: 2908 | F123: 3959 | G123: 239 | H123: 11396 | I123: 52 | J123: 0.01144440429 | K123: 3 | L123: 169.2749322 | M123: 0.01016989721 | N123: -0.001274507079 | O123: x | P123: x | Q123: x | R123: x
A124: 25647 | B124: 16974 | C124: -1387 | D124: 73398 | E124: 2064 | F124: 2919 | G124: 1184 | H124: 4834 | I124: 22 | J124: -0.01889697267 | K124: 2 | L124: 84.63746609 | M124: -0.02005010308 | N124: -0.001153130414 | O124: x | P124: x | Q124: x | R124: x
A125: 26149 | B125: 0 | C125: 821 | D125: 77053 | E125: 1230 | F125: 1755 | G125: 53 | H125: 6910 | I125: 16 | J125: 0.0106550037 | K125: 2 | L125: 65.82914029 | M125: 0.009800667848 | N125: -0.0008543358506 | O125: x | P125: x | Q125: x | R125: x
A126: 26242 | B126: 0 | C126: 5219 | D126: 394419 | E126: 4035 | F126: 11766 | G126: 0 | H126: 55936 | I126: 133 | J126: 0.01323212117 | K126: 4 | L126: 131.6582806 | M126: 0.01289831808 | N126: -0.0003338030891 | O126: x | P126: x | Q126: x | R126: x
A127: 26457 | B127: 0 | C127: 142 | D127: 24098 | E127: 338 | F127: 778 | G127: 0 | H127: 2972 | I127: 7 | J127: 0.005892605195 | K127: 1 | L127: 65.82914029 | M127: 0.003160878899 | N127: -0.002731726297 | O127: x | P127: x | Q127: x | R127: x
A128: 26765 | B128: 0 | C128: -15112 | D128: 256804 | E128: 5748 | F128: 15606 | G128: 8883 | H128: 22242 | I128: 97 | J128: -0.05884643541 | K128: 4 | L128: 131.6582806 | M128: -0.05935911544 | N128: -0.0005126800228 | O128: x | P128: x | Q128: x | R128: x
A129: 26859 | B129: 26420 | C129: -1603 | D129: 400707 | E129: 5425 | F129: 13755 | G129: 3065 | H129: 40130 | I129: 107 | J129: -0.004000429241 | K129: 4 | L129: 169.2749322 | M129: -0.004422869908 | N129: -0.0004224406666 | O129: x | P129: x | Q129: x | R129: x
A130: 26916 | B130: 0 | C130: 992 | D130: 486231 | E130: 9487 | F130: 13163 | G130: 5900 | H130: 41930 | I130: 97 | J130: =C130/D130 -> 0.002040182547 | K130: =IF(D130/1000<INDEX(sizeV,1),1,IF(D130/1000<INDEX(sizeV,2),2,IF(D130/1000<INDEX(sizeV,3),3,IF(D130/1000<INDEX(sizeV,4),4,IF(D130/1000<INDEX(sizeV,5),5,6))))) -> 4 | L130: =IF(B130=0,salRural*T$2,salUrban*T$2)*INDEX(nHires,K130) -> 131.6582806 | M130: =(C130-L130)/D130 -> 0.001769409436 | N130: =M130-J130 -> -0.0002707731111 | O130: x | P130: x | Q130: x | R130: x
A131: 27548 | B131: 27500 | C131: 2482 | D131: 522804 | E131: 9576 | F131: 18072 | G131: 4090 | H131: 49867 | I131: 152 | J131: 0.004747477066 | K131: 5 | L131: 253.9123983 | M131: 0.004261802897 | N131: -0.000485674169 | O131: x | P131: x | Q131: x | R131: x
A132: 27614 | B132: 0 | C132: 3718 | D132: 279131 | E132: 3429 | F132: 8551 | G132: 468 | H132: 25098 | I132: 89 | J132: 0.01331991072 | K132: 4 | L132: 131.6582806 | M132: 0.01284823871 | N132: -0.0004716720127 | O132: x | P132: x | Q132: x | R132: x
A133: 27847 | B133: 0 | C133: 6439 | D133: 459685 | E133: 8555 | F133: 12226 | G133: 1635 | H133: 41776 | I133: 142 | J133: 0.01400741812 | K133: 4 | L133: 131.6582806 | M133: 0.01372100834 | N133: -0.0002864097819 | O133: x | P133: x | Q133: x | R133: x
A134: 28152 | B134: 41060 | C134: 1311 | D134: 70617 | E134: 1054 | F134: 1803 | G134: 13 | H134: 6203 | I134: 18 | J134: 0.01856493479 | K134: 2 | L134: 84.63746609 | M134: 0.01736639243 | N134: -0.001198542364 | O134: x | P134: x | Q134: x | R134: x
A135: 28255 | B135: 0 | C135: 441 | D135: 192406 | E135: 2139 | F135: 5403 | G135: 1108 | H135: 12925 | I135: 54 | J135: 0.002292028315 | K135: 3 | L135: 131.6582806 | M135: 0.001607755057 | N135: -0.0006842732586 | O135: x | P135: x | Q135: x | R135: x
A136: 28349 | B136: 22900 | C136: 1736 | D136: 174126 | E136: 2541 | F136: 4808 | G136: 550 | H136: 15495 | I136: 55 | J136: 0.00996979199 | K136: 3 | L136: 169.2749322 | M136: 0.008997651516 | N136: -0.000972140474 | O136: x | P136: x | Q136: x | R136: x
A137: 28732 | B137: 0 | C137: 212 | D137: 77560 | E137: 1005 | F137: 2831 | G137: 206 | H137: 8096 | I137: 23 | J137: 0.002733367715 | K137: 2 | L137: 65.82914029 | M137: 0.001884616551 | N137: -0.0008487511642 | O137: x | P137: x | Q137: x | R137: x
A138: 29636 | B138: 0 | C138: 7275 | D138: 839863 | E138: 11341 | F138: 25604 | G138: 3013 | H138: 73370 | I138: 268 | J138: 0.008662127037 | K138: 5 | L138: 197.4874209 | M138: 0.008426984614 | N138: -0.0002351424231 | O138: x | P138: x | Q138: x | R138: x
A139: 29953 | B139: 36540 | C139: 1621 | D139: 83750 | E139: 1631 | F139: 2086 | G139: 130 | H139: 8608 | I139: 21 | J139: 0.01935522388 | K139: 2 | L139: 84.63746609 | M139: 0.01834462727 | N139: -0.00101059661 | O139: x | P139: x | Q139: x | R139: x
A140: 30052 | B140: 0 | C140: 224 | D140: 18848 | E140: 212 | F140: 1358 | G140: 6 | H140: 2628 | I140: 12 | J140: 0.01188455008 | K140: 1 | L140: 65.82914029 | M140: 0.008391917429 | N140: -0.003492632656 | O140: x | P140: x | Q140: x | R140: x
A141: 30258 | B141: 33460 | C141: -19823 | D141: 480292 | E141: 10001 | F141: 23057 | G141: 19483 | H141: 29390 | I141: 119 | J141: -0.04127280904 | K141: 4 | L141: 169.2749322 | M141: -0.04162525075 | N141: -0.0003524417067 | O141: x | P141: x | Q141: x | R141: x
A142: 30502 | B142: 0 | C142: 2268 | D142: 801792 | E142: 13042 | F142: 24796 | G142: 2110 | H142: 64660 | I142: 209 | J142: 0.002828663793 | K142: 5 | L142: 197.4874209 | M142: 0.002582356246 | N142: -0.0002463075472 | O142: x | P142: x | Q142: x | R142: x
A143: 30650 | B143: 33460 | C143: -1637 | D143: 146268 | E143: 3117 | F143: 6613 | G143: 1446 | H143: 13210 | I143: 33 | J143: -0.01119178494 | K143: 3 | L143: 169.2749322 | M143: -0.01234907794 | N143: -0.001157292998 | O143: x | P143: x | Q143: x | R143: x
A144: 31134 | B144: 12260 | C144: 1096 | D144: 101676 | E144: 1727 | F144: 3469 | G144: 147 | H144: 13558 | I144: 38 | J144: 0.01077933829 | K144: 3 | L144: 169.2749322 | M144: 0.009114491796 | N144: -0.001664846495 | O144: x | P144: x | Q144: x | R144: x
A145: 31255 | B145: 26420 | C145: 944 | D145: 364124 | E145: 5744 | F145: 12245 | G145: 510 | H145: 31619 | I145: 91 | J145: 0.002592523426 | K145: 4 | L145: 169.2749322 | M145: 0.00212764077 | N145: -0.0004648826559 | O145: x | P145: x | Q145: x | R145: x
A146: 31657 | B146: 0 | C146: 1100 | D146: 95295 | E146: 1435 | F146: 3135 | G146: 180 | H146: 10031 | I146: 31 | J146: 0.011543103 | K146: 2 | L146: 65.82914029 | M146: 0.01085230977 | N146: -0.0006907932241 | O146: x | P146: x | Q146: x | R146: x
A147: 31826 | B147: 0 | C147: 406 | D147: 239771 | E147: 3963 | F147: 6402 | G147: 710 | H147: 35481 | I147: 76 | J147: 0.00169328234 | K147: 3 | L147: 131.6582806 | M147: 0.001144182238 | N147: -0.0005491001021 | O147: x | P147: x | Q147: x | R147: x
A148: 31835 | B148: 0 | C148: 475 | D148: 110747 | E148: 1224 | F148: 3456 | G148: 1300 | H148: 10375 | I148: 27 | J148: 0.004289055234 | K148: 3 | L148: 131.6582806 | M148: 0.003100234945 | N148: -0.001188820289 | O148: x | P148: x | Q148: x | R148: x
A149: 32234 | B149: 0 | C149: 497 | D149: 101496 | E149: 933 | F149: 2500 | G149: 12 | H149: 11034 | I149: 24 | J149: 0.004896744699 | K149: 3 | L149: 131.6582806 | M149: 0.003599567662 | N149: -0.001297177037 | O149: x | P149: x | Q149: x | R149: x
A150: 32766 | B150: 19124 | C150: 262 | D150: 49019 | E150: 304 | F150: 1627 | G150: 60 | H150: 4442 | I150: 15 | J150: 0.005344866276 | K150: 1 | L150: 84.63746609 | M150: 0.003618240558 | N150: -0.001726625718 | O150: x | P150: x | Q150: x | R150: x
A151: 33147 | B151: 0 | C151: 144 | D151: 397868 | E151: 8313 | F151: 11759 | G151: 4963 | H151: 31229 | I151: 101 | J151: 0.000361929082 | K151: 4 | L151: 131.6582806 | M151: 3.101963318e-05 | N151: -0.0003309094488 | O151: x | P151: x | Q151: x | R151: x
A152: 33259 | B152: 33460 | C152: 441 | D152: 615687 | E152: 12386 | F152: 13203 | G152: 7313 | H152: 52944 | I152: 88 | J152: 0.0007162730413 | K152: 5 | L152: 253.9123983 | M152: 0.0003038680396 | N152: -0.0004124050017 | O152: x | P152: x | Q152: x | R152: x
A153: 33268 | B153: 0 | C153: 1322 | D153: 108348 | E153: 1056 | F153: 3938 | G153: 0 | H153: 11732 | I153: 38 | J153: 0.01220142504 | K153: 3 | L153: 131.6582806 | M153: 0.01098628234 | N153: -0.001215142694 | O153: x | P153: x | Q153: x | R153: x
A154: 33549 | B154: 31540 | C154: -740 | D154: 45574 | E154: 776 | F154: 1564 | G154: 1073 | H154: 3238 | I154: 11 | J154: -0.0162373283 | K154: 1 | L154: 84.63746609 | M154: -0.01809447198 | N154: -0.00185714368 | O154: x | P154: x | Q154: x | R154: x
A155: 33727 | B155: 0 | C155: -3724 | D155: 349330 | E155: 4883 | F155: 13382 | G155: 5669 | H155: 30515 | I155: 111 | J155: -0.01066040706 | K155: 4 | L155: 131.6582806 | M155: -0.01103729505 | N155: -0.0003768879873 | O155: x | P155: x | Q155: x | R155: x
A156: 33754 | B156: 0 | C156: 248 | D156: 33661 | E156: 314 | F156: 861 | G156: 35 | H156: 4065 | I156: 10 | J156: 0.007367576721 | K156: 1 | L156: 65.82914029 | M156: 0.005411926553 | N156: -0.001955650168 | O156: x | P156: x | Q156: x | R156: x
A157: 33839 | B157: 14060 | C157: 307 | D157: 28287 | E157: 396 | F157: 818 | G157: 25 | H157: 3055 | I157: 7 | J157: 0.01085304203 | K157: 1 | L157: 84.63746609 | M157: 0.007860944388 | N157: -0.002992097645 | O157: x | P157: x | Q157: x | R157: x
A158: 33857 | B158: 0 | C158: 796 | D158: 93195 | E158: 2132 | F158: 1849 | G158: 45 | H158: 10375 | I158: 27 | J158: 0.008541230753 | K158: 2 | L158: 65.82914029 | M158: 0.00783487161 | N158: -0.0007063591426 | O158: x | P158: x | Q158: x | R158: x
A159: 34153 | B159: 33460 | C159: -27743 | D159: 605453 | E159: 11807 | F159: 40918 | G159: 14050 | H159: 36545 | I159: 210 | J159: -0.04582188873 | K159: 5 | L159: 253.9123983 | M159: -0.04624126464 | N159: -0.0004193759025 | O159: x | P159: x | Q159: x | R159: x
A160: 34359 | B160: 0 | C160: 425 | D160: 30969 | E160: 435 | F160: 656 | G160: 0 | H160: 5831 | I160: 6 | J160: 0.01372340082 | K160: 1 | L160: 65.82914029 | M160: 0.01159775452 | N160: -0.002125646301 | O160: x | P160: x | Q160: x | R160: x
A161: 34425 | B161: 0 | C161: 336 | D161: 329194 | E161: 6235 | F161: 11699 | G161: 2102 | H161: 25843 | I161: 116 | J161: 0.001020674739 | K161: 4 | L161: 131.6582806 | M161: 0.0006207334259 | N161: -0.000399941313 | O161: x | P161: x | Q161: x | R161: x
A162: 34434 | B162: 0 | C162: 2016 | D162: 213366 | E162: 3149 | F162: 6428 | G162: 223 | H162: 17951 | I162: 75 | J162: 0.00944855319 | K162: 3 | L162: 131.6582806 | M162: 0.008831499486 | N162: -0.0006170537039 | O162: x | P162: x | Q162: x | R162: x
A163: 34452 | B163: 0 | C163: 1017 | D163: 92304 | E163: 1623 | F163: 2733 | G163: 100 | H163: 10583 | I163: 28 | J163: 0.01101794072 | K163: 2 | L163: 65.82914029 | M163: 0.01030476317 | N163: -0.0007131775469 | O163: x | P163: x | Q163: x | R163: x
A164: 34555 | B164: 0 | C164: 1978 | D164: 186054 | E164: 3293 | F164: 4074 | G164: 341 | H164: 19566 | I164: 39 | J164: 0.01063132209 | K164: 3 | L164: 131.6582806 | M164: 0.009923687313 | N164: -0.0007076347759 | O164: x | P164: x | Q164: x | R164: x
A165: 34742 | B165: 0 | C165: -2545 | D165: 280800 | E165: 5478 | F165: 11788 | G165: 2348 | H165: 22185 | I165: 99 | J165: -0.009063390313 | K165: 4 | L165: 131.6582806 | M165: -0.009532258834 | N165: -0.0004688685206 | O165: x | P165: x | Q165: x | R165: x
A166: 34836 | B166: 12060 | C166: 60 | D166: 31810 | E166: 615 | F166: 980 | G166: 10 | H166: 2402 | I166: 10 | J166: 0.001886199308 | K166: 1 | L166: 84.63746609 | M166: -0.000774519525 | N166: -0.002660718833 | O166: x | P166: x | Q166: x | R166: x
A167: 35057 | B167: 0 | C167: 581 | D167: 99199 | E167: 2559 | F167: 4123 | G167: 401 | H167: 9224 | I167: 38 | J167: 0.00585691388 | K167: 2 | L167: 65.82914029 | M167: 0.005193306986 | N167: -0.0006636068942 | O167: x | P167: x | Q167: x | R167: x
A168: 35646 | B168: 0 | C168: 636 | D168: 50792 | E168: 594 | F168: 1040 | G168: 0 | H168: 10862 | I168: 8 | J168: 0.01252165695 | K168: 2 | L168: 65.82914029 | M168: 0.01122560363 | N168: -0.001296053321 | O168: x | P168: x | Q168: x | R168: x
A169: 35842 | B169: 0 | C169: 1271 | D169: 136270 | E169: 2780 | F169: 3435 | G169: 853 | H169: 9963 | I169: 34 | J169: 0.009327071256 | K169: 3 | L169: 131.6582806 | M169: 0.00836091377 | N169: -0.0009661574858 | O169: x | P169: x | Q169: x | R169: x
A170: 36344 | B170: 0 | C170: 4157 | D170: 421880 | E170: 6452 | F170: 13939 | G170: 945 | H170: 37656 | I170: 132 | J170: 0.009853512847 | K170: 4 | L170: 131.6582806 | M170: 0.009541437659 | N170: -0.0003120751886 | O170: x | P170: x | Q170: x | R170: x
A171: 36456 | B171: 0 | C171: 1010 | D171: 89471 | E171: 1761 | F171: 2680 | G171: 160 | H171: 8735 | I171: 20 | J171: 0.01128857395 | K171: 2 | L171: 65.82914029 | M171: 0.01055281443 | N171: -0.0007357595231 | O171: x | P171: x | Q171: x | R171: x
A172: 36858 | B172: 28140 | C172: 1239 | D172: 229719 | E172: 2406 | F172: 7164 | G172: 2589 | H172: 21202 | I172: 48 | J172: 0.005393546028 | K172: 3 | L172: 169.2749322 | M172: 0.004656667789 | N172: -0.000736878239 | O172: x | P172: x | Q172: x | R172: x
A173: 36933 | B173: 0 | C173: -2956 | D173: 107108 | E173: 2028 | F173: 4285 | G173: 2857 | H173: 8672 | I173: 38 | J173: -0.02759831198 | K173: 3 | L173: 131.6582806 | M173: -0.02882752251 | N173: -0.001229210522 | O173: x | P173: x | Q173: x | R173: x
A174: 37051 | B174: 0 | C174: 170 | D174: 59432 | E174: 1063 | F174: 1995 | G174: 343 | H174: 6624 | I174: 23 | J174: 0.002860411899 | K174: 2 | L174: 65.82914029 | M174: 0.001752773922 | N174: -0.001107637978 | O174: x | P174: x | Q174: x | R174: x
A175: 37341 | B175: 0 | C175: 402 | D175: 31157 | E175: 577 | F175: 1251 | G175: 108 | H175: 2927 | I175: 12 | J175: 0.01290239754 | K175: 1 | L175: 65.82914029 | M175: 0.01078957729 | N175: -0.002112820242 | O175: x | P175: x | Q175: x | R175: x
A176: 37378 | B176: 49420 | C176: 1758 | D176: 154111 | E176: 2110 | F176: 4324 | G176: 980 | H176: 13505 | I176: 40 | J176: 0.01140736223 | K176: 3 | L176: 169.2749322 | M176: 0.01030896606 | N176: -0.00109839617 | O176: x | P176: x | Q176: x | R176: x
A177: 37435 | B177: 12060 | C177: 15584 | D177: 895898 | E177: 13397 | F177: 28850 | G177: 11072 | H177: 89974 | I177: 340 | J177: 0.01739483736 | K177: 5 | L177: 253.9123983 | M177: 0.01711142072 | N177: -0.000283416637 | O177: x | P177: x | Q177: x | R177: x
A178: 37659 | B178: 0 | C178: 753 | D178: 37866 | E178: 418 | F178: 1316 | G178: 115 | H178: 3917 | I178: 12 | J178: 0.01988591348 | K178: 1 | L178: 65.82914029 | M178: 0.01814743727 | N178: -0.001738476213 | O178: x | P178: x | Q178: x | R178: x
A179: 37743 | B179: 11540 | C179: 248 | D179: 83292 | E179: 1126 | F179: 2557 | G179: 1015 | H179: 8184 | I179: 23 | J179: 0.002977476829 | K179: 2 | L179: 84.63746609 | M179: 0.001961323223 | N179: -0.001016153605 | O179: x | P179: x | Q179: x | R179: x
A180: 37949 | B180: 16580 | C180: 851 | D180: 181596 | E180: 2579 | F180: 2679 | G180: 1505 | H180: 14807 | I180: 42 | J180: 0.004686226569 | K180: 3 | L180: 169.2749322 | M180: 0.003754075353 | N180: -0.0009321512158 | O180: x | P180: x | Q180: x | R180: x
A181: 38535 | B181: 16974 | C181: -9397 | D181: 455447 | E181: 8581 | F181: 12733 | G181: 12143 | H181: 29726 | I181: 111 | J181: -0.02063247754 | K181: 4 | L181: 169.2749322 | M181: -0.02100414523 | N181: -0.0003716676851 | O181: x | P181: x | Q181: x | R181: x
A182: 38740 | B182: 14020 | C182: 1112 | D182: 181651 | E182: 3087 | F182: 5750 | G182: 305 | H182: 16308 | I182: 64 | J182: 0.006121628838 | K182: 3 | L182: 169.2749322 | M182: 0.005189759857 | N182: -0.0009318689805 | O182: x | P182: x | Q182: x | R182: x
A183: 39327 | B183: 0 | C183: 5054 | D183: 388240 | E183: 2542 | F183: 8483 | G183: 850 | H183: 67455 | I183: 88 | J183: 0.013017721 | K183: 4 | L183: 131.6582806 | M183: 0.01267860529 | N183: -0.0003391157031 | O183: x | P183: x | Q183: x | R183: x
A184: 39756 | B184: 36420 | C184: 3321 | D184: 458537 | E184: 5957 | F184: 13653 | G184: 2121 | H184: 36335 | I184: 120 | J184: 0.007242599834 | K184: 4 | L184: 169.2749322 | M184: 0.006873436752 | N184: -0.0003691630821 | O184: x | P184: x | Q184: x | R184: x
A185: 40033 | B185: 25620 | C185: 392 | D185: 75849 | E185: 1379 | F185: 3519 | G185: 0 | H185: 5322 | I185: 29 | J185: 0.005168163061 | K185: 2 | L185: 84.63746609 | M185: 0.004052295138 | N185: -0.001115867923 | O185: x | P185: x | Q185: x | R185: x
A186: 40350 | B186: 36540 | C186: 354 | D186: 43679 | E186: 704 | F186: 1149 | G186: 0 | H186: 6702 | I186: 9 | J186: 0.008104581149 | K186: 1 | L186: 84.63746609 | M186: 0.00616686586 | N186: -0.001937715289 | O186: x | P186: x | Q186: x | R186: x
A187: 40707 | B187: 0 | C187: 1109 | D187: 244948 | E187: 2757 | F187: 9351 | G187: 549 | H187: 20442 | I187: 94 | J187: 0.004527491549 | K187: 3 | L187: 131.6582806 | M187: 0.003989996732 | N187: -0.0005374948176 | O187: x | P187: x | Q187: x | R187: x
A188: 40855 | B188: 29100 | C188: 761 | D188: 60023 | E188: 1302 | F188: 1452 | G188: 135 | H188: 5431 | I188: 14 | J188: 0.01267847325 | K188: 2 | L188: 84.63746609 | M188: 0.01126838935 | N188: -0.001410083903 | O188: x | P188: x | Q188: x | R188: x
A189: 41245 | B189: 27500 | C189: 115 | D189: 36140 | E189: 686 | F189: 897 | G189: 170 | H189: 3723 | I189: 9 | J189: 0.003182069729 | K189: 1 | L189: 84.63746609 | M189: 0.0008401365221 | N189: -0.002341933207 | O189: x | P189: x | Q189: x | R189: x
A190: 41553 | B190: 0 | C190: 1004 | D190: 77528 | E190: 883 | F190: 2366 | G190: 50 | H190: 13059 | I190: 26 | J190: 0.01295015994 | K190: 2 | L190: 65.82914029 | M190: 0.01210105845 | N190: -0.0008491014897 | O190: x | P190: x | Q190: x | R190: x
A191: 41629 | B191: 0 | C191: 1237 | D191: 156524 | E191: 2800 | F191: 4786 | G191: 1260 | H191: 14384 | I191: 49 | J191: 0.007902941402 | K191: 3 | L191: 131.6582806 | M191: 0.007061803426 | N191: -0.0008411379762 | O191: x | P191: x | Q191: x | R191: x
A192: 41647 | B192: 39540 | C192: -32216 | D192: 912354 | E192: 22665 | F192: 24489 | G192: 58415 | H192: 31930 | I192: 135 | J192: -0.03531085522 | K192: 5 | L192: 253.9123983 | M192: -0.03558915991 | N192: -0.0002783046912 | O192: x | P192: x | Q192: x | R192: x
A193: 41759 | B193: 0 | C193: 586 | D193: 41487 | E193: 560 | F193: 831 | G193: 45 | H193: 4453 | I193: 9 | J193: 0.0141249066 | K193: 1 | L193: 65.82914029 | M193: 0.0125381652 | N193: -0.001586741396 | O193: x | P193: x | Q193: x | R193: x
A194: 41825 | B194: 13644 | C194: 1712 | D194: 140667 | E194: 796 | F194: 3510 | G194: 430 | H194: 16184 | I194: 35 | J194: =C194/D194 -> 0.01217058727 | K194: =IF(D194/1000<INDEX(sizeV,1),1,IF(D194/1000<INDEX(sizeV,2),2,IF(D194/1000<INDEX(sizeV,3),3,IF(D194/1000<INDEX(sizeV,4),4,IF(D194/1000<INDEX(sizeV,5),5,6))))) -> 3 | L194: =IF(B194=0,salRural*T$2,salUrban*T$2)*INDEX(nHires,K194) -> 169.2749322 | M194: =(C194-L194)/D194 -> 0.01096721383 | N194: =M194-J194 -> -0.001203373444 | O194: x | P194: x | Q194: x | R194: x
A195: 41937 | B195: 0 | C195: 282 | D195: 54144 | E195: 643 | F195: 1363 | G195: 157 | H195: 5319 | I195: 17 | J195: 0.005208333333 | K195: 2 | L195: 65.82914029 | M195: 0.003992517356 | N195: -0.001215815978 | O195: x | P195: x | Q195: x | R195: x
A196: 41955 | B196: 0 | C196: 240 | D196: 30965 | E196: 424 | F196: 975 | G196: 0 | H196: 3432 | I196: 9 | J196: 0.007750686259 | K196: 1 | L196: 65.82914029 | M196: 0.005624765371 | N196: -0.002125920888 | O196: x | P196: x | Q196: x | R196: x
A197: 42037 | B197: 0 | C197: 69 | D197: 58030 | E197: 789 | F197: 2577 | G197: 337 | H197: 8120 | I197: 34 | J197: 0.001189040152 | K197: 2 | L197: 65.82914029 | M197: 5.464173198e-05 | N197: -0.00113439842 | O197: x | P197: x | Q197: x | R197: x
A198: 42055 | B198: 0 | C198: 175 | D198: 58089 | E198: 753 | F198: 2837 | G198: 0 | H198: 6835 | I198: 30 | J198: 0.003012618568 | K198: 2 | L198: 65.82914029 | M198: 0.001879372337 | N198: -0.001133246231 | O198: x | P198: x | Q198: x | R198: x
A199: 42354 | B199: 0 | C199: 1979 | D199: 107159 | E199: 1125 | F199: 3135 | G199: 67 | H199: 15260 | I199: 31 | J199: 0.01846788417 | K199: 3 | L199: 131.6582806 | M199: 0.01723925867 | N199: -0.001228625506 | O199: x | P199: x | Q199: x | R199: x
A200: 42448 | B200: 0 | C200: 6506 | D200: 633689 | E200: 12992 | F200: 14418 | G200: 3748 | H200: 69625 | I200: 145 | J200: 0.01026686592 | K200: 5 | L200: 197.4874209 | M200: 0.009955218694 | N200: -0.000311647229 | O200: x | P200: x | Q200: x | R200: x
... 4300 more rows

Sheet 2008 data (hidden)
A1: id.rssd | B1: msa.cd | C1: nt.inc | D1: assets | E1: int.exp | F1: nonint.exp | G1: prov.exp | H1: equity | I1: fte | J1: roa | K1: asset.cohort | L1: addl reg exp | M1: new.roa | N1: delta | O1: newly unprof | P1: roe | Q1: new.roe | R1: delta | T1: 2008
A2: 37 | B2: 0 | C2: 708 | D2: 82383 | E2: 2139 | F2: 2317 | G2: 225 | H2: 16552 | I2: 23 | J2: =C2/D2 -> 0.008594006045 | K2: =IF(D2/1000<INDEX(sizeV,1),1,IF(D2/1000<INDEX(sizeV,2),2,IF(D2/1000<INDEX(sizeV,3),3,IF(D2/1000<INDEX(sizeV,4),4,IF(D2/1000<INDEX(sizeV,5),5,6))))) -> 2 | L2: =IF(B2=0,salRural*T$2,salUrban*T$2)*INDEX(nHires,K2) -> 64.02203022 | M2: =(C2-L2)/D2 -> 0.007816879329 | N2: =M2-J2 -> -0.0007771267158 | O2: x | P2: x | Q2: x | R2: x | T2: =VLOOKUP(T1,cpiAdj,2,FALSE) -> 0.9146004318 | W2: Asset | AC2: Change in ROA
A3: 242 | B3: 0 | C3: 485 | D3: 32560 | E3: 656 | F3: 902 | G3: 0 | H3: 4011 | I3: 13 | J3: 0.0148955774 | K3: 1 | L3: 64.02203022 | M3: 0.01292929883 | N3: -0.00196627857 | O3: x | P3: x | Q3: x | R3: x | V3: Size | W3: Size Max | X3: Addl | Y3: # of | AA3: Median | AB3: x | AC3: 25th pctile | AD3: 50th pctile | AE3: 75th pctile | AF3: Avg | AG3: Original | AH3: Newly | AJ3: Original | AK3: After Change
A4: 354 | B4: 0 | C4: 15 | D4: 8364 | E4: 142 | F4: 306 | G4: 0 | H4: 1006 | I4: 4 | J4: 0.001793400287 | K4: 1 | L4: 64.02203022 | M4: -0.005861074871 | N4: -0.007654475158 | O4: x | P4: x | Q4: x | R4: x | V4: Quintile | W4: ($MM) | X4: Hires | Y4: Banks | Z4: % | AA4: FTEs | AB4: x | AC4: (bps) | AD4: (bps) | AE4: (bps) | AF4: (bps) | AG4: Unprof | AH4: Unprof | AI4: Difference | AJ4: ROA < 40 | AK4: ROA < 40 | AL4: Difference
A5: 457 | B5: 0 | C5: 480 | D5: 32318 | E5: 754 | F5: 884 | G5: 225 | H5: 3141 | I5: 9 | J5: 0.01485240423 | K5: 1 | L5: 64.02203022 | M5: 0.012871402 | N5: -0.001981002235 | O5: x | P5: x | Q5: x | R5: x | U5: < $50M | V5: 1 | W5: x | X5: x | Y5: x | Z5: x | AA5: x | AB5: x | AC5: =PERCENTILE(IF($K$2:$K$7000=$V5,$N$2:$N$7000),0.25)*10000 -> -30.83802392 | AD5: =PERCENTILE(IF($K$2:$K$7000=$V5,$N$2:$N$7000),0.5)*10000 -> -21.49933391 | AE5: =PERCENTILE(IF($K$2:$K$7000=$V5,$N$2:$N$7000),0.75)*10000 -> -17.11022329 | AF5: =AVERAGE(IF($K$2:$K$7000=$V5,$N$2:$N$7000))*10000 -> -39.25266469 | AG5: =SUM(IF($K$2:$K$7000=$V5,IF($J$2:$J$7000<0,1,0))) -> 164 | AH5: =SUM(IF($K$2:$K$7000=$V5,IF($M$2:$M$7000<0,1,0))) -> 279 | AI5: =IF(INDEX(sizeV,V5)>0,AH5-AG5) -> 115 | AJ5: =SUM(IF($K$2:$K$7000=$V5,IF($J$2:$J$7000<0.004,1,0))) -> 318 | AK5: =SUM(IF($K$2:$K$7000=$V5,IF($M$2:$M$7000<0.004,1,0))) -> 474 | AL5: =IF(INDEX(sizeV,V5)>0,AK5-AJ5) -> 156
A6: 505 | B6: 10580 | C6: 2486 | D6: 356323 | E6: 6179 | F6: 10375 | G6: 1270 | H6: 24540 | I6: 109 | J6: 0.006976815979 | K6: 4 | L6: 164.6280777 | M6: 0.00651479675 | N6: -0.000462019229 | O6: x | P6: x | Q6: x | R6: x | U6: $50M - $100M | V6: 2 | W6: x | X6: x | Y6: x | Z6: x | AA6: x | AB6: x | AC6: =PERCENTILE(IF($K$2:$K$7000=$V6,$N$2:$N$7000),0.25)*10000 -> -11.50823426 | AD6: =PERCENTILE(IF($K$2:$K$7000=$V6,$N$2:$N$7000),0.5)*10000 -> -9.678978856 | AE6: =PERCENTILE(IF($K$2:$K$7000=$V6,$N$2:$N$7000),0.75)*10000 -> -8.247445538 | AF6: =AVERAGE(IF($K$2:$K$7000=$V6,$N$2:$N$7000))*10000 -> -10.00694915 | AG6: =SUM(IF($K$2:$K$7000=$V6,IF($J$2:$J$7000<0,1,0))) -> 180 | AH6: =SUM(IF($K$2:$K$7000=$V6,IF($M$2:$M$7000<0,1,0))) -> 222 | AI6: =IF(INDEX(sizeV,V6)>0,AH6-AG6) -> 42 | AJ6: =SUM(IF($K$2:$K$7000=$V6,IF($J$2:$J$7000<0.004,1,0))) -> 338 | AK6: =SUM(IF($K$2:$K$7000=$V6,IF($M$2:$M$7000<0.004,1,0))) -> 392 | AL6: =IF(INDEX(sizeV,V6)>0,AK6-AJ6) -> 54
A7: 1155 | B7: 0 | C7: 3632 | D7: 194317 | E7: 4354 | F7: 5216 | G7: 420 | H7: 16150 | I7: 53 | J7: 0.01869110783 | K7: 3 | L7: 128.0440604 | M7: 0.01803216363 | N7: -0.0006589442017 | O7: x | P7: x | Q7: x | R7: x | U7: $100M - $250M | V7: 3 | W7: x | X7: x | Y7: x | Z7: x | AA7: x | AB7: x | AC7: =PERCENTILE(IF($K$2:$K$7000=$V7,$N$2:$N$7000),0.25)*10000 -> -11.55434181 | AD7: =PERCENTILE(IF($K$2:$K$7000=$V7,$N$2:$N$7000),0.5)*10000 -> -9.273724107 | AE7: =PERCENTILE(IF($K$2:$K$7000=$V7,$N$2:$N$7000),0.75)*10000 -> -7.393531885 | AF7: =AVERAGE(IF($K$2:$K$7000=$V7,$N$2:$N$7000))*10000 -> -9.599151818 | AG7: =SUM(IF($K$2:$K$7000=$V7,IF($J$2:$J$7000<0,1,0))) -> 308 | AH7: =SUM(IF($K$2:$K$7000=$V7,IF($M$2:$M$7000<0,1,0))) -> 368 | AI7: =IF(INDEX(sizeV,V7)>0,AH7-AG7) -> 60 | AJ7: =SUM(IF($K$2:$K$7000=$V7,IF($J$2:$J$7000<0.004,1,0))) -> 578 | AK7: =SUM(IF($K$2:$K$7000=$V7,IF($M$2:$M$7000<0.004,1,0))) -> 658 | AL7: =IF(INDEX(sizeV,V7)>0,AK7-AJ7) -> 80
A8: 1351 | B8: 0 | C8: 2975 | D8: 131522 | E8: 3837 | F8: 2094 | G8: 90 | H8: 18067 | I8: 27 | J8: 0.02261978985 | K8: 3 | L8: 128.0440604 | M8: 0.02164623363 | N8: -0.0009735562145 | O8: x | P8: x | Q8: x | R8: x | U8: $250M - $500M | V8: 4 | W8: x | X8: x | Y8: x | Z8: x | AA8: x | AB8: x | AC8: =PERCENTILE(IF($K$2:$K$7000=$V8,$N$2:$N$7000),0.25)*10000 -> -5.102486989 | AD8: =PERCENTILE(IF($K$2:$K$7000=$V8,$N$2:$N$7000),0.5)*10000 -> -4.341413763 | AE8: =PERCENTILE(IF($K$2:$K$7000=$V8,$N$2:$N$7000),0.75)*10000 -> -3.704974508 | AF8: =AVERAGE(IF($K$2:$K$7000=$V8,$N$2:$N$7000))*10000 -> -4.448629555 | AG8: =SUM(IF($K$2:$K$7000=$V8,IF($J$2:$J$7000<0,1,0))) -> 208 | AH8: =SUM(IF($K$2:$K$7000=$V8,IF($M$2:$M$7000<0,1,0))) -> 220 | AI8: =IF(INDEX(sizeV,V8)>0,AH8-AG8) -> 12 | AJ8: =SUM(IF($K$2:$K$7000=$V8,IF($J$2:$J$7000<0.004,1,0))) -> 345 | AK8: =SUM(IF($K$2:$K$7000=$V8,IF($M$2:$M$7000<0.004,1,0))) -> 368 | AL8: =IF(INDEX(sizeV,V8)>0,AK8-AJ8) -> 23
A9: 1454 | B9: 16220 | C9: 8210 | D9: 457346 | E9: 4871 | F9: 14250 | G9: 563 | H9: 39228 | I9: 148 | J9: 0.01795139785 | K9: 4 | L9: 164.6280777 | M9: 0.01759143389 | N9: -0.000359963961 | O9: x | P9: x | Q9: x | R9: x | U9: $500M - $1B | V9: 5 | W9: x | X9: x | Y9: x | Z9: x | AA9: x | AB9: x | AC9: =PERCENTILE(IF($K$2:$K$7000=$V9,$N$2:$N$7000),0.25)*10000 -> -3.99331143 | AD9: =PERCENTILE(IF($K$2:$K$7000=$V9,$N$2:$N$7000),0.5)*10000 -> -3.455369344 | AE9: =PERCENTILE(IF($K$2:$K$7000=$V9,$N$2:$N$7000),0.75)*10000 -> -2.807289084 | AF9: =AVERAGE(IF($K$2:$K$7000=$V9,$N$2:$N$7000))*10000 -> -3.435725669 | AG9: =SUM(IF($K$2:$K$7000=$V9,IF($J$2:$J$7000<0,1,0))) -> 104 | AH9: =SUM(IF($K$2:$K$7000=$V9,IF($M$2:$M$7000<0,1,0))) -> 107 | AI9: =IF(INDEX(sizeV,V9)>0,AH9-AG9) -> 3 | AJ9: =SUM(IF($K$2:$K$7000=$V9,IF($J$2:$J$7000<0.004,1,0))) -> 192 | AK9: =SUM(IF($K$2:$K$7000=$V9,IF($M$2:$M$7000<0.004,1,0))) -> 207 | AL9: =IF(INDEX(sizeV,V9)>0,AK9-AJ9) -> 15
A10: 1557 | B10: 0 | C10: 496 | D10: 41927 | E10: 716 | F10: 915 | G10: 0 | H10: 5008 | I10: 11 | J10: 0.01183008563 | K10: 1 | L10: 64.02203022 | M10: 0.01030309752 | N10: -0.001526988104 | O10: x | P10: x | Q10: x | R10: x
A11: 1632 | B11: 0 | C11: 2371 | D11: 781624 | E11: 20343 | F11: 15664 | G11: 8207 | H11: 67285 | I11: 130 | J11: 0.003033427837 | K11: 5 | L11: 192.0660907 | M11: 0.002787700876 | N11: -0.0002457269617 | O11: x | P11: x | Q11: x | R11: x
A12: 1669 | B12: 0 | C12: 2872 | D12: 238495 | E12: 3912 | F12: 4917 | G12: 348 | H12: 41340 | I12: 61 | J12: 0.01204218118 | K12: 3 | L12: 128.0440604 | M12: 0.01150529755 | N12: -0.0005368836263 | O12: x | P12: x | Q12: x | R12: x | W12: Percentiles of ROA (before)
A13: 1829 | B13: 38300 | C13: 3031 | D13: 374805 | E13: 8085 | F13: 10182 | G13: 270 | H13: 39119 | I13: 91 | J13: 0.00808687184 | K13: 4 | L13: 164.6280777 | M13: 0.00764763523 | N13: -0.0004392366103 | O13: x | P13: x | Q13: x | R13: x | V13: Cohort | W13: 25 | X13: 50 | Y13: 75
A14: 1856 | B14: 0 | C14: 4620 | D14: 241475 | E14: 7469 | F14: 1424 | G14: 12 | H14: 18928 | I14: 12 | J14: 0.01913241536 | K14: 3 | L14: 128.0440604 | M14: 0.01860215732 | N14: -0.000530258041 | O14: x | P14: x | Q14: x | R14: x | V14: 1 | W14: =PERCENTILE(IF($K$2:$K$7000=$V14,$J$2:$J$7000),W$13/100) -> 0.003262675529 | X14: =PERCENTILE(IF($K$2:$K$7000=$V14,$J$2:$J$7000),X$13/100) -> 0.007515089204 | Y14: =PERCENTILE(IF($K$2:$K$7000=$V14,$J$2:$J$7000),Y$13/100) -> 0.01157135428
A15: 2040 | B15: 0 | C15: 328 | D15: 205119 | E15: 5278 | F15: 4586 | G15: 4010 | H15: 18074 | I15: 46 | J15: 0.001599071758 | K15: 3 | L15: 128.0440604 | M15: 0.0009748289508 | N15: -0.0006242428076 | O15: x | P15: x | Q15: x | R15: x | V15: 2 | W15: =PERCENTILE(IF($K$2:$K$7000=$V15,$J$2:$J$7000),W$13/100) -> 0.003673069489 | X15: =PERCENTILE(IF($K$2:$K$7000=$V15,$J$2:$J$7000),X$13/100) -> 0.008785531296 | Y15: =PERCENTILE(IF($K$2:$K$7000=$V15,$J$2:$J$7000),Y$13/100) -> 0.01308188718
A16: 2161 | B16: 0 | C16: 1352 | D16: 110035 | E16: 1979 | F16: 3322 | G16: 24 | H16: 11715 | I16: 32 | J16: 0.01228699959 | K16: 3 | L16: 128.0440604 | M16: 0.01112333294 | N16: -0.001163666656 | O16: x | P16: x | Q16: x | R16: x | V16: 3 | W16: =PERCENTILE(IF($K$2:$K$7000=$V16,$J$2:$J$7000),W$13/100) -> 0.002916000376 | X16: =PERCENTILE(IF($K$2:$K$7000=$V16,$J$2:$J$7000),X$13/100) -> 0.007833858397 | Y16: =PERCENTILE(IF($K$2:$K$7000=$V16,$J$2:$J$7000),Y$13/100) -> 0.01205415674
A17: 2451 | B17: 0 | C17: -1597 | D17: 41163 | E17: 1125 | F17: 2287 | G17: 1897 | H17: 3296 | I17: 20 | J17: -0.03879697787 | K17: 1 | L17: 64.02203022 | M17: -0.04035230742 | N17: -0.001555329549 | O17: x | P17: x | Q17: x | R17: x | V17: 4 | W17: =PERCENTILE(IF($K$2:$K$7000=$V17,$J$2:$J$7000),W$13/100) -> 0.001287477612 | X17: =PERCENTILE(IF($K$2:$K$7000=$V17,$J$2:$J$7000),X$13/100) -> 0.006978595235 | Y17: =PERCENTILE(IF($K$2:$K$7000=$V17,$J$2:$J$7000),Y$13/100) -> 0.01126276684
A18: 2554 | B18: 0 | C18: 144 | D18: 10202 | E18: 149 | F18: 216 | G18: 20 | H18: 1103 | I18: 4 | J18: 0.01411487944 | K18: 1 | L18: 64.02203022 | M18: 0.007839440284 | N18: -0.006275439152 | O18: x | P18: x | Q18: x | R18: x | V18: 5 | W18: =PERCENTILE(IF($K$2:$K$7000=$V18,$J$2:$J$7000),W$13/100) -> 0.001841237768 | X18: =PERCENTILE(IF($K$2:$K$7000=$V18,$J$2:$J$7000),X$13/100) -> 0.006611170247 | Y18: =PERCENTILE(IF($K$2:$K$7000=$V18,$J$2:$J$7000),Y$13/100) -> 0.01040004122
A19: 2732 | B19: 16974 | C19: 6583 | D19: 512866 | E19: 9277 | F19: 10949 | G19: 300 | H19: 71631 | I19: 100 | J19: 0.01283571147 | K19: 5 | L19: 246.9421166 | M19: 0.01235421705 | N19: -0.0004814944188 | O19: x | P19: x | Q19: x | R19: x
A20: 2750 | B20: 0 | C20: 254 | D20: 54793 | E20: 1489 | F20: 1216 | G20: 153 | H20: 5145 | I20: 11 | J20: 0.004635628639 | K20: 2 | L20: 64.02203022 | M20: 0.003467194163 | N20: -0.001168434476 | O20: x | P20: x | Q20: x | R20: x
A21: 2938 | B21: 10500 | C21: 1200 | D21: 429855 | E21: 9686 | F21: 9089 | G21: 4759 | H21: 32005 | I21: 77 | J21: 0.002791639041 | K21: 4 | L21: 164.6280777 | M21: 0.0024086539 | N21: -0.0003829851409 | O21: x | P21: x | Q21: x | R21: x | W21: Percentiles of ROA (after)
A22: 3252 | B22: 0 | C22: 3517 | D22: 142710 | E22: 2112 | F22: 2911 | G22: 330 | H22: 15928 | I22: 35 | J22: 0.02464438372 | K22: 3 | L22: 128.0440604 | M22: 0.02374715114 | N22: -0.0008972325727 | O22: x | P22: x | Q22: x | R22: x | V22: Cohort | W22: 25 | X22: 50 | Y22: 75
A23: 3458 | B23: 0 | C23: 96 | D23: 30598 | E23: 749 | F23: 845 | G23: 30 | H23: 3098 | I23: 10 | J23: 0.003137459965 | K23: 1 | L23: 64.02203022 | M23: 0.001045099999 | N23: -0.002092359966 | O23: x | P23: x | Q23: x | R23: x | V23: 1 | W23: =PERCENTILE(IF($K$2:$K$7000=$V23,$M$2:$M$7000),W$13/100) -> -2.728785907e-05 | X23: =PERCENTILE(IF($K$2:$K$7000=$V23,$M$2:$M$7000),X$13/100) -> 0.005055162291 | Y23: =PERCENTILE(IF($K$2:$K$7000=$V23,$M$2:$M$7000),Y$13/100) -> 0.009185084113
A24: 3720 | B24: 0 | C24: 2119 | D24: 177912 | E24: 3129 | F24: 5782 | G24: 196 | H24: 24442 | I24: 59 | J24: 0.01191038266 | K24: 3 | L24: 128.0440604 | M24: 0.0111906782 | N24: -0.0007197044632 | O24: x | P24: x | Q24: x | R24: x | V24: 2 | W24: =PERCENTILE(IF($K$2:$K$7000=$V24,$M$2:$M$7000),W$13/100) -> 0.002677873275 | X24: =PERCENTILE(IF($K$2:$K$7000=$V24,$M$2:$M$7000),X$13/100) -> 0.007748565872 | Y24: =PERCENTILE(IF($K$2:$K$7000=$V24,$M$2:$M$7000),Y$13/100) -> 0.0121036902
A25: 3953 | B25: 36420 | C25: 2732 | D25: 127365 | E25: 2062 | F25: 4386 | G25: 1025 | H25: 9359 | I25: 40 | J25: 0.02145016292 | K25: 3 | L25: 164.6280777 | M25: 0.02015759371 | N25: -0.001292569212 | O25: x | P25: x | Q25: x | R25: x | V25: 3 | W25: =PERCENTILE(IF($K$2:$K$7000=$V25,$M$2:$M$7000),W$13/100) -> 0.001965793488 | X25: =PERCENTILE(IF($K$2:$K$7000=$V25,$M$2:$M$7000),X$13/100) -> 0.00688896024 | Y25: =PERCENTILE(IF($K$2:$K$7000=$V25,$M$2:$M$7000),Y$13/100) -> 0.01116758977
A26: 4138 | B26: 0 | C26: -2677 | D26: 200047 | E26: 5063 | F26: 9290 | G26: 4419 | H26: 14759 | I26: 75 | J26: -0.01338185526 | K26: 3 | L26: 128.0440604 | M26: -0.01402192515 | N26: -0.0006400698858 | O26: x | P26: x | Q26: x | R26: x | V26: 4 | W26: =PERCENTILE(IF($K$2:$K$7000=$V26,$M$2:$M$7000),W$13/100) -> 0.0007571398873 | X26: =PERCENTILE(IF($K$2:$K$7000=$V26,$M$2:$M$7000),X$13/100) -> 0.006517124031 | Y26: =PERCENTILE(IF($K$2:$K$7000=$V26,$M$2:$M$7000),Y$13/100) -> 0.01083592362
A27: 4156 | B27: 0 | C27: 2746 | D27: 202585 | E27: 3948 | F27: 5285 | G27: 153 | H27: 18465 | I27: 59 | J27: 0.01355480416 | K27: 3 | L27: 128.0440604 | M27: 0.01292275311 | N27: -0.0006320510425 | O27: x | P27: x | Q27: x | R27: x | V27: 5 | W27: =PERCENTILE(IF($K$2:$K$7000=$V27,$M$2:$M$7000),W$13/100) -> 0.001510311826 | X27: =PERCENTILE(IF($K$2:$K$7000=$V27,$M$2:$M$7000),X$13/100) -> 0.006239452585 | Y27: =PERCENTILE(IF($K$2:$K$7000=$V27,$M$2:$M$7000),Y$13/100) -> 0.01002326226
A28: 4231 | B28: 0 | C28: 1079 | D28: 124859 | E28: 3636 | F28: 2910 | G28: 500 | H28: 14232 | I28: 34 | J28: 0.008641747892 | K28: 3 | L28: 128.0440604 | M28: 0.007616238634 | N28: -0.001025509258 | O28: x | P28: x | Q28: x | R28: x
A29: 4437 | B29: 0 | C29: 2762 | D29: 234645 | E29: 5308 | F29: 5773 | G29: 400 | H29: 23303 | I29: 63 | J29: 0.01177097317 | K29: 3 | L29: 128.0440604 | M29: 0.01122528049 | N29: -0.0005456926866 | O29: x | P29: x | Q29: x | R29: x
A30: 4839 | B30: 16974 | C30: 550 | D30: 308214 | E30: 7815 | F30: 8933 | G30: 1715 | H30: 24070 | I30: 87 | J30: 0.001784474424 | K30: 4 | L30: 164.6280777 | M30: 0.001250338798 | N30: -0.0005341356256 | O30: x | P30: x | Q30: x | R30: x
A31: 5069 | B31: 31084 | C31: 14398 | D31: 490928 | E31: 10272 | F31: 2083 | G31: 1000 | H31: 94901 | I31: 28 | J31: 0.02932812958 | K31: 4 | L31: 164.6280777 | M31: 0.02899278901 | N31: -0.0003353405748 | O31: x | P31: x | Q31: x | R31: x
A32: 5135 | B32: 0 | C32: 2850 | D32: 310642 | E32: 8218 | F32: 6853 | G32: 475 | H32: 33864 | I32: 57 | J32: 0.009174548194 | K32: 4 | L32: 128.0440604 | M32: 0.008762356473 | N32: -0.0004121917205 | O32: x | P32: x | Q32: x | R32: x
A33: 5210 | B33: 0 | C33: 5895 | D33: 960896 | E33: 18596 | F33: 22496 | G33: 5570 | H33: 72694 | I33: 240 | J33: 0.006134899094 | K33: 5 | L33: 192.0660907 | M33: 0.005935016807 | N33: -0.0001998822876 | O33: x | P33: x | Q33: x | R33: x
A34: 5331 | B34: 16974 | C34: 1952 | D34: 336888 | E34: 8301 | F34: 8707 | G34: 2250 | H34: 23315 | I34: 85 | J34: 0.005794210539 | K34: 4 | L34: 164.6280777 | M34: 0.005305537515 | N34: -0.000488673024 | O34: x | P34: x | Q34: x | R34: x
A35: 5461 | B35: 44700 | C35: 6675 | D35: 431375 | E35: 4722 | F35: 14928 | G35: 824 | H35: 41199 | I35: 132 | J35: 0.01547377572 | K35: 4 | L35: 164.6280777 | M35: 0.01509214007 | N35: -0.0003816356481 | O35: x | P35: x | Q35: x | R35: x
A36: 5751 | B36: 0 | C36: 2255 | D36: 118933 | E36: 1765 | F36: 2052 | G36: 0 | H36: 23356 | I36: 20 | J36: 0.01896025493 | K36: 3 | L36: 128.0440604 | M36: 0.01788364827 | N36: -0.001076606665 | O36: x | P36: x | Q36: x | R36: x
A37: 6039 | B37: 0 | C37: 594 | D37: 88594 | E37: 2026 | F37: 2919 | G37: 274 | H37: 9593 | I37: 28 | J37: 0.006704742985 | K37: 2 | L37: 64.02203022 | M37: 0.005982097769 | N37: -0.0007226452155 | O37: x | P37: x | Q37: x | R37: x
A38: 6141 | B38: 0 | C38: 264 | D38: 45856 | E38: 777 | F38: 1077 | G38: 60 | H38: 4374 | I38: 11 | J38: 0.005757152826 | K38: 1 | L38: 64.02203022 | M38: 0.004360998992 | N38: -0.001396153834 | O38: x | P38: x | Q38: x | R38: x
A39: 6329 | B39: 0 | C39: 3194 | D39: 427302 | E39: 10786 | F39: 17849 | G39: 3200 | H39: 36093 | I39: 186 | J39: 0.007474807045 | K39: 4 | L39: 128.0440604 | M39: 0.007175149987 | N39: -0.0002996570586 | O39: x | P39: x | Q39: x | R39: x
A40: 6972 | B40: 38900 | C40: -21735 | D40: 982315 | E40: 15895 | F40: 38362 | G40: 31912 | H40: 79297 | I40: 289 | J40: -0.02212630368 | K40: 5 | L40: 246.9421166 | M40: -0.02237769159 | N40: -0.0002513879118 | O40: x | P40: x | Q40: x | R40: x
A41: 7009 | B41: 20764 | C41: 7111 | D41: 670557 | E41: 7041 | F41: 56551 | G41: 0 | H41: 45642 | I41: 62 | J41: 0.01060461676 | K41: 5 | L41: 246.9421166 | M41: 0.01023635259 | N41: -0.0003682641693 | O41: x | P41: x | Q41: x | R41: x
A42: 7045 | B42: 0 | C42: 1295 | D42: 122139 | E42: 1791 | F42: 3095 | G42: 150 | H42: 13409 | I42: 45 | J42: 0.010602674 | K42: 3 | L42: 128.0440604 | M42: 0.009554326952 | N42: -0.001048347051 | O42: x | P42: x | Q42: x | R42: x
A43: 7157 | B43: 0 | C43: 287 | D43: 38448 | E43: 935 | F43: 922 | G43: 58 | H43: 4326 | I43: 8 | J43: 0.007464627549 | K43: 1 | L43: 64.02203022 | M43: 0.005799468627 | N43: -0.001665158922 | O43: x | P43: x | Q43: x | R43: x
A44: 7456 | B44: 0 | C44: 513 | D44: 48998 | E44: 1014 | F44: 1416 | G44: 150 | H44: 4648 | I44: 13 | J44: 0.01046981509 | K44: 1 | L44: 64.02203022 | M44: 0.009163189717 | N44: -0.001306625377 | O44: x | P44: x | Q44: x | R44: x
A45: 7634 | B45: 0 | C45: 760 | D45: 86325 | E45: 2527 | F45: 1712 | G45: 312 | H45: 6802 | I45: 13 | J45: 0.008803938604 | K45: 2 | L45: 64.02203022 | M45: 0.0080622991 | N45: -0.0007416395045 | O45: x | P45: x | Q45: x | R45: x
A46: 8033 | B46: 12940 | C46: 1464 | D46: 122281 | E46: 3016 | F46: 2973 | G46: 0 | H46: 12086 | I46: 33 | J46: 0.01197242417 | K46: 3 | L46: 164.6280777 | M46: 0.01062611462 | N46: -0.001346309547 | O46: x | P46: x | Q46: x | R46: x
A47: 8462 | B47: 0 | C47: 2120 | D47: 120787 | E47: 1473 | F47: 2008 | G47: 10 | H47: 13401 | I47: 23 | J47: 0.0175515577 | K47: 3 | L47: 128.0440604 | M47: 0.01649147623 | N47: -0.001060081469 | O47: x | P47: x | Q47: x | R47: x
A48: 8631 | B48: 37620 | C48: 481 | D48: 54333 | E48: 916 | F48: 1794 | G48: 55 | H48: 6473 | I48: 21 | J48: 0.008852815048 | K48: 2 | L48: 82.31403886 | M48: 0.007337823443 | N48: -0.001514991605 | O48: x | P48: x | Q48: x | R48: x
A49: 9357 | B49: 33460 | C49: 4177 | D49: 337060 | E49: 3645 | F49: 7232 | G49: 1665 | H49: 54994 | I49: 54 | J49: 0.01239245238 | K49: 4 | L49: 164.6280777 | M49: 0.01190402873 | N49: -0.0004884236567 | O49: x | P49: x | Q49: x | R49: x
A50: 9553 | B50: 0 | C50: 767 | D50: 79442 | E50: 1966 | F50: 1597 | G50: 125 | H50: 7801 | I50: 12 | J50: 0.009654842527 | K50: 2 | L50: 64.02203022 | M50: 0.008848946021 | N50: -0.0008058965059 | O50: x | P50: x | Q50: x | R50: x
A51: 9955 | B51: 0 | C51: 942 | D51: 89188 | E51: 1103 | F51: 3147 | G51: 304 | H51: 11040 | I51: 29 | J51: 0.01056195901 | K51: 2 | L51: 64.02203022 | M51: 0.009844126674 | N51: -0.0007178323342 | O51: x | P51: x | Q51: x | R51: x
A52: 10157 | B52: 0 | C52: -332 | D52: 53857 | E52: 897 | F52: 1805 | G52: 1271 | H52: 5184 | I52: 17 | J52: -0.006164472585 | K52: 2 | L52: 64.02203022 | M52: -0.0073532137 | N52: -0.001188741115 | O52: x | P52: x | Q52: x | R52: x
A53: 10250 | B53: 33460 | C53: 3653 | D53: 468807 | E53: 13035 | F53: 12293 | G53: 1370 | H53: 36973 | I53: 120 | J53: 0.007792119145 | K53: 4 | L53: 164.6280777 | M53: 0.007440955281 | N53: -0.0003511638643 | O53: x | P53: x | Q53: x | R53: x
A54: 10849 | B54: 30780 | C54: 1966 | D54: 330464 | E54: 8625 | F54: 7836 | G54: 2280 | H54: 29340 | I54: 68 | J54: 0.005949210807 | K54: 4 | L54: 164.6280777 | M54: 0.005451038305 | N54: -0.0004981725021 | O54: x | P54: x | Q54: x | R54: x
A55: 10858 | B55: 0 | C55: 2572 | D55: 434272 | E55: 10060 | F55: 13318 | G55: 5990 | H55: 38252 | I55: 133 | J55: 0.005922555449 | K55: 4 | L55: 128.0440604 | M55: 0.005627707841 | N55: -0.0002948476081 | O55: x | P55: x | Q55: x | R55: x
A56: 11145 | B56: 0 | C56: 1115 | D56: 158148 | E56: 3580 | F56: 5138 | G56: 955 | H56: 15974 | I56: 58 | J56: 0.007050357893 | K56: 3 | L56: 128.0440604 | M56: 0.00624071085 | N56: -0.0008096470423 | O56: x | P56: x | Q56: x | R56: x
A57: 11640 | B57: 0 | C57: 3475 | D57: 288252 | E57: 6063 | F57: 7521 | G57: 540 | H57: 24837 | I57: 54 | J57: 0.01205542373 | K57: 4 | L57: 128.0440604 | M57: 0.01161121498 | N57: -0.0004442087495 | O57: x | P57: x | Q57: x | R57: x
A58: 11837 | B58: 0 | C58: 762 | D58: 103203 | E58: 2624 | F58: 2277 | G58: 600 | H58: 11044 | I58: 20 | J58: 0.007383506293 | K58: 3 | L58: 128.0440604 | M58: 0.00614280534 | N58: -0.001240700953 | O58: x | P58: x | Q58: x | R58: x
A59: 12030 | B59: 0 | C59: 3779 | D59: 342672 | E59: 11118 | F59: 7730 | G59: 3950 | H59: 32628 | I59: 95 | J59: 0.01102803847 | K59: 4 | L59: 128.0440604 | M59: 0.01065437485 | N59: -0.0003736636213 | O59: x | P59: x | Q59: x | R59: x
A60: 12142 | B60: 0 | C60: 1130 | D60: 157338 | E60: 2439 | F60: 5441 | G60: 285 | H60: 19133 | I60: 65 | J60: 0.007181990365 | K60: 3 | L60: 128.0440604 | M60: 0.006368175136 | N60: -0.0008138152287 | O60: x | P60: x | Q60: x | R60: x
A61: 12245 | B61: 0 | C61: 982 | D61: 112360 | E61: 2351 | F61: 3411 | G61: 215 | H61: 12162 | I61: 43 | J61: 0.008739765041 | K61: 3 | L61: 128.0440604 | M61: 0.007600177461 | N61: -0.00113958758 | O61: x | P61: x | Q61: x | R61: x
A62: 12647 | B62: 0 | C62: 800 | D62: 86834 | E62: 1890 | F62: 2146 | G62: 94 | H62: 8589 | I62: 26 | J62: 0.00921298109 | K62: 2 | L62: 64.02203022 | M62: 0.008475688898 | N62: -0.0007372921923 | O62: x | P62: x | Q62: x | R62: x
A63: 12656 | B63: 0 | C63: 81 | D63: 13411 | E63: 299 | F63: 649 | G63: 12 | H63: 1161 | I63: 8 | J63: 0.00603981806 | K63: 1 | L63: 64.02203022 | M63: 0.001265973438 | N63: -0.004773844622 | O63: x | P63: x | Q63: x | R63: x
A64: 12937 | B64: 16974 | C64: 1024 | D64: 196070 | E64: 3169 | F64: 4726 | G64: 72 | H64: 31473 | I64: 40 | J64: 0.005222624573 | K64: 3 | L64: 164.6280777 | M64: 0.004382985272 | N64: -0.0008396393009 | O64: x | P64: x | Q64: x | R64: x
A65: 12946 | B65: 0 | C65: 9688 | D65: 622432 | E65: 14427 | F65: 13743 | G65: 2008 | H65: 59977 | I65: 154 | J65: 0.01556475245 | K65: 5 | L65: 192.0660907 | M65: 0.01525617884 | N65: -0.0003085736123 | O65: x | P65: x | Q65: x | R65: x
A66: 12955 | B66: 36540 | C66: 483 | D66: 120132 | E66: 2629 | F66: 5072 | G66: 439 | H66: 11189 | I66: 51 | J66: =C66/D66 -> 0.004020577365 | K66: =IF(D66/1000<INDEX(sizeV,1),1,IF(D66/1000<INDEX(sizeV,2),2,IF(D66/1000<INDEX(sizeV,3),3,IF(D66/1000<INDEX(sizeV,4),4,IF(D66/1000<INDEX(sizeV,5),5,6))))) -> 3 | L66: =IF(B66=0,salRural*T$2,salUrban*T$2)*INDEX(nHires,K66) -> 164.6280777 | M66: =(C66-L66)/D66 -> 0.00265018415 | N66: =M66-J66 -> -0.001370393215 | O66: x | P66: x | Q66: x | R66: x
A67: 13037 | B67: 0 | C67: 891 | D67: 170209 | E67: 1739 | F67: 3439 | G67: 0 | H67: 30198 | I67: 45 | J67: 0.005234740819 | K67: 3 | L67: 128.0440604 | M67: 0.004482465319 | N67: -0.0007522754992 | O67: x | P67: x | Q67: x | R67: x
A68: 13251 | B68: 0 | C68: 401 | D68: 36085 | E68: 801 | F68: 858 | G68: 375 | H68: 3394 | I68: 8 | J68: 0.01111265069 | K68: 1 | L68: 64.02203022 | M68: 0.009338450042 | N68: -0.001774200644 | O68: x | P68: x | Q68: x | R68: x
A69: 13457 | B69: 0 | C69: 70 | D69: 20240 | E69: 388 | F69: 883 | G69: 0 | H69: 5410 | I69: 4 | J69: 0.003458498024 | K69: 1 | L69: 64.02203022 | M69: 0.0002953542379 | N69: -0.003163143786 | O69: x | P69: x | Q69: x | R69: x
A70: 14052 | B70: 0 | C70: 591 | D70: 72769 | E70: 1485 | F70: 2078 | G70: 213 | H70: 6242 | I70: 24 | J70: 0.008121590238 | K70: 2 | L70: 64.02203022 | M70: 0.007241792106 | N70: -0.0008797981314 | O70: x | P70: x | Q70: x | R70: x
A71: 14155 | B71: 0 | C71: 1486 | D71: 118027 | E71: 2545 | F71: 4446 | G71: 932 | H71: 12415 | I71: 51 | J71: 0.0125903395 | K71: 3 | L71: 128.0440604 | M71: 0.01150546858 | N71: -0.001084870923 | O71: x | P71: x | Q71: x | R71: x
A72: 14454 | B72: 0 | C72: -249 | D72: 29587 | E72: 567 | F72: 1337 | G72: 100 | H72: 5551 | I72: 7 | J72: -0.008415858316 | K72: 1 | L72: 64.02203022 | M72: -0.01057971509 | N72: -0.002163856769 | O72: x | P72: x | Q72: x | R72: x
A73: 14650 | B73: 0 | C73: 375 | D73: 24060 | E73: 327 | F73: 1173 | G73: 197 | H73: 2360 | I73: 15 | J73: 0.01558603491 | K73: 1 | L73: 64.02203022 | M73: 0.01292510265 | N73: -0.002660932262 | O73: x | P73: x | Q73: x | R73: x
A74: 14753 | B74: 0 | C74: 181 | D74: 34005 | E74: 679 | F74: 903 | G74: 0 | H74: 3202 | I74: 10 | J74: 0.005322746655 | K74: 1 | L74: 64.02203022 | M74: 0.003440022637 | N74: -0.001882724018 | O74: x | P74: x | Q74: x | R74: x
A75: 14865 | B75: 0 | C75: 2333 | D75: 227932 | E75: 3522 | F75: 8265 | G75: 1778 | H75: 20669 | I75: 94 | J75: 0.01023550884 | K75: 3 | L75: 128.0440604 | M75: 0.009673744536 | N75: -0.0005617643001 | O75: x | P75: x | Q75: x | R75: x
A76: 16337 | B76: 45220 | C76: 3122 | D76: 500386 | E76: 13406 | F76: 15334 | G76: 1675 | H76: 43038 | I76: 148 | J76: 0.00623918335 | K76: 5 | L76: 246.9421166 | M76: 0.005745680102 | N76: -0.0004935032487 | O76: x | P76: x | Q76: x | R76: x
A77: 16458 | B77: 29940 | C77: 2102 | D77: 228522 | E77: 2644 | F77: 8891 | G77: 15 | H77: 30649 | I77: 80 | J77: 0.009198239119 | K77: 3 | L77: 164.6280777 | M77: 0.008477835492 | N77: -0.0007204036273 | O77: x | P77: x | Q77: x | R77: x
A78: 16551 | B78: 0 | C78: 1441 | D78: 161877 | E78: 4509 | F78: 4788 | G78: 400 | H78: 15929 | I78: 52 | J78: 0.008901820518 | K78: 3 | L78: 128.0440604 | M78: 0.008110824512 | N78: -0.0007909960059 | O78: x | P78: x | Q78: x | R78: x
A79: 16748 | B79: 21780 | C79: 271 | D79: 53565 | E79: 1096 | F79: 1654 | G79: 125 | H79: 5159 | I79: 17 | J79: 0.00505927378 | K79: 2 | L79: 82.31403886 | M79: 0.003522560649 | N79: -0.001536713131 | O79: x | P79: x | Q79: x | R79: x
A80: 16944 | B80: 28020 | C80: 106 | D80: 33095 | E80: 483 | F80: 1207 | G80: 0 | H80: 4198 | I80: 13 | J80: 0.00320290074 | K80: 1 | L80: 82.31403886 | M80: 0.000715696061 | N80: -0.002487204679 | O80: x | P80: x | Q80: x | R80: x
A81: 16953 | B81: 24220 | C81: 217 | D81: 31496 | E81: 520 | F81: 964 | G81: 45 | H81: 5267 | I81: 7 | J81: 0.00688976378 | K81: 1 | L81: 82.31403886 | M81: 0.004276287819 | N81: -0.002613475961 | O81: x | P81: x | Q81: x | R81: x
A82: 17110 | B82: 37964 | C82: 744 | D82: 114788 | E82: 2872 | F82: 18151 | G82: 0 | H82: 15556 | I82: 56 | J82: 0.006481513747 | K82: 3 | L82: 164.6280777 | M82: 0.005047321343 | N82: -0.001434192404 | O82: x | P82: x | Q82: x | R82: x
A83: 17259 | B83: 0 | C83: 1013 | D83: 64625 | E83: 1441 | F83: 2116 | G83: 84 | H83: 6562 | I83: 28 | J83: 0.01567504836 | K83: 2 | L83: 64.02203022 | M83: 0.01468437864 | N83: -0.0009906697133 | O83: x | P83: x | Q83: x | R83: x
A84: 17839 | B84: 0 | C84: 2515 | D84: 208980 | E84: 4387 | F84: 4603 | G84: 701 | H84: 16031 | I84: 44 | J84: 0.01203464446 | K84: 3 | L84: 128.0440604 | M84: 0.01142193482 | N84: -0.0006127096394 | O84: x | P84: x | Q84: x | R84: x
A85: 17950 | B85: 13740 | C85: 1937 | D85: 230860 | E85: 5095 | F85: 5825 | G85: 240 | H85: 19385 | I85: 67 | J85: 0.008390366456 | K85: 3 | L85: 164.6280777 | M85: 0.007677258608 | N85: -0.0007131078477 | O85: x | P85: x | Q85: x | R85: x
A86: 18050 | B86: 12420 | C86: 5649 | D86: 297010 | E86: 4382 | F86: 10151 | G86: 120 | H86: 35305 | I86: 118 | J86: 0.01901956163 | K86: 4 | L86: 164.6280777 | M86: 0.018465277 | N86: -0.0005542846292 | O86: x | P86: x | Q86: x | R86: x
A87: 18135 | B87: 16974 | C87: 1401 | D87: 213972 | E87: 3851 | F87: 7744 | G87: 300 | H87: 17803 | I87: 53 | J87: 0.006547585665 | K87: 3 | L87: 164.6280777 | M87: 0.005778194915 | N87: -0.0007693907508 | O87: x | P87: x | Q87: x | R87: x
A88: 18827 | B88: 38300 | C88: 1960 | D88: 351393 | E88: 4443 | F88: 6660 | G88: 1090 | H88: 36272 | I88: 81 | J88: 0.005577800355 | K88: 4 | L88: 164.6280777 | M88: 0.005109299053 | N88: -0.0004685013012 | O88: x | P88: x | Q88: x | R88: x
A89: 18836 | B89: 0 | C89: 1837 | D89: 145915 | E89: 3738 | F89: 4635 | G89: 401 | H89: 13271 | I89: 52 | J89: 0.0125895213 | K89: 3 | L89: 128.0440604 | M89: 0.0117119963 | N89: -0.0008775250005 | O89: x | P89: x | Q89: x | R89: x
A90: 18854 | B90: 36420 | C90: 1007 | D90: 107630 | E90: 2968 | F90: 2347 | G90: 345 | H90: 7932 | I90: 24 | J90: 0.009356127474 | K90: 3 | L90: 164.6280777 | M90: 0.007826553213 | N90: -0.001529574261 | O90: x | P90: x | Q90: x | R90: x
A91: 18957 | B91: 45820 | C91: -1779 | D91: 52206 | E91: 1635 | F91: 1649 | G91: 2123 | H91: 2547 | I91: 16 | J91: -0.03407654293 | K91: 2 | L91: 82.31403886 | M91: -0.03565325899 | N91: -0.001576716064 | O91: x | P91: x | Q91: x | R91: x
A92: 19356 | B92: 0 | C92: 583 | D92: 80139 | E92: 1620 | F92: 2205 | G92: 698 | H92: 7966 | I92: 30 | J92: 0.007274859931 | K92: 2 | L92: 64.02203022 | M92: 0.00647597262 | N92: -0.0007988873111 | O92: x | P92: x | Q92: x | R92: x
A93: 19936 | B93: 0 | C93: 1553 | D93: 226701 | E93: 5531 | F93: 6684 | G93: 1164 | H93: 18277 | I93: 54 | J93: 0.006850432949 | K93: 3 | L93: 128.0440604 | M93: 0.006285618235 | N93: -0.0005648147139 | O93: x | P93: x | Q93: x | R93: x
A94: 20053 | B94: 20740 | C94: -1415 | D94: 77578 | E94: 2143 | F94: 3307 | G94: 1269 | H94: 8646 | I94: 19 | J94: -0.01823970713 | K94: 2 | L94: 82.31403886 | M94: -0.01930075587 | N94: -0.001061048736 | O94: x | P94: x | Q94: x | R94: x
A95: 20147 | B95: 0 | C95: -23 | D95: 68556 | E95: 88 | F95: 253 | G95: 0 | H95: 5601 | I95: 28 | J95: -0.0003354921524 | K95: 2 | L95: 64.02203022 | M95: -0.001269356879 | N95: -0.000933864727 | O95: x | P95: x | Q95: x | R95: x
A96: 20370 | B96: 42644 | C96: 186 | D96: 207451 | E96: 4641 | F96: 8378 | G96: 1829 | H96: 18497 | I96: 70 | J96: 0.0008965972688 | K96: 3 | L96: 164.6280777 | M96: 0.0001030215438 | N96: -0.000793575725 | O96: x | P96: x | Q96: x | R96: x
A97: 20512 | B97: 0 | C97: 653 | D97: 101666 | E97: 2341 | F97: 2654 | G97: 83 | H97: 8573 | I97: 26 | J97: 0.006422992938 | K97: 3 | L97: 128.0440604 | M97: 0.005163534904 | N97: -0.001259458034 | O97: x | P97: x | Q97: x | R97: x
A98: 20633 | B98: 0 | C98: 1047 | D98: 268980 | E98: 6771 | F98: 7602 | G98: 240 | H98: 23825 | I98: 87 | J98: 0.003892482712 | K98: 4 | L98: 128.0440604 | M98: 0.003416447095 | N98: -0.0004760356177 | O98: x | P98: x | Q98: x | R98: x
A99: 20857 | B99: 0 | C99: 3302 | D99: 148070 | E99: 1809 | F99: 2129 | G99: 20 | H99: 12669 | I99: 16 | J99: 0.02230026339 | K99: 3 | L99: 128.0440604 | M99: 0.02143550982 | N99: -0.0008647535655 | O99: x | P99: x | Q99: x | R99: x
A100: 20866 | B100: 0 | C100: -2021 | D100: 241222 | E100: 5884 | F100: 5545 | G100: 6770 | H100: 17810 | I100: 61 | J100: -0.008378174462 | K100: 3 | L100: 128.0440604 | M100: -0.008908988651 | N100: -0.0005308141896 | O100: x | P100: x | Q100: x | R100: x
A101: 21256 | B101: 48620 | C101: 34 | D101: 9328 | E101: 165 | F101: 453 | G101: 29 | H101: 1178 | I101: 6 | J101: 0.003644939966 | K101: 1 | L101: 82.31403886 | M101: -0.005179463857 | N101: -0.008824403823 | O101: x | P101: x | Q101: x | R101: x
A102: 21359 | B102: 0 | C102: 446 | D102: 21154 | E102: 457 | F102: 834 | G102: 0 | H102: 2194 | I102: 7 | J102: 0.02108348303 | K102: 1 | L102: 64.02203022 | M102: 0.01805700907 | N102: -0.003026473964 | O102: x | P102: x | Q102: x | R102: x
A103: 21630 | B103: 29180 | C103: 1449 | D103: 80758 | E103: 1462 | F103: 1593 | G103: 100 | H103: 7087 | I103: 23 | J103: 0.01794249486 | K103: 2 | L103: 82.31403886 | M103: 0.01692322694 | N103: -0.001019267922 | O103: x | P103: x | Q103: x | R103: x
A104: 21658 | B104: 0 | C104: 1722 | D104: 135187 | E104: 3539 | F104: 3419 | G104: 83 | H104: 13750 | I104: 47 | J104: 0.01273791119 | K104: 3 | L104: 128.0440604 | M104: 0.01179074866 | N104: -0.0009471625263 | O104: x | P104: x | Q104: x | R104: x
A105: 22048 | B105: 0 | C105: 1021 | D105: 180252 | E105: 4227 | F105: 6917 | G105: 730 | H105: 17243 | I105: 70 | J105: 0.005664292213 | K105: 3 | L105: 128.0440604 | M105: 0.004953930828 | N105: -0.0007103613854 | O105: x | P105: x | Q105: x | R105: x
A106: 22356 | B106: 0 | C106: -2692 | D106: 282474 | E106: 6038 | F106: 8355 | G106: 7377 | H106: 24344 | I106: 80 | J106: -0.009530080645 | K106: 4 | L106: 128.0440604 | M106: -0.009983375675 | N106: -0.0004532950305 | O106: x | P106: x | Q106: x | R106: x
A107: 22459 | B107: 28140 | C107: 731 | D107: 107074 | E107: 2162 | F107: 3692 | G107: 452 | H107: 10259 | I107: 48 | J107: 0.006827054187 | K107: 3 | L107: 164.6280777 | M107: 0.005289537351 | N107: -0.001537516836 | O107: x | P107: x | Q107: x | R107: x
A108: 22543 | B108: 0 | C108: 627 | D108: 76263 | E108: 1299 | F108: 2206 | G108: 500 | H108: 13690 | I108: 23 | J108: 0.008221549113 | K108: 2 | L108: 64.02203022 | M108: 0.007382059056 | N108: -0.0008394900571 | O108: x | P108: x | Q108: x | R108: x
A109: 22552 | B109: 0 | C109: 947 | D109: 48635 | E109: 1200 | F109: 1513 | G109: 28 | H109: 4405 | I109: 13 | J109: 0.01947157397 | K109: 1 | L109: 64.02203022 | M109: 0.01815519625 | N109: -0.001316377716 | O109: x | P109: x | Q109: x | R109: x
A110: 22730 | B110: 0 | C110: 719 | D110: 101207 | E110: 1969 | F110: 3856 | G110: 20 | H110: 10987 | I110: 48 | J110: 0.007104251682 | K110: 3 | L110: 128.0440604 | M110: 0.00583908168 | N110: -0.001265170003 | O110: x | P110: x | Q110: x | R110: x
A111: 22936 | B111: 0 | C111: 1446 | D111: 324836 | E111: 10067 | F111: 7285 | G111: 1884 | H111: 24523 | I111: 76 | J111: 0.004451477053 | K111: 4 | L111: 128.0440604 | M111: 0.004057296419 | N111: -0.0003941806341 | O111: x | P111: x | Q111: x | R111: x
A112: 22954 | B112: 22020 | C112: 529 | D112: 81455 | E112: 1873 | F112: 2383 | G112: 347 | H112: 7409 | I112: 21 | J112: 0.006494383402 | K112: 2 | L112: 82.31403886 | M112: 0.005483837225 | N112: -0.001010546177 | O112: x | P112: x | Q112: x | R112: x
A113: 23036 | B113: 47580 | C113: -9898 | D113: 622958 | E113: 16976 | F113: 11091 | G113: 22722 | H113: 50431 | I113: 105 | J113: -0.0158887116 | K113: 5 | L113: 246.9421166 | M113: -0.01628511411 | N113: -0.0003964025128 | O113: x | P113: x | Q113: x | R113: x
A114: 23045 | B114: 0 | C114: 278 | D114: 35254 | E114: 334 | F114: 1146 | G114: 0 | H114: 7893 | I114: 16 | J114: 0.007885629999 | K114: 1 | L114: 64.02203022 | M114: 0.006069608265 | N114: -0.001816021734 | O114: x | P114: x | Q114: x | R114: x
A115: 23456 | B115: 0 | C115: 1137 | D115: 84095 | E115: 2002 | F115: 2568 | G115: 330 | H115: 8231 | I115: 25 | J115: 0.01352042333 | K115: 2 | L115: 64.02203022 | M115: 0.01275911731 | N115: -0.0007613060256 | O115: x | P115: x | Q115: x | R115: x
A116: 23504 | B116: 35004 | C116: 8849 | D116: 837705 | E116: 9488 | F116: 21009 | G116: 2000 | H116: 53210 | I116: 147 | J116: 0.01056338448 | K116: 5 | L116: 246.9421166 | M116: 0.01026860038 | N116: -0.0002947841025 | O116: x | P116: x | Q116: x | R116: x
A117: 23540 | B117: 16974 | C117: 859 | D117: 173971 | E117: 2752 | F117: 5326 | G117: 161 | H117: 26137 | I117: 43 | J117: 0.004937604543 | K117: 3 | L117: 164.6280777 | M117: 0.00399130845 | N117: -0.0009462960937 | O117: x | P117: x | Q117: x | R117: x
A118: 23643 | B118: 0 | C118: 1751 | D118: 150617 | E118: 4187 | F118: 4319 | G118: 1260 | H118: 13825 | I118: 48 | J118: 0.01162551372 | K118: 3 | L118: 128.0440604 | M118: 0.01077538352 | N118: -0.0008501302008 | O118: x | P118: x | Q118: x | R118: x
A119: 23755 | B119: 33460 | C119: -624 | D119: 143197 | E119: 3592 | F119: 5104 | G119: 1921 | H119: 12670 | I119: 61 | J119: -0.004357633191 | K119: 3 | L119: 164.6280777 | M119: -0.00550729469 | N119: -0.001149661499 | O119: x | P119: x | Q119: x | R119: x
A120: 24453 | B120: 0 | C120: -2919 | D120: 352828 | E120: 8411 | F120: 8633 | G120: 5679 | H120: 28534 | I120: 52 | J120: -0.008273152924 | K120: 4 | L120: 128.0440604 | M120: -0.008636060801 | N120: -0.0003629078771 | O120: x | P120: x | Q120: x | R120: x
A121: 24659 | B121: 0 | C121: 524 | D121: 30742 | E121: 652 | F121: 978 | G121: 102 | H121: 4715 | I121: 9 | J121: 0.0170450849 | K121: 1 | L121: 64.02203022 | M121: 0.01496252585 | N121: -0.002082559047 | O121: x | P121: x | Q121: x | R121: x
A122: 24668 | B122: 0 | C122: 1826 | D122: 200648 | E122: 3680 | F122: 5313 | G122: 75 | H122: 17744 | I122: 64 | J122: 0.009100514334 | K122: 3 | L122: 128.0440604 | M122: 0.008462361646 | N122: -0.0006381526875 | O122: x | P122: x | Q122: x | R122: x
A123: 24855 | B123: 0 | C123: 19 | D123: 10590 | E123: 154 | F123: 448 | G123: 0 | H123: 893 | I123: 4 | J123: 0.00179414542 | K123: 1 | L123: 64.02203022 | M123: -0.00425137207 | N123: -0.006045517491 | O123: x | P123: x | Q123: x | R123: x
A124: 24949 | B124: 0 | C124: 4672 | D124: 707309 | E124: 17770 | F124: 16679 | G124: 4825 | H124: 64555 | I124: 192 | J124: 0.006605316771 | K124: 5 | L124: 192.0660907 | M124: 0.006333771957 | N124: -0.0002715448138 | O124: x | P124: x | Q124: x | R124: x
A125: 25357 | B125: 36420 | C125: 2408 | D125: 159425 | E125: 4299 | F125: 3066 | G125: 156 | H125: 11652 | I125: 42 | J125: 0.01510428101 | K125: 3 | L125: 164.6280777 | M125: 0.01407164449 | N125: -0.001032636523 | O125: x | P125: x | Q125: x | R125: x
A126: 25647 | B126: 16974 | C126: -4734 | D126: 71193 | E126: 2408 | F126: 3281 | G126: 4028 | H126: 2866 | I126: 25 | J126: -0.0664953015 | K126: 2 | L126: 82.31403886 | M126: -0.06765151123 | N126: -0.001156209724 | O126: x | P126: x | Q126: x | R126: x
A127: 26149 | B127: 0 | C127: 711 | D127: 61519 | E127: 1368 | F127: 1478 | G127: 5 | H127: 7419 | I127: 18 | J127: 0.01155740503 | K127: 2 | L127: 64.02203022 | M127: 0.01051671792 | N127: -0.001040687108 | O127: x | P127: x | Q127: x | R127: x
A128: 26242 | B128: 0 | C128: 5274 | D128: 354738 | E128: 5321 | F128: 11564 | G128: 0 | H128: 54293 | I128: 134 | J128: 0.01486731052 | K128: 4 | L128: 128.0440604 | M128: 0.01450635663 | N128: -0.0003609538884 | O128: x | P128: x | Q128: x | R128: x
A129: 26457 | B129: 0 | C129: 197 | D129: 22153 | E129: 505 | F129: 702 | G129: 0 | H129: 2975 | I129: 8 | J129: 0.008892700763 | K129: 1 | L129: 64.02203022 | M129: 0.006002707072 | N129: -0.00288999369 | O129: x | P129: x | Q129: x | R129: x
A130: 26765 | B130: 0 | C130: -7450 | D130: 227817 | E130: 5440 | F130: 11099 | G130: 2199 | H130: 21415 | I130: 101 | J130: =C130/D130 -> -0.032701686 | K130: =IF(D130/1000<INDEX(sizeV,1),1,IF(D130/1000<INDEX(sizeV,2),2,IF(D130/1000<INDEX(sizeV,3),3,IF(D130/1000<INDEX(sizeV,4),4,IF(D130/1000<INDEX(sizeV,5),5,6))))) -> 3 | L130: =IF(B130=0,salRural*T$2,salUrban*T$2)*INDEX(nHires,K130) -> 128.0440604 | M130: =(C130-L130)/D130 -> -0.03326373388 | N130: =M130-J130 -> -0.0005620478737 | O130: x | P130: x | Q130: x | R130: x
A131: 26859 | B131: 26420 | C131: 1270 | D131: 385327 | E131: 8155 | F131: 13427 | G131: 1420 | H131: 41856 | I131: 114 | J131: 0.003295901922 | K131: 4 | L131: 164.6280777 | M131: 0.002868659404 | N131: -0.000427242518 | O131: x | P131: x | Q131: x | R131: x
A132: 26916 | B132: 0 | C132: 2931 | D132: 468587 | E132: 10620 | F132: 12176 | G132: 4520 | H132: 40959 | I132: 97 | J132: 0.006254975063 | K132: 4 | L132: 128.0440604 | M132: 0.005981719381 | N132: -0.0002732556824 | O132: x | P132: x | Q132: x | R132: x
A133: 27548 | B133: 27500 | C133: 3201 | D133: 500257 | E133: 11882 | F133: 15387 | G133: 1322 | H133: 41342 | I133: 140 | J133: 0.006398711063 | K133: 5 | L133: 246.9421166 | M133: 0.005905080555 | N133: -0.0004936305071 | O133: x | P133: x | Q133: x | R133: x
A134: 27614 | B134: 0 | C134: 1524 | D134: 269218 | E134: 5449 | F134: 8764 | G134: 210 | H134: 22808 | I134: 92 | J134: 0.005660839914 | K134: 4 | L134: 128.0440604 | M134: 0.005185225132 | N134: -0.0004756147823 | O134: x | P134: x | Q134: x | R134: x
A135: 27847 | B135: 0 | C135: 5016 | D135: 397404 | E135: 10323 | F135: 10912 | G135: 1306 | H135: 36611 | I135: 124 | J135: 0.01262191624 | K135: 4 | L135: 128.0440604 | M135: 0.012299715 | N135: -0.0003222012372 | O135: x | P135: x | Q135: x | R135: x
A136: 28152 | B136: 41060 | C136: 953 | D136: 70796 | E136: 1555 | F136: 1753 | G136: 406 | H136: 5845 | I136: 17 | J136: 0.0134612125 | K136: 2 | L136: 82.31403886 | M136: 0.01229851914 | N136: -0.001162693356 | O136: x | P136: x | Q136: x | R136: x
A137: 28255 | B137: 0 | C137: 1157 | D137: 164032 | E137: 2378 | F137: 5097 | G137: 277 | H137: 12499 | I137: 59 | J137: 0.007053501756 | K137: 3 | L137: 128.0440604 | M137: 0.006272897603 | N137: -0.0007806041531 | O137: x | P137: x | Q137: x | R137: x
A138: 28349 | B138: 22900 | C138: 1864 | D138: 143454 | E138: 3264 | F138: 4222 | G138: 300 | H138: 14639 | I138: 53 | J138: 0.01299371227 | K138: 3 | L138: 164.6280777 | M138: 0.01184611041 | N138: -0.001147601863 | O138: x | P138: x | Q138: x | R138: x
A139: 28732 | B139: 0 | C139: 771 | D139: 74301 | E139: 1441 | F139: 2354 | G139: 130 | H139: 7990 | I139: 23 | J139: 0.01037671095 | K139: 2 | L139: 64.02203022 | M139: 0.009515053226 | N139: -0.0008616577196 | O139: x | P139: x | Q139: x | R139: x
A140: 29252 | B140: 28140 | C140: 1071 | D140: 109357 | E140: 1983 | F140: 3865 | G140: 672 | H140: 9073 | I140: 37 | J140: 0.009793611749 | K140: 3 | L140: 164.6280777 | M140: 0.008288193003 | N140: -0.001505418745 | O140: x | P140: x | Q140: x | R140: x
A141: 29636 | B141: 0 | C141: 8372 | D141: 765372 | E141: 13783 | F141: 21691 | G141: 1224 | H141: 69706 | I141: 263 | J141: 0.01093847175 | K141: 5 | L141: 192.0660907 | M141: 0.01068752699 | N141: -0.0002509447572 | O141: x | P141: x | Q141: x | R141: x
A142: 29850 | B142: 28660 | C142: 266 | D142: 66315 | E142: 607 | F142: 2752 | G142: 602 | H142: 6506 | I142: 28 | J142: 0.004011158863 | K142: 2 | L142: 82.31403886 | M142: 0.002769900643 | N142: -0.00124125822 | O142: x | P142: x | Q142: x | R142: x
A143: 29944 | B143: 30780 | C143: 1627 | D143: 266464 | E143: 6150 | F143: 6213 | G143: 3040 | H143: 36284 | I143: 36 | J143: 0.006105890477 | K143: 4 | L143: 164.6280777 | M143: 0.005488065638 | N143: -0.0006178248383 | O143: x | P143: x | Q143: x | R143: x
A144: 29953 | B144: 36540 | C144: 1921 | D144: 83980 | E144: 1955 | F144: 1855 | G144: 120 | H144: 8568 | I144: 19 | J144: 0.02287449393 | K144: 2 | L144: 82.31403886 | M144: 0.02189433152 | N144: -0.000980162406 | O144: x | P144: x | Q144: x | R144: x
A145: 30052 | B145: 0 | C145: 33 | D145: 15286 | E145: 258 | F145: 1319 | G145: 2 | H145: 2403 | I145: 14 | J145: 0.002158838153 | K145: 1 | L145: 64.02203022 | M145: -0.002029440679 | N145: -0.004188278832 | O145: x | P145: x | Q145: x | R145: x
A146: 30155 | B146: 0 | C146: 297 | D146: 135431 | E146: 3088 | F146: 2571 | G146: 120 | H146: 10915 | I146: 30 | J146: 0.002192998649 | K146: 3 | L146: 128.0440604 | M146: 0.001247542583 | N146: -0.0009454560658 | O146: x | P146: x | Q146: x | R146: x
A147: 30258 | B147: 33460 | C147: 539 | D147: 491442 | E147: 13058 | F147: 14604 | G147: 6978 | H147: 42302 | I147: 120 | J147: 0.001096772356 | K147: 4 | L147: 164.6280777 | M147: 0.0007617825141 | N147: -0.0003349898416 | O147: x | P147: x | Q147: x | R147: x
A148: 30502 | B148: 0 | C148: 425 | D148: 719597 | E148: 15104 | F148: 21671 | G148: 1350 | H148: 60491 | I148: 200 | J148: 0.0005906083544 | K148: 5 | L148: 192.0660907 | M148: 0.0003237005009 | N148: -0.0002669078535 | O148: x | P148: x | Q148: x | R148: x
A149: 30650 | B149: 33460 | C149: -1913 | D149: 175734 | E149: 4436 | F149: 5603 | G149: 3156 | H149: 15389 | I149: 37 | J149: -0.01088577054 | K149: 3 | L149: 164.6280777 | M149: -0.01182257319 | N149: -0.0009368026547 | O149: x | P149: x | Q149: x | R149: x
A150: 31134 | B150: 12260 | C150: 740 | D150: 102997 | E150: 2288 | F150: 3777 | G150: 136 | H150: 12330 | I150: 39 | J150: 0.007184675282 | K150: 3 | L150: 164.6280777 | M150: 0.005586297875 | N150: -0.001598377406 | O150: x | P150: x | Q150: x | R150: x
A151: 31255 | B151: 26420 | C151: -1186 | D151: 293407 | E151: 6725 | F151: 10467 | G151: 2402 | H151: 25952 | I151: 89 | J151: -0.004042166683 | K151: 4 | L151: 164.6280777 | M151: -0.004603257856 | N151: -0.0005610911727 | O151: x | P151: x | Q151: x | R151: x
A152: 31657 | B152: 0 | C152: 654 | D152: 81873 | E152: 1891 | F152: 2649 | G152: 430 | H152: 9350 | I152: 26 | J152: 0.007987981386 | K152: 2 | L152: 64.02203022 | M152: 0.007206013824 | N152: -0.0007819675623 | O152: x | P152: x | Q152: x | R152: x
A153: 31826 | B153: 0 | C153: 1221 | D153: 225043 | E153: 5357 | F153: 6262 | G153: 1940 | H153: 33591 | I153: 80 | J153: 0.005425629769 | K153: 3 | L153: 128.0440604 | M153: 0.004856653793 | N153: -0.0005689759755 | O153: x | P153: x | Q153: x | R153: x
A154: 31835 | B154: 0 | C154: 596 | D154: 106602 | E154: 1832 | F154: 3035 | G154: 300 | H154: 10806 | I154: 28 | J154: 0.005590889477 | K154: 3 | L154: 128.0440604 | M154: 0.004389748218 | N154: -0.001201141259 | O154: x | P154: x | Q154: x | R154: x
A155: 32234 | B155: 0 | C155: 947 | D155: 81267 | E155: 1373 | F155: 2343 | G155: 67 | H155: 11792 | I155: 21 | J155: 0.01165294646 | K155: 2 | L155: 64.02203022 | M155: 0.01086514784 | N155: -0.0007877986172 | O155: x | P155: x | Q155: x | R155: x
A156: 32766 | B156: 19124 | C156: 398 | D156: 50642 | E156: 579 | F156: 1634 | G156: 0 | H156: 4260 | I156: 17 | J156: 0.007859089293 | K156: 2 | L156: 82.31403886 | M156: 0.006233678787 | N156: -0.001625410506 | O156: x | P156: x | Q156: x | R156: x
A157: 33147 | B157: 0 | C157: -1638 | D157: 360873 | E157: 10333 | F157: 10846 | G157: 4262 | H157: 30897 | I157: 110 | J157: -0.004538992942 | K157: 4 | L157: 128.0440604 | M157: -0.004893810455 | N157: -0.0003548175132 | O157: x | P157: x | Q157: x | R157: x
A158: 33259 | B158: 33460 | C158: 4507 | D158: 592709 | E158: 14875 | F158: 10641 | G158: 8197 | H158: 52531 | I158: 93 | J158: 0.007604068776 | K158: 5 | L158: 246.9421166 | M158: 0.007187435796 | N158: -0.0004166329794 | O158: x | P158: x | Q158: x | R158: x
A159: 33268 | B159: 0 | C159: 1204 | D159: 111609 | E159: 1795 | F159: 3383 | G159: 0 | H159: 10667 | I159: 38 | J159: 0.01078766049 | K159: 3 | L159: 128.0440604 | M159: 0.009640404802 | N159: -0.001147255691 | O159: x | P159: x | Q159: x | R159: x
A160: 33549 | B160: 31540 | C160: -132 | D160: 45623 | E160: 1017 | F160: 1428 | G160: 358 | H160: 4000 | I160: 11 | J160: -0.002893277514 | K160: 1 | L160: 82.31403886 | M160: -0.00469749992 | N160: -0.001804222407 | O160: x | P160: x | Q160: x | R160: x
A161: 33727 | B161: 0 | C161: 345 | D161: 308634 | E161: 4461 | F161: 12638 | G161: 991 | H161: 28749 | I161: 125 | J161: 0.001117828885 | K161: 4 | L161: 128.0440604 | M161: 0.0007029554085 | N161: -0.0004148734762 | O161: x | P161: x | Q161: x | R161: x
A162: 33754 | B162: 0 | C162: 219 | D162: 29738 | E162: 426 | F162: 759 | G162: 0 | H162: 4040 | I162: 10 | J162: 0.007364315018 | K162: 1 | L162: 64.02203022 | M162: 0.005211445618 | N162: -0.0021528694 | O162: x | P162: x | Q162: x | R162: x
A163: 33839 | B163: 14060 | C163: 319 | D163: 27259 | E163: 549 | F163: 733 | G163: 20 | H163: 2834 | I163: 7 | J163: 0.01170255695 | K163: 1 | L163: 82.31403886 | M163: 0.008682855612 | N163: -0.003019701341 | O163: x | P163: x | Q163: x | R163: x
A164: 33857 | B164: 0 | C164: 1211 | D164: 85618 | E164: 2407 | F164: 1533 | G164: -125 | H164: 8220 | I164: 17 | J164: 0.01414422201 | K164: 2 | L164: 64.02203022 | M164: 0.01339645834 | N164: -0.0007477636738 | O164: x | P164: x | Q164: x | R164: x
A165: 34153 | B165: 33460 | C165: -13405 | D165: 667173 | E165: 15090 | F165: 31113 | G165: 8510 | H165: 64452 | I165: 227 | J165: -0.02009223994 | K165: 5 | L165: 246.9421166 | M165: -0.020462372 | N165: -0.0003701320596 | O165: x | P165: x | Q165: x | R165: x
A166: 34359 | B166: 0 | C166: 350 | D166: 27930 | E166: 590 | F166: 644 | G166: 0 | H166: 5453 | I166: 6 | J166: 0.01253132832 | K166: 1 | L166: 64.02203022 | M166: 0.01023909666 | N166: -0.002292231659 | O166: x | P166: x | Q166: x | R166: x
A167: 34425 | B167: 0 | C167: 1947 | D167: 316879 | E167: 7747 | F167: 10632 | G167: 394 | H167: 25144 | I167: 119 | J167: 0.006144301137 | K167: 4 | L167: 128.0440604 | M167: 0.005740222418 | N167: -0.0004040787192 | O167: x | P167: x | Q167: x | R167: x
A168: 34434 | B168: 0 | C168: 1909 | D168: 195489 | E168: 4089 | F168: 5587 | G168: 107 | H168: 16656 | I168: 61 | J168: 0.009765255334 | K168: 3 | L168: 128.0440604 | M168: 0.009110261649 | N168: -0.0006549936848 | O168: x | P168: x | Q168: x | R168: x
A169: 34452 | B169: 0 | C169: 1147 | D169: 84704 | E169: 1743 | F169: 2509 | G169: 39 | H169: 10273 | I169: 26 | J169: 0.01354127314 | K169: 2 | L169: 64.02203022 | M169: 0.01278544071 | N169: -0.0007558324309 | O169: x | P169: x | Q169: x | R169: x
A170: 34555 | B170: 0 | C170: 1551 | D170: 160406 | E170: 3906 | F170: 3752 | G170: 187 | H170: 18422 | I170: 41 | J170: 0.009669214369 | K170: 3 | L170: 128.0440604 | M170: 0.00887096455 | N170: -0.0007982498189 | O170: x | P170: x | Q170: x | R170: x
A171: 34742 | B171: 0 | C171: -1437 | D171: 289049 | E171: 8083 | F171: 11619 | G171: 1321 | H171: 24685 | I171: 108 | J171: -0.004971475425 | K171: 4 | L171: 128.0440604 | M171: -0.005414459349 | N171: -0.0004429839247 | O171: x | P171: x | Q171: x | R171: x
A172: 34836 | B172: 12060 | C172: 168 | D172: 29389 | E172: 621 | F172: 868 | G172: 30 | H172: 2406 | I172: 10 | J172: 0.005716424513 | K172: 1 | L172: 82.31403886 | M172: 0.002915579337 | N172: -0.002800845175 | O172: x | P172: x | Q172: x | R172: x
A173: 34863 | B173: 0 | C173: -342 | D173: 18139 | E173: 491 | F173: 1103 | G173: 312 | H173: 1107 | I173: 9 | J173: -0.01885440212 | K173: 1 | L173: 64.02203022 | M173: -0.02238392581 | N173: -0.003529523691 | O173: x | P173: x | Q173: x | R173: x
A174: 35057 | B174: 0 | C174: 246 | D174: 108624 | E174: 3212 | F174: 3864 | G174: 1012 | H174: 8077 | I174: 43 | J174: 0.002264692886 | K174: 3 | L174: 128.0440604 | M174: 0.001085910476 | N174: -0.001178782409 | O174: x | P174: x | Q174: x | R174: x
A175: 35244 | B175: 30780 | C175: 6013 | D175: 424273 | E175: 7955 | F175: 12660 | G175: 2275 | H175: 55900 | I175: 79 | J175: 0.01417247857 | K175: 4 | L175: 164.6280777 | M175: 0.01378445464 | N175: -0.000388023932 | O175: x | P175: x | Q175: x | R175: x
A176: 35646 | B176: 0 | C176: 675 | D176: 48947 | E176: 858 | F176: 972 | G176: 0 | H176: 10532 | I176: 8 | J176: 0.01379042638 | K176: 1 | L176: 64.02203022 | M176: 0.01248243957 | N176: -0.001307986807 | O176: x | P176: x | Q176: x | R176: x
A177: 35842 | B177: 0 | C177: 631 | D177: 120453 | E177: 2805 | F177: 3151 | G177: 619 | H177: 8807 | I177: 36 | J177: 0.005238557778 | K177: 3 | L177: 128.0440604 | M177: 0.004175536845 | N177: -0.001063020933 | O177: x | P177: x | Q177: x | R177: x
A178: 36344 | B178: 0 | C178: 1397 | D178: 403268 | E178: 9859 | F178: 12452 | G178: 890 | H178: 32769 | I178: 134 | J178: 0.003464197506 | K178: 4 | L178: 128.0440604 | M178: 0.003146681461 | N178: -0.000317516045 | O178: x | P178: x | Q178: x | R178: x
A179: 36456 | B179: 0 | C179: 1019 | D179: 86213 | E179: 2451 | F179: 2397 | G179: 219 | H179: 8882 | I179: 18 | J179: 0.01181956317 | K179: 2 | L179: 64.02203022 | M179: 0.0110769602 | N179: -0.0007426029743 | O179: x | P179: x | Q179: x | R179: x
A180: 36858 | B180: 28140 | C180: 2529 | D180: 233348 | E180: 3467 | F180: 6705 | G180: 1334 | H180: 20527 | I180: 56 | J180: 0.01083789019 | K180: 3 | L180: 164.6280777 | M180: 0.01013238563 | N180: -0.0007055045585 | O180: x | P180: x | Q180: x | R180: x
A181: 36933 | B181: 0 | C181: 45 | D181: 110414 | E181: 2932 | F181: 4722 | G181: 865 | H181: 9289 | I181: 38 | J181: 0.0004075570127 | K181: 3 | L181: 128.0440604 | M181: -0.0007521153155 | N181: -0.001159672328 | O181: x | P181: x | Q181: x | R181: x
A182: 37051 | B182: 0 | C182: 213 | D182: 51722 | E182: 1559 | F182: 1706 | G182: 128 | H182: 4850 | I182: 19 | J182: 0.004118170218 | K182: 2 | L182: 64.02203022 | M182: 0.002880359804 | N182: -0.001237810414 | O182: x | P182: x | Q182: x | R182: x
A183: 37341 | B183: 0 | C183: 451 | D183: 29183 | E183: 753 | F183: 1089 | G183: 96 | H183: 2740 | I183: 10 | J183: 0.01545420279 | K183: 1 | L183: 64.02203022 | M183: 0.01326039029 | N183: -0.002193812501 | O183: x | P183: x | Q183: x | R183: x
A184: 37350 | B184: 0 | C184: -1029 | D184: 23249 | E184: 845 | F184: 1046 | G184: 707 | H184: 1260 | I184: 11 | J184: -0.04425996817 | K184: 1 | L184: 64.02203022 | M184: -0.04701372232 | N184: -0.00275375415 | O184: x | P184: x | Q184: x | R184: x
A185: 37378 | B185: 49420 | C185: 1863 | D185: 137333 | E185: 2771 | F185: 4181 | G185: 270 | H185: 12772 | I185: 37 | J185: 0.01356556691 | K185: 3 | L185: 164.6280777 | M185: 0.01236681586 | N185: -0.001198751048 | O185: x | P185: x | Q185: x | R185: x
A186: 37435 | B186: 12060 | C186: 13098 | D186: 798619 | E186: 14433 | F186: 24287 | G186: 2406 | H186: 68394 | I186: 310 | J186: 0.0164008119 | K186: 5 | L186: 246.9421166 | M186: 0.01609160048 | N186: -0.0003092114219 | O186: x | P186: x | Q186: x | R186: x
A187: 37659 | B187: 0 | C187: 800 | D187: 40936 | E187: 823 | F187: 1099 | G187: 75 | H187: 3708 | I187: 11 | J187: 0.0195427008 | K187: 1 | L187: 64.02203022 | M187: 0.01797874657 | N187: -0.001563954227 | O187: x | P187: x | Q187: x | R187: x
A188: 37743 | B188: 11540 | C188: 800 | D188: 84509 | E188: 1635 | F188: 2259 | G188: 98 | H188: 8559 | I188: 22 | J188: 0.009466447361 | K188: 2 | L188: 82.31403886 | M188: 0.008492420466 | N188: -0.0009740268949 | O188: x | P188: x | Q188: x | R188: x
A189: 37949 | B189: 16580 | C189: 4098 | D189: 186344 | E189: 3668 | F189: 3541 | G189: 305 | H189: 13631 | I189: 48 | J189: 0.02199158545 | K189: 3 | L189: 164.6280777 | M189: 0.02110812219 | N189: -0.00088346326 | O189: x | P189: x | Q189: x | R189: x
A190: 38535 | B190: 16974 | C190: -4990 | D190: 483516 | E190: 12845 | F190: 12210 | G190: 12950 | H190: 36758 | I190: 123 | J190: -0.01032023759 | K190: 4 | L190: 164.6280777 | M190: -0.01066071873 | N190: -0.0003404811376 | O190: x | P190: x | Q190: x | R190: x
A191: 38740 | B191: 14020 | C191: 1178 | D191: 176832 | E191: 3737 | F191: 5425 | G191: 180 | H191: 15620 | I191: 65 | J191: 0.006661690192 | K191: 3 | L191: 164.6280777 | M191: 0.00573070441 | N191: -0.0009309857815 | O191: x | P191: x | Q191: x | R191: x
A192: 39327 | B192: 0 | C192: 5997 | D192: 366677 | E192: 4023 | F192: 7901 | G192: 617 | H192: 66834 | I192: 94 | J192: 0.01635499363 | K192: 4 | L192: 128.0440604 | M192: 0.0160057924 | N192: -0.0003492012328 | O192: x | P192: x | Q192: x | R192: x
A193: 39756 | B193: 36420 | C193: 4514 | D193: 449026 | E193: 7974 | F193: 13931 | G193: 1151 | H193: 34529 | I193: 102 | J193: 0.01005286999 | K193: 4 | L193: 164.6280777 | M193: 0.009686236259 | N193: -0.0003666337311 | O193: x | P193: x | Q193: x | R193: x
A194: 40033 | B194: 25620 | C194: 746 | D194: 79528 | E194: 1839 | F194: 3753 | G194: 0 | H194: 5262 | I194: 32 | J194: =C194/D194 -> 0.00938034403 | K194: =IF(D194/1000<INDEX(sizeV,1),1,IF(D194/1000<INDEX(sizeV,2),2,IF(D194/1000<INDEX(sizeV,3),3,IF(D194/1000<INDEX(sizeV,4),4,IF(D194/1000<INDEX(sizeV,5),5,6))))) -> 2 | L194: =IF(B194=0,salRural*T$2,salUrban*T$2)*INDEX(nHires,K194) -> 82.31403886 | M194: =(C194-L194)/D194 -> 0.008345311854 | N194: =M194-J194 -> -0.001035032176 | O194: x | P194: x | Q194: x | R194: x
A195: 40350 | B195: 36540 | C195: 460 | D195: 43173 | E195: 886 | F195: 1018 | G195: 7 | H195: 6389 | I195: 10 | J195: 0.0106548074 | K195: 1 | L195: 82.31403886 | M195: 0.008748198206 | N195: -0.001906609197 | O195: x | P195: x | Q195: x | R195: x
A196: 40707 | B196: 0 | C196: 1276 | D196: 224096 | E196: 3956 | F196: 9102 | G196: 221 | H196: 19912 | I196: 98 | J196: 0.005693988291 | K196: 3 | L196: 128.0440604 | M196: 0.005122607898 | N196: -0.0005713803926 | O196: x | P196: x | Q196: x | R196: x
A197: 40855 | B197: 29100 | C197: 644 | D197: 53021 | E197: 1643 | F197: 1343 | G197: 90 | H197: 5088 | I197: 14 | J197: 0.01214613078 | K197: 2 | L197: 82.31403886 | M197: 0.01059365084 | N197: -0.001552479939 | O197: x | P197: x | Q197: x | R197: x
A198: 41245 | B198: 27500 | C198: 256 | D198: 35906 | E198: 839 | F198: 826 | G198: 30 | H198: 3634 | I198: 9 | J198: 0.007129727622 | K198: 1 | L198: 82.31403886 | M198: 0.004837240604 | N198: -0.002292487018 | O198: x | P198: x | Q198: x | R198: x
A199: 41553 | B199: 0 | C199: 1131 | D199: 71978 | E199: 993 | F199: 2267 | G199: 28 | H199: 13990 | I199: 27 | J199: 0.01571313457 | K199: 2 | L199: 64.02203022 | M199: 0.01482366792 | N199: -0.0008894666457 | O199: x | P199: x | Q199: x | R199: x
A200: 41629 | B200: 0 | C200: 1642 | D200: 152954 | E200: 3756 | F200: 4760 | G200: 548 | H200: 13415 | I200: 51 | J200: 0.01073525374 | K200: 3 | L200: 128.0440604 | M200: 0.009898112763 | N200: -0.0008371409734 | O200: x | P200: x | Q200: x | R200: x
... 4300 more rows

Sheet 2007 data (hidden)
A1: id.rssd | B1: msa.cd | C1: nt.inc | D1: assets | E1: int.exp | F1: nonint.exp | G1: prov.exp | H1: equity | I1: fte | J1: roa | K1: asset.cohort | L1: addl reg exp | M1: new.roa | N1: delta | O1: newly unprof | P1: roe | Q1: new.roe | R1: delta | T1: 2007
A2: 37 | B2: 0 | C2: 849 | D2: 79173 | E2: 2142 | F2: 2453 | G2: 110 | H2: 15759 | I2: 24 | J2: =C2/D2 -> 0.01072335266 | K2: =IF(D2/1000<INDEX(sizeV,1),1,IF(D2/1000<INDEX(sizeV,2),2,IF(D2/1000<INDEX(sizeV,3),3,IF(D2/1000<INDEX(sizeV,4),4,IF(D2/1000<INDEX(sizeV,5),5,6))))) -> 2 | L2: =IF(B2=0,salRural*T$2,salUrban*T$2)*INDEX(nHires,K2) -> 64.03626421 | M2: =(C2-L2)/D2 -> 0.009914538236 | N2: =M2-J2 -> -0.0008088144217 | O2: x | P2: x | Q2: x | R2: x | T2: =VLOOKUP(T1,cpiAdj,2,FALSE) -> 0.9148037744 | W2: Asset | AC2: Change in ROA
A3: 242 | B3: 0 | C3: 550 | D3: 32240 | E3: 832 | F3: 927 | G3: 25 | H3: 3987 | I3: 14 | J3: 0.01705955335 | K3: 1 | L3: 64.03626421 | M3: 0.01507331687 | N3: -0.001986236483 | O3: x | P3: x | Q3: x | R3: x | V3: Size | W3: Size Max | X3: Addl | Y3: # of | AA3: Median | AB3: x | AC3: 25th pctile | AD3: 50th pctile | AE3: 75th pctile | AF3: Avg | AG3: Original | AH3: Newly | AJ3: Original | AK3: After Change
A4: 354 | B4: 0 | C4: -42 | D4: 7651 | E4: 172 | F4: 359 | G4: 0 | H4: 942 | I4: 4 | J4: -0.0054894785 | K4: 1 | L4: 64.03626421 | M4: -0.01385913792 | N4: -0.008369659418 | O4: x | P4: x | Q4: x | R4: x | V4: Quintile | W4: ($MM) | X4: Hires | Y4: Banks | Z4: % | AA4: FTEs | AB4: x | AC4: (bps) | AD4: (bps) | AE4: (bps) | AF4: (bps) | AG4: Unprof | AH4: Unprof | AI4: Difference | AJ4: ROA < 40 | AK4: ROA < 40 | AL4: Difference
A5: 457 | B5: 0 | C5: 455 | D5: 28261 | E5: 838 | F5: 805 | G5: 107 | H5: 2920 | I5: 9 | J5: 0.01609992569 | K5: 1 | L5: 64.03626421 | M5: 0.01383403757 | N5: -0.002265888122 | O5: x | P5: x | Q5: x | R5: x | U5: < $50M | V5: 1 | W5: x | X5: x | Y5: x | Z5: x | AA5: x | AB5: x | AC5: =PERCENTILE(IF($K$2:$K$7000=$V5,$N$2:$N$7000),0.25)*10000 -> -31.52863713 | AD5: =PERCENTILE(IF($K$2:$K$7000=$V5,$N$2:$N$7000),0.5)*10000 -> -21.81183157 | AE5: =PERCENTILE(IF($K$2:$K$7000=$V5,$N$2:$N$7000),0.75)*10000 -> -17.28350887 | AF5: =AVERAGE(IF($K$2:$K$7000=$V5,$N$2:$N$7000))*10000 -> -29.72050102 | AG5: =SUM(IF($K$2:$K$7000=$V5,IF($J$2:$J$7000<0,1,0))) -> 99 | AH5: =SUM(IF($K$2:$K$7000=$V5,IF($M$2:$M$7000<0,1,0))) -> 207 | AI5: =IF(INDEX(sizeV,V5)>0,AH5-AG5) -> 108 | AJ5: =SUM(IF($K$2:$K$7000=$V5,IF($J$2:$J$7000<0.004,1,0))) -> 242 | AK5: =SUM(IF($K$2:$K$7000=$V5,IF($M$2:$M$7000<0.004,1,0))) -> 419 | AL5: =IF(INDEX(sizeV,V5)>0,AK5-AJ5) -> 177
A6: 505 | B6: 10580 | C6: 2376 | D6: 339914 | E6: 7194 | F6: 9482 | G6: 500 | H6: 25982 | I6: 112 | J6: 0.006990003354 | K6: 4 | L6: 164.6646794 | M6: 0.006505572941 | N6: -0.000484430413 | O6: x | P6: x | Q6: x | R6: x | U6: $50M - $100M | V6: 2 | W6: x | X6: x | Y6: x | Z6: x | AA6: x | AB6: x | AC6: =PERCENTILE(IF($K$2:$K$7000=$V6,$N$2:$N$7000),0.25)*10000 -> -11.51519171 | AD6: =PERCENTILE(IF($K$2:$K$7000=$V6,$N$2:$N$7000),0.5)*10000 -> -9.722818397 | AE6: =PERCENTILE(IF($K$2:$K$7000=$V6,$N$2:$N$7000),0.75)*10000 -> -8.253265957 | AF6: =AVERAGE(IF($K$2:$K$7000=$V6,$N$2:$N$7000))*10000 -> -10.01890875 | AG6: =SUM(IF($K$2:$K$7000=$V6,IF($J$2:$J$7000<0,1,0))) -> 78 | AH6: =SUM(IF($K$2:$K$7000=$V6,IF($M$2:$M$7000<0,1,0))) -> 108 | AI6: =IF(INDEX(sizeV,V6)>0,AH6-AG6) -> 30 | AJ6: =SUM(IF($K$2:$K$7000=$V6,IF($J$2:$J$7000<0.004,1,0))) -> 191 | AK6: =SUM(IF($K$2:$K$7000=$V6,IF($M$2:$M$7000<0.004,1,0))) -> 237 | AL6: =IF(INDEX(sizeV,V6)>0,AK6-AJ6) -> 46
A7: 1155 | B7: 0 | C7: 2515 | D7: 181449 | E7: 5401 | F7: 4929 | G7: 330 | H7: 15876 | I7: 52 | J7: 0.01386064404 | K7: 3 | L7: 128.0725284 | M7: 0.01315481194 | N7: -0.0007058320984 | O7: x | P7: x | Q7: x | R7: x | U7: $100M - $250M | V7: 3 | W7: x | X7: x | Y7: x | Z7: x | AA7: x | AB7: x | AC7: =PERCENTILE(IF($K$2:$K$7000=$V7,$N$2:$N$7000),0.25)*10000 -> -11.51440874 | AD7: =PERCENTILE(IF($K$2:$K$7000=$V7,$N$2:$N$7000),0.5)*10000 -> -9.290244849 | AE7: =PERCENTILE(IF($K$2:$K$7000=$V7,$N$2:$N$7000),0.75)*10000 -> -7.445629937 | AF7: =AVERAGE(IF($K$2:$K$7000=$V7,$N$2:$N$7000))*10000 -> -9.606087045 | AG7: =SUM(IF($K$2:$K$7000=$V7,IF($J$2:$J$7000<0,1,0))) -> 99 | AH7: =SUM(IF($K$2:$K$7000=$V7,IF($M$2:$M$7000<0,1,0))) -> 132 | AI7: =IF(INDEX(sizeV,V7)>0,AH7-AG7) -> 33 | AJ7: =SUM(IF($K$2:$K$7000=$V7,IF($J$2:$J$7000<0.004,1,0))) -> 259 | AK7: =SUM(IF($K$2:$K$7000=$V7,IF($M$2:$M$7000<0.004,1,0))) -> 337 | AL7: =IF(INDEX(sizeV,V7)>0,AK7-AJ7) -> 78
A8: 1351 | B8: 0 | C8: 2486 | D8: 120752 | E8: 3910 | F8: 1862 | G8: 141 | H8: 16359 | I8: 25 | J8: 0.02058765072 | K8: 3 | L8: 128.0725284 | M8: 0.01952702623 | N8: -0.00106062449 | O8: x | P8: x | Q8: x | R8: x | U8: $250M - $500M | V8: 4 | W8: x | X8: x | Y8: x | Z8: x | AA8: x | AB8: x | AC8: =PERCENTILE(IF($K$2:$K$7000=$V8,$N$2:$N$7000),0.25)*10000 -> -5.113238253 | AD8: =PERCENTILE(IF($K$2:$K$7000=$V8,$N$2:$N$7000),0.5)*10000 -> -4.323201152 | AE8: =PERCENTILE(IF($K$2:$K$7000=$V8,$N$2:$N$7000),0.75)*10000 -> -3.624010425 | AF8: =AVERAGE(IF($K$2:$K$7000=$V8,$N$2:$N$7000))*10000 -> -4.436963744 | AG8: =SUM(IF($K$2:$K$7000=$V8,IF($J$2:$J$7000<0,1,0))) -> 42 | AH8: =SUM(IF($K$2:$K$7000=$V8,IF($M$2:$M$7000<0,1,0))) -> 48 | AI8: =IF(INDEX(sizeV,V8)>0,AH8-AG8) -> 6 | AJ8: =SUM(IF($K$2:$K$7000=$V8,IF($J$2:$J$7000<0.004,1,0))) -> 106 | AK8: =SUM(IF($K$2:$K$7000=$V8,IF($M$2:$M$7000<0.004,1,0))) -> 122 | AL8: =IF(INDEX(sizeV,V8)>0,AK8-AJ8) -> 16
A9: 1454 | B9: 16220 | C9: 7838 | D9: 409267 | E9: 6508 | F9: 14087 | G9: 360 | H9: 35843 | I9: 144 | J9: 0.01915131198 | K9: 4 | L9: 164.6646794 | M9: 0.0187489715 | N9: -0.0004023404755 | O9: x | P9: x | Q9: x | R9: x | U9: $500M - $1B | V9: 5 | W9: x | X9: x | Y9: x | Z9: x | AA9: x | AB9: x | AC9: =PERCENTILE(IF($K$2:$K$7000=$V9,$N$2:$N$7000),0.25)*10000 -> -4.137781738 | AD9: =PERCENTILE(IF($K$2:$K$7000=$V9,$N$2:$N$7000),0.5)*10000 -> -3.480100756 | AE9: =PERCENTILE(IF($K$2:$K$7000=$V9,$N$2:$N$7000),0.75)*10000 -> -2.87468569 | AF9: =AVERAGE(IF($K$2:$K$7000=$V9,$N$2:$N$7000))*10000 -> -3.514872726 | AG9: =SUM(IF($K$2:$K$7000=$V9,IF($J$2:$J$7000<0,1,0))) -> 23 | AH9: =SUM(IF($K$2:$K$7000=$V9,IF($M$2:$M$7000<0,1,0))) -> 23 | AI9: =IF(INDEX(sizeV,V9)>0,AH9-AG9) -> 0 | AJ9: =SUM(IF($K$2:$K$7000=$V9,IF($J$2:$J$7000<0.004,1,0))) -> 54 | AK9: =SUM(IF($K$2:$K$7000=$V9,IF($M$2:$M$7000<0.004,1,0))) -> 62 | AL9: =IF(INDEX(sizeV,V9)>0,AK9-AJ9) -> 8
A10: 1557 | B10: 0 | C10: 422 | D10: 38554 | E10: 790 | F10: 869 | G10: 0 | H10: 4797 | I10: 9 | J10: 0.01094568657 | K10: 1 | L10: 64.03626421 | M10: 0.009284736624 | N10: -0.001660949946 | O10: x | P10: x | Q10: x | R10: x
A11: 1632 | B11: 0 | C11: 7714 | D11: 698671 | E11: 23198 | F11: 13986 | G11: 1304 | H11: 59401 | I11: 128 | J11: 0.01104096206 | K11: 5 | L11: 192.1087926 | M11: 0.01076599889 | N11: -0.0002749631695 | O11: x | P11: x | Q11: x | R11: x
A12: 1669 | B12: 0 | C12: 2332 | D12: 222735 | E12: 4624 | F12: 4752 | G12: 322 | H12: 39643 | I12: 62 | J12: 0.01046984084 | K12: 3 | L12: 128.0725284 | M12: 0.009894841276 | N12: -0.0005749995664 | O12: x | P12: x | Q12: x | R12: x | W12: Percentiles of ROA (before)
A13: 1829 | B13: 38300 | C13: 3398 | D13: 373108 | E13: 9522 | F13: 9693 | G13: 240 | H13: 36496 | I13: 95 | J13: 0.00910728261 | K13: 4 | L13: 164.6646794 | M13: 0.008665950129 | N13: -0.0004413324812 | O13: x | P13: x | Q13: x | R13: x | V13: Cohort | W13: 25 | X13: 50 | Y13: 75
A14: 1856 | B14: 0 | C14: 972 | D14: 211825 | E14: 9992 | F14: 1238 | G14: 40 | H14: 15986 | I14: 12 | J14: 0.004588693497 | K14: 3 | L14: 128.0725284 | M14: 0.003984078705 | N14: -0.0006046147925 | O14: x | P14: x | Q14: x | R14: x | V14: 1 | W14: =PERCENTILE(IF($K$2:$K$7000=$V14,$J$2:$J$7000),W$13/100) -> 0.005238194322 | X14: =PERCENTILE(IF($K$2:$K$7000=$V14,$J$2:$J$7000),X$13/100) -> 0.009173068402 | Y14: =PERCENTILE(IF($K$2:$K$7000=$V14,$J$2:$J$7000),Y$13/100) -> 0.01311775765
A15: 2040 | B15: 0 | C15: 2303 | D15: 187962 | E15: 5333 | F15: 4364 | G15: 392 | H15: 16785 | I15: 48 | J15: 0.01225247656 | K15: 3 | L15: 128.0725284 | M15: 0.01157110199 | N15: -0.0006813745779 | O15: x | P15: x | Q15: x | R15: x | V15: 2 | W15: =PERCENTILE(IF($K$2:$K$7000=$V15,$J$2:$J$7000),W$13/100) -> 0.006433331257 | X15: =PERCENTILE(IF($K$2:$K$7000=$V15,$J$2:$J$7000),X$13/100) -> 0.01006956582 | Y15: =PERCENTILE(IF($K$2:$K$7000=$V15,$J$2:$J$7000),Y$13/100) -> 0.01397023684
A16: 2161 | B16: 0 | C16: 1342 | D16: 102525 | E16: 2058 | F16: 3251 | G16: 83 | H16: 11318 | I16: 33 | J16: 0.01308949037 | K16: 3 | L16: 128.0725284 | M16: 0.01184030696 | N16: -0.001249183403 | O16: x | P16: x | Q16: x | R16: x | V16: 3 | W16: =PERCENTILE(IF($K$2:$K$7000=$V16,$J$2:$J$7000),W$13/100) -> 0.006621957571 | X16: =PERCENTILE(IF($K$2:$K$7000=$V16,$J$2:$J$7000),X$13/100) -> 0.01009157712 | Y16: =PERCENTILE(IF($K$2:$K$7000=$V16,$J$2:$J$7000),Y$13/100) -> 0.0137040128
A17: 2451 | B17: 0 | C17: 277 | D17: 36782 | E17: 1370 | F17: 1505 | G17: 295 | H17: 4109 | I17: 24 | J17: 0.007530857485 | K17: 1 | L17: 64.03626421 | M17: 0.005789890049 | N17: -0.001740967435 | O17: x | P17: x | Q17: x | R17: x | V17: 4 | W17: =PERCENTILE(IF($K$2:$K$7000=$V17,$J$2:$J$7000),W$13/100) -> 0.00721819982 | X17: =PERCENTILE(IF($K$2:$K$7000=$V17,$J$2:$J$7000),X$13/100) -> 0.0102609242 | Y17: =PERCENTILE(IF($K$2:$K$7000=$V17,$J$2:$J$7000),Y$13/100) -> 0.01361491506
A18: 2554 | B18: 0 | C18: 84 | D18: 7370 | E18: 144 | F18: 233 | G18: 20 | H18: 591 | I18: 4 | J18: 0.01139755767 | K18: 1 | L18: 64.03626421 | M18: 0.00270878369 | N18: -0.008688773977 | O18: x | P18: x | Q18: x | R18: x | V18: 5 | W18: =PERCENTILE(IF($K$2:$K$7000=$V18,$J$2:$J$7000),W$13/100) -> 0.007415250866 | X18: =PERCENTILE(IF($K$2:$K$7000=$V18,$J$2:$J$7000),X$13/100) -> 0.01036747733 | Y18: =PERCENTILE(IF($K$2:$K$7000=$V18,$J$2:$J$7000),Y$13/100) -> 0.01332276745
A19: 2732 | B19: 16974 | C19: 7162 | D19: 507235 | E19: 12828 | F19: 11145 | G19: 405 | H19: 66584 | I19: 104 | J19: 0.01411968811 | K19: 5 | L19: 246.9970191 | M19: 0.01363274021 | N19: -0.000486947902 | O19: x | P19: x | Q19: x | R19: x
A20: 2750 | B20: 0 | C20: 416 | D20: 50221 | E20: 1878 | F20: 1225 | G20: 84 | H20: 5239 | I20: 10 | J20: 0.008283387428 | K20: 2 | L20: 64.03626421 | M20: 0.007008298039 | N20: -0.001275089389 | O20: x | P20: x | Q20: x | R20: x
A21: 2938 | B21: 10500 | C21: 5341 | D21: 399551 | E21: 11900 | F21: 8452 | G21: 1459 | H21: 31605 | I21: 77 | J21: 0.01336750502 | K21: 4 | L21: 164.6646794 | M21: 0.01295538072 | N21: -0.000412124308 | O21: x | P21: x | Q21: x | R21: x | W21: Percentiles of ROA (after)
A22: 3252 | B22: 0 | C22: 2413 | D22: 111570 | E22: 2348 | F22: 2703 | G22: 330 | H22: 13714 | I22: 35 | J22: 0.02162767769 | K22: 3 | L22: 128.0725284 | M22: 0.02047976581 | N22: -0.00114791188 | O22: x | P22: x | Q22: x | R22: x | V22: Cohort | W22: 25 | X22: 50 | Y22: 75
A23: 3458 | B23: 0 | C23: 222 | D23: 28386 | E23: 828 | F23: 599 | G23: 0 | H23: 2907 | I23: 10 | J23: 0.007820756711 | K23: 1 | L23: 64.03626421 | M23: 0.005564846607 | N23: -0.002255910104 | O23: x | P23: x | Q23: x | R23: x | V23: 1 | W23: =PERCENTILE(IF($K$2:$K$7000=$V23,$M$2:$M$7000),W$13/100) -> 0.002167565077 | X23: =PERCENTILE(IF($K$2:$K$7000=$V23,$M$2:$M$7000),X$13/100) -> 0.00661259058 | Y23: =PERCENTILE(IF($K$2:$K$7000=$V23,$M$2:$M$7000),Y$13/100) -> 0.01090377721
A24: 3720 | B24: 0 | C24: 2168 | D24: 173346 | E24: 4120 | F24: 5394 | G24: 86 | H24: 22686 | I24: 59 | J24: 0.01250677835 | K24: 3 | L24: 128.0725284 | M24: 0.01176795237 | N24: -0.0007388259805 | O24: x | P24: x | Q24: x | R24: x | V24: 2 | W24: =PERCENTILE(IF($K$2:$K$7000=$V24,$M$2:$M$7000),W$13/100) -> 0.00542418896 | X24: =PERCENTILE(IF($K$2:$K$7000=$V24,$M$2:$M$7000),X$13/100) -> 0.009035308075 | Y24: =PERCENTILE(IF($K$2:$K$7000=$V24,$M$2:$M$7000),Y$13/100) -> 0.01298237452
A25: 3953 | B25: 36420 | C25: 1525 | D25: 111268 | E25: 2428 | F25: 5998 | G25: 475 | H25: 9026 | I25: 41 | J25: 0.01370564763 | K25: 3 | L25: 164.6646794 | M25: 0.01222575512 | N25: -0.001479892506 | O25: x | P25: x | Q25: x | R25: x | V25: 3 | W25: =PERCENTILE(IF($K$2:$K$7000=$V25,$M$2:$M$7000),W$13/100) -> 0.005569085663 | X25: =PERCENTILE(IF($K$2:$K$7000=$V25,$M$2:$M$7000),X$13/100) -> 0.009082840307 | Y25: =PERCENTILE(IF($K$2:$K$7000=$V25,$M$2:$M$7000),Y$13/100) -> 0.01275782619
A26: 4138 | B26: 0 | C26: 1052 | D26: 197624 | E26: 5373 | F26: 7088 | G26: 530 | H26: 17381 | I26: 86 | J26: 0.005323240092 | K26: 3 | L26: 128.0725284 | M26: 0.004675178478 | N26: -0.000648061614 | O26: x | P26: x | Q26: x | R26: x | V26: 4 | W26: =PERCENTILE(IF($K$2:$K$7000=$V26,$M$2:$M$7000),W$13/100) -> 0.006839795178 | X26: =PERCENTILE(IF($K$2:$K$7000=$V26,$M$2:$M$7000),X$13/100) -> 0.009748765425 | Y26: =PERCENTILE(IF($K$2:$K$7000=$V26,$M$2:$M$7000),Y$13/100) -> 0.01322250838
A27: 4156 | B27: 0 | C27: 1102 | D27: 185723 | E27: 5574 | F27: 4884 | G27: 1360 | H27: 16281 | I27: 55 | J27: 0.005933567733 | K27: 3 | L27: 128.0725284 | M27: 0.005243978783 | N27: -0.0006895889492 | O27: x | P27: x | Q27: x | R27: x | V27: 5 | W27: =PERCENTILE(IF($K$2:$K$7000=$V27,$M$2:$M$7000),W$13/100) -> 0.007036638029 | X27: =PERCENTILE(IF($K$2:$K$7000=$V27,$M$2:$M$7000),X$13/100) -> 0.01005228012 | Y27: =PERCENTILE(IF($K$2:$K$7000=$V27,$M$2:$M$7000),Y$13/100) -> 0.01305041993
A28: 4231 | B28: 0 | C28: 1021 | D28: 124221 | E28: 4210 | F28: 2773 | G28: 144 | H28: 13694 | I28: 33 | J28: 0.008219222193 | K28: 3 | L28: 128.0725284 | M28: 0.007188216739 | N28: -0.001031005453 | O28: x | P28: x | Q28: x | R28: x
A29: 4437 | B29: 0 | C29: 2809 | D29: 224608 | E29: 6585 | F29: 5526 | G29: 605 | H29: 23171 | I29: 58 | J29: 0.01250623308 | K29: 3 | L29: 128.0725284 | M29: 0.01193602842 | N29: -0.0005702046606 | O29: x | P29: x | Q29: x | R29: x
A30: 4839 | B30: 16974 | C30: 2065 | D30: 280134 | E30: 8761 | F30: 8358 | G30: 610 | H30: 23142 | I30: 85 | J30: 0.007371472224 | K30: 4 | L30: 164.6646794 | M30: 0.006783665391 | N30: -0.0005878068331 | O30: x | P30: x | Q30: x | R30: x
